Workbook

Sheet LookUpData (hidden)
B2: General | D2: ProgramType
D3: WELLProgram | F3: ConstructionType | G3: Column1 | I3: ProjectUse | J3: Column1 | K3: Column2 | M3: Concept Order in Standard
D4: v2 | F4: New | I4: Office Spaces | J4: No | M4: Air
D5: v2 and WPR | F5: Existing Space (No Renovations) | I5: Retail | J5: Yes | K5: Not implemented | M5: Water
D6: WPR Only | F6: Existing Space | I6: Healthcare | J6: No | M6: Light
D7: v2 Pilot | I7: Airport | J7: No | M7: Thermal Comfort
D8: v2 Pilot w/Skybridge to v2 | F8: ProjectTypes | G8: Type | I8: Industrial | J8: No | M8: Sound
D9: v2 Pilot w/Skybridge to v2 and WPR | F9: Core | G9: Core | I9: Hospitality | J9: No
F10: Interiors/Owner Occupied | G10: Interior | I10: Education | J10: No
F11: Multifamily Residential | G11: MFR | I11: Higher Education | J11: No
I12: Fitness | J12: No
D13: UnitType | E13: =IF('1-Project Info'!$D$13="Square meters","Metric",IF('1-Project Info'!$D$13="square feet","Imperial","")) ->  | I13: Coworking | J13: No
I14: Multifamily | J14: No
D15: Project data all input? | F15: 1 = Yes | G15: 2 = No
D16: Gen Info | F16: =IF(OR(ProjectVersion="",TotalArea="",ProjectType=""),2,1) -> 2 | J16: Days since last PIP release: | K16: =(TODAY()-LOOKUP(2,1/('Version Notes'!D7:D4998<>""),'Version Notes'!D7:D4998)) -> 0
D17: Gen Info + Core | F17: =IF(OR(F16=2,COUNTIF('1-Project Info'!D21:D29,"")>0),2,1) -> 2 | J17: # of days for message throw: | K17: 60
D18: Gen Info + MFR | F18: =IF(COUNTIF('1-Project Info'!D32:D34,"")>0,2,1) -> 2
B22: Part | D22: v2g to WPR part mapping
B23: Mapping | D23: v2gPart | E23: WPRPart | F23: v2gName | G23: WPRName | H23: Number | J23: v2pPart | K23: v2pName | N23: HelperColumn | O23: v2gPart | P23: PartOption | Q23: v2gName | V23: HelperColumn | W23: WPRPart | X23: PartOption | Y23: WPRName
D24: A01.1 | E24: PA1 | F24: A01.1: Meet Thresholds for Particulate Matter, Option 1 | G24: PA1: Meet Thresholds for Particulate Matter | H24: 1 | J24: A01.1 | K24: Meet Thresholds for Particulate Matter | N24: =O24&P24 -> A01.1 | O24: A01.1 | Q24: Meet Thresholds for Particulate Matter, Option 1 | V24: =W24&X24 -> PA1 | W24: PA1 | Y24: Meet Thresholds for Particulate Matter
D25: A01.2 | E25: PA3 | F25: A01.2: Meet Thresholds for Organic Gases | G25: PA3: Meet Thresholds for Organic Gases | H25: 2 | J25: A01.2 | K25: Meet Thresholds for Organic Gases | N25: =O25&P25 -> A01.2 | O25: A01.2 | Q25: Meet Thresholds for Organic Gases | V25: PA3 | W25: PA3 | Y25: Meet Thresholds for Organic Gases
D26: A01.3 | E26: PA5 | F26: A01.3: Meet Thresholds for Inorganic Gases | G26: PA5: Meet Thresholds for Inorganic Gases | H26: 3 | J26: A01.3 | K26: Meet Thresholds for Inorganic Gases | N26: A01.3 | O26: A01.3 | Q26: Meet Thresholds for Inorganic Gases | V26: PA5 | W26: PA5 | Y26: Meet Thresholds for Inorganic Gases
D27: A05.1 | E27: PA2 | F27: A05.1: Meet Enhanced Thresholds for Particulate Matter | G27: PA2: Meet Enhanced Thresholds for Particulate Matter | H27: 4 | J27: A05.1 | K27: Meet Enhanced Thresholds for Particulate Matter | N27: A05.1 | O27: A05.1 | Q27: Meet Enhanced Thresholds for Particulate Matter | V27: PA2 | W27: PA2 | Y27: Meet Enhanced Thresholds for Particulate Matter
D28: A05.2 | E28: PA4 | F28: A05.2: Meet Enhanced Thresholds for Organic Gases | G28: PA4: Meet Enhanced Thresholds for Organic Gases | H28: 5 | J28: A05.2 | K28: Meet Enhanced Thresholds for Organic Gases | N28: A05.2 | O28: A05.2 | Q28: Meet Enhanced Thresholds for Organic Gases | V28: PA4 | W28: PA4 | Y28: Meet Enhanced Thresholds for Organic Gases
D29: A05.3 | E29: PA6 | F29: A05.3: Meet Enhanced Thresholds for Inorganic Gases | G29: PA6: Meet Enhanced Thresholds for Inorganic Gases | H29: 6 | J29: A05.3 | K29: Meet Enhanced Thresholds for Inorganic Gases | N29: A05.3 | O29: A05.3 | Q29: Meet Enhanced Thresholds for Inorganic Gases | V29: PA6 | W29: PA6 | Y29: Meet Enhanced Thresholds for Inorganic Gases
D30: W01.1 | E30: PW1 | F30: W01.1: Verify Water Quality Indicators | G30: PW1: Verify Water Quality Indicators | H30: 7 | J30: W01.1 | K30: Meet Sediment Thresholds | N30: W01.1 | O30: W01.1 | Q30: Verify Water Quality Indicators | V30: PW1 | W30: PW1 | Y30: Verify Water Quality Indicators
D31: W02.1 | E31: PW2 | F31: W02.1: Meet Chemical Thresholds | G31: PW2: Meet Chemical Thresholds | H31: 8 | J31: W02.1 | K31: Meet Dissolved Metal Thresholds | N31: W02.1 | O31: W02.1 | Q31: Meet Chemical Thresholds | V31: PW2 | W31: PW2 | Y31: Meet Chemical Thresholds
D32: W02.2 | E32: PW3 | F32: W02.2: Meet Thresholds for Organics and Pesticides | G32: PW3: Meet Thresholds for Organics and Pesticides | H32: 9 | J32: W02.2 | K32: Meet Organic Pollutant Thresholds | N32: W02.2 | O32: W02.2 | Q32: Meet Thresholds for Organics and Pesticides | V32: PW3 | W32: PW3 | Y32: Meet Thresholds for Organics and Pesticides
D33: W04.1 | E33: PW4 | F33: W04.1: Meet Thresholds for Drinking Water Taste | G33: PW4: Meet Thresholds for Drinking Water Taste | H33: 10 | J33: W02.3 | K33: Meet Disinfectant Byproducts Thresholds | N33: W04.1 | O33: W04.1 | Q33: Meet Thresholds for Drinking Water Taste | V33: PW4 | W33: PW4 | Y33: Meet Thresholds for Drinking Water Taste
D34: L02.1 | E34: PL1 | F34: L02.1: Provide Visual Acuity | G34: PL1: Provide Visual Acuity | H34: 11 | J34: W02.4 | K34: Meet Herbicide and Pesticide Thresholds | N34: L02.1 | O34: L02.1 | Q34: Provide Visual Acuity | V34: PL1 | W34: PL1 | Y34: Provide Visual Acuity
D35: L03.1 | E35: PL2 | F35: L03.1: Meet Lighting for Day-Active People | G35: PL2: Lighting for Day-Active People | H35: 12 | J35: W02.5 | K35: Meet Fertilizer Thresholds | N35: L03.1 | O35: L03.1 | Q35: Meet Lighting for Day-Active People | V35: PL2 | W35: PL2 | Y35: Lighting for Day-Active People
D36: T01.1 | E36: PT1 | F36: T01.1: Provide Acceptable Thermal Environment | G36: PT1: Provide Acceptable Thermal Environment | H36: 13 | J36: W02.6 | K36: Meet Public Water Additive Thresholds | N36: T01.1 | O36: T01.1 | Q36: Provide Acceptable Thermal Environment | V36: PT1 | W36: PT1 | Y36: Provide Acceptable Thermal Environment
D37: T07.1 | E37: PT2 | F37: T07.1: Manage Relative Humidity | G37: PT2: Manage Relative Humidity | H37: 14 | J37: W02.7 | K37: Monitor Water Contaminant Parameters | N37: T07.1 | O37: T07.1 | Q37: Manage Relative Humidity | V37: PT2 | W37: PT2 | Y37: Manage Relative Humidity
D38: S02.1 | E38: PS1 | F38: S02.1: Limit Background Noise Levels | G38: PS1: Limit Background Noise Levels | H38: 15 | J38: W04.1 | K38: Meet Drinking Water Taste Properties | N38: S02.1 | O38: S02.1 | Q38: Limit Background Noise Levels | V38: PS1 | W38: PS1 | Y38: Limit Background Noise Levels
D39: S03.2,O1 | E39: PS2,O1 | F39: S03.2: Achieve Sound Isolation At Walls, Option 1: NIC | G39: PS2: Achieve Sound Isolation At Walls, Option 1: NIC | H39: 16 | J39: L02.1 | K39: Light Levels for Visual Acuity | N39: S03.2Option 1 | O39: S03.2 | P39: Option 1 | Q39: Achieve Sound Isolation At Walls, Option 1: NIC | V39: PS2Option 1 | W39: PS2 | X39: Option 1 | Y39: Achieve Sound Isolation At Walls, Option 1: NIC
D40: S03.2,O2 | E40: PS2,O2 | F40: S03.2: Achieve Sound Isolation At Walls, Option 2: Speech Privacy | G40: PS2: Achieve Sound Isolation At Walls, Option 2: Speech Privacy | H40: 17 | J40: L03.1 | K40: Lighting for the Circadian System | N40: S03.2Option 2 | O40: S03.2 | P40: Option 2 | Q40: Achieve Sound Isolation At Walls, Option 2: Speech Privacy | V40: PS2Option 2 | W40: PS2 | X40: Option 2 | Y40: Achieve Sound Isolation At Walls, Option 2: Speech Privacy
D41: S04.1 | E41: PS3 | F41: S04.1: Achieve Reverberation Time Thresholds | G41: PS3: Achieve Reverberation Time Thresholds | H41: 18 | J41: T01.1 | K41: Support Thermal Environment | N41: S04.1 | O41: S04.1 | Q41: Achieve Reverberation Time Thresholds | V41: PS3 | W41: PS3 | Y41: Achieve Reverberation Time Thresholds
J42: T02.1 | K42: Enhance Thermal Environment
J43: T07.1 | K43: Manage Relative Humidity
J44: S02.1 | K44: Limit Background Noise Levels
J45: S03.1 | K45: Ensure Adequate Wall Construction
J46: S04.1 | K46: Meet Thresholds for Reverberation Time
J47: S05.1 | K47: Implement Sound Masking
B53: Air
D54: Air - Sample Quantity Determination | H54: Air Labs mapping for version attempted | K54: v2gAirThresholds | U54: v2gA05PM_Tiers
D55: =IF(UnitType="Imperial","Area [f2]",IF(UnitType="Metric","Area [m2]","Area [_]")) -> Area [_] | E55: A01 | F55: A05 | H55: v2 pilot | I55: v2 | K55: MustbeInOrder | L55: Part | M55: Feature | N55: Contaminant | O55: Max | P55: Units | Q55: Percent Tolerance | R55: 2nd units max | S55: 2nd units | U55: PM2_5Tier2 | V55: PM2_5Tier1 | W55: PM10Tier2 | X55: PM10Tier1 | Y55: Tier | AC55: A01 Option Lookup table
D56: =IF(UnitType="Imperial",0,0) -> 0 | E56: =IF(UnitType="","",ROUNDUP(IF(UnitType="Imperial",(E60/25000)+1,IF(UnitType="Metric",(E60/(2323))+1,"Err")),0)) ->  | F56: =IF(UnitType="","",ROUNDUP(IF(UnitType="Imperial",(F60/25000)+1,IF(UnitType="Metric",(F60/(2323))+1,"Err")),0)) ->  | H56: Formaldehyde | I56: Formaldehyde | K56: 1 | L56: A01.1 | M56: PA1 | N56: PM2.5 | O56: 15 | P56: ug/m3 | Q56: 1.2 | U56: 10 | V56: 12 | W56: 20 | X56: 30 | AD56: Threshold
D57: =IF(UnitType="Imperial",100000,9290) -> 9290 | E57: =IF(UnitType="","",ROUNDUP(IF(UnitType="Imperial",(E60/100000)+4,IF(UnitType="Metric",(E60/(9290))+4,"Err")),0)) ->  | F57: =IF(UnitType="","",ROUNDUP(IF(UnitType="Imperial",(F60/100000)+4,IF(UnitType="Metric",(F60/(9290))+4,"Err")),0)) ->  | H57: Benzene | K57: 2 | L57: A01.1 | M57: PA1 | N57: PM10 | O57: 50 | P57: ug/m3 | Q57: 1.2 | U57: 12 | V57: 14.4 | W57: 24 | X57: 36 | AD57: PM2.5 | AE57: PM10
D58: =IF(UnitType="Imperial",500000,46452) -> 46452 | E58: =IF(UnitType="","",ROUNDUP(IF(UnitType="Imperial",(E60/500000)+8,IF(UnitType="Metric",(E60/(46452))+8,"Err")),0)) ->  | F58: =IF(UnitType="","",ROUNDUP(IF(UnitType="Imperial",(F60/500000)+8,IF(UnitType="Metric",(F60/(46452))+8,"Err")),0)) ->  | H58: Carbon disulfide | I58: Benzene | K58: 3 | L58: A01.1 | M58: PA1 | N58: PM2.5-Kitchen | O58: 35 | P58: ug/m3 | Q58: 1.2 | U58: =IF('4-Air_v2_WPR'!D127<>"",IF('4-Air_v2_WPR'!E127<=LookUpData!$U$57,2,""),"") ->  | V58: =IF('4-Air_v2_WPR'!D127<>"",IF(U58="",IF('4-Air_v2_WPR'!E127<=LookUpData!$V$57,1,0),""),"") ->  | W58: =IF('4-Air_v2_WPR'!D127<>"",IF('4-Air_v2_WPR'!H127<=LookUpData!$W$57,2,""),"") ->  | X58: =IF('4-Air_v2_WPR'!D127<>"",IF(W58="",IF('4-Air_v2_WPR'!H127<=LookUpData!$X$57,1,0),""),"") ->  | Y58: =IF('4-Air_v2_WPR'!D127<>"",MIN(U58:X58),"") ->  | AC58: Option 1 | AD58: 15 | AE58: 50
H59: Carbon tetrachloride | I59: Acetaldehyde | K59: 4 | L59: A05.1 | M59: PA2 | N59: PM2.5 | O59: 12 | P59: ug/m3 | Q59: 1.2 | U59: =IF('4-Air_v2_WPR'!D128<>"",IF('4-Air_v2_WPR'!E128<=LookUpData!$U$57,2,""),"") ->  | V59: =IF('4-Air_v2_WPR'!D128<>"",IF(U59="",IF('4-Air_v2_WPR'!E128<=LookUpData!$V$57,1,0),""),"") ->  | W59: =IF('4-Air_v2_WPR'!D128<>"",IF('4-Air_v2_WPR'!H128<=LookUpData!$W$57,2,""),"") ->  | X59: =IF('4-Air_v2_WPR'!D128<>"",IF(W59="",IF('4-Air_v2_WPR'!H128<=LookUpData!$X$57,1,0),""),"") ->  | Y59: =IF('4-Air_v2_WPR'!D128<>"",MIN(U59:X59),"") ->  | AC59: Option 2 | AD59: 25 | AE59: 50
D60: Area | E60: =IF(DataCheckGen=2,"",IF(AND(ProjectType="Core",DataCheckGenCore=2),"",IF(AND(ProjectType="Multifamily Residential",DataCheckGenMFR=2),"",IF(AND(ProjectType="Core",'1-Project Info'!$D$25="Yes"),TotalArea,IF(AND(ProjectType="Core",'1-Project Info'!$D$25="No",CoreAreaNLS>TotalArea*0.025),CoreAreaNLS,IF(AND(ProjectType="Core",'1-Project Info'!$D$25="No",TotalArea*0.025>CoreAreaNLS),0.025*TotalArea,IF(AND(ProjectType="Multifamily Residential",OR(CertTarget="Bronze",CertTarget="Silver"),'1-Project Info'!$D$34="No",MfrAreaCS=0),0,IF(AND(ProjectType="Multifamily Residential",OR(CertTarget="Bronze",CertTarget="Silver"),'1-Project Info'!$D$34="No",MfrAreaCS>0),MfrAreaCS,IF(AND(ProjectType="Multifamily Residential",OR(CertTarget="Bronze", CertTarget="Silver",CertTarget="Gold",CertTarget="Platinum"),'1-Project Info'!$D$34="Yes"),TotalArea,TotalArea))))))))) ->  | F60: =IF(DataCheckGen=2,"",IF(AND(ProjectType="Core",DataCheckGenCore=2),"",IF(AND(ProjectType="Multifamily Residential",DataCheckGenMFR=2),"",IF(AND(ProjectType="Core",'1-Project Info'!$D$25="Yes"),TotalArea,IF(AND(ProjectType="Core",'1-Project Info'!$D$25="No"),"",IF(AND(ProjectType="Multifamily Residential",OR(CertTarget="Bronze",CertTarget="Silver",CertTarget="Gold",CertTarget="Platinum"),'1-Project Info'!$D$34="No"),"",IF(AND(ProjectType="Multifamily Residential",OR(CertTarget="Bronze",CertTarget="Silver",CertTarget="Gold",CertTarget="Platinum"),'1-Project Info'!$D$34="Yes"),TotalArea,TotalArea))))))) ->  | H60: Chloro benzene | I60: Naphthalene | K60: 5 | L60: A05.1 | M60: PA2 | N60: PM10 | O60: 30 | P60: ug/m3 | Q60: 1.2 | U60: =IF('4-Air_v2_WPR'!D129<>"",IF('4-Air_v2_WPR'!E129<=LookUpData!$U$57,2,""),"") ->  | V60: =IF('4-Air_v2_WPR'!D129<>"",IF(U60="",IF('4-Air_v2_WPR'!E129<=LookUpData!$V$57,1,0),""),"") ->  | W60: =IF('4-Air_v2_WPR'!D129<>"",IF('4-Air_v2_WPR'!H129<=LookUpData!$W$57,2,""),"") ->  | X60: =IF('4-Air_v2_WPR'!D129<>"",IF(W60="",IF('4-Air_v2_WPR'!H129<=LookUpData!$X$57,1,0),""),"") ->  | Y60: =IF('4-Air_v2_WPR'!D129<>"",MIN(U60:X60),"") ->  | AC60: Option 3 | AD60: ='4-Air_v2_WPR'!#REF! ->  | AE60: ='4-Air_v2_WPR'!#REF! -> 
D61: Samples | E61: =VLOOKUP(E60,LookUpData!$D$56:$E$58,2,TRUE) ->  | F61: =IF(AND(ProjectType="Core",'1-Project Info'!$D$25="No"),"",IF(AND(ProjectType="Multifamily Residential",'1-Project Info'!$D$34="No"),"",VLOOKUP(F60,LookUpData!$D$56:$F$58,3,TRUE))) ->  | H61: Chloroform | I61: Toluene | K61: 6 | L61: A05.1 | M61: PA2 | N61: PM2.5 | O61: 10 | P61: ug/m3 | Q61: 1.2 | U61: =IF('4-Air_v2_WPR'!D130<>"",IF('4-Air_v2_WPR'!E130<=LookUpData!$U$57,2,""),"") ->  | V61: =IF('4-Air_v2_WPR'!D130<>"",IF(U61="",IF('4-Air_v2_WPR'!E130<=LookUpData!$V$57,1,0),""),"") ->  | W61: =IF('4-Air_v2_WPR'!D130<>"",IF('4-Air_v2_WPR'!H130<=LookUpData!$W$57,2,""),"") ->  | X61: =IF('4-Air_v2_WPR'!D130<>"",IF(W61="",IF('4-Air_v2_WPR'!H130<=LookUpData!$X$57,1,0),""),"") ->  | Y61: =IF('4-Air_v2_WPR'!D130<>"",MIN(U61:X61),"") -> 
H62: Dichloro benzene(1,4) | K62: 7 | L62: A05.1 | M62: PA2 | N62: PM10 | O62: 20 | P62: ug/m3 | Q62: 1.2 | U62: =IF('4-Air_v2_WPR'!D131<>"",IF('4-Air_v2_WPR'!E131<=LookUpData!$U$57,2,""),"") ->  | V62: =IF('4-Air_v2_WPR'!D131<>"",IF(U62="",IF('4-Air_v2_WPR'!E131<=LookUpData!$V$57,1,0),""),"") ->  | W62: =IF('4-Air_v2_WPR'!D131<>"",IF('4-Air_v2_WPR'!H131<=LookUpData!$W$57,2,""),"") ->  | X62: =IF('4-Air_v2_WPR'!D131<>"",IF(W62="",IF('4-Air_v2_WPR'!H131<=LookUpData!$X$57,1,0),""),"") ->  | Y62: =IF('4-Air_v2_WPR'!D131<>"",MIN(U62:X62),"") -> 
H63: Dichloro ethylene(1,1) | K63: 8 | L63: A01.2 | M63: PA3 | N63: Benzene | O63: 10 | P63: ug/m3 | Q63: 1.05 | U63: =IF('4-Air_v2_WPR'!D132<>"",IF('4-Air_v2_WPR'!E132<=LookUpData!$U$57,2,""),"") ->  | V63: =IF('4-Air_v2_WPR'!D132<>"",IF(U63="",IF('4-Air_v2_WPR'!E132<=LookUpData!$V$57,1,0),""),"") ->  | W63: =IF('4-Air_v2_WPR'!D132<>"",IF('4-Air_v2_WPR'!H132<=LookUpData!$W$57,2,""),"") ->  | X63: =IF('4-Air_v2_WPR'!D132<>"",IF(W63="",IF('4-Air_v2_WPR'!H132<=LookUpData!$X$57,1,0),""),"") ->  | Y63: =IF('4-Air_v2_WPR'!D132<>"",MIN(U63:X63),"") ->  | AC63: Analyte | AD63: Mol. Weight
H64: Ethyl benzene | K64: 9 | L64: A01.2 | M64: PA3 | N64: Formaldehyde | O64: 50 | P64: ug/m3 | Q64: 1.2 | U64: =IF('4-Air_v2_WPR'!D133<>"",IF('4-Air_v2_WPR'!E133<=LookUpData!$U$57,2,""),"") ->  | V64: =IF('4-Air_v2_WPR'!D133<>"",IF(U64="",IF('4-Air_v2_WPR'!E133<=LookUpData!$V$57,1,0),""),"") ->  | W64: =IF('4-Air_v2_WPR'!D133<>"",IF('4-Air_v2_WPR'!H133<=LookUpData!$W$57,2,""),"") ->  | X64: =IF('4-Air_v2_WPR'!D133<>"",IF(W64="",IF('4-Air_v2_WPR'!H133<=LookUpData!$X$57,1,0),""),"") ->  | Y64: =IF('4-Air_v2_WPR'!D133<>"",MIN(U64:X64),"") ->  | AC64: Formaldehyde | AD64: 30.03
H65: Hexane (n-) | K65: 10 | L65: A01.2 | M65: PA3 | N65: Toluene | O65: 300 | P65: ug/m3 | Q65: 1.05 | U65: =IF('4-Air_v2_WPR'!D134<>"",IF('4-Air_v2_WPR'!E134<=LookUpData!$U$57,2,""),"") ->  | V65: =IF('4-Air_v2_WPR'!D134<>"",IF(U65="",IF('4-Air_v2_WPR'!E134<=LookUpData!$V$57,1,0),""),"") ->  | W65: =IF('4-Air_v2_WPR'!D134<>"",IF('4-Air_v2_WPR'!H134<=LookUpData!$W$57,2,""),"") ->  | X65: =IF('4-Air_v2_WPR'!D134<>"",IF(W65="",IF('4-Air_v2_WPR'!H134<=LookUpData!$X$57,1,0),""),"") ->  | Y65: =IF('4-Air_v2_WPR'!D134<>"",MIN(U65:X65),"") ->  | AC65: Benzene | AD65: 78.11
H66: Isopropyl Alcohol | K66: 11 | L66: A05.2 | M66: PA4 | N66: Acetaldehyde | O66: 140 | P66: ug/m3 | Q66: 1.2 | U66: =IF('4-Air_v2_WPR'!D135<>"",IF('4-Air_v2_WPR'!E135<=LookUpData!$U$57,2,""),"") ->  | V66: =IF('4-Air_v2_WPR'!D135<>"",IF(U66="",IF('4-Air_v2_WPR'!E135<=LookUpData!$V$57,1,0),""),"") ->  | W66: =IF('4-Air_v2_WPR'!D135<>"",IF('4-Air_v2_WPR'!H135<=LookUpData!$W$57,2,""),"") ->  | X66: =IF('4-Air_v2_WPR'!D135<>"",IF(W66="",IF('4-Air_v2_WPR'!H135<=LookUpData!$X$57,1,0),""),"") ->  | Y66: =IF('4-Air_v2_WPR'!D135<>"",MIN(U66:X66),"") ->  | AC66: Carbon disulfide | AD66: 76.14
H67: Methyl chloroform | K67: 12 | L67: A05.2 | M67: PA4 | N67: Acrylonitrile | O67: 5 | P67: ug/m3 | Q67: 1.05 | U67: =IF('4-Air_v2_WPR'!D136<>"",IF('4-Air_v2_WPR'!E136<=LookUpData!$U$57,2,""),"") ->  | V67: =IF('4-Air_v2_WPR'!D136<>"",IF(U67="",IF('4-Air_v2_WPR'!E136<=LookUpData!$V$57,1,0),""),"") ->  | W67: =IF('4-Air_v2_WPR'!D136<>"",IF('4-Air_v2_WPR'!H136<=LookUpData!$W$57,2,""),"") ->  | X67: =IF('4-Air_v2_WPR'!D136<>"",IF(W67="",IF('4-Air_v2_WPR'!H136<=LookUpData!$X$57,1,0),""),"") ->  | Y67: =IF('4-Air_v2_WPR'!D136<>"",MIN(U67:X67),"") ->  | AC67: Carbon tetrachloride | AD67: 153.82
H68: Methylene chloride | K68: 13 | L68: A05.2 | M68: PA4 | N68: Caprolactam | O68: 2.2 | P68: ug/m3 | Q68: 1.05 | Y68: =MIN(Y58:Y67) -> 0 | Z68: Min Overall | AC68: Chloro benzene | AD68: 112.56
H69: Methyl tert-butyl ether | K69: 14 | L69: A05.2 | M69: PA4 | N69: Benzene | O69: 3 | P69: ug/m3 | Q69: 1.05 | AC69: Chloroform | AD69: 119.38
H70: Styrene | K70: 15 | L70: A05.2 | M70: PA4 | N70: Formaldehyde | O70: 9 | P70: ug/m3 | Q70: 1.2 | AC70: Dichloro benzene(1,4) | AD70: 147
H71: Tetrachloroethene | K71: 16 | L71: A05.2 | M71: PA4 | N71: Naphthalene | O71: 9 | P71: ug/m3 | Q71: 1.05 | AC71: Dichloro ethylene(1,1) | AD71: 96.94
H72: Toluene | K72: 17 | L72: A05.2 | M72: PA4 | N72: Toluene | O72: 300 | P72: ug/m3 | Q72: 1.05 | AC72: Ethyl benzene | AD72: 106.17
H73: Trichloroethylene | K73: 18 | L73: A01.3 | M73: PA5 | N73: Carbon Monoxide | O73: 9 | P73: ppm | Q73: 1 | R73: 10 | S73: mg/m3 | AC73: Hexane (n-) | AD73: 86.18
H74: Vinyl acetate | K74: 19 | L74: A01.3 | M74: PA5 | N74: Ozone | O74: 51 | P74: ppb | Q74: 1.05 | R74: 100 | S74: ug/m3 | AC74: Isopropyl Alcohol | AD74: 60.1
H75: Xylene | K75: 20 | L75: A01.3 | M75: PA5 | N75: Carbon Monoxide-Kitchen | O75: 30 | P75: ppm | Q75: 1 | R75: 34 | S75: mg/m3 | AC75: Methyl chloroform | AD75: 133.4
K76: 21 | L76: A01.3 | M76: PA5 | N76: Ozone-Kitchen | O76: 51 | P76: ppb | Q76: 1.05 | R76: 100 | S76: ug/m3 | AC76: Methylene chloride | AD76: 84.93
K77: 22 | L77: A05.3 | M77: PA6 | N77: Carbon Monoxide | O77: 6 | P77: ppm | Q77: 1 | R77: 7 | S77: mg/m3 | AC77: Methyl tert-butyl ether | AD77: 88.16
K78: 23 | L78: A05.3 | M78: PA6 | N78: Nitrogen Dioxide | O78: 21 | P78: ppb | Q78: 1.2 | R78: 40 | S78: ug/m3 | AC78: Styrene | AD78: 104.15
AC79: Tetrachloroethene | AD79: 165.83
K80: v2pAirThresholds | U80: v2pA05PM_Tiers | AC80: Toluene | AD80: 92.14
K81: MustbeInOrder | L81: Part | M81: Feature | N81: Contaminant | O81: Max | P81: Units | Q81: Percent Tolerance | R81: 2nd units max | S81: 2nd units | U81: PM2_5Tier2 | V81: PM2_5Tier1 | W81: PM10Tier2 | X81: PM10Tier1 | Y81: Tier | AC81: Trichloroethylene | AD81: 131.39
K82: 1 | L82: A01.1 | M82: PA1 | N82: PM2.5 | O82: 15 | P82: ug/m3 | Q82: 1.2 | U82: 10 | V82: 12 | W82: 20 | X82: 30 | AC82: Vinyl acetate | AD82: 86.069
K83: 2 | L83: A01.1 | M83: PA1 | N83: PM10 | O83: 50 | P83: ug/m3 | Q83: 1.2 | U83: 12 | V83: 14.4 | W83: 24 | X83: 36 | Y83: =IF(#REF!<>"",MIN(U83:X83),"") ->  | AC83: Xylene (m, o, p combined) | AD83: 106.17
K84: 3 | L84: A01.1 | M84: PA1 | N84: PM2.5-Kitchen | O84: 35 | P84: ug/m3 | Q84: 1.2 | U84: =IF(#REF!<>"",IF(#REF!<=LookUpData!$U$83,2,""),"") ->  | V84: =IF(#REF!<>"",IF(U84="",IF(#REF!<=LookUpData!$V$83,1,0),""),"") ->  | W84: =IF(#REF!<>"",IF(#REF!<=LookUpData!$W$83,2,""),"") ->  | X84: =IF(#REF!<>"",IF(W84="",IF(#REF!<=LookUpData!$X$83,1,0),""),"") ->  | Y84: =IF(#REF!<>"",MIN(U84:X84),"") ->  | AC84: Carbon Monoxide | AD84: 28
K85: 4 | L85: A05.1 | M85: PA2 | N85: PM2.5 | O85: 12 | P85: ug/m3 | Q85: 1.2 | U85: =IF(#REF!<>"",IF(#REF!<=LookUpData!$U$83,2,""),"") ->  | V85: =IF(#REF!<>"",IF(U85="",IF(#REF!<=LookUpData!$V$83,1,0),""),"") ->  | W85: =IF(#REF!<>"",IF(#REF!<=LookUpData!$W$83,2,""),"") ->  | X85: =IF(#REF!<>"",IF(W85="",IF(#REF!<=LookUpData!$X$83,1,0),""),"") ->  | Y85: =IF(#REF!<>"",MIN(U85:X85),"") ->  | AC85: Ozone | AD85: 48
K86: 5 | L86: A05.1 | M86: PA2 | N86: PM10 | O86: 30 | P86: ug/m3 | Q86: 1.2 | U86: =IF(#REF!<>"",IF(#REF!<=LookUpData!$U$83,2,""),"") ->  | V86: =IF(#REF!<>"",IF(U86="",IF(#REF!<=LookUpData!$V$83,1,0),""),"") ->  | W86: =IF(#REF!<>"",IF(#REF!<=LookUpData!$W$83,2,""),"") ->  | X86: =IF(#REF!<>"",IF(W86="",IF(#REF!<=LookUpData!$X$83,1,0),""),"") ->  | Y86: =IF(#REF!<>"",MIN(U86:X86),"") ->  | AC86: Nitrogen Dioxide | AD86: 46
K87: 6 | L87: A05.1 | M87: PA2 | N87: PM2.5 | O87: 10 | P87: ug/m3 | Q87: 1.2 | U87: =IF(#REF!<>"",IF(#REF!<=LookUpData!$U$83,2,""),"") ->  | V87: =IF(#REF!<>"",IF(U87="",IF(#REF!<=LookUpData!$V$83,1,0),""),"") ->  | W87: =IF(#REF!<>"",IF(#REF!<=LookUpData!$W$83,2,""),"") ->  | X87: =IF(#REF!<>"",IF(W87="",IF(#REF!<=LookUpData!$X$83,1,0),""),"") ->  | Y87: =IF(#REF!<>"",MIN(U87:X87),"") -> 
K88: 7 | L88: A05.1 | M88: PA2 | N88: PM10 | O88: 20 | P88: ug/m3 | Q88: 1.2 | U88: =IF(#REF!<>"",IF(#REF!<=LookUpData!$U$83,2,""),"") ->  | V88: =IF(#REF!<>"",IF(U88="",IF(#REF!<=LookUpData!$V$83,1,0),""),"") ->  | W88: =IF(#REF!<>"",IF(#REF!<=LookUpData!$W$83,2,""),"") ->  | X88: =IF(#REF!<>"",IF(W88="",IF(#REF!<=LookUpData!$X$83,1,0),""),"") ->  | Y88: =IF(#REF!<>"",MIN(U88:X88),"") -> 
K89: 8 | L89: A01.2 | M89: PA3 | N89: Formaldehyde | O89: 27 | P89: ppb | Q89: 1.2 | U89: =IF(#REF!<>"",IF(#REF!<=LookUpData!$U$83,2,""),"") ->  | V89: =IF(#REF!<>"",IF(U89="",IF(#REF!<=LookUpData!$V$83,1,0),""),"") ->  | W89: =IF(#REF!<>"",IF(#REF!<=LookUpData!$W$83,2,""),"") ->  | X89: =IF(#REF!<>"",IF(W89="",IF(#REF!<=LookUpData!$X$83,1,0),""),"") ->  | Y89: =IF(#REF!<>"",MIN(U89:X89),"") -> 
K90: 9 | L90: A01.2 | M90: PA3 | N90: Benzene | O90: 30 | P90: ug/m3 | Q90: 1.05 | U90: =IF(#REF!<>"",IF(#REF!<=LookUpData!$U$83,2,""),"") ->  | V90: =IF(#REF!<>"",IF(U90="",IF(#REF!<=LookUpData!$V$83,1,0),""),"") ->  | W90: =IF(#REF!<>"",IF(#REF!<=LookUpData!$W$83,2,""),"") ->  | X90: =IF(#REF!<>"",IF(W90="",IF(#REF!<=LookUpData!$X$83,1,0),""),"") ->  | Y90: =IF(#REF!<>"",MIN(U90:X90),"") -> 
K91: 10 | L91: A01.2 | M91: PA3 | N91: Carbon disulfide | O91: 400 | P91: ug/m3 | Q91: 1.05 | U91: =IF(#REF!<>"",IF(#REF!<=LookUpData!$U$83,2,""),"") ->  | V91: =IF(#REF!<>"",IF(U91="",IF(#REF!<=LookUpData!$V$83,1,0),""),"") ->  | W91: =IF(#REF!<>"",IF(#REF!<=LookUpData!$W$83,2,""),"") ->  | X91: =IF(#REF!<>"",IF(W91="",IF(#REF!<=LookUpData!$X$83,1,0),""),"") ->  | Y91: =IF(#REF!<>"",MIN(U91:X91),"") -> 
K92: 11 | L92: A01.2 | M92: PA3 | N92: Carbon tetrachloride | O92: 20 | P92: ug/m3 | Q92: 1.05 | U92: =IF(#REF!<>"",IF(#REF!<=LookUpData!$U$83,2,""),"") ->  | V92: =IF(#REF!<>"",IF(U92="",IF(#REF!<=LookUpData!$V$83,1,0),""),"") ->  | W92: =IF(#REF!<>"",IF(#REF!<=LookUpData!$W$83,2,""),"") ->  | X92: =IF(#REF!<>"",IF(W92="",IF(#REF!<=LookUpData!$X$83,1,0),""),"") ->  | Y92: =IF(#REF!<>"",MIN(U92:X92),"") -> 
K93: 12 | L93: A01.2 | M93: PA3 | N93: Chloro benzene | O93: 500 | P93: ug/m3 | Q93: 1.05 | U93: =IF(#REF!<>"",IF(#REF!<=LookUpData!$U$83,2,""),"") ->  | V93: =IF(#REF!<>"",IF(U93="",IF(#REF!<=LookUpData!$V$83,1,0),""),"") ->  | W93: =IF(#REF!<>"",IF(#REF!<=LookUpData!$W$83,2,""),"") ->  | X93: =IF(#REF!<>"",IF(W93="",IF(#REF!<=LookUpData!$X$83,1,0),""),"") ->  | Y93: =IF(#REF!<>"",MIN(U93:X93),"") -> 
K94: 13 | L94: A01.2 | M94: PA3 | N94: Chloroform | O94: 150 | P94: ug/m3 | Q94: 1.05 | Y94: =MIN(Y84:Y93) ->  | Z94: Min Overall
K95: 14 | L95: A01.2 | M95: PA3 | N95: Dichloro benzene(1,4) | O95: 400 | P95: ug/m3 | Q95: 1.05
K96: 15 | L96: A01.2 | M96: PA3 | N96: Dichloro ethylene(1,1) | O96: 35 | P96: ug/m3 | Q96: 1.05
K97: 16 | L97: A01.2 | M97: PA3 | N97: Ethyl benzene | O97: 1000 | P97: ug/m3 | Q97: 1.05
K98: 17 | L98: A01.2 | M98: PA3 | N98: Hexane (n-) | O98: 3500 | P98: ug/m3 | Q98: 1.05
K99: 18 | L99: A01.2 | M99: PA3 | N99: Isopropyl Alcohol | O99: 3500 | P99: ug/m3 | Q99: 1.05
K100: 19 | L100: A01.2 | M100: PA3 | N100: Methyl chloroform | O100: 500 | P100: ug/m3 | Q100: 1.05
K101: 20 | L101: A01.2 | M101: PA3 | N101: Methylene chloride | O101: 200 | P101: ug/m3 | Q101: 1.05
K102: 21 | L102: A01.2 | M102: PA3 | N102: Methyl tert-butyl ether | O102: 4000 | P102: ug/m3 | Q102: 1.05
K103: 22 | L103: A01.2 | M103: PA3 | N103: Styrene | O103: 450 | P103: ug/m3 | Q103: 1.05
K104: 23 | L104: A01.2 | M104: PA3 | N104: Tetrachloroethene | O104: 17.5 | P104: ug/m3 | Q104: 1.05
K105: 24 | L105: A01.2 | M105: PA3 | N105: Toluene | O105: 150 | P105: ug/m3 | Q105: 1.05
K106: 25 | L106: A01.2 | M106: PA3 | N106: Trichloroethylene | O106: 100 | P106: ug/m3 | Q106: 1.05
K107: 26 | L107: A01.2 | M107: PA3 | N107: Vinyl acetate | O107: 300 | P107: ug/m3 | Q107: 1.05
K108: 27 | L108: A01.2 | M108: PA3 | N108: Xylene | O108: 350 | P108: ug/m3 | Q108: 1.05
K109: 28 | L109: A05.2 | M109: PA4 | N109: Formaldehyde | O109: 13.4 | P109: ppb | Q109: 1.2
K110: 29 | L110: A05.2 | M110: PA4 | N110: Benzene | O110: 3 | P110: ug/m3 | Q110: 1.05
K111: 30 | L111: A01.3 | M111: PA5 | N111: Carbon Monoxide | O111: 9 | P111: ppm | Q111: 1
K112: 31 | L112: A01.3 | M112: PA5 | N112: Ozone | O112: 51 | P112: ppb | Q112: 1.05
K113: 32 | L113: A01.3 | M113: PA5 | N113: Carbon Monoxide-Kitchen | O113: 30 | P113: ppm | Q113: 1
K114: 33 | L114: A05.3 | M114: PA6 | N114: Carbon Monoxide | O114: 6 | P114: ppm | Q114: 1
K115: 34 | L115: A05.3 | M115: PA6 | N115: Ozone | O115: 25 | P115: ppb | Q115: 1.05
K116: 35 | L116: A05.3 | M116: PA6 | N116: Nitrogen Dioxide | O116: 21 | P116: ppb | Q116: 1.2
K117: 36 | L117: A01.2 | M117: PA3 | N117: Formaldehyde-Kitchen | O117: 81 | P117: ppb | Q117: 1.2
B122: Water | D122: Water- Sample Quantity Determination
D123: =IF(UnitType="Imperial","Area [f2]",IF(UnitType="Metric","Area [m2]","Area [_]")) -> Area [_] | E123: W01? | F123: W02/04 | H123: 2 Of these | I123: Display | J123: Limits | K123: Units | M123: 3 of these | N123: Display | O123: Limits | P123: Units
D124: =IF(UnitType="Imperial",0,0) -> 0 | E124: =IF(UnitType="","",2) ->  | F124: =IF(UnitType="","",1) ->  | H124: Aldrin and Dieldrin | I124: =_xlfn.CONCAT(H124," ",K124) -> Aldrin and Dieldrin [mg/L] | J124: 3e-05 | K124: [mg/L] | M124: Benzene | N124: =_xlfn.CONCAT(M124," ",P124) -> Benzene [mg/L] | O124: 0.01 | P124: [mg/L]
D125: =IF(UnitType="Imperial",50000,4645) -> 4645 | E125: =IF(UnitType="","",4) ->  | F125: =IF(UnitType="","",2) ->  | H125: Atrazine | I125: =_xlfn.CONCAT(H125," ",K125) -> Atrazine [mg/L] | J125: 0.1 | K125: [mg/L] | M125: Benzo[a]pyrene | N125: =_xlfn.CONCAT(M125," ",P125) -> Benzo[a]pyrene [mg/L] | O125: 0.0007 | P125: [mg/L]
D126: =IF(UnitType="Imperial",500000,46452) -> 46452 | E126: =IF(UnitType="","",6) ->  | F126: =IF(UnitType="","",3) ->  | H126: Carbofuran | I126: Carbofuran [mg/L] | J126: 0.007 | K126: [mg/L] | M126: Carbon tetrachloride | N126: Carbon tetrachloride [mg/L] | O126: 0.004 | P126: [mg/L]
H127: Chlordane | I127: Chlordane [mg/L] | J127: 0.0002 | K127: [mg/L] | M127: 1,2-Dichloroethane | N127: 1,2-Dichloroethane [mg/L] | O127: 0.03 | P127: [mg/L]
D128: Area | E128: =IF(DataCheckGen=2,"",IF(AND(ProjectType="Core",DataCheckGenCore=2),"",IF(AND(ProjectType="Multifamily Residential",DataCheckGenMFR=2),"",IF(AND(ProjectType="Core"),TotalArea,IF(AND(ProjectType="Multifamily Residential",OR(CertTarget="Bronze",CertTarget="Silver"),MfrAreaCS=0),0,IF(AND(ProjectType="Multifamily Residential",OR(CertTarget="Bronze",CertTarget="Silver"),MfrAreaCS>0),MfrAreaCS,IF(AND(ProjectType="Multifamily Residential",OR(CertTarget="Gold",CertTarget="Platinum"),'1-Project Info'!$D$34="Yes"),TotalArea,TotalArea))))))) ->  | F128: =IF(DataCheckGen=2,"",IF(AND(ProjectType="Core",DataCheckGenCore=2),"",IF(AND(ProjectType="Multifamily Residential",DataCheckGenMFR=2),"",IF(AND(ProjectType="Core"),TotalArea,IF(AND(ProjectType="Multifamily Residential",OR(CertTarget="Bronze",CertTarget="Silver"),MfrAreaCS=0),0,IF(AND(ProjectType="Multifamily Residential",OR(CertTarget="Bronze",CertTarget="Silver"),MfrAreaCS>0),MfrAreaCS,IF(AND(ProjectType="Multifamily Residential",OR(CertTarget="Gold",CertTarget="Platinum"),'1-Project Info'!$D$34="Yes"),TotalArea,TotalArea))))))) ->  | H128: 2,4-Dichlorophenoxyacetic acid (2,4-D) | I128: 2,4-Dichlorophenoxyacetic acid (2,4-D) [mg/L] | J128: 0.03 | K128: [mg/L] | M128: Tetrachloroethene (Tetrachloroethylene) | N128: Tetrachloroethene (Tetrachloroethylene) [mg/L] | O128: 0.04 | P128: [mg/L]
D129: Samples | E129: =IF(E128=0,0,VLOOKUP(E128,LookUpData!$D$124:$F$126,2,TRUE)) ->  | F129: =IF(F128=0,0,VLOOKUP(F128,LookUpData!$D$124:$F$126,3,TRUE)) ->  | H129: Dichlorodiphenyltrichloroethane (DDT) | I129: Dichlorodiphenyltrichloroethane (DDT) [mg/L] | J129: 0.001 | K129: [mg/L] | M129: Toluene | N129: Toluene [mg/L] | O129: 0.7 | P129: [mg/L]
H130: Lindane | I130: Lindane [mg/L] | J130: 0.002 | K130: [mg/L] | M130: Trichloroethene (Trichloroethylene) | N130: Trichloroethene (Trichloroethylene) [mg/L] | O130: 0.02 | P130: [mg/L]
H131: Pentachlorophenol (PCP) | I131: Pentachlorophenol (PCP) [mg/L] | J131: 0.009 | K131: [mg/L] | M131: 2,4,6-Trichlorophenol | N131: 2,4,6-Trichlorophenol [mg/L] | O131: 0.2 | P131: [mg/L]
M132: Vinyl Chloride | N132: Vinyl Chloride [mg/L] | O132: 0.0003 | P132: [mg/L]
M133: Xylenes (o-, m- and p-) | N133: Xylenes (o-, m- and p-) [mg/L] | O133: 0.5 | P133: [mg/L]
B140: Light | D140: Light - Sample Quantity Determination | H140: Light v2g Option 2 | L140: EMLThresholdsv2p
D141: =IF(UnitType="Imperial","Area [f2]",IF(UnitType="Metric","Area [m2]","Area [_]")) -> Area [_] | E141: L02 | F141: L03 | H141: Space | I141: fc | J141: Lux | L141: DropDownList | M141: EML_threshold | N141: Points | O141: PointsCore | P141: Attempting | Q141: EML_WithTolerance | R141: Points Available | S141: mel-EDI_threshold | T141: mel-EDI_WithTolerance
D142: =IF(UnitType="Imperial",0,0) -> 0 | E142: =IF(UnitType="","",ROUNDUP(IF(UnitType="Imperial",(E146/1600)+21,IF(UnitType="Metric",(E146/(149))+21,"Err")),0)) ->  | F142: =IF(UnitType="","",ROUNDUP(IF(UnitType="Imperial",(F146/2000)+10,IF(UnitType="Metric",(F146/(186))+10,"Err")),0)) ->  | H142: Offices | I142: 30 | J142: 320 | L142: Electric light only 150 EML | M142: 150 | N142: 1 | O142: 1 | P142: 0 | Q142: =EMLThresholdsv2p[[#This Row],[EML_threshold]]-(EMLThresholdsv2p[[#This Row],[EML_threshold]]*$I$152) -> 142.5 | R142: =IF(EMLThresholdsv2p[[#This Row],[Attempting]]>0,IF(ProjectType="Core",EMLThresholdsv2p[[#This Row],[PointsCore]],EMLThresholdsv2p[[#This Row],[Points]]),"") ->  | S142: 136 | T142: =EMLThresholdsv2p[[#This Row],[mel-EDI_threshold]]-EMLThresholdsv2p[[#This Row],[mel-EDI_threshold]]*$I$152 -> 129.2
D143: =IF(UnitType="Imperial",100000,9290) -> 9290 | E143: =IF(UnitType="","",ROUNDUP(IF(UnitType="Imperial",(E146/25000)+80,IF(UnitType="Metric",(E146/(2323))+80,"Err")),0)) ->  | F143: =IF(UnitType="","",ROUNDUP(IF(UnitType="Imperial",(F146/25000)+56,IF(UnitType="Metric",(F146/(2323))+56,"Err")),0)) ->  | H143: Classrooms | I143: 30 | J143: 320 | L143: Electric light only 240 EML | M143: 240 | N143: 3 | O143: 3 | P143: 0 | Q143: =EMLThresholdsv2p[[#This Row],[EML_threshold]]-(EMLThresholdsv2p[[#This Row],[EML_threshold]]*$I$152) -> 228 | R143: =IF(EMLThresholdsv2p[[#This Row],[Attempting]]>0,IF(ProjectType="Core",EMLThresholdsv2p[[#This Row],[PointsCore]],EMLThresholdsv2p[[#This Row],[Points]]),"") ->  | S143: 218 | T143: =EMLThresholdsv2p[[#This Row],[mel-EDI_threshold]]-EMLThresholdsv2p[[#This Row],[mel-EDI_threshold]]*$I$152 -> 207.1
D144: =IF(UnitType="Imperial",500000,46452) -> 46452 | E144: =IF(UnitType="","",ROUNDUP(IF(UnitType="Imperial",(E146/100000)+95,IF(UnitType="Metric",(E146/(9300))+95,"Err")),0)) ->  | F144: =IF(UnitType="","",ROUNDUP(IF(UnitType="Imperial",(F146/50000)+66,IF(UnitType="Metric",(F146/(4645))+66,"Err")),0)) ->  | H144: Circulation Areas | I144: 10 | J144: 110 | L144: Electric light and daylighting 120 EML with electric lighting and at least 2 points in Feature L05: Enhanced Daylight Access | M144: 120 | N144: 1 | O144: 1 | P144: 0 | Q144: =EMLThresholdsv2p[[#This Row],[EML_threshold]]-(EMLThresholdsv2p[[#This Row],[EML_threshold]]*$I$152) -> 114 | R144: =IF(EMLThresholdsv2p[[#This Row],[Attempting]]>0,IF(ProjectType="Core",EMLThresholdsv2p[[#This Row],[PointsCore]],EMLThresholdsv2p[[#This Row],[Points]]),"") ->  | S144: 109 | T144: =EMLThresholdsv2p[[#This Row],[mel-EDI_threshold]]-EMLThresholdsv2p[[#This Row],[mel-EDI_threshold]]*$I$152 -> 103.55
H145: Storage Spaces | I145: 10 | J145: 110 | L145: Electric light and daylighting 180 EML with electric lighting and at least 2 points in Feature L05: Enhanced Daylight Access | M145: 180 | N145: 3 | O145: 3 | P145: 180 | Q145: =EMLThresholdsv2p[[#This Row],[EML_threshold]]-(EMLThresholdsv2p[[#This Row],[EML_threshold]]*$I$152) -> 171 | R145: =IF(EMLThresholdsv2p[[#This Row],[Attempting]]>0,IF(ProjectType="Core",EMLThresholdsv2p[[#This Row],[PointsCore]],EMLThresholdsv2p[[#This Row],[Points]]),"") -> 3 | S145: 163 | T145: =EMLThresholdsv2p[[#This Row],[mel-EDI_threshold]]-EMLThresholdsv2p[[#This Row],[mel-EDI_threshold]]*$I$152 -> 154.85
D146: Area | E146: =IF(DataCheckGen=2,"",IF(AND(ProjectType="Core",DataCheckGenCore=2),"",IF(AND(ProjectType="Multifamily Residential",DataCheckGenMFR=2),"",IF(AND(ProjectType="Core",'1-Project Info'!$D$26="Yes"),TotalArea,IF(AND(ProjectType="Core",'1-Project Info'!$D$26="No",CoreAreaNLS=0),0,IF(AND(ProjectType="Core",'1-Project Info'!$D$26="No",CoreAreaNLS>0),CoreAreaNLS,IF(AND(ProjectType="Multifamily Residential",OR(CertTarget="Bronze",CertTarget="Silver"),MfrAreaCS=0),0,IF(AND(ProjectType="Multifamily Residential",OR(CertTarget="Bronze",CertTarget="Silver"),MfrAreaCS>0),MfrAreaCS,IF(AND(ProjectType="Multifamily Residential",OR(CertTarget="Gold",CertTarget="Platinum")),TotalArea,TotalArea))))))))) ->  | F146: =IF(DataCheckGen=2,"",IF(AND(ProjectType="Core",DataCheckGenCore=2),"",IF(AND(ProjectType="Multifamily Residential",DataCheckGenMFR=2),"",IF(AND(ProjectType="Core"),TotalArea,IF(ProjectType="Multifamily Residential",TotalArea,TotalArea))))) ->  | H146: Dining Areas | I146: 10 | J146: 110
D147: Samples | E147: =IF(AND('1-Project Info'!$D$26="No",CoreAreaNLS=0),0,IF(E146=0,0,VLOOKUP(E146,LookUpData!$D$142:$F$144,2,TRUE))) ->  | F147: =VLOOKUP(F146,LookUpData!$D$142:$F$144,3,TRUE) ->  | H147: Lounges | I147: 10 | J147: 110 | L147: EML Thresholds v2g
H148: Restrooms | I148: 10 | J148: 110 | L148: DropDownList | M148: EML_threshold | N148: Points | O148: PointsCore | P148: Attempting | Q148: EML_WithTolerance | R148: Points Available | S148: mel-EDI_threshold | T148: mel-EDI_WithTolerance
L149: Electric light only 150 EML | M149: 150 | N149: 1 | O149: 2 | P149: =IF(IFERROR(SEARCH(EMLThresholds[[#This Row],[EML_threshold]],#REF!),0)>0,EMLThresholds[[#This Row],[EML_threshold]],0) -> 0 | Q149: =EMLThresholds[[#This Row],[EML_threshold]]-(EMLThresholds[[#This Row],[EML_threshold]]*$I$152) -> 142.5 | R149: =IF(EMLThresholds[[#This Row],[Attempting]]>0,IF(ProjectType="Core",EMLThresholds[[#This Row],[PointsCore]],EMLThresholds[[#This Row],[Points]]),"") ->  | S149: 136 | T149: =EMLThresholds[[#This Row],[mel-EDI_threshold]]-EMLThresholds[[#This Row],[mel-EDI_threshold]]*$I$152 -> 129.2
H150: Tolerance | L150: Electric light only 275 EML | M150: 275 | N150: 3 | O150: 4 | P150: =IF(IFERROR(SEARCH(EMLThresholds[[#This Row],[EML_threshold]],#REF!),0)>0,EMLThresholds[[#This Row],[EML_threshold]],0) -> 0 | Q150: =EMLThresholds[[#This Row],[EML_threshold]]-(EMLThresholds[[#This Row],[EML_threshold]]*$I$152) -> 261.25 | R150: =IF(EMLThresholds[[#This Row],[Attempting]]>0,IF(ProjectType="Core",EMLThresholds[[#This Row],[PointsCore]],EMLThresholds[[#This Row],[Points]]),"") ->  | S150: 250 | T150: =EMLThresholds[[#This Row],[mel-EDI_threshold]]-EMLThresholds[[#This Row],[mel-EDI_threshold]]*$I$152 -> 237.5
H151: L02 | I151: L03 | L151: Electric light and daylighting 120 EML with electric lighting and achieved L05.1: Implement Daylight Plan or L06.1: Conduct daylight Simulation | M151: 120 | N151: 1 | O151: 2 | P151: =IF(IFERROR(SEARCH(EMLThresholds[[#This Row],[EML_threshold]],#REF!),0)>0,EMLThresholds[[#This Row],[EML_threshold]],0) -> 0 | Q151: =EMLThresholds[[#This Row],[EML_threshold]]-(EMLThresholds[[#This Row],[EML_threshold]]*$I$152) -> 114 | R151: =IF(EMLThresholds[[#This Row],[Attempting]]>0,IF(ProjectType="Core",EMLThresholds[[#This Row],[PointsCore]],EMLThresholds[[#This Row],[Points]]),"") ->  | S151: 109 | T151: =EMLThresholds[[#This Row],[mel-EDI_threshold]]-EMLThresholds[[#This Row],[mel-EDI_threshold]]*$I$152 -> 103.55
H152: 0.1 | I152: 0.05 | L152: Electric light and daylighting 180 EML with electric lighting and achieved L05.1: Implement Daylight Plan or L06.1: Conduct daylight Simulation | M152: 180 | N152: 3 | O152: 4 | P152: =IF(IFERROR(SEARCH(EMLThresholds[[#This Row],[EML_threshold]],#REF!),0)>0,EMLThresholds[[#This Row],[EML_threshold]],0) -> 0 | Q152: =EMLThresholds[[#This Row],[EML_threshold]]-(EMLThresholds[[#This Row],[EML_threshold]]*$I$152) -> 171 | R152: =IF(EMLThresholds[[#This Row],[Attempting]]>0,IF(ProjectType="Core",EMLThresholds[[#This Row],[PointsCore]],EMLThresholds[[#This Row],[Points]]),"") ->  | S152: 163 | T152: =EMLThresholds[[#This Row],[mel-EDI_threshold]]-EMLThresholds[[#This Row],[mel-EDI_threshold]]*$I$152 -> 154.85
B157: Thermal | D157: Thermal - Sample Quantity Determination | H157: DetermineAforMRTcalculation
B158: Comfort | D158: =IF(UnitType="Imperial","Area [f2]",IF(UnitType="Metric","Area [m2]","Area [_]")) -> Area [_] | E158: T01 | F158: T07 | H158: Lower Range (m/s or fpm) | I158: Upper Range (m/s or fpm) | J158: A
D159: =IF(UnitType="Imperial",0,0) -> 0 | E159: =IF(UnitType="","",ROUNDUP(IF(UnitType="Imperial",(E163/10000)+3,IF(UnitType="Metric",(E163/(929))+3,"Err")),0)) ->  | F159: =IF(UnitType="","",ROUNDUP(IF(UnitType="Imperial",(F163/10000)+3,IF(UnitType="Metric",(F163/(929))+3,"Err")),0)) ->  | H159: =IF('7-Thermal Panel'!F7="SI",0,0) -> 0 | I159: =IF('7-Thermal Panel'!F7="SI",0.2,40) -> 40 | J159: 0.5
D160: =IF(UnitType="Imperial",100000,9290) -> 9290 | E160: =IF(UnitType="","",ROUNDUP(IF(UnitType="Imperial",(E163/25000)+9,IF(UnitType="Metric",(E163/(2323))+9,"Err")),0)) ->  | F160: =IF(UnitType="","",ROUNDUP(IF(UnitType="Imperial",(F163/25000)+9,IF(UnitType="Metric",(F163/(2323))+9,"Err")),0)) ->  | H160: =IF('7-Thermal Panel'!F7="SI",0.2,40) -> 40 | I160: =IF('7-Thermal Panel'!F7="SI",0.6,120) -> 120 | J160: 0.6
D161: =IF(UnitType="Imperial",500000,46452) -> 46452 | E161: =IF(UnitType="","",ROUNDUP(IF(UnitType="Imperial",(E163/100000)+24,IF(UnitType="Metric",(E163/(9290))+24,"Err")),0)) ->  | F161: =IF(UnitType="","",ROUNDUP(IF(UnitType="Imperial",(F163/100000)+24,IF(UnitType="Metric",(F163/(9290))+24,"Err")),0)) ->  | H161: =IF('7-Thermal Panel'!F7="SI",0.6,120) -> 120 | I161: =IF('7-Thermal Panel'!F7="SI",0.6,200) -> 200 | J161: 0.7
D163: Area | E163: =IF(DataCheckGen=2,"",IF(AND(ProjectType="Core",DataCheckGenCore=2),"",IF(AND(ProjectType="Multifamily Residential",DataCheckGenMFR=2),"",IF(AND(ProjectType="Core",CoreAreaNLS=0),0,IF(AND(ProjectType="Core",CoreAreaNLS>0),CoreAreaNLS,IF(AND(ProjectType="Multifamily Residential",OR(CertTarget="Bronze",CertTarget="Silver"),MfrAreaCS=0),0,IF(AND(ProjectType="Multifamily Residential",OR(CertTarget="Bronze",CertTarget="Silver"),MfrAreaCS>0),MfrAreaCS,IF(AND(ProjectType="Multifamily Residential",OR(CertTarget="Gold",CertTarget="Platinum")),TotalArea,TotalArea)))))))) ->  | F163: =IF(DataCheckGen=2,"",IF(AND(ProjectType="Core",DataCheckGenCore=2),"",IF(AND(ProjectType="Multifamily Residential",DataCheckGenMFR=2),"",IF(AND(ProjectType="Core"),TotalArea,IF(AND(ProjectType="Multifamily Residential",OR(CertTarget="Bronze",CertTarget="Silver"),MfrAreaCS=0),0,IF(AND(ProjectType="Multifamily Residential",OR(CertTarget="Bronze",CertTarget="Silver"),MfrAreaCS>0),MfrAreaCS,IF(AND(ProjectType="Multifamily Residential",OR(CertTarget="Gold",CertTarget="Platinum")),TotalArea,TotalArea))))))) -> 
D164: Samples | E164: =IF(AND('1-Project Info'!$D$26="No",CoreAreaNLS=0),0,IF(E163=0,0,VLOOKUP(E163,LookUpData!D159:E161,2,TRUE))) ->  | F164: =IF(OR(F163=0,AND(ProjectType="Core",'1-Project Info'!D27="No")),0,VLOOKUP(F163,LookUpData!D159:F161,3,TRUE)) ->  | H164: Determine PMV dropdown menu contents based on project type for "Thermal Data Calculations" Tab
H165: =IF(ProjectVersion="","",IF(OR(ProjectVersion="v2",ProjectVersion="v2 and WPR",ProjectVersion="WPR Only"),"0.5 (Default)","0.5 (Default)")) -> 
H166: =IF(ProjectVersion="","",IF(OR(ProjectVersion="v2",ProjectVersion="v2 and WPR",ProjectVersion="WPR Only"),1,"N/A")) -> 
B176: Sound | D176: Sound - Sample Quantity Determination | I176: S02 | J176: T1 | K176: T1 | L176: T1 | M176: T1 | N176: T2 | O176: T2 | P176: T2 | Q176: T2 | S176: S03, v2, option 2
D177: =IF(UnitType="Imperial","Area [f2]",IF(UnitType="Metric","Area [m2]","Area [_]")) -> Area [_] | E177: S02 | F177: S03 | G177: S04 | H177: S05 | I177: v2 | J177: Leq | K177: Leq | L177: L10 | M177: L10 | N177: Leq | O177: Leq | P177: L10 | Q177: L10 | S177: Combo | T177: Source Room | U177: Receiver Room | V177: req | X177: =_xlfn.UNIQUE(T178:T204) -> Enclosed loud zones | Y177: =_xlfn.TOROW( _xlfn.UNIQUE( _xlfn._xlws.FILTER($U$178:$U$204, $T$178:$T$204=X177, "Empty List"))) -> Open areas for concentration | Z177: Circulation zones | AA177: All other occupiable areas
D178: =IF(UnitType="Imperial",0,0) -> 0 | E178: =IF(UnitType="","",ROUNDUP(IF(UnitType="Imperial",(E182/6250)+1,IF(UnitType="Metric",(E182/(581))+1,"Err")),0)) ->  | F178: =IF(UnitType="","",ROUNDUP(IF(UnitType="Imperial",(F182/6250)+1,IF(UnitType="Metric",(F182/(581))+1,"Err")),0)) ->  | G178: =IF(UnitType="","",ROUNDUP(IF(UnitType="Imperial",(G182/20000)+1,IF(UnitType="Metric",(G182/(1858))+1,"Err")),0)) ->  | H178: =IF(UnitType="","",ROUNDUP(IF(UnitType="Imperial",(H182/20000)+1,IF(UnitType="Metric",(H182/(1858))+1,"Err")),0)) ->  | J178: dBA | K178: dBC | L178: dBA | M178: dBC | N178: dBA | O178: dBC | P178: dBA | Q178: dBC | S178: =T178&" "&U178 -> Enclosed loud zones Open areas for concentration | T178: Enclosed loud zones | U178: Open areas for concentration | V178: 80 | X178: Enclosed areas for conferencing | Y178: =_xlfn.TOROW( _xlfn.UNIQUE( _xlfn._xlws.FILTER($U$178:$U$204, $T$178:$T$204=X178, "Empty List"))) -> Open areas for concentration | Z178: Circulation zones | AA178: Enclosed quiet zones | AB178: Enclosed areas for conferencing | AC178: Enclosed areas for learning | AD178: Enclosed areas for sleeping
D179: =IF(UnitType="Imperial",100000,9290) -> 9290 | E179: =IF(UnitType="","",ROUNDUP(IF(UnitType="Imperial",(E182/50000)+15,IF(UnitType="Metric",(E182/(4645))+15,"Err")),0)) ->  | F179: =IF(UnitType="","",ROUNDUP(IF(UnitType="Imperial",(F182/50000)+15,IF(UnitType="Metric",(F182/(4645))+15,"Err")),0)) ->  | G179: =IF(UnitType="","",ROUNDUP(IF(UnitType="Imperial",(G182/100000)+5,IF(UnitType="Metric",(G182/(9290))+5,"Err")),0)) ->  | H179: =IF(UnitType="","",ROUNDUP(IF(UnitType="Imperial",(H182/100000)+5,IF(UnitType="Metric",(H182/(9290))+5,"Err")),0)) ->  | I179: Category 1 | J179: 40 | K179: 60 | L179: 50 | M179: 70 | N179: 35 | O179: 55 | P179: 45 | Q179: 65 | S179: =T179&" "&U179 -> Enclosed loud zones Circulation zones | T179: Enclosed loud zones | U179: Circulation zones | V179: 80 | X179: Enclosed areas for learning | Y179: =_xlfn.TOROW( _xlfn.UNIQUE( _xlfn._xlws.FILTER($U$178:$U$204, $T$178:$T$204=X179, "Empty List"))) -> Open areas for concentration | Z179: Circulation zones | AA179: Enclosed quiet zones | AB179: Enclosed areas for conferencing | AC179: Enclosed areas for learning | AD179: Enclosed areas for sleeping
D180: =IF(UnitType="Imperial",500000,46452) -> 46452 | E180: =IF(UnitType="","",ROUNDUP(IF(UnitType="Imperial",(E182/250000)+23,IF(UnitType="Metric",(E182/(23226))+23,"Err")),0)) ->  | F180: =IF(UnitType="","",ROUNDUP(IF(UnitType="Imperial",(F182/250000)+23,IF(UnitType="Metric",(F182/(23226))+23,"Err")),0)) ->  | G180: =IF(UnitType="","",ROUNDUP(IF(UnitType="Imperial",(G182/250000)+8,IF(UnitType="Metric",(G182/(23226))+8,"Err")),0)) ->  | H180: =IF(UnitType="","",ROUNDUP(IF(UnitType="Imperial",(H182/250000)+8,IF(UnitType="Metric",(H182/(23226))+8,"Err")),0)) ->  | I180: Category 2 | J180: 45 | K180: 65 | L180: 55 | M180: 75 | N180: 40 | O180: 60 | P180: 50 | Q180: 70 | S180: Enclosed loud zones All other occupiable areas | T180: Enclosed loud zones | U180: All other occupiable areas | V180: 85 | X180: Enclosed areas for sleeping | Y180: =_xlfn.TOROW( _xlfn.UNIQUE( _xlfn._xlws.FILTER($U$178:$U$204, $T$178:$T$204=X180, "Empty List"))) -> Open areas for concentration | Z180: Circulation zones | AA180: Enclosed quiet zones | AB180: Enclosed areas for conferencing | AC180: Enclosed areas for learning | AD180: Enclosed areas for sleeping
I181: Category 3 | J181: 50 | K181: 70 | L181: 60 | M181: 80 | N181: 45 | O181: 65 | P181: 55 | Q181: 75 | S181: Enclosed areas for conferencing Open areas for concentration | T181: Enclosed areas for conferencing | U181: Open areas for concentration | V181: 75 | X181: Enclosed quiet zones | Y181: =_xlfn.TOROW( _xlfn.UNIQUE( _xlfn._xlws.FILTER($U$178:$U$204, $T$178:$T$204=X181, "Empty List"))) -> Open areas for concentration | Z181: Circulation zones | AA181: Enclosed quiet zones | AB181: Enclosed areas for conferencing | AC181: Enclosed areas for learning | AD181: Enclosed areas for sleeping
D182: Area | E182: =IF(DataCheckGen=2,"",IF(AND(ProjectType="Core",DataCheckGenCore=2),"",IF(AND(ProjectType="Multifamily Residential",DataCheckGenMFR=2),"",IF(AND(ProjectType="Core",'1-Project Info'!$D$28="Yes"),TotalArea,IF(AND(ProjectType="Core",'1-Project Info'!$D$28="No",CoreAreaNLS=0),TotalArea,IF(AND(ProjectType="Core",'1-Project Info'!$D$28="No",CoreAreaNLS>0),CoreAreaNLS,IF(AND(ProjectType="Multifamily Residential",MfrAreaCS=0),"None",IF(AND(ProjectType="Multifamily Residential",MfrAreaCS>0),MfrAreaCS,TotalArea)))))))) ->  | F182: =IF(DataCheckGen=2,"",IF(AND(ProjectType="Core",DataCheckGenCore=2),"",IF(AND(ProjectType="Multifamily Residential",DataCheckGenMFR=2),"",IF(AND(ProjectType="Core",CoreAreaNLS=0),"None",IF(AND(ProjectType="Core",CoreAreaNLS>0),CoreAreaNLS,IF(ProjectType="Multifamily Residential",TotalArea,TotalArea)))))) ->  | G182: =IF(DataCheckGen=2,"",IF(AND(ProjectType="Core",DataCheckGenCore=2),"",IF(AND(ProjectType="Multifamily Residential",DataCheckGenMFR=2),"",IF(AND(ProjectType="Core",'1-Project Info'!$D$29="Yes"),TotalArea,IF(AND(ProjectType="Core",'1-Project Info'!$D$29="No",CoreAreaNLS=0),TotalArea,IF(AND(ProjectType="Core",'1-Project Info'!$D$29="No",CoreAreaNLS>0),CoreAreaNLS,IF(AND(ProjectType="Multifamily Residential",MfrAreaCS=0),"None",IF(AND(ProjectType="Multifamily Residential",MfrAreaCS>0),MfrAreaCS,TotalArea)))))))) ->  | H182: =IF(DataCheckGen=2,"",IF(AND(ProjectType="Core",DataCheckGenCore=2),"",IF(AND(ProjectType="Multifamily Residential",DataCheckGenMFR=2),"",IF(AND(ProjectType="Core",DataCheckGenCore=2),"",TotalArea)))) ->  | I182: Category 4 | J182: 55 | K182: 75 | L182: 65 | M182: 85 | N182: 50 | O182: 70 | P182: 60 | Q182: 80 | S182: Enclosed areas for conferencing Circulation zones | T182: Enclosed areas for conferencing | U182: Circulation zones | V182: 75 | X182: ^ This is for dynamic S03 dropdowns
D183: Samples | E183: =IF(AND(ProjectType="Multifamily Residential",MfrAreaCS=0),1,VLOOKUP(E182,LookUpData!$D$178:$H$180,2,TRUE)) ->  | F183: =IF(DataCheckGen=2,"",IF(AND(ProjectType="Core",DataCheckGenCore=2),"",IF(AND(ProjectType="Multifamily Residential",DataCheckGenMFR=2),"",IF(AND(ProjectType="Core",CoreAreaNLS=0),"Cannot Pursue",IF(AND(ProjectType="Multifamily Residential",ProjectVersion="v2 Pilot"),"N/A",VLOOKUP(F182,LookUpData!$D$178:$H$180,3,TRUE)))))) ->  | G183: =IF(DataCheckGen=2,"",IF(AND(ProjectType="Core",DataCheckGenCore=2),"",IF(AND(ProjectType="Multifamily Residential",DataCheckGenMFR=2),"",IF(AND(ProjectType="Multifamily Residential",MfrAreaCS=0),"Cannot Pursue",VLOOKUP(G182,LookUpData!$D$178:$H$180,4,TRUE))))) ->  | H183: =VLOOKUP(H182,LookUpData!D178:H180,5,TRUE) ->  | I183: Dwelling Unit | J183: 35 | S183: Enclosed areas for conferencing Enclosed quiet zones | T183: Enclosed areas for conferencing | U183: Enclosed quiet zones | V183: 80
S184: Enclosed areas for conferencing Enclosed areas for conferencing | T184: Enclosed areas for conferencing | U184: Enclosed areas for conferencing | V184: 85
J185: Interior Wall Type | K185: Minimum NIC or Dw | L185: Minimum NIC or Dw for Projects That Achieve Feature S06.1 | N185: S02 Tolerance | S185: Enclosed areas for conferencing Enclosed areas for learning | T185: Enclosed areas for conferencing | U185: Enclosed areas for learning | V185: 85
J186: Between loud zones and other occupiable spaces. | K186: 55 | L186: N/A | N186: Parameter | O186: Tolerance (+) | S186: Enclosed areas for conferencing Enclosed areas for sleeping | T186: Enclosed areas for conferencing | U186: Enclosed areas for sleeping | V186: 85
J187: Between areas for conferencing, learning or sleep and other regularly occupied spaces. | K187: 50 | L187: 45 | N187: Leq | O187: 4 | S187: Enclosed areas for learning Open areas for concentration | T187: Enclosed areas for learning | U187: Open areas for concentration | V187: 75
J188: Between adjacent quiet zones. | K188: 45 | L188: 40 | N188: L10 | O188: 9 | S188: Enclosed areas for learning Circulation zones | T188: Enclosed areas for learning | U188: Circulation zones | V188: 75
J189: Between rooms for concentration and other regularly occupied spaces. | K189: 40 | L189: 35 | S189: Enclosed areas for learning Enclosed quiet zones | T189: Enclosed areas for learning | U189: Enclosed quiet zones | V189: 80
J190: Between circulation zones and regularly occupied spaces. | K190: 35 | L190: 30 | S190: Enclosed areas for learning Enclosed areas for conferencing | T190: Enclosed areas for learning | U190: Enclosed areas for conferencing | V190: 85
S191: Enclosed areas for learning Enclosed areas for learning | T191: Enclosed areas for learning | U191: Enclosed areas for learning | V191: 85
S192: Enclosed areas for learning Enclosed areas for sleeping | T192: Enclosed areas for learning | U192: Enclosed areas for sleeping | V192: 85
E193: S02 | F193: 3 pt | G193: 3 pt | H193: 3 pt | I193: 3 pt | J193: 2 pt | K193: 2 pt | L193: 2 pt | M193: 2 pt | N193: 1 pt | O193: 1 pt | P193: 1 pt | Q193: 1 pt | S193: Enclosed areas for sleeping Open areas for concentration | T193: Enclosed areas for sleeping | U193: Open areas for concentration | V193: 75
E194: v2p | F194: Leq | G194: Leq | H194: L10 | I194: L10 | J194: Leq | K194: Leq | L194: L10 | M194: L10 | N194: Leq | O194: Leq | P194: L10 | Q194: L10 | S194: Enclosed areas for sleeping Circulation zones | T194: Enclosed areas for sleeping | U194: Circulation zones | V194: 75
F195: dBA | G195: dBC | H195: dBA | I195: dBC | J195: dBA | K195: dBC | L195: dBA | M195: dBC | N195: dBA | O195: dBC | P195: dBA | Q195: dBC | S195: Enclosed areas for sleeping Enclosed quiet zones | T195: Enclosed areas for sleeping | U195: Enclosed quiet zones | V195: 80
E196: Open Workspace | F196: 45 | G196: 70 | H196: 55 | I196: 80 | J196: 50 | K196: 75 | L196: 60 | M196: 85 | N196: 55 | O196: 80 | P196: - | Q196: - | S196: Enclosed areas for sleeping Enclosed areas for conferencing | T196: Enclosed areas for sleeping | U196: Enclosed areas for conferencing | V196: 85
E197: Dining Area | F197: 45 | G197: 70 | H197: 55 | I197: 80 | J197: 50 | K197: 75 | L197: 60 | M197: 85 | N197: 55 | O197: 80 | S197: Enclosed areas for sleeping Enclosed areas for learning | T197: Enclosed areas for sleeping | U197: Enclosed areas for learning | V197: 85
E198: Enclosed Office | F198: 40 | G198: 65 | H198: 50 | I198: 75 | J198: 45 | K198: 70 | L198: 55 | M198: 80 | N198: 50 | O198: 75 | S198: Enclosed areas for sleeping Enclosed areas for sleeping | T198: Enclosed areas for sleeping | U198: Enclosed areas for sleeping | V198: 85
E199: Residential Living & Sleeping Area (Daytime) | F199: 40 | G199: 65 | H199: 50 | I199: 75 | J199: 45 | K199: 70 | L199: 55 | M199: 80 | N199: 50 | O199: 75 | S199: Enclosed quiet zones Open areas for concentration | T199: Enclosed quiet zones | U199: Open areas for concentration | V199: 70
E200: Conference Room | F200: 35 | G200: 60 | H200: 45 | I200: 70 | J200: 40 | K200: 65 | L200: 50 | M200: 75 | N200: 45 | O200: 70 | S200: Enclosed quiet zones Circulation zones | T200: Enclosed quiet zones | U200: Circulation zones | V200: 70
E201: Classroom | F201: 35 | G201: 60 | H201: 45 | I201: 70 | J201: 40 | K201: 65 | L201: 50 | M201: 75 | N201: 45 | O201: 70 | S201: Enclosed quiet zones Enclosed quiet zones | T201: Enclosed quiet zones | U201: Enclosed quiet zones | V201: 75
E202: Residential Sleeping Area (Nighttime) | F202: 35 | G202: 60 | H202: 45 | I202: 70 | J202: 40 | K202: 65 | L202: 50 | M202: 75 | N202: 45 | O202: 70 | S202: Enclosed quiet zones Enclosed areas for conferencing | T202: Enclosed quiet zones | U202: Enclosed areas for conferencing | V202: 80
S203: Enclosed quiet zones Enclosed areas for learning | T203: Enclosed quiet zones | U203: Enclosed areas for learning | V203: 80
S204: Enclosed quiet zones Enclosed areas for sleeping | T204: Enclosed quiet zones | U204: Enclosed areas for sleeping | V204: 80
S206: S04, v2, option 2
F207: S05 v2p | S207: Combo | T207: Room Type | U207: Room Volume | V207: Reverberation Time, t (seconds)
F208: Space Type | G208: Min | H208: Max | S208: =T208&" "&U208 -> Areas for learning v < 10,000 (280) | T208: Areas for learning | U208: v < 10,000 (280) | V208: 0.6 | X208: =_xlfn.UNIQUE(T208:T223) -> Areas for learning | Y208: =_xlfn.TOROW( _xlfn.UNIQUE( _xlfn._xlws.FILTER($U$208:$U$223, $T$208:$T$223=X208, "Empty List"))) -> v < 10,000 (280) | Z208: 10,000 (280) ≤ v ≤ 20,000 (570) | AA208: v > 20,000 (570)
F209: Enclosed offices and quiet zones | G209: 40 | H209: 42 | S209: =T209&" "&U209 -> Areas for learning 10,000 (280) ≤ v ≤ 20,000 (570) | T209: Areas for learning | U209: 10,000 (280) ≤ v ≤ 20,000 (570) | V209: 0.8 | X209: Areas for lectures | Y209: =_xlfn.TOROW( _xlfn.UNIQUE( _xlfn._xlws.FILTER($U$208:$U$223, $T$208:$T$223=X209, "Empty List"))) -> v < 10,000 (280) | Z209: 10,000 (280) ≤ v ≤ 20,000 (570) | AA209: v > 20,000 (570)
F210: Open offices, libraries, cafeterias, corridors/hallways | G210: 45 | H210: 48 | S210: Areas for learning v > 20,000 (570) | T210: Areas for learning | U210: v > 20,000 (570) | V210: 1 | X210: Areas for conferencing | Y210: =_xlfn.TOROW( _xlfn.UNIQUE( _xlfn._xlws.FILTER($U$208:$U$223, $T$208:$T$223=X210, "Empty List"))) -> v < 10,000 (280) | Z210: 10,000 (280) ≤ v ≤ 20,000 (570) | AA210: v > 20,000 (570)
S211: Areas for lectures v < 10,000 (280) | T211: Areas for lectures | U211: v < 10,000 (280) | V211: 0.6 | X211: Areas with regularly used PA systems | Y211: =_xlfn.TOROW( _xlfn.UNIQUE( _xlfn._xlws.FILTER($U$208:$U$223, $T$208:$T$223=X211, "Empty List"))) -> Any
S212: Areas for lectures 10,000 (280) ≤ v ≤ 20,000 (570) | T212: Areas for lectures | U212: 10,000 (280) ≤ v ≤ 20,000 (570) | V212: 0.8 | X212: Areas for dining | Y212: =_xlfn.TOROW( _xlfn.UNIQUE( _xlfn._xlws.FILTER($U$208:$U$223, $T$208:$T$223=X212, "Empty List"))) -> Any
S213: Areas for lectures v > 20,000 (570) | T213: Areas for lectures | U213: v > 20,000 (570) | V213: 1 | X213: Areas for fitness | Y213: =_xlfn.TOROW( _xlfn.UNIQUE( _xlfn._xlws.FILTER($U$208:$U$223, $T$208:$T$223=X213, "Empty List"))) -> v < 10,000 (280) | Z213: 10,000 (280) ≤ v ≤ 20,000 (570) | AA213: v > 20,000 (570)
F214: Priority | G214: Day 1 to-do list | S214: Areas for conferencing v < 10,000 (280) | T214: Areas for conferencing | U214: v < 10,000 (280) | V214: 0.6 | X214: Areas for music rehearsal | Y214: =_xlfn.TOROW( _xlfn.UNIQUE( _xlfn._xlws.FILTER($U$208:$U$223, $T$208:$T$223=X214, "Empty List"))) -> v < 10,000 (280) | Z214: 10,000 (280) ≤ v ≤ 20,000 (570)
F215: 1 | G215: Update main macro | S215: Areas for conferencing 10,000 (280) ≤ v ≤ 20,000 (570) | T215: Areas for conferencing | U215: 10,000 (280) ≤ v ≤ 20,000 (570) | V215: 0.8 | X215: ^ This is for dynamic S02 dropdowns
F216: 2 | G216: Protect workbook (specify locked cells) | S216: Areas for conferencing v > 20,000 (570) | T216: Areas for conferencing | U216: v > 20,000 (570) | V216: 1
F217: 3 | G217: Hide Tabs Macro | S217: Areas with regularly used PA systems Any | T217: Areas with regularly used PA systems | U217: Any | V217: 1.5
F218: 1 | G218: Update core quantities | S218: Areas for dining Any | T218: Areas for dining | U218: Any | V218: 1
F219: 2 | G219: Accommodate core bonus points calc | S219: Areas for fitness v < 10,000 (280) | T219: Areas for fitness | U219: v < 10,000 (280) | V219: 0.8
F220: 3 | G220: MFR qty calcs | S220: Areas for fitness 10,000 (280) ≤ v ≤ 20,000 (570) | T220: Areas for fitness | U220: 10,000 (280) ≤ v ≤ 20,000 (570) | V220: 1.1
S221: Areas for fitness v > 20,000 (570) | T221: Areas for fitness | U221: v > 20,000 (570) | V221: 1.8
S222: Areas for music rehearsal v < 10,000 (280) | T222: Areas for music rehearsal | U222: v < 10,000 (280) | V222: 1.1
G223: Day 2 to-do list | S223: Areas for music rehearsal 10,000 (280) ≤ v ≤ 20,000 (570) | T223: Areas for music rehearsal | U223: 10,000 (280) ≤ v ≤ 20,000 (570) | V223: 1.4
G225: Update feature part names based on v2/v2p/WPR | S225: S04.1, v2p
G226: A01.1 Option 1/2 | S226: Combo | T226: Room Type | U226: Room Volume | V226: R60 max
G227: T01.1 Option 1b/c | S227: =T227&" "&U227 -> Conference rooms Any | T227: Conference rooms | U227: Any | V227: 0.6 | X227: =_xlfn.UNIQUE(T227:T238) -> Conference rooms | Y227: =_xlfn.TOROW( _xlfn.UNIQUE( _xlfn._xlws.FILTER($U$227:$U$238, $T$227:$T$238=X227, "Empty List"))) -> Any
G228: Dwelling units and guestrooms | S228: Classrooms < 280 m³ [10,000 ft³] | T228: Classrooms | U228: < 280 m³ [10,000 ft³] | V228: 0.6 | X228: Classrooms | Y228: =_xlfn.TOROW( _xlfn.UNIQUE( _xlfn._xlws.FILTER($U$227:$U$238, $T$227:$T$238=X228, "Empty List"))) -> < 280 m³ [10,000 ft³] | Z228: Between 280 m³ [10,000 ft³] and 570m³ [20,000 ft³] | AA228: > 570 m³ [20,000 ft³]
G229: L03 Core Calc | S229: Classrooms Between 280 m³ [10,000 ft³] and 570m³ [20,000 ft³] | T229: Classrooms | U229: Between 280 m³ [10,000 ft³] and 570m³ [20,000 ft³] | V229: 0.8 | X229: Lecture halls | Y229: =_xlfn.TOROW( _xlfn.UNIQUE( _xlfn._xlws.FILTER($U$227:$U$238, $T$227:$T$238=X229, "Empty List"))) -> < 280 m³ [10,000 ft³] | Z229: Between 280 m³ [10,000 ft³] and 570m³ [20,000 ft³] | AA229: > 570 m³ [20,000 ft³]
G230: Summary reports/printable reports (?) | S230: Classrooms > 570 m³ [20,000 ft³] | T230: Classrooms | U230: > 570 m³ [20,000 ft³] | V230: 1 | X230: Music rehearsal spaces | Y230: =_xlfn.TOROW( _xlfn.UNIQUE( _xlfn._xlws.FILTER($U$227:$U$238, $T$227:$T$238=X230, "Empty List"))) -> < 280 m³ [10,000 ft³] | Z230: Between 280 m³ [10,000 ft³] and 570m³ [20,000 ft³]
S231: Lecture halls < 280 m³ [10,000 ft³] | T231: Lecture halls | U231: < 280 m³ [10,000 ft³] | V231: 0.7 | X231: Fitness facilities | Y231: =_xlfn.TOROW( _xlfn.UNIQUE( _xlfn._xlws.FILTER($U$227:$U$238, $T$227:$T$238=X231, "Empty List"))) -> < 280 m³ [10,000 ft³] | Z231: Between 280 m³ [10,000 ft³] and 570m³ [20,000 ft³] | AA231: > 570 m³ [20,000 ft³]
S232: Lecture halls Between 280 m³ [10,000 ft³] and 570m³ [20,000 ft³] | T232: Lecture halls | U232: Between 280 m³ [10,000 ft³] and 570m³ [20,000 ft³] | V232: 0.9
S233: Lecture halls > 570 m³ [20,000 ft³] | T233: Lecture halls | U233: > 570 m³ [20,000 ft³] | V233: 1.3
S234: Music rehearsal spaces < 280 m³ [10,000 ft³] | T234: Music rehearsal spaces | U234: < 280 m³ [10,000 ft³] | V234: 1.1
S235: Music rehearsal spaces Between 280 m³ [10,000 ft³] and 570m³ [20,000 ft³] | T235: Music rehearsal spaces | U235: Between 280 m³ [10,000 ft³] and 570m³ [20,000 ft³] | V235: 1.4
... 12 more rows

Sheet Version Notes
C1: WELL Project Information and Performance template (WELL v2, WELL Performance Rating, WELL v2 Pilot)
C3: This sheet provides a history of the changes made to this Excel workbook. Do not edit this sheet.
C4: =IF(LookUpData!K17<LookUpData!K16,"Attention! It has been more than 2 months since release date of this spreadsheet. IWBI recommends always using the latest version of the PIP tool. Please check the resources page on IWBI's website at the link below for a newer version of this tool.","") -> 
C5: =IF(LookUpData!K17<LookUpData!K16,"https://resources.wellcertified.com/tools/well-project-information-and-performance-template/","") -> 
C7: Version Number | D7: Release Date | E7: Notes
C8: May 1 update | D8: 2023-05-01 | E8: Interim Update. v2 Pilot bug fixes
C9: Q3 2023 | D9: 2023-09-19 | E9: Addenda Update and water table 1 and table 2
C10: Q4 2023 | D10: 2024-12-19 | E10: Addenda Update
F11: PIF tab added drop down for regularly occupied
F12: A01, A05 distribution for core projects
F13: Air field - VOC tubes notes auto populate based on the first tube entry for time and volume
F14: Thermal calculation - added air velocity column
F15: Thermal - removed separate air temp Globe (tA) column
F16: Light - fixed L03 "met, not met" function
C17: Q1 2024 | D17: 2024-04-29 | E17: Addenda Update
F18: Tolerance button in light applies tolerance
F19: Step 1 Fields to complete fixed
F20: v2P_Light Half target fixed
F21: v2_WPR Thermal updates when selecting Kitchen - only need DB Temp
F22: v2_WPR Thermal PPD PMV thresholds fixed
F23: MRT Calculation updated per ISO standard
C24: June 11 Update | D24: 2024-06-11 | E24: Interim Update
F25: Corrected cell D5 reference on '3-Air Field Notes' to properly record commercial kitchens
F26: Corrected cell references for 'Acetaldehyde' and 'Formaldehyde' on 'v2_WPR_Air' tab.
C27: 2024-01 | D27: 2024-11-13 | E27: PIP Tool Relaunch
F28: This relaunch of the Excel PIP tool constitutes a major revamp of the PIP Tool that corresponds to updated Performance Verification guidance.
F29: With this re-launch, PIP tools have a new versioning system which consists of the year followed by the numbered release for that year.
F30: For example, "2024-01" is the first updated tool released in the year 2024.
C31: 2024-02 | D31: 2024-12-11 | E31: PIP Tool Relaunch Expansion
F32: Sample quantity calculations added for Core projects
F33: Sample quantity calculations added for Multifamily Residential projects
F34: Interface updated on '1'-Project Info' to include inputs for Core and MFR projects.
F35: Bug fixed with water sample quantity calculation.
F36: Automatic threshold lookup added for S03.1 in v2 Pilot.
C37: 2024-03 | D37: 2024-12-19 | E37: PIP Tool Relaunch Expansion - Error Fix
F38: An "Attention!" message was added to Version Notes and Instruction sheets to notify user if it has been more than 2 months since the release date of their active PIP tool.
F39: An error was fixed in the calculation of sample quantities for S04.
C40: 2025-01 | D40: 2025-02-03 | E40: 2025 PIP Tool Update, number 01
F41: The thresholds for "Total Dissolved Solids" in the Water_v2p tab was changed from 5 to 500.
F42: The "Outcome" calculation for S03.2 in the '8-Sound_v2_WPR' tab has been corrected.
F43: Larger input fields provided for "Location Name" and "Notes" on the Air Panel Tabs.
F44: An error was fixed in the calculation of mg/m3 for Carbon Monoxid in the 4-Air_v2_WPR tab.
F45: Error handling was added to the '4-Air_v2_WPR' tab so that Outcome cells would not populate until sufficient data was available.
F46: Columns added for "Notes" on the '5-Water Panel', '5-Water_v2_WPR', and '5-Water_v2p' tabs.
F47: Columns added for "Notes" on the '8-Sound_v2_WPR' and '8-Sound_v2p' tabs.
F48: Columns for "L10 [dBC] removed on the '8-Sound_v2_WPR' and '8-Sound_v2p' tabs.
F49: Either the '2-Sample Qty' or '2-Samply Qty_v2p' tab will now be unhidden when the Project Version is filled in.
F50: The field notes and photo verification tabs have been made user-editable.
F51: The conversion between µg/m³, ppm, and ppb on the '4-Air Panel_v2p' tab has been fixed.
C52: 2025-01-LR01 | D52: 2025-03-26 | E52: 2025 PIP Tool Update, number 01, Limited Release (LR)
E53: This is a limited release of the PIP tool to accommodate timely project-specific requests
F54: Cells for "Laboratory Result [mg/m3]" on the '4-Air Panel_v2_WPR' and '4-Air Panel_v2p' tabs have been unlocked to permit manual override
F55: Cells for "EML" on the '6-Light_1-EML Calc' tab have been unlocked to permit manual override
C56: 2025-02 | D56: 2025-05-07 | E56: 2025 PIP Tool Update, number 02
F57: A miscalculation in the "Fields to Complete:" field on the '1-Project Info' tab has been corrected.
F58: The '4-Air Panel_v2_WPR' and '4-Air Panel_v2p' tabs have been updated to permit direct input of µg/m³.
F59: The "Zero Error" outcome has been removed from the outcome cells for "Total Chlorine" and "Chloramine" on the '5-Water_v2p' tab.
F60: On the '6-Light_Visual' tab under the "Detailed Measurements" panel, the columns for "Visual Task or Activity" and "Work Plane / Location / Grid # / Description" have been swapped to accommodate increased sizing.
F61: On the '6-Light_Visual' tab under the "Detailed Measurements" panel, the column for "Visual Task or Activity" has been widened to accommodate long descriptions for "Visual Task or Activity".
F62: The name of the "Task/Space Type" column on the '6-Light_Visual' tab has been changed to "Visual Task or Activity" to reflect the language of the PVGB.
F63: The '6-Light_2-Circadian' tab was renamed to '6-Light_Circadian' to better reflect its purpose.
F64: The '6-Light_1-EML-Calc' tab was renamed to '6-Light_Circadian-Calc' to better reflect its purpose and was moved to after the '6-Light_Circadian' tab to better reflect the expected order of use.
F65: The '6-Light_2-Circadian' tab was updated to permit direct input of EML or mel-EDI. Note that this requires a WWW-approved device.
F66: An error was fixed by which T07 sample quantities were not properly populating into the '7-Thermal_v2_WPR' and '7-Thermal_v2p' tabs for WELL Core projects.
C67: 2025-03 | D67: 2025-06-05 | E67: 2025 PIP Tool Update, number 03
F68: An error in the "Load Predetermined Light Levels" macro on the '6-Light_Visual' tab, whereby the macro was overriding the incorrect data, has been fixed.
F69: An error in the "Tier 2 Outcome" column for S02 on the '8-Sound_v2_WPR' tab has been fixed whereby the outcome was being displayed as met even though a Tier 2 Outcome was "Not Met".
F70: The compliance calculation for commercial kitchens in the A01.2 panel on the '4-Air_v2p' tab has been corrected to exclude all analytes except Formaldehyde.
F71: The threshold for commercial kitchens in the A01.2 panel on the '4-Air_v2p' tab has been corrected to match the online standard.
F72: An error on the '4-Air_v2_WPR' and 4-Air_v2p' tabs has been corrected whereby correctly inputting a laboratory measurement with a limit of detection (i.e., with a "<" symbol) would incorrecly prevent relay to the results tab.
F73: Compliance calculations on the '5-Water_v2_WPR' and '5-Water_v2p' tabs have been updated to compute correctly whether a period (".") or comma (",") is used as the decimal separator in the input fields.
C74: 2025-04 | D74: 2025-09-08 | E74: 2025 PIP Tool Update, number 04
F75: All text with micrograms entered as "mg" with "m" in the symbol font has been replaced with with "μg" using the "μ" special character. On some computers, the font change was not reflected, making it seem we meant milligrams.
F76: The "Zero Error" outcome has been removed from the outcome cells for "Total Chlorine" and "Chloramine" on the '5-Water_v2' tab.
C77: 2025-05 | D77: 2025-10-08 | E77: 2025 PIP Tool Update, number 05
F78: Calculations for v2 S02's Tier 2 overall compliance has been fixed to refer to the correct cells for LA10, LAeq, and LCeq values.
F79: Formatting for turbidity averages has been adjusted to one decimal point, to align with rounding instructions in the PVGB.
C80: 2025-05 | D80: 2025-12-02 | E80: 2025 PIP Tool Update, number 06
F81: Compliance calculations for several Sound features have been fixed to use <= and >= instead of < and >, allowing results that exactly match the thresholds to pass.
F82: The Air reporting sheet has been fixed to correctly interpret direct entry concentrations for gases (e.g., line 31 for v2) below the limit of detection.
F83: For v2 pilot, the formaldehyde reference for enhanced air thresholds (A05) has been fixed to refer to the ppb concentration instead of the ug/m3 concentration.

Sheet 0-Instructions
C1: General Instructions and Information | X1: 0.1 | Y1: =MID(locale,2,1) -> . | Z1: =IF(locale_decimal=".",",",".") -> ,
C3: This sheet provides general information and instructions on how to use this tool. Do not edit this sheet.
C4: =IF(LookUpData!K17<LookUpData!K16,'Version Notes'!C4,"") -> 
C5: =IF(LookUpData!K17<LookUpData!K16,"https://resources.wellcertified.com/tools/well-project-information-and-performance-template/","") -> 
C7: Background Information
C8: This tool is used to demonstrate compliance with WELL feature parts that are verified by a Performance Test or, as applicable, On-site Photograph. This tool must be used by all WELL v2, WELL v2 Pilot, and WELL Performane Rating projects. This tool is not applicable for WELL v1 projects. For WELL v1 projects, the WELL v1 PIP tool can be found at the link below:
C9: https://well.support/use-the-well-project-information-and-performance-template-pip~fd913227-dc22-4407-8ddc-f05f2fb2971c#mdl-7500
C12: Directions for using this tool
C13: 1 | D13: Enable Macros. When opening this tool, you may see a red “Security Risk” message which alerts you to the tool’s use of macros, and warns that the macros have been blocked from running for security purposes. However, in order to use this tool, the macros must be enabled. To enable the macros, we recommend you save this file in a project folder, close the current file, then re-open the file just saved and click the enable macros option. If you see a red "Security Risk" banner, close the tool and follow these insctructions: right click on the project file > Click "Properties" > In the "Security" section on the "General" tab, check the "unblock" box > Click "Ok".
C14: 2 | D14: Project teams must fully complete the required fields on the '1-Project Info' sheet (indicated in the color key below as "light yellow cells"). Once all fields are completed, the appropriate sheets will automatically become visible.
C15: 3 | D15: The remaining sheets should be completed by the Performance Testing Agent with input from the Project Team, as needed.
C16: 4 | D16: Note the color key below, which explains which fields are required, editable, and encoded and should not be edited. This is the color key used throughout the entire spreadseet.
C19: Color key (entire workbook)
D20: Light Yellow cells represents an EDITABLE field that should be completed by the Performance Testing Agent.
D21: White cells indicated an EDITABLE field that has been edited. If data in these cells is deleted, the cell will turn light yellow again.
D22: Light blue cells indicate an ENCODED FIELD THAT SHOULD NOT BE EDITED, including data that is auto-loaded or formulas that are auto-calculated. DO NOT EDIT these cells.
D23: Light gray cells indicate FORMATTING THAT SHOULD NOT BE EDITED, including table headers. DO NOT EDIT these cells.
C24: MET | D24: Light green cells with bold green text are OUTCOME cells that indicate that a requirement has been met. DO NOT EDIT these cells.
C25: NOT MET | D25: Light red cells with bold red text are OUTCOME cells that indicate that a requirement has not been met. DO NOT EDIT these cells.
C26: N/A | D26: Light gray cells that read "N/A" in light grey are OUTCOME cells that are "Not Applicable". DO NOT EDIT these cells.
C27: Zero Error | D27: Light gray cells with bold red text that read "Zero Error" are OUTCOME cells that indicate an erroneous input of zero. DO NOT EDIT these cells.
C29: © 2025 International WELL Building Institute PBC. All rights reserved.
C30: International WELL Building Institute PBC (“IWBI”) authorizes individual use of this Project Information and Performance tool (the tool) to help you assist or assess projects pursuing WELL achievements during performance verification stage. This tool may not be sold, modified or excerpted, and users are not permitted to reproduce, display or distribute this tool in any way for any public or commercial purpose or any other purpose without IWBI’s prior written consent. INTERNATIONAL WELL BUILDING INSTITUTE, IWBI, THE WELL BUILDING STANDARD, WELL V2, THE WELL COMMUNITY STANDARD, WELL CERTIFIED, WELL SCORE, WELL AP, WELL HEALTH-SAFETY RATING, WELL HEALTH-SAFETY RATED, WELL EQUITY RATED, WELL PERFORMANCE RATED, WELL RESIDENCE, WORKS WITH WELL, WE ARE WELL, WELL, and others and their related logos are trademarks or certification marks of the International WELL Building Institute PBC in the United States and other countries.
C31: Disclaimer IWBI has created this tool to help streamline the performance verification process. Please note use of this tool does not in any way guarantee achievement of WELL Certification, WELL Rating or any WELL feature, part or any other designation. Further, use of this tool requires input of accurate information by users, and neither IWBI nor its affiliates, employees or representatives shall be responsible for information submitted by users. None of the parties involved in the funding or creation of the WELL Building Standard and related resources, tools and materials, including IWBI, its affiliates and its and its affiliates’ respective its owners, affiliates, members, employees, or contractors, assume any liability or responsibility to the user or any third-parties for the accuracy, completeness, or use of or reliance on any information contained in the WELL Building Standard and related resources, tools and materials, or for any injuries, losses, or damages (including, without limitation, equitable relief) arising from such use or reliance. This tool is intended to educate and assist performance testing agents, real estate owners, building and community stakeholders, tenants, occupants and users in their efforts to create healthier work and living spaces, and nothing in this tool should be considered, or used as a substitute for, quality control, safety analysis, legal compliance (including zoning), comprehensive urban planning, medical advice, diagnosis or treatment. Achievement of WELL Certification or of any designation under the WELL Building Standard does not in any way guarantee, represent or warrant that the individuals in a space, building or organization will be healthy or healthier, nor does it indicate that a project is in compliance with any applicable laws/regulations or guarantee that a space will be free from viruses, pathogens, bacterial allergens or volatile organic compounds.

Sheet 1-Project Info
C1: Step 1 - Complete WELL Project Information
C3: Enter information in all required cells before moving forward. When all required information has been entered, the
C4: "Fields to complete" cell (D6) will be zero and all relevant tabs will be automatically unhidden.
C6: Fields to Complete: | D6: =IF(AND(ProjectType<>"",ProjectType="Core",CoreAreaNLS<>"",TotalArea<>"",CoreAreaNLS>TotalArea),"Check for errors",IF(AND(ProjectType<>"",ProjectType="Multifamily Residential",MfrAreaCS<>"",TotalArea<>"",MfrAreaCS>TotalArea),"Check for errors",COUNTIF(D9:D18,"")+IF(ProjectType="Core",IF(COUNTIF(D21:D29,"")=0,0,COUNTIF(D21:D29,"")-1))+IF(ProjectType="Multifamily Residential",COUNTIF(D32:D34,""),0))) -> 10
C8: Project Information
C9: Project ID:
C10: Full Project Name:
C11: Project Version:
C12: Project Type:
C13: Project area units:
C14: =IF($D$13="","Gross Project Area (excludes parking decks)[]: ",IF($D$13="square feet","Gross Project Area (excludes parking decks) [ft²]:",IF($D$13="square meters","Gross Project Area (excludes parking decks) [m²]:",""))) -> Gross Project Area (excludes parking decks)[]:
C15: Total floors (excluding parking decks):
C16: Verified by Performance Testing Provider?
C17: Name of Performance Testing Provider responsible for onsite testing:
C18: List the names of all Performance Testing Agents present onsite:
C20: =IF(ProjectType="","",IF(ProjectType="Core","Core Information (Core projects only)","No information in this section is required (Core projects only)")) -> 
C21: =IF(ProjectType="","",IF(AND(ProjectType="Core",$D$13=""),"Area of non-leased space []:",IF(AND(ProjectType="Core",$D$13="square feet"),"Area of non-leased space [ft²]:",IF(AND(ProjectType="Core",$D$13="square meters"),"Area of non-leased space [m²]:","")))) ->  | F21: =IF(AND(ProjectType<>"",ProjectType="Core",CoreAreaNLS<>"",TotalArea<>"",CoreAreaNLS>TotalArea),"Error: Area of Non-leased space cannot be larger than the total project area","") -> 
C22: =IF(ProjectType="","",IF(AND(ProjectType="Core",$D$13=""),"Area of leased space []:",IF(AND(ProjectType="Core",$D$13="square feet"),"Area of leased space [ft²]:",IF(AND(ProjectType="Core",$D$13="square meters"),"Area of leased space [m²]:","")))) ->  | D22: =IF(OR(ProjectType="",TotalArea="",CoreAreaNLS=""),"",TotalArea-CoreAreaNLS) -> 
C23: =IF(ProjectType="Core","Number of floors with non-leased space:","") -> 
C24: =IF(ProjectType="Core","Number of floors with leased space:","") -> 
C25: =IF(ProjectType="Core","Pursuing feature parts in both A01 and A05?","") -> 
C26: =IF(ProjectType="Core","Pursuing the extra point associated with L02?","") -> 
C27: =IF(ProjectType="Core","Pursuing T07?","") -> 
C28: =IF(ProjectType="Core","Pursuing the extra point associated with S02?","") -> 
C29: =IF(ProjectType="Core","Pursuing the extra point associated with S04?","") -> 
C31: =IF(ProjectType="","",IF(ProjectType="Multifamily Residential","Multifamily Residential Information (MFR projects only)","No information in this section is required (MFR projects only)")) -> 
C32: =IF(ProjectType="","",IF(AND(ProjectType="Multifamily Residential",$D$13=""),"Total area of common spaces []:",IF(AND(ProjectType="Multifamily Residential",$D$13="square feet"),"Total area of common spaces [ft²]:",IF(AND(ProjectType="Multifamily Residential",$D$13="square meters"),"Area of common spaces [m²]:","")))) ->  | F32: =IF(AND(ProjectType<>"",ProjectType="Multifamily Residential",MfrAreaCS<>"",TotalArea<>"",MfrAreaCS>TotalArea),"Error: Area of common spaces cannot be larger than the total project area","") -> 
C33: =IF(ProjectType="Multifamily Residential","Target level of certification:","") -> 
C34: =IF(ProjectType="Multifamily Residential","Pursuing feature parts in both A01 and A05?","") -> 
C36: © 2025 International WELL Building Institute pbc. All rights reserved.

Sheet 2-Sample Qty (hidden)
C1: Step 2 - Sample quantities - WELL v2, WELL Performance Rating (automatically calculated)
C3: This sheet provides the required number of samples for each project including all feature parts verified by a Performance Test.
C4: Computations happen automatically. No input is required from user. Do not edit this sheet.
C6: Concept | D6: Part Type | E6: Feature Parts | F6: Area Interval | G6: Area Basis | H6: Sample Rate | I6: Samples Required
C7: Air | D7: Precondition | E7: WELL v2 − A01: Air Quality, Parts 1-3 WELL Performance Rating − PA1, PA3, PA5 | F7: =IF(UnitType="","",IF(UnitType="Imperial","Area < 100,000 ft²",IF(UnitType="Metric","Area < 9,290 m²",""))) ->  | G7: =IF(DataCheckGen=2,"",IF(AND(ProjectType="Core",DataCheckGenCore=2),"",IF(AND(ProjectType="Multifamily Residential",DataCheckGenMFR=2),"",IF(AND(ProjectType="Core",'1-Project Info'!$D$25="Yes"),"Gross Project",IF(AND(ProjectType="Core",'1-Project Info'!$D$25="No",CoreAreaNLS>TotalArea*0.025),"Non-leased space",IF(AND(ProjectType="Core",'1-Project Info'!$D$25="No",TotalArea*0.025>CoreAreaNLS),"2.5% of Total Area",IF(AND(ProjectType="Multifamily Residential",OR(CertTarget="Bronze",CertTarget="Silver"),'1-Project Info'!$D$34="No",MfrAreaCS=0),"N/A",IF(AND(ProjectType="Multifamily Residential",OR(CertTarget="Bronze",CertTarget="Silver"),'1-Project Info'!$D$34="No",MfrAreaCS>0),"Common Spaces",IF(AND(ProjectType="Multifamily Residential",OR(CertTarget="Bronze", CertTarget="Silver",CertTarget="Gold",CertTarget="Platinum"),'1-Project Info'!$D$34="Yes"),"Gross Project","Gross Project"))))))))) ->  | H7: =IF(UnitType="","",IF(UnitType="Imperial","One per 25,000 ft² + 1",IF(UnitType="Metric","One per 2,323 m² + 1",""))) ->  | I7: =IF(DataCheckGen=2,"",IF(AND(ProjectType="Core",DataCheckGenCore=2),"",IF(AND(ProjectType="Multifamily Residential",DataCheckGenMFR=2),"",LookUpData!E61))) -> 
F8: =IF(UnitType="","",IF(UnitType="Imperial","100,000 ft² ≤ Area < 500,000 ft²",IF(UnitType="Metric","9,290 m² ≤ Area < 46,452 m²",""))) ->  | H8: =IF(UnitType="","",IF(UnitType="Imperial","One per 100,000 ft² + 4",IF(UnitType="Metric","One per 9,290 m² + 4",""))) -> 
F9: =IF(UnitType="","",IF(UnitType="Imperial","Area ≥ 500,000 ft²",IF(UnitType="Metric","Area ≥ 46,452 m²",""))) ->  | H9: =IF(UnitType="","",IF(UnitType="Imperial","One per 500,000 ft² + 8",IF(UnitType="Metric","One per 46,452 m² + 8",""))) -> 
D10: Optimization | E10: WELL v2 − A05: Enhanced Air Quality, Parts 1-3 WELL Performance Rating − PA2, PA4, PA6 | F10: =IF(UnitType="","",IF(UnitType="Imperial","Area < 100,000 ft²",IF(UnitType="Metric","Area < 9,290 m²",""))) ->  | G10: =IF(DataCheckGen=2,"",IF(AND(ProjectType="Core",DataCheckGenCore=2),"",IF(AND(ProjectType="Multifamily Residential",DataCheckGenMFR=2),"",IF(AND(ProjectType="Core",'1-Project Info'!$D$25="Yes"),"Gross Project",IF(AND(ProjectType="Core",'1-Project Info'!$D$25="No"),"N/A",IF(AND(ProjectType="Multifamily Residential",OR(CertTarget="Bronze",CertTarget="Silver",CertTarget="Gold",CertTarget="Platinum"),'1-Project Info'!$D$34="No"),"N/A",IF(AND(ProjectType="Multifamily Residential",OR(CertTarget="Bronze",CertTarget="Silver",CertTarget="Gold",CertTarget="Platinum"),'1-Project Info'!$D$34="Yes"),"Gross Project","Gross Project"))))))) ->  | H10: =IF(UnitType="","",IF(UnitType="Imperial","One per 25,000 ft² + 1",IF(UnitType="Metric","One per 2,323 m² + 1",""))) ->  | I10: =IF(DataCheckGen=2,"",IF(AND(ProjectType="Core",DataCheckGenCore=2),"",IF(AND(ProjectType="Multifamily Residential",DataCheckGenMFR=2),"",LookUpData!F61))) -> 
F11: =IF(UnitType="","",IF(UnitType="Imperial","100,000 ft² ≤ Area < 500,000 ft²",IF(UnitType="Metric","9,290 m² ≤ Area < 46,452 m²",""))) ->  | H11: =IF(UnitType="","",IF(UnitType="Imperial","One per 100,000 ft² + 4",IF(UnitType="Metric","One per 9,290 m² + 4",""))) -> 
F12: =IF(UnitType="","",IF(UnitType="Imperial","Area ≥ 500,000 ft²",IF(UnitType="Metric","Area ≥ 46,452 m²",""))) ->  | H12: =IF(UnitType="","",IF(UnitType="Imperial","One per 500,000 ft² + 8",IF(UnitType="Metric","One per 46,452 m² + 8",""))) -> 
C14: Concept | D14: Part Type | E14: Feature Parts | F14: Area Interval | G14: Area Basis | H14: Sample Rate | I14: Samples Required
C15: Water | D15: Precondition | E15: WELL v2 − W01: Water Quality Indicators, Part 1 WELL Performance Rating − PW1 | F15: =IF(UnitType="","",IF(UnitType="Imperial","Area < 50,000 ft²",IF(UnitType="Metric","Area < 4,645 m²",""))) ->  | G15: =IF(DataCheckGen=2,"",IF(AND(ProjectType="Core",DataCheckGenCore=2),"",IF(AND(ProjectType="Multifamily Residential",DataCheckGenMFR=2),"",IF(AND(ProjectType="Core"),"Gross Project",IF(AND(ProjectType="Multifamily Residential",OR(CertTarget="Bronze",CertTarget="Silver"),MfrAreaCS=0),"N/A",IF(AND(ProjectType="Multifamily Residential",OR(CertTarget="Bronze",CertTarget="Silver"),MfrAreaCS>0),"Common Spaces",IF(AND(ProjectType="Multifamily Residential",OR(CertTarget="Gold",CertTarget="Platinum")),"Gross Project","Gross Project"))))))) ->  | H15: =IF(UnitType="","",2) ->  | I15: =IF(DataCheckGen=2,"",IF(AND(ProjectType="Core",DataCheckGenCore=2),"",IF(AND(ProjectType="Multifamily Residential",DataCheckGenMFR=2),"",LookUpData!E129))) -> 
F16: =IF(UnitType="","",IF(UnitType="Imperial","50,000 ft² ≤ Area < 500,000 ft²",IF(UnitType="Metric","4,645 m² ≤ Area < 46,452 m²",""))) ->  | H16: =IF(UnitType="","",4) -> 
F17: =IF(UnitType="","",IF(UnitType="Imperial","Area ≥ 500,000 ft²",IF(UnitType="Metric","Area ≥ 46,452 m²",""))) ->  | H17: =IF(UnitType="","",6) -> 
D18: Various | E18: WELL v2 − W02: Drinking Water Quality, Part 1 WELL v2 − W02: Drinking Water Quality, Part 2: Option 2 WELL v2 − W04: Enhanced Water Quality, Part 1 WELL Performance Rating − PW2, PW3, PW4 | F18: =IF(UnitType="","",IF(UnitType="Imperial","Area < 50,000 ft²",IF(UnitType="Metric","Area < 4,645 m²",""))) ->  | G18: =IF(DataCheckGen=2,"",IF(AND(ProjectType="Core",DataCheckGenCore=2),"",IF(AND(ProjectType="Multifamily Residential",DataCheckGenMFR=2),"",IF(AND(ProjectType="Core"),"Gross Project",IF(AND(ProjectType="Multifamily Residential",OR(CertTarget="Bronze",CertTarget="Silver"),MfrAreaCS=0),"N/A",IF(AND(ProjectType="Multifamily Residential",OR(CertTarget="Bronze",CertTarget="Silver"),MfrAreaCS>0),"Common Spaces",IF(AND(ProjectType="Multifamily Residential",OR(CertTarget="Gold",CertTarget="Platinum")),"Gross Project","Gross Project"))))))) ->  | H18: =IF(UnitType="","",1) ->  | I18: =IF(DataCheckGen=2,"",IF(AND(ProjectType="Core",DataCheckGenCore=2),"",LookUpData!F129)) -> 
F19: =IF(UnitType="","",IF(UnitType="Imperial","50,000 ft² ≤ Area < 500,000 ft²",IF(UnitType="Metric","4,645 m² ≤ Area < 46,452 m²",""))) ->  | H19: =IF(UnitType="","",2) -> 
F20: =IF(UnitType="","",IF(UnitType="Imperial","Area ≥ 500,000 ft²",IF(UnitType="Metric","Area ≥ 46,452 m²",""))) ->  | H20: =IF(UnitType="","",3) -> 
C22: Concept | D22: Part Type | E22: Feature Parts | F22: Area Interval | G22: Area Basis | H22: Sample Rate | I22: Samples Required
C23: Light | D23: Precondition | E23: WELL v2 − L02: Visual Lighting Design, Part 1: Option 1 WELL Performance Rating − PL1 | F23: =IF(UnitType="","",IF(UnitType="Imperial","Area < 100,000 ft²",IF(UnitType="Metric","Area < 9,290 m²",""))) ->  | G23: =IF(DataCheckGen=2,"",IF(AND(ProjectType="Core",DataCheckGenCore=2),"",IF(AND(ProjectType="Multifamily Residential",DataCheckGenMFR=2),"",IF(AND(ProjectType="Core",'1-Project Info'!$D$26="Yes"),"Gross Project",IF(AND(ProjectType="Core",'1-Project Info'!$D$26="No",CoreAreaNLS=0),"N/A",IF(AND(ProjectType="Core",'1-Project Info'!$D$26="No",CoreAreaNLS>0),"Non-leased space",IF(AND(ProjectType="Multifamily Residential",OR(CertTarget="Bronze",CertTarget="Silver"),MfrAreaCS=0),"N/A",IF(AND(ProjectType="Multifamily Residential",OR(CertTarget="Bronze",CertTarget="Silver"),MfrAreaCS>0),"Common Spaces",IF(AND(ProjectType="Multifamily Residential",OR(CertTarget="Gold",CertTarget="Platinum")),"Gross Project","Gross Project"))))))))) ->  | H23: =IF(UnitType="","",IF(UnitType="Imperial","One per 1,600 ft² + 21",IF(UnitType="Metric","One per 149 m² + 21",""))) ->  | I23: =IF(DataCheckGen=2,"",IF(AND(ProjectType="Core",DataCheckGenCore=2),"",IF(AND(ProjectType="Multifamily Residential",DataCheckGenMFR=2),"",LookUpData!E147))) -> 
F24: =IF(UnitType="","",IF(UnitType="Imperial","100,000 ft² ≤ Area < 500,000 ft²",IF(UnitType="Metric","9,290 m² ≤ Area < 46,452 m²",""))) ->  | H24: =IF(UnitType="","",IF(UnitType="Imperial","One per 25,000 ft² + 80",IF(UnitType="Metric","One per 2,323 m² + 80",""))) -> 
F25: =IF(UnitType="","",IF(UnitType="Imperial","Area ≥ 500,000 ft²",IF(UnitType="Metric","Area ≥ 46,452 m²",""))) ->  | H25: =IF(UnitType="","",IF(UnitType="Imperial","One per 100,000 ft² + 95",IF(UnitType="Metric","One per 9,300 m² + 95",""))) -> 
D26: Optimization | E26: WELL v2 − L03: Circadian Lighting Design, Part 1 WELL Performance Rating − PL2 | F26: =IF(UnitType="","",IF(UnitType="Imperial","Area < 100,000 ft²",IF(UnitType="Metric","Area < 9,290 m²",""))) ->  | G26: =IF(DataCheckGen=2,"",IF(AND(ProjectType="Core",DataCheckGenCore=2),"",IF(AND(ProjectType="Multifamily Residential",DataCheckGenMFR=2),"",IF(AND(ProjectType="Core"),"Gross Project",IF(ProjectType="Multifamily Residential","Gross Project","Gross Project"))))) ->  | H26: =IF(UnitType="","",IF(UnitType="Imperial","One per 2,000 ft² + 10",IF(UnitType="Metric","One per 186 m² + 10",""))) ->  | I26: =IF(DataCheckGen=2,"",IF(AND(ProjectType="Core",DataCheckGenCore=2),"",IF(AND(ProjectType="Multifamily Residential",DataCheckGenMFR=2),"",LookUpData!F147))) -> 
F27: =IF(UnitType="","",IF(UnitType="Imperial","100,000 ft² ≤ Area < 500,000 ft²",IF(UnitType="Metric","9,290 m² ≤ Area < 46,452 m²",""))) ->  | H27: =IF(UnitType="","",IF(UnitType="Imperial","One per 25,000 ft² + 56",IF(UnitType="Metric","One per 2,323 m² + 56",""))) -> 
F28: =IF(UnitType="","",IF(UnitType="Imperial","Area ≥ 500,000 ft²",IF(UnitType="Metric","Area ≥ 46,452 m²",""))) ->  | H28: =IF(UnitType="","",IF(UnitType="Imperial","One per 50,000 ft² + 66",IF(UnitType="Metric","One per 4,645 m² + 66",""))) -> 
C30: Concept | D30: Part Type | E30: Feature Parts | F30: Area Interval | G30: Area Basis | H30: Sample Rate | I30: Samples Required
C31: Thermal Comfort | D31: Precondition | E31: WELL v2 − T01: Thermal Performance, Part 1: Option 1 WELL Performance Rating − PT1 | F31: =IF(UnitType="","",IF(UnitType="Imperial","Area < 100,000 ft²",IF(UnitType="Metric","Area < 9,290 m²",""))) ->  | G31: =IF(DataCheckGen=2,"",IF(AND(ProjectType="Core",DataCheckGenCore=2),"",IF(AND(ProjectType="Multifamily Residential",DataCheckGenMFR=2),"",IF(AND(ProjectType="Core",CoreAreaNLS=0),"N/A",IF(AND(ProjectType="Core",CoreAreaNLS>0),"Non-leased space",IF(AND(ProjectType="Multifamily Residential",OR(CertTarget="Bronze",CertTarget="Silver"),MfrAreaCS=0),"N/A",IF(AND(ProjectType="Multifamily Residential",OR(CertTarget="Bronze",CertTarget="Silver"),MfrAreaCS>0),"Common Spaces",IF(AND(ProjectType="Multifamily Residential",OR(CertTarget="Gold",CertTarget="Platinum")),"Gross Project","Gross Project")))))))) ->  | H31: =IF(UnitType="","",IF(UnitType="Imperial","One per 10,000 ft² + 3",IF(UnitType="Metric","One per 929 m² + 3",""))) ->  | I31: =IF(DataCheckGen=2,"",IF(AND(ProjectType="Core",DataCheckGenCore=2),"",IF(AND(ProjectType="Multifamily Residential",DataCheckGenMFR=2),"",LookUpData!E164))) -> 
F32: =IF(UnitType="","",IF(UnitType="Imperial","100,000 ft² ≤ Area < 500,000 ft²",IF(UnitType="Metric","9,290 m² ≤ Area < 46,452 m²",""))) ->  | H32: =IF(UnitType="","",IF(UnitType="Imperial","One per 25,000 ft² + 9",IF(UnitType="Metric","One per 2,323 m² + 9",""))) -> 
F33: =IF(UnitType="","",IF(UnitType="Imperial","Area ≥ 500,000 ft²",IF(UnitType="Metric","Area ≥ 46,452 m²",""))) ->  | H33: =IF(UnitType="","",IF(UnitType="Imperial","One per 100,000 ft² + 24",IF(UnitType="Metric","One per 9,300 m² + 24",""))) -> 
D34: Optimization | E34: WELL v2 − T07: Humidity Control, Part 1: Option 1 WELL Performance Rating − PT2 | F34: =IF(UnitType="","",IF(UnitType="Imperial","Area < 100,000 ft²",IF(UnitType="Metric","Area < 9,290 m²",""))) ->  | G34: =IF(DataCheckGen=2,"",IF(AND(ProjectType="Core",DataCheckGenCore=2),"",IF(AND(ProjectType="Multifamily Residential",DataCheckGenMFR=2),"",IF(AND(ProjectType="Core"),"Gross Project",IF(AND(ProjectType="Multifamily Residential",OR(CertTarget="Bronze",CertTarget="Silver"),MfrAreaCS=0),"N/A",IF(AND(ProjectType="Multifamily Residential",OR(CertTarget="Bronze",CertTarget="Silver"),MfrAreaCS>0),"Common Spaces",IF(AND(ProjectType="Multifamily Residential",OR(CertTarget="Gold",CertTarget="Platinum")),"Gross Project","Gross Project"))))))) ->  | H34: =IF(UnitType="","",IF(UnitType="Imperial","One per 10,000 ft² + 3",IF(UnitType="Metric","One per 929 m² + 3",""))) ->  | I34: =IF(DataCheckGen=2,"",IF(AND(ProjectType="Core",DataCheckGenCore=2),"",IF(AND(ProjectType="Multifamily Residential",DataCheckGenMFR=2),"",LookUpData!F164))) -> 
F35: =IF(UnitType="","",IF(UnitType="Imperial","100,000 ft² ≤ Area < 500,000 ft²",IF(UnitType="Metric","9,290 m² ≤ Area < 46,452 m²",""))) ->  | H35: =IF(UnitType="","",IF(UnitType="Imperial","One per 25,000 ft² + 9",IF(UnitType="Metric","One per 2,323 m² + 9",""))) -> 
F36: =IF(UnitType="","",IF(UnitType="Imperial","Area ≥ 500,000 ft²",IF(UnitType="Metric","Area ≥ 46,452 m²",""))) ->  | H36: =IF(UnitType="","",IF(UnitType="Imperial","One per 100,000 ft² + 24",IF(UnitType="Metric","One per 9,300 m² + 24",""))) -> 
C38: Concept | D38: Part Type | E38: Feature Parts | F38: Area Interval | G38: Area Basis | H38: Sample Rate | I38: Samples Required
C39: Sound | D39: Optimization | E39: WELL v2 − S02: Maximum Noise Levels, Part 1 WELL Performance Rating − PS1 | F39: =IF(UnitType="","",IF(UnitType="Imperial","Area < 100,000 ft²",IF(UnitType="Metric","Area < 9,290 m²",""))) ->  | G39: =IF(DataCheckGen=2,"",IF(AND(ProjectType="Core",DataCheckGenCore=2),"",IF(AND(ProjectType="Multifamily Residential",DataCheckGenMFR=2),"",IF(AND(ProjectType="Core",'1-Project Info'!$D$28="Yes"),"Gross Project",IF(AND(ProjectType="Core",'1-Project Info'!$D$28="No",CoreAreaNLS=0),"Gross Project",IF(AND(ProjectType="Core",'1-Project Info'!$D$28="No",CoreAreaNLS>0),"Non-leased space",IF(AND(ProjectType="Multifamily Residential",MfrAreaCS=0),"None",IF(AND(ProjectType="Multifamily Residential",MfrAreaCS>0),"Common Spaces","Gross Project")))))))) ->  | H39: =IF(UnitType="","",IF(UnitType="Imperial","One per 6,250 ft² + 1",IF(UnitType="Metric","One per 581 m² + 1",""))) ->  | I39: =IF(DataCheckGen=2,"",IF(AND(ProjectType="Core",DataCheckGenCore=2),"",IF(AND(ProjectType="Multifamily Residential",DataCheckGenMFR=2),"",LookUpData!E183))) -> 
F40: =IF(UnitType="","",IF(UnitType="Imperial","100,000 ft² ≤ Area < 500,000 ft²",IF(UnitType="Metric","9,290 m² ≤ Area < 46,452 m²",""))) ->  | H40: =IF(UnitType="","",IF(UnitType="Imperial","One per 50,000 ft² + 15",IF(UnitType="Metric","One per 4,645 m² + 15",""))) -> 
F41: =IF(UnitType="","",IF(UnitType="Imperial","Area ≥ 500,000 ft²",IF(UnitType="Metric","Area ≥ 46,452 m²",""))) ->  | H41: =IF(UnitType="","",IF(UnitType="Imperial","One per 250,000 ft² + 23",IF(UnitType="Metric","One per 23,226 m² + 23",""))) -> 
D42: Optimization | E42: WELL v2 − S03: Sound Barriers, Part 2: Option 1 OR Option 2 WELL Performance Rating − PS2-Option 1 | F42: =IF(UnitType="","",IF(UnitType="Imperial","Area < 100,000 ft²",IF(UnitType="Metric","Area < 9,290 m²",""))) ->  | G42: =IF(DataCheckGen=2,"",IF(AND(ProjectType="Core",DataCheckGenCore=2),"",IF(AND(ProjectType="Multifamily Residential",DataCheckGenMFR=2),"",IF(AND(ProjectType="Core",CoreAreaNLS=0),"N/A",IF(AND(ProjectType="Core",CoreAreaNLS>0),"Non-leased space",IF(ProjectType="Multifamily Residential","Gross Project","Gross Project")))))) ->  | H42: =IF(UnitType="","",IF(UnitType="Imperial","One per 6,250 ft² + 1",IF(UnitType="Metric","One per 581 m² + 1",""))) ->  | I42: =IF(DataCheckGen=2,"",IF(AND(ProjectType="Core",DataCheckGenCore=2),"",IF(AND(ProjectType="Multifamily Residential",DataCheckGenMFR=2),"",LookUpData!F183))) -> 
F43: =IF(UnitType="","",IF(UnitType="Imperial","100,000 ft² ≤ Area < 500,000 ft²",IF(UnitType="Metric","9,290 m² ≤ Area < 46,452 m²",""))) ->  | H43: =IF(UnitType="","",IF(UnitType="Imperial","One per 50,000 ft² + 15",IF(UnitType="Metric","One per 4,645 m² + 15",""))) -> 
F44: =IF(UnitType="","",IF(UnitType="Imperial","Area ≥ 500,000 ft²",IF(UnitType="Metric","Area ≥ 46,452 m²",""))) ->  | H44: =IF(UnitType="","",IF(UnitType="Imperial","One per 250,000 ft² + 23",IF(UnitType="Metric","One per 23,226 m² + 23",""))) -> 
D45: Optimization | E45: WELL v2 − S04: Reverberation Time, Part 1: Option 2 WELL Performance Rating − PS3 | F45: =IF(UnitType="","",IF(UnitType="Imperial","Area < 100,000 ft²",IF(UnitType="Metric","Area < 9,290 m²",""))) ->  | G45: =IF(DataCheckGen=2,"",IF(AND(ProjectType="Core",DataCheckGenCore=2),"",IF(AND(ProjectType="Multifamily Residential",DataCheckGenMFR=2),"",IF(AND(ProjectType="Core",'1-Project Info'!$D$29="Yes"),"Gross Project",IF(AND(ProjectType="Core",'1-Project Info'!$D$29="No",CoreAreaNLS=0),"Gross Project",IF(AND(ProjectType="Core",'1-Project Info'!$D$29="No",CoreAreaNLS>0),"Non-leased space",IF(AND(ProjectType="Multifamily Residential",MfrAreaCS=0),"N/A",IF(AND(ProjectType="Multifamily Residential",MfrAreaCS>0),"Common Spaces","Gross Project")))))))) ->  | H45: =IF(UnitType="","",IF(UnitType="Imperial","One per 20,000 ft² + 1",IF(UnitType="Metric","One per 1,858 m² + 1",""))) ->  | I45: =IF(DataCheckGen=2,"",IF(AND(ProjectType="Core",DataCheckGenCore=2),"",IF(AND(ProjectType="Multifamily Residential",DataCheckGenMFR=2),"",LookUpData!G183))) -> 
F46: =IF(UnitType="","",IF(UnitType="Imperial","100,000 ft² ≤ Area < 500,000 ft²",IF(UnitType="Metric","9,290 m² ≤ Area < 46,452 m²",""))) ->  | H46: =IF(UnitType="","",IF(UnitType="Imperial","One per 100,000 ft² + 5",IF(UnitType="Metric","One per 9,290 m² + 5",""))) -> 
F47: =IF(UnitType="","",IF(UnitType="Imperial","Area ≥ 500,000 ft²",IF(UnitType="Metric","Area ≥ 46,452 m²",""))) ->  | H47: =IF(UnitType="","",IF(UnitType="Imperial","One per 250,000 ft² + 8",IF(UnitType="Metric","One per 23,226 m² + 8",""))) -> 

Sheet 2-Sample Qty_v2p (hidden)
C1: Step 2 - Sample quantities - WELL v2 Pilot (automatically calculated)
C3: This sheet provides the required number of samples for each project including all feature parts verified by a Performance Test.
C4: Computations happen automatically. No input is required from user. Do not edit this sheet.
C6: Concept | D6: Part Type | E6: Feature Parts | F6: Area Interval | G6: Area Basis | H6: Sample Rate | I6: Samples Required
C7: Air | D7: Precondition | E7: WELL v2p − A01: Fudamental Air Quality, Parts 1-3 | F7: =IF(UnitType="","",IF(UnitType="Imperial","Area < 100,000 ft²",IF(UnitType="Metric","Area < 9,290 m²",""))) ->  | G7: =IF(DataCheckGen=2,"",IF(AND(ProjectType="Core",DataCheckGenCore=2),"",IF(AND(ProjectType="Multifamily Residential",DataCheckGenMFR=2),"",IF(AND(ProjectType="Core",'1-Project Info'!$D$25="Yes"),"Gross Project",IF(AND(ProjectType="Core",'1-Project Info'!$D$25="No",CoreAreaNLS>TotalArea*0.025),"Non-leased space",IF(AND(ProjectType="Core",'1-Project Info'!$D$25="No",TotalArea*0.025>CoreAreaNLS),"2.5% of Total Area",IF(AND(ProjectType="Multifamily Residential",OR(CertTarget="Bronze",CertTarget="Silver"),'1-Project Info'!$D$34="No",MfrAreaCS=0),"N/A",IF(AND(ProjectType="Multifamily Residential",OR(CertTarget="Bronze",CertTarget="Silver"),'1-Project Info'!$D$34="No",MfrAreaCS>0),"Common Spaces",IF(AND(ProjectType="Multifamily Residential",OR(CertTarget="Bronze", CertTarget="Silver",CertTarget="Gold",CertTarget="Platinum"),'1-Project Info'!$D$34="Yes"),"Gross Project","Gross Project"))))))))) ->  | H7: =IF(UnitType="","",IF(UnitType="Imperial","One per 25,000 ft² + 1",IF(UnitType="Metric","One per 2,323 m² + 1",""))) ->  | I7: =IF(DataCheckGen=2,"",IF(AND(ProjectType="Core",DataCheckGenCore=2),"",LookUpData!E61)) -> 
F8: =IF(UnitType="","",IF(UnitType="Imperial","100,000 ft² ≤ Area < 500,000 ft²",IF(UnitType="Metric","9,290 m² ≤ Area < 46,452 m²",""))) ->  | H8: =IF(UnitType="","",IF(UnitType="Imperial","One per 100,000 ft² + 4",IF(UnitType="Metric","One per 9,290 m² + 4",""))) -> 
F9: =IF(UnitType="","",IF(UnitType="Imperial","Area ≥ 500,000 ft²",IF(UnitType="Metric","Area ≥ 46,452 m²",""))) ->  | H9: =IF(UnitType="","",IF(UnitType="Imperial","One per 500,000 ft² + 8",IF(UnitType="Metric","One per 46,452 m² + 8",""))) -> 
D10: Optimization | E10: WELL v2p − A05: Enhanced Air Quality, Parts 1-3 | F10: =IF(UnitType="","",IF(UnitType="Imperial","Area < 100,000 ft²",IF(UnitType="Metric","Area < 9,290 m²",""))) ->  | G10: =IF(DataCheckGen=2,"",IF(AND(ProjectType="Core",DataCheckGenCore=2),"",IF(AND(ProjectType="Multifamily Residential",DataCheckGenMFR=2),"",IF(AND(ProjectType="Core",'1-Project Info'!$D$25="Yes"),"Gross Project",IF(AND(ProjectType="Core",'1-Project Info'!$D$25="No"),"N/A",IF(AND(ProjectType="Multifamily Residential",OR(CertTarget="Bronze",CertTarget="Silver",CertTarget="Gold",CertTarget="Platinum"),'1-Project Info'!$D$34="No"),"N/A",IF(AND(ProjectType="Multifamily Residential",OR(CertTarget="Bronze",CertTarget="Silver",CertTarget="Gold",CertTarget="Platinum"),'1-Project Info'!$D$34="Yes"),"Gross Project","Gross Project"))))))) ->  | H10: =IF(UnitType="","",IF(UnitType="Imperial","One per 25,000 ft² + 1",IF(UnitType="Metric","One per 2,323 m² + 1",""))) ->  | I10: =IF(DataCheckGen=2,"",IF(AND(ProjectType="Core",DataCheckGenCore=2),"",LookUpData!F61)) -> 
F11: =IF(UnitType="","",IF(UnitType="Imperial","100,000 ft² ≤ Area < 500,000 ft²",IF(UnitType="Metric","9,290 m² ≤ Area < 46,452 m²",""))) ->  | H11: =IF(UnitType="","",IF(UnitType="Imperial","One per 100,000 ft² + 4",IF(UnitType="Metric","One per 9,290 m² + 4",""))) -> 
F12: =IF(UnitType="","",IF(UnitType="Imperial","Area ≥ 500,000 ft²",IF(UnitType="Metric","Area ≥ 46,452 m²",""))) ->  | H12: =IF(UnitType="","",IF(UnitType="Imperial","One per 500,000 ft² + 8",IF(UnitType="Metric","One per 46,452 m² + 8",""))) -> 
C14: Concept | D14: Part Type | E14: Feature Parts | F14: Area Interval | G14: Area Basis | H14: Sample Rate | I14: Samples Required
C15: Water | D15: Precondition | E15: WELL v2p − W01: Fundamental Water Quality, Parts 1-2 | F15: =IF(UnitType="","",IF(UnitType="Imperial","Area < 50,000 ft²",IF(UnitType="Metric","Area < 4,645 m²",""))) ->  | G15: =IF(DataCheckGen=2,"",IF(AND(ProjectType="Core",DataCheckGenCore=2),"",IF(AND(ProjectType="Multifamily Residential",DataCheckGenMFR=2),"",IF(AND(ProjectType="Core"),"Gross Project",IF(AND(ProjectType="Multifamily Residential",OR(CertTarget="Bronze",CertTarget="Silver"),MfrAreaCS=0),"N/A",IF(AND(ProjectType="Multifamily Residential",OR(CertTarget="Bronze",CertTarget="Silver"),MfrAreaCS>0),"Common Spaces",IF(AND(ProjectType="Multifamily Residential",OR(CertTarget="Gold",CertTarget="Platinum")),"Gross Project","Gross Project"))))))) ->  | H15: =IF(UnitType="","",2) ->  | I15: =IF(DataCheckGen=2,"",IF(AND(ProjectType="Core",DataCheckGenCore=2),"",LookUpData!E129)) -> 
F16: =IF(UnitType="","",IF(UnitType="Imperial","50,000 ft² ≤ Area < 500,000 ft²",IF(UnitType="Metric","4,645 m² ≤ Area < 46,452 m²",""))) ->  | H16: =IF(UnitType="","",4) -> 
F17: =IF(UnitType="","",IF(UnitType="Imperial","Area ≥ 500,000 ft²",IF(UnitType="Metric","Area ≥ 46,452 m²",""))) ->  | H17: =IF(UnitType="","",6) -> 
D18: Various | E18: WELL v2p − W02: Water Contaminants, Parts 1-6 WELL v2p − W04: Enhanced Water Quality, Part 1 | F18: =IF(UnitType="","",IF(UnitType="Imperial","Area < 50,000 ft²",IF(UnitType="Metric","Area < 4,645 m²",""))) ->  | G18: =IF(DataCheckGen=2,"",IF(AND(ProjectType="Core",DataCheckGenCore=2),"",IF(AND(ProjectType="Multifamily Residential",DataCheckGenMFR=2),"",IF(AND(ProjectType="Core"),"Gross Project",IF(AND(ProjectType="Multifamily Residential",OR(CertTarget="Bronze",CertTarget="Silver"),MfrAreaCS=0),"N/A",IF(AND(ProjectType="Multifamily Residential",OR(CertTarget="Bronze",CertTarget="Silver"),MfrAreaCS>0),"Common Spaces",IF(AND(ProjectType="Multifamily Residential",OR(CertTarget="Gold",CertTarget="Platinum")),"Gross Project","Gross Project"))))))) ->  | H18: =IF(UnitType="","",1) ->  | I18: =IF(DataCheckGen=2,"",IF(AND(ProjectType="Core",DataCheckGenCore=2),"",LookUpData!F129)) -> 
F19: =IF(UnitType="","",IF(UnitType="Imperial","50,000 ft² ≤ Area < 500,000 ft²",IF(UnitType="Metric","4,645 m² ≤ Area < 46,452 m²",""))) ->  | H19: =IF(UnitType="","",2) -> 
F20: =IF(UnitType="","",IF(UnitType="Imperial","Area ≥ 500,000 ft²",IF(UnitType="Metric","Area ≥ 46,452 m²",""))) ->  | H20: =IF(UnitType="","",3) -> 
C22: Concept | D22: Part Type | E22: Feature Parts | F22: Area Interval | G22: Area Basis | H22: Sample Rate | I22: Samples Required
C23: Light | D23: Precondition | E23: WELL v2p − L02: Visual Lighting Design, Part 1 | F23: =IF(UnitType="","",IF(UnitType="Imperial","Area < 100,000 ft²",IF(UnitType="Metric","Area < 9,290 m²",""))) ->  | G23: =IF(DataCheckGen=2,"",IF(AND(ProjectType="Core",DataCheckGenCore=2),"",IF(AND(ProjectType="Multifamily Residential",DataCheckGenMFR=2),"",IF(AND(ProjectType="Core",'1-Project Info'!$D$26="Yes"),"Gross Project",IF(AND(ProjectType="Core",'1-Project Info'!$D$26="No",CoreAreaNLS=0),"N/A",IF(AND(ProjectType="Core",'1-Project Info'!$D$26="No",CoreAreaNLS>0),"Non-leased space",IF(AND(ProjectType="Multifamily Residential",OR(CertTarget="Bronze",CertTarget="Silver"),MfrAreaCS=0),"N/A",IF(AND(ProjectType="Multifamily Residential",OR(CertTarget="Bronze",CertTarget="Silver"),MfrAreaCS>0),"Common Spaces",IF(AND(ProjectType="Multifamily Residential",OR(CertTarget="Gold",CertTarget="Platinum")),"Gross Project","Gross Project"))))))))) ->  | H23: =IF(UnitType="","",IF(UnitType="Imperial","One per 1,600 ft² + 21",IF(UnitType="Metric","One per 149 m² + 21",""))) ->  | I23: =IF(DataCheckGen=2,"",IF(AND(ProjectType="Core",DataCheckGenCore=2),"",IF(AND(ProjectType="Core",DataCheckGenCore=2),"",LookUpData!E147))) -> 
F24: =IF(UnitType="","",IF(UnitType="Imperial","100,000 ft² ≤ Area < 500,000 ft²",IF(UnitType="Metric","9,290 m² ≤ Area < 46,452 m²",""))) ->  | H24: =IF(UnitType="","",IF(UnitType="Imperial","One per 25,000 ft² + 80",IF(UnitType="Metric","One per 2,323 m² + 80",""))) -> 
F25: =IF(UnitType="","",IF(UnitType="Imperial","Area ≥ 500,000 ft²",IF(UnitType="Metric","Area ≥ 46,452 m²",""))) ->  | H25: =IF(UnitType="","",IF(UnitType="Imperial","One per 100,000 ft² + 95",IF(UnitType="Metric","One per 9,300 m² + 95",""))) -> 
D26: Optimization | E26: WELL v2p − L03: Circadian Lighting Design, Part 1 | F26: =IF(UnitType="","",IF(UnitType="Imperial","Area < 100,000 ft²",IF(UnitType="Metric","Area < 9,290 m²",""))) ->  | G26: =IF(DataCheckGen=2,"",IF(AND(ProjectType="Core",DataCheckGenCore=2),"",IF(AND(ProjectType="Multifamily Residential",DataCheckGenMFR=2),"",IF(AND(ProjectType="Core"),"Gross Project",IF(ProjectType="Multifamily Residential","Gross Project","Gross Project"))))) ->  | H26: =IF(UnitType="","",IF(UnitType="Imperial","One per 2,000 ft² + 10",IF(UnitType="Metric","One per 186 m² + 10",""))) ->  | I26: =IF(DataCheckGen=2,"",IF(AND(ProjectType="Core",DataCheckGenCore=2),"",LookUpData!F147)) -> 
F27: =IF(UnitType="","",IF(UnitType="Imperial","100,000 ft² ≤ Area < 500,000 ft²",IF(UnitType="Metric","9,290 m² ≤ Area < 46,452 m²",""))) ->  | H27: =IF(UnitType="","",IF(UnitType="Imperial","One per 25,000 ft² + 56",IF(UnitType="Metric","One per 2,323 m² + 56",""))) -> 
F28: =IF(UnitType="","",IF(UnitType="Imperial","Area ≥ 500,000 ft²",IF(UnitType="Metric","Area ≥ 46,452 m²",""))) ->  | H28: =IF(UnitType="","",IF(UnitType="Imperial","One per 50,000 ft² + 66",IF(UnitType="Metric","One per 4,645 m² + 66",""))) -> 
C30: Concept | D30: Part Type | E30: Feature Parts | F30: Area Interval | G30: Area Basis | H30: Sample Rate | I30: Samples Required
C31: Thermal Comfort | D31: Precondition | E31: WELL v2p − T01: Thermal Performance, Part 1: Option 1 | F31: =IF(UnitType="","",IF(UnitType="Imperial","Area < 100,000 ft²",IF(UnitType="Metric","Area < 9,290 m²",""))) ->  | G31: =IF(DataCheckGen=2,"",IF(AND(ProjectType="Core",DataCheckGenCore=2),"",IF(AND(ProjectType="Multifamily Residential",DataCheckGenMFR=2),"",IF(AND(ProjectType="Core",CoreAreaNLS=0),"N/A",IF(AND(ProjectType="Core",CoreAreaNLS>0),"Non-leased space",IF(AND(ProjectType="Multifamily Residential",OR(CertTarget="Bronze",CertTarget="Silver"),MfrAreaCS=0),"N/A",IF(AND(ProjectType="Multifamily Residential",OR(CertTarget="Bronze",CertTarget="Silver"),MfrAreaCS>0),"Common Spaces",IF(AND(ProjectType="Multifamily Residential",OR(CertTarget="Gold",CertTarget="Platinum")),"Gross Project","Gross Project")))))))) ->  | H31: =IF(UnitType="","",IF(UnitType="Imperial","One per 10,000 ft² + 3",IF(UnitType="Metric","One per 929 m² + 3",""))) ->  | I31: =IF(DataCheckGen=2,"",IF(AND(ProjectType="Core",DataCheckGenCore=2),"",LookUpData!E164)) -> 
F32: =IF(UnitType="","",IF(UnitType="Imperial","100,000 ft² ≤ Area < 500,000 ft²",IF(UnitType="Metric","9,290 m² ≤ Area < 46,452 m²",""))) ->  | H32: =IF(UnitType="","",IF(UnitType="Imperial","One per 25,000 ft² + 9",IF(UnitType="Metric","One per 2,323 m² + 9",""))) -> 
F33: =IF(UnitType="","",IF(UnitType="Imperial","Area ≥ 500,000 ft²",IF(UnitType="Metric","Area ≥ 46,452 m²",""))) ->  | H33: =IF(UnitType="","",IF(UnitType="Imperial","One per 100,000 ft² + 24",IF(UnitType="Metric","One per 9,300 m² + 24",""))) -> 
D34: Optimization | E34: WELL v2p − T07: Humidity Control, Part 1 | F34: =IF(UnitType="","",IF(UnitType="Imperial","Area < 100,000 ft²",IF(UnitType="Metric","Area < 9,290 m²",""))) ->  | G34: =IF(DataCheckGen=2,"",IF(AND(ProjectType="Core",DataCheckGenCore=2),"",IF(AND(ProjectType="Multifamily Residential",DataCheckGenMFR=2),"",IF(AND(ProjectType="Core"),"Gross Project",IF(AND(ProjectType="Multifamily Residential",OR(CertTarget="Bronze",CertTarget="Silver"),MfrAreaCS=0),"N/A",IF(AND(ProjectType="Multifamily Residential",OR(CertTarget="Bronze",CertTarget="Silver"),MfrAreaCS>0),"Common Spaces",IF(AND(ProjectType="Multifamily Residential",OR(CertTarget="Gold",CertTarget="Platinum")),"Gross Project","Gross Project"))))))) ->  | H34: =IF(UnitType="","",IF(UnitType="Imperial","One per 10,000 ft² + 3",IF(UnitType="Metric","One per 929 m² + 3",""))) ->  | I34: =IF(DataCheckGen=2,"",IF(AND(ProjectType="Core",DataCheckGenCore=2),"",LookUpData!F164)) -> 
F35: =IF(UnitType="","",IF(UnitType="Imperial","100,000 ft² ≤ Area < 500,000 ft²",IF(UnitType="Metric","9,290 m² ≤ Area < 46,452 m²",""))) ->  | H35: =IF(UnitType="","",IF(UnitType="Imperial","One per 25,000 ft² + 9",IF(UnitType="Metric","One per 2,323 m² + 9",""))) -> 
F36: =IF(UnitType="","",IF(UnitType="Imperial","Area ≥ 500,000 ft²",IF(UnitType="Metric","Area ≥ 46,452 m²",""))) ->  | H36: =IF(UnitType="","",IF(UnitType="Imperial","One per 100,000 ft² + 24",IF(UnitType="Metric","One per 9,300 m² + 24",""))) -> 
C38: Concept | D38: Part Type | E38: Feature Parts | F38: Area Interval | G38: Area Basis | H38: Sample Rate | I38: Samples Required
C39: Sound | D39: Optimization | E39: WELL v2p − S02: Maximum Noise Levels, Part 1 | F39: =IF(UnitType="","",IF(UnitType="Imperial","Area < 100,000 ft²",IF(UnitType="Metric","Area < 9,290 m²",""))) ->  | G39: =IF(DataCheckGen=2,"",IF(AND(ProjectType="Core",DataCheckGenCore=2),"",IF(AND(ProjectType="Core",'1-Project Info'!$D$28="Yes"),"Gross Project",IF(AND(ProjectType="Core",'1-Project Info'!$D$28="No",CoreAreaNLS=0),"Gross Project",IF(AND(ProjectType="Core",'1-Project Info'!$D$28="No",CoreAreaNLS>0),"Non-leased space",IF(AND(ProjectType="Multifamily Residential",MfrAreaCS=0),"None",IF(AND(ProjectType="Multifamily Residential",MfrAreaCS>0),"Common Spaces","Gross Project"))))))) ->  | H39: =IF(UnitType="","",IF(UnitType="Imperial","One per 6,250 ft² + 1",IF(UnitType="Metric","One per 581 m² + 1",""))) ->  | I39: =IF(DataCheckGen=2,"",IF(AND(ProjectType="Core",DataCheckGenCore=2),"",LookUpData!E183)) -> 
F40: =IF(UnitType="","",IF(UnitType="Imperial","100,000 ft² ≤ Area < 500,000 ft²",IF(UnitType="Metric","9,290 m² ≤ Area < 46,452 m²",""))) ->  | H40: =IF(UnitType="","",IF(UnitType="Imperial","One per 50,000 ft² + 15",IF(UnitType="Metric","One per 4,645 m² + 15",""))) -> 
F41: =IF(UnitType="","",IF(UnitType="Imperial","Area ≥ 500,000 ft²",IF(UnitType="Metric","Area ≥ 46,452 m²",""))) ->  | H41: =IF(UnitType="","",IF(UnitType="Imperial","One per 250,000 ft² + 23",IF(UnitType="Metric","One per 23,226 m² + 23",""))) -> 
D42: Optimization | E42: WELL v2p − S03: Sound Barriers, Part 1 | F42: =IF(UnitType="","",IF(UnitType="Imperial","Area < 100,000 ft²",IF(UnitType="Metric","Area < 9,290 m²",""))) ->  | G42: =IF(DataCheckGen=2,"",IF(AND(ProjectType="Core",DataCheckGenCore=2),"",IF(AND(ProjectType="Core",CoreAreaNLS=0),"N/A",IF(AND(ProjectType="Core",CoreAreaNLS>0),"Non-leased space",IF(AND(ProjectType="Multifamily Residential",ProjectVersion="v2 Pilot"),"N/A","Gross Project"))))) ->  | H42: =IF(UnitType="","",IF(UnitType="Imperial","One per 6,250 ft² + 1",IF(UnitType="Metric","One per 581 m² + 1",""))) ->  | I42: =IF(DataCheckGen=2,"",IF(AND(ProjectType="Core",DataCheckGenCore=2),"",LookUpData!F183)) -> 
F43: =IF(UnitType="","",IF(UnitType="Imperial","100,000 ft² ≤ Area < 500,000 ft²",IF(UnitType="Metric","9,290 m² ≤ Area < 46,452 m²",""))) ->  | H43: =IF(UnitType="","",IF(UnitType="Imperial","One per 50,000 ft² + 15",IF(UnitType="Metric","One per 4,645 m² + 15",""))) -> 
F44: =IF(UnitType="","",IF(UnitType="Imperial","Area ≥ 500,000 ft²",IF(UnitType="Metric","Area ≥ 46,452 m²",""))) ->  | H44: =IF(UnitType="","",IF(UnitType="Imperial","One per 250,000 ft² + 23",IF(UnitType="Metric","One per 23,226 m² + 23",""))) -> 
D45: Optimization | E45: WELL v2p − S04: Sound Absorption, Part 1 | F45: =IF(UnitType="","",IF(UnitType="Imperial","Area < 100,000 ft²",IF(UnitType="Metric","Area < 9,290 m²",""))) ->  | G45: =IF(DataCheckGen=2,"",IF(AND(ProjectType="Core",DataCheckGenCore=2),"",IF(AND(ProjectType="Core",'1-Project Info'!$D$29="Yes"),"Gross Project",IF(AND(ProjectType="Core",'1-Project Info'!$D$29="No",CoreAreaNLS=0),"Gross Project",IF(AND(ProjectType="Core",'1-Project Info'!$D$29="No",CoreAreaNLS>0),"Non-leased space",IF(AND(ProjectType="Multifamily Residential",MfrAreaCS=0),"N/A",IF(AND(ProjectType="Multifamily Residential",MfrAreaCS>0),"Common Spaces","Gross Project"))))))) ->  | H45: =IF(UnitType="","",IF(UnitType="Imperial","One per 20,000 ft² + 1",IF(UnitType="Metric","One per 1,858 m² + 1",""))) ->  | I45: =IF(DataCheckGen=2,"",IF(AND(ProjectType="Core",DataCheckGenCore=2),"",LookUpData!G183)) -> 
F46: =IF(UnitType="","",IF(UnitType="Imperial","100,000 ft² ≤ Area < 500,000 ft²",IF(UnitType="Metric","9,290 m² ≤ Area < 46,452 m²",""))) ->  | H46: =IF(UnitType="","",IF(UnitType="Imperial","One per 100,000 ft² + 5",IF(UnitType="Metric","One per 9,290 m² + 5",""))) -> 
F47: =IF(UnitType="","",IF(UnitType="Imperial","Area ≥ 500,000 ft²",IF(UnitType="Metric","Area ≥ 46,452 m²",""))) ->  | H47: =IF(UnitType="","",IF(UnitType="Imperial","One per 250,000 ft² + 8",IF(UnitType="Metric","One per 23,226 m² + 8",""))) -> 
D48: Optimization | E48: WELL v2p − S05: Sound Masking, Part 1 | F48: =IF(UnitType="","",IF(UnitType="Imperial","Area < 100,000 ft²",IF(UnitType="Metric","Area < 9,290 m²",""))) ->  | G48: =IF(DataCheckGen=2,"",IF(AND(ProjectType="Core",DataCheckGenCore=2),"","Gross Project")) ->  | H48: =IF(UnitType="","",IF(UnitType="Imperial","One per 20,000 ft² + 1",IF(UnitType="Metric","One per 1,858 m² + 1",""))) ->  | I48: =IF(DataCheckGen=2,"",IF(AND(ProjectType="Core",DataCheckGenCore=2),"",LookUpData!H183)) -> 
F49: =IF(UnitType="","",IF(UnitType="Imperial","100,000 ft² ≤ Area < 500,000 ft²",IF(UnitType="Metric","9,290 m² ≤ Area < 46,452 m²",""))) ->  | H49: =IF(UnitType="","",IF(UnitType="Imperial","One per 100,000 ft² + 5",IF(UnitType="Metric","One per 9,290 m² + 5",""))) -> 
F50: =IF(UnitType="","",IF(UnitType="Imperial","Area ≥ 500,000 ft²",IF(UnitType="Metric","Area ≥ 46,452 m²",""))) ->  | H50: =IF(UnitType="","",IF(UnitType="Imperial","One per 250,000 ft² + 8",IF(UnitType="Metric","One per 23,226 m² + 8",""))) -> 

Sheet 3-Field Notes and Equipment (hidden)
C1: Step 3 - Field Notes and Equipment
C3: Use this sheet to provide field notes and equipment information for all concepts.
C4: Complete information as necessary.
C6: Concept | E6: Testing date(s)
C7: Air | E7: Notes to the reviewer | F7: Include notes for the Reviewer here
E11: Analyte | F11: Laboratory Report Identifier | G11: Sample/tube identifier | H11: Date Sampled | I11: Result
E12: Aldehyde Field Blank 1
E13: Aldehyde Field Blank 2
E14: Acrylonitrile Field Blank 1
E15: Acrylonitrile Field Blank 2
E16: Caprolactam Field Blank 1
E17: Caprolactam Field Blank 2
E18: Ozone Field Blank 1
E19: Ozone Field Blank 2
E20: Nitrogen Dioxide Field Blank 1
E21: Nitrogen Dioxide Field Blank 2
E22: Carbon Monoxide Field Blank 1
E23: Carbon Monoxide Field Blank 2
E24: VOC Field Blank 1
E25: VOC Field Blank 2
E27: Equipment Type | F27: Make | G27: Model | H27: Date of Last Calibration | I27: Contaminant(s) Measured
C36: Concept | E36: Testing date(s)
C37: Water | E37: Notes to the reviewer | F37: Include notes for the Reviewer here
E41: Equipment Type | F41: Make | G41: Model | H41: Recommended Manufacturer Calibration Period (if any) | I41: Calibrated by whom? (PT Agent or Manufacturer) | J41: Date of Last Calibration / Maintenance | K41: Parameter(s) Measured
C50: Concept | E50: Testing date(s)
C51: Light | E51: Time of Sunset
E52: Notes to the reviewer | F52: Include notes for the Reviewer here
E56: Equipment Type | F56: Make | G56: Model | H56: Date of Last Calibration | I56: Parameter(s) Measured
C65: Concept | E65: Testing date(s)
C66: Thermal Comfort | E66: Notes to the reviewer | F66: Include notes for the Reviewer here
E70: Equipment Type | F70: Make | G70: Model | H70: Date of Last Calibration | I70: Parameter(s) Measured
C79: Concept | E79: Testing date(s)
C80: Sound | E80: Notes to the reviewer | F80: Include notes for the Reviewer here
E84: Equipment Type | F84: Make | G84: Model | H84: Date of Last Calibration | I84: Parameter(s) Measured

Sheet 4-Air Panel_v2_WPR (hidden)
C1: 4. Air Panel - WELL v2, WELL Performance Rating
C2: Use this sheet to provide input for the air concept. Follow instructions below.
C4: Step 1 | D4: Select analyte from dropdown for Enhanced features:
G6: Carbon Monoxide | H6: Ozone | I6: Nitrogen Dioxide
C7: Step 2 | D7: Select if Carbon Monoxide, Ozone, and Nitrogen Dioxide is being validated with a direct read device or with a lab sample:
G9: Carbon Monoxide | H9: Ozone | I9: Nitrogen Dioxide
C10: Step 3 | D10: For each parameter that will be validated using a direct-read device, select the unit that will be used for each:
C12: Step 4 | D12: Complete the tables below for the total number of required samples. Enter all relevant information before moving to the next tab. The total number of required samples is: | G12: =IF(ISNUMBER(LookUpData!$E$61)=TRUE,LookUpData!$E$61,"") ->  | I12: =ROW(C38)-ROW(C17) -> 21
C14: Note: Complete all table entries prior to moving to next Air sheet.
C15: Note: All laboratory results that are Limit of Detection (LOD) should be reported using the less than symbol ("<") and the LOD. For example: Formaldehyde with an LOD of 10 µg/tube should be entered as "<10". This ensures proper functioning of the tool. Do not enter LOD as "LOD", "ND", "0", "0.005", etc.
C17: =IF(AND(ISNUMBER(LookUpData!$E$61)=TRUE,LookUpData!$E$61>0),1,"") ->  | D17: Location Name: | E17: grsdf | H17: Date sampled: | K17: Commercial Kitchen or Industrial? | L17: No
C18: Parameter \ Analyte | D18: Formaldehyde | E18: =IF($G$4="","See Step 1",$G$4) -> See Step 1 | F18: Benzene | G18: Acetaldehyde | H18: Naphthalene | I18: Toluene | J18: =IF($G$7="","See Step 2",IF($G$7="Lab","Carbon Monoxide","")) -> See Step 2 | K18: =IF($H$7="","See Step 2",IF($H$7="Lab","Ozone","")) -> See Step 2 | L18: =IF($I$7="","See Step 2",IF($I$7="Lab","Nitrogen Dioxide","")) -> See Step 2 | M18: Notes
C19: ID/Locator in Lab Report
C20: Tube Identifier
C21: Sampling Start Time (HH:MM AM/PM)
C22: Sampling End Time (HH:MM AM/PM)
C23: Start Flow [mL/min]
C24: End Flow [mL/min]
C25: Average Flow [mL/min] | D25: =IF(OR(D21="",D22="",D23="",D24=""),"",AVERAGE(D23:D24)) ->  | J25: =IF(OR(G$7="",G$7="Direct Read"),"",IF(OR(J21="",J22="",J23="",J24=""),"",AVERAGE(J23:J24))) ->  | K25: =IF(OR(H$7="",H$7="Direct Read"),"",IF(OR(K21="",K22="",K23="",K24=""),"",AVERAGE(K23:K24))) ->  | L25: =IF(OR(I$7="",I$7="Direct Read"),"",IF(OR(L21="",L22="",L23="",L24=""),"",AVERAGE(L23:L24))) -> 
C26: Time Elapsed [min] | D26: =IF(OR(D21="",D22="",D23="",D24=""),"",MOD(D22-D21,1)*60*24) ->  | J26: =IF(OR(G$7="",G$7="Direct Read"),"",IF(OR(J21="",J22="",J23="",J24=""),"",MOD(J22-J21,1)*60*24)) ->  | K26: =IF(OR(H$7="",H$7="Direct Read"),"",IF(OR(K21="",K22="",K23="",K24=""),"",MOD(K22-K21,1)*60*24)) ->  | L26: =IF(OR(I$7="",I$7="Direct Read"),"",IF(OR(L21="",L22="",L23="",L24=""),"",MOD(L22-L21,1)*60*24)) -> 
C27: Actual Volume [L] | D27: =IF(OR(D21="",D22="",D23="",D24=""),"",(D25*D26)/1000) ->  | J27: =IF(OR(G$7="",G$7="Direct Read"),"",IF(OR(J21="",J22="",J23="",J24=""),"",(J25*J26)/1000)) ->  | K27: =IF(OR(H$7="",H$7="Direct Read"),"",IF(OR(K21="",K22="",K23="",K24=""),"",(K25*K26)/1000)) ->  | L27: =IF(OR(I$7="",I$7="Direct Read"),"",IF(OR(L21="",L22="",L23="",L24=""),"",(L25*L26)/1000)) -> 
C29: Laboratory Result in mg/tube
C30: Laboratory Result [μg/m³] (calculated) | D30: =IF(OR(D21="",D22="",D23="",D24="",D29=""),"",IFERROR(((IF(ISERROR(FIND("<",D29,1)),D29,VALUE(SUBSTITUTE(SUBSTITUTE(D29,"<",""), IF(locale_decimal=".", ",","."), IF(locale_decimal=".", ".",",")))))/D27)*1000,"Error")) ->  | E30: =IF(OR(E21="",E22="",E23="",E24="",E29="", $G$4=""),"",IFERROR(((IF(ISERROR(FIND("<",E29,1)),E29,VALUE(SUBSTITUTE(SUBSTITUTE(E29,"<",""), IF(locale_decimal=".", ",","."), IF(locale_decimal=".", ".",",")))))/E27)*1000,"Error")) ->  | F30: =IF(OR(F21="",F22="",F23="",F24="",F29=""),"",IFERROR(((IF(ISERROR(FIND("<",F29,1)),F29,VALUE(SUBSTITUTE(SUBSTITUTE(F29,"<",""), IF(locale_decimal=".", ",","."), IF(locale_decimal=".", ".",",")))))/F27)*1000,"Error")) ->  | G30: =IF(OR(G21="",G22="",G23="",G24="",G29=""),"",IFERROR(((IF(ISERROR(FIND("<",G29,1)),G29,VALUE(SUBSTITUTE(SUBSTITUTE(G29,"<",""), IF(locale_decimal=".", ",","."), IF(locale_decimal=".", ".",",")))))/G27)*1000,"Error")) ->  | H30: =IF(OR(H21="",H22="",H23="",H24="",H29=""),"",IFERROR(((IF(ISERROR(FIND("<",H29,1)),H29,VALUE(SUBSTITUTE(SUBSTITUTE(H29,"<",""), IF(locale_decimal=".", ",","."), IF(locale_decimal=".", ".",",")))))/H27)*1000,"Error")) ->  | I30: =IF(OR(I21="",I22="",I23="",I24="",I29=""),"",IFERROR(((IF(ISERROR(FIND("<",I29,1)),I29,VALUE(SUBSTITUTE(SUBSTITUTE(I29,"<",""), IF(locale_decimal=".", ",","."), IF(locale_decimal=".", ".",",")))))/I27)*1000,"Error")) ->  | J30: =IF(OR(J21="",J22="",J23="",J24="",J29="",$G$7="",$G$7="Direct Read"),"",IFERROR(((IF(ISERROR(FIND("<",J29,1)),J29,VALUE(SUBSTITUTE(SUBSTITUTE(J29,"<",""), IF(locale_decimal=".", ",","."), IF(locale_decimal=".", ".",",")))))/J27)*1000,"Error")) ->  | K30: =IF(OR(K21="",K22="",K23="",K24="",K29="",$G$7="",$G$7="Direct Read"),"",IFERROR(((IF(ISERROR(FIND("<",K29,1)),K29,VALUE(SUBSTITUTE(SUBSTITUTE(K29,"<",""), IF(locale_decimal=".", ",","."), IF(locale_decimal=".", ".",",")))))/K27)*1000,"Error")) ->  | L30: =IF(OR(L21="",L22="",L23="",L24="",L29="",$G$7="",$G$7="Direct Read"),"",IFERROR(((IF(ISERROR(FIND("<",L29,1)),L29,VALUE(SUBSTITUTE(SUBSTITUTE(L29,"<",""), IF(locale_decimal=".", ",","."), IF(locale_decimal=".", ".",",")))))/L27)*1000,"Error")) -> 
C31: OR Laboratory Result [μg/m³] (direct input)
C32: Laboratory Result [μg/m³] (transfer) | D32: =IF(AND(D30="",D31=""),"",VALUE(IF(D31<>"",SUBSTITUTE(SUBSTITUTE(D31,"<",""), IF(locale_decimal=".", ",","."), IF(locale_decimal=".", ".",",")),D30))) -> 
M33: `
C34: Direct Read Results | D34: PM2.5 [μg/m³] | E34: PM10 [μg/m³] | F34: =IF(G$7="","See Step 2",IF(AND(G$7="Direct Read",G$10=""),"See Step 3",IF(AND(G$7="Direct Read",G$10="mg/m³"),"Carbon Monoxide [mg/m³]",IF(AND(G$7="Direct Read",G$10="ppm"),"Carbon Monoxide [ppm]","")))) -> See Step 2 | G34: =IF(H$7="","See Step 2",IF(AND(H$7="Direct Read",H$10=""),"See Step 3",IF(AND(H$7="Direct Read",H$10="µg/m³"),"Ozone [µg/m³]",IF(AND(H$7="Direct Read",H$10="ppb"),"Ozone [ppb]","")))) -> See Step 2 | H34: =IF(I$7="","See Step 2",IF(AND(I$7="Direct Read",I$10=""),"See Step 3",IF(AND(I$7="Direct Read",I$10="µg/m³"),"Nitrogen Dioxide [µg/m³]",IF(AND(I$7="Direct Read",I$10="ppb"),"Nitrogen Dioxide [ppb]","")))) -> See Step 2
C35: Sampling Time [min]
C36: Median Result
C38: =IF(C17<SUM(LookUpData!$E$61),C17+1,"") ->  | D38: Location Name: | H38: Date sampled: | K38: Commercial Kitchen or Industrial?
C39: Parameter \ Analyte | D39: Formaldehyde | E39: =IF($G$4="","See Step 1",$G$4) -> See Step 1 | F39: Benzene | G39: Acetaldehyde | H39: Naphthalene | I39: Toluene | J39: =IF($G$7="","See Step 2",IF($G$7="Lab","Carbon Monoxide","")) -> See Step 2 | K39: =IF($H$7="","See Step 2",IF($H$7="Lab","Ozone","")) -> See Step 2 | L39: =IF($I$7="","See Step 2",IF($I$7="Lab","Nitrogen Dioxide","")) -> See Step 2 | M39: Notes
C40: ID/Locator in Lab Report
C41: Tube Identifier
C42: Sampling Start Time (HH:MM AM/PM)
C43: Sampling End Time (HH:MM AM/PM)
C44: Start Flow [mL/min]
C45: End Flow [mL/min]
C46: Average Flow [mL/min] | D46: =IF(OR(D42="",D43="",D44="",D45=""),"",AVERAGE(D44:D45)) ->  | F46: =IF(OR(F42="",F43="",F44="",F45=""),"",AVERAGE(F44:F45)) ->  | J46: =IF(OR(G$7="",G$7="Direct Read"),"",IF(OR(J42="",J43="",J44="",J45=""),"",AVERAGE(J44:J45))) ->  | K46: =IF(OR(H$7="",H$7="Direct Read"),"",IF(OR(K42="",K43="",K44="",K45=""),"",AVERAGE(K44:K45))) ->  | L46: =IF(OR(I$7="",I$7="Direct Read"),"",IF(OR(L42="",L43="",L44="",L45=""),"",AVERAGE(L44:L45))) -> 
C47: Time Elapsed [min] | D47: =IF(OR(D42="",D43="",D44="",D45=""),"",MOD(D43-D42,1)*60*24) ->  | F47: =IF(OR(F42="",F43="",F44="",F45=""),"",MOD(F43-F42,1)*60*24) ->  | J47: =IF(OR(G$7="",G$7="Direct Read"),"",IF(OR(J42="",J43="",J44="",J45=""),"",MOD(J43-J42,1)*60*24)) ->  | K47: =IF(OR(H$7="",H$7="Direct Read"),"",IF(OR(K42="",K43="",K44="",K45=""),"",MOD(K43-K42,1)*60*24)) ->  | L47: =IF(OR(I$7="",I$7="Direct Read"),"",IF(OR(L42="",L43="",L44="",L45=""),"",MOD(L43-L42,1)*60*24)) -> 
C48: Actual Volume [L] | D48: =IF(OR(D42="",D43="",D44="",D45=""),"",(D46*D47)/1000) ->  | F48: =IF(OR(F42="",F43="",F44="",F45=""),"",(F46*F47)/1000) ->  | J48: =IF(OR(G$7="",G$7="Direct Read"),"",IF(OR(J42="",J43="",J44="",J45=""),"",(J46*J47)/1000)) ->  | K48: =IF(OR(H$7="",H$7="Direct Read"),"",IF(OR(K42="",K43="",K44="",K45=""),"",(K46*K47)/1000)) ->  | L48: =IF(OR(I$7="",I$7="Direct Read"),"",IF(OR(L42="",L43="",L44="",L45=""),"",(L46*L47)/1000)) -> 
D49: 1 | E49: 1 | F49: 1 | G49: 1 | H49: 1 | I49: 1 | J49: 1 | K49: 1 | L49: 1
C50: Laboratory Result in mg/tube
C51: Laboratory Result [μg/m³] (calculated) | D51: =IF(OR(D42="",D43="",D44="",D45="",D50=""),"",IFERROR(((IF(ISERROR(FIND("<",D50,1)),D50,VALUE(SUBSTITUTE(SUBSTITUTE(D50,"<",""), IF(locale_decimal=".", ",","."), IF(locale_decimal=".", ".",",")))))/D48)*1000,"Error")) ->  | E51: =IF(OR(E42="",E43="",E44="",E45="",E50="", $G$4=""),"",IFERROR(((IF(ISERROR(FIND("<",E50,1)),E50,VALUE(SUBSTITUTE(SUBSTITUTE(E50,"<",""), IF(locale_decimal=".", ",","."), IF(locale_decimal=".", ".",",")))))/E48)*1000,"Error")) ->  | F51: =IF(OR(F42="",F43="",F44="",F45="",F50=""),"",IFERROR(((IF(ISERROR(FIND("<",F50,1)),F50,VALUE(SUBSTITUTE(SUBSTITUTE(F50,"<",""), IF(locale_decimal=".", ",","."), IF(locale_decimal=".", ".",",")))))/F48)*1000,"Error")) ->  | G51: =IF(OR(G42="",G43="",G44="",G45="",G50=""),"",IFERROR(((IF(ISERROR(FIND("<",G50,1)),G50,VALUE(SUBSTITUTE(SUBSTITUTE(G50,"<",""), IF(locale_decimal=".", ",","."), IF(locale_decimal=".", ".",",")))))/G48)*1000,"Error")) ->  | H51: =IF(OR(H42="",H43="",H44="",H45="",H50=""),"",IFERROR(((IF(ISERROR(FIND("<",H50,1)),H50,VALUE(SUBSTITUTE(SUBSTITUTE(H50,"<",""), IF(locale_decimal=".", ",","."), IF(locale_decimal=".", ".",",")))))/H48)*1000,"Error")) ->  | I51: =IF(OR(I42="",I43="",I44="",I45="",I50=""),"",IFERROR(((IF(ISERROR(FIND("<",I50,1)),I50,VALUE(SUBSTITUTE(SUBSTITUTE(I50,"<",""), IF(locale_decimal=".", ",","."), IF(locale_decimal=".", ".",",")))))/I48)*1000,"Error")) ->  | J51: =IF(OR(J42="",J43="",J44="",J45="",J50="",$G$7="",$G$7="Direct Read"),"",IFERROR(((IF(ISERROR(FIND("<",J50,1)),J50,VALUE(SUBSTITUTE(SUBSTITUTE(J50,"<",""), IF(locale_decimal=".", ",","."), IF(locale_decimal=".", ".",",")))))/J48)*1000,"Error")) ->  | K51: =IF(OR(K42="",K43="",K44="",K45="",K50="",$G$7="",$G$7="Direct Read"),"",IFERROR(((IF(ISERROR(FIND("<",K50,1)),K50,VALUE(SUBSTITUTE(SUBSTITUTE(K50,"<",""), IF(locale_decimal=".", ",","."), IF(locale_decimal=".", ".",",")))))/K48)*1000,"Error")) ->  | L51: =IF(OR(L42="",L43="",L44="",L45="",L50="",$G$7="",$G$7="Direct Read"),"",IFERROR(((IF(ISERROR(FIND("<",L50,1)),L50,VALUE(SUBSTITUTE(SUBSTITUTE(L50,"<",""), IF(locale_decimal=".", ",","."), IF(locale_decimal=".", ".",",")))))/L48)*1000,"Error")) -> 
C52: OR Laboratory Result [μg/m³] (direct input)
C53: Laboratory Result [μg/m³] (transfer) | D53: =IF(AND(D51="",D52=""),"",VALUE(IF(D52<>"",SUBSTITUTE(SUBSTITUTE(D52,"<",""), IF(locale_decimal=".", ",","."), IF(locale_decimal=".", ".",",")),D51))) -> 
C55: Direct Read Results | D55: PM2.5 [μg/m³] | E55: PM10 [μg/m³] | F55: =IF(G$7="","See Step 2",IF(AND(G$7="Direct Read",G$10=""),"See Step 3",IF(AND(G$7="Direct Read",G$10="mg/m³"),"Carbon Monoxide [mg/m³]",IF(AND(G$7="Direct Read",G$10="ppm"),"Carbon Monoxide [ppm]","")))) -> See Step 2 | G55: =IF(H$7="","See Step 2",IF(AND(H$7="Direct Read",H$10=""),"See Step 3",IF(AND(H$7="Direct Read",H$10="µg/m³"),"Ozone [µg/m³]",IF(AND(H$7="Direct Read",H$10="ppb"),"Ozone [ppb]","")))) -> See Step 2 | H55: =IF(I$7="","See Step 2",IF(AND(I$7="Direct Read",I$10=""),"See Step 3",IF(AND(I$7="Direct Read",I$10="µg/m³"),"Nitrogen Dioxide [µg/m³]",IF(AND(I$7="Direct Read",I$10="ppb"),"Nitrogen Dioxide [ppb]","")))) -> See Step 2
C56: Sampling Time [min]
C57: Median Result
C59: =IF(C38<SUM(LookUpData!$E$61),C38+1,"") ->  | D59: Location Name: | H59: Date sampled: | K59: Commercial Kitchen or Industrial?
C60: Parameter \ Analyte | D60: Formaldehyde | E60: =IF($G$4="","See Step 1",$G$4) -> See Step 1 | F60: Benzene | G60: Acetaldehyde | H60: Naphthalene | I60: Toluene | J60: =IF($G$7="","See Step 2",IF($G$7="Lab","Carbon Monoxide","")) -> See Step 2 | K60: =IF($H$7="","See Step 2",IF($H$7="Lab","Ozone","")) -> See Step 2 | L60: =IF($I$7="","See Step 2",IF($I$7="Lab","Nitrogen Dioxide","")) -> See Step 2 | M60: Notes
C61: ID/Locator in Lab Report
C62: Tube Identifier
C63: Sampling Start Time (HH:MM AM/PM)
C64: Sampling End Time (HH:MM AM/PM)
C65: Start Flow [mL/min]
C66: End Flow [mL/min]
C67: Average Flow [mL/min] | D67: =IF(OR(D63="",D64="",D65="",D66=""),"",AVERAGE(D65:D66)) ->  | J67: =IF(OR(G$7="",G$7="Direct Read"),"",IF(OR(J63="",J64="",J65="",J66=""),"",AVERAGE(J65:J66))) ->  | K67: =IF(OR(H$7="",H$7="Direct Read"),"",IF(OR(K63="",K64="",K65="",K66=""),"",AVERAGE(K65:K66))) ->  | L67: =IF(OR(I$7="",I$7="Direct Read"),"",IF(OR(L63="",L64="",L65="",L66=""),"",AVERAGE(L65:L66))) -> 
C68: Time Elapsed [min] | D68: =IF(OR(D63="",D64="",D65="",D66=""),"",MOD(D64-D63,1)*60*24) ->  | J68: =IF(OR(G$7="",G$7="Direct Read"),"",IF(OR(J63="",J64="",J65="",J66=""),"",MOD(J64-J63,1)*60*24)) ->  | K68: =IF(OR(H$7="",H$7="Direct Read"),"",IF(OR(K63="",K64="",K65="",K66=""),"",MOD(K64-K63,1)*60*24)) ->  | L68: =IF(OR(I$7="",I$7="Direct Read"),"",IF(OR(L63="",L64="",L65="",L66=""),"",MOD(L64-L63,1)*60*24)) -> 
C69: Actual Volume [L] | D69: =IF(OR(D63="",D64="",D65="",D66=""),"",(D67*D68)/1000) ->  | J69: =IF(OR(G$7="",G$7="Direct Read"),"",IF(OR(J63="",J64="",J65="",J66=""),"",(J67*J68)/1000)) ->  | K69: =IF(OR(H$7="",H$7="Direct Read"),"",IF(OR(K63="",K64="",K65="",K66=""),"",(K67*K68)/1000)) ->  | L69: =IF(OR(I$7="",I$7="Direct Read"),"",IF(OR(L63="",L64="",L65="",L66=""),"",(L67*L68)/1000)) -> 
C71: Laboratory Result in mg/tube
C72: Laboratory Result [μg/m³] (calculated) | D72: =IF(OR(D63="",D64="",D65="",D66="",D71=""),"",IFERROR(((IF(ISERROR(FIND("<",D71,1)),D71,VALUE(SUBSTITUTE(SUBSTITUTE(D71,"<",""), IF(locale_decimal=".", ",","."), IF(locale_decimal=".", ".",",")))))/D69)*1000,"Error")) ->  | E72: =IF(OR(E63="",E64="",E65="",E66="",E71="", $G$4=""),"",IFERROR(((IF(ISERROR(FIND("<",E71,1)),E71,VALUE(SUBSTITUTE(SUBSTITUTE(E71,"<",""), IF(locale_decimal=".", ",","."), IF(locale_decimal=".", ".",",")))))/E69)*1000,"Error")) ->  | F72: =IF(OR(F63="",F64="",F65="",F66="",F71=""),"",IFERROR(((IF(ISERROR(FIND("<",F71,1)),F71,VALUE(SUBSTITUTE(SUBSTITUTE(F71,"<",""), IF(locale_decimal=".", ",","."), IF(locale_decimal=".", ".",",")))))/F69)*1000,"Error")) ->  | G72: =IF(OR(G63="",G64="",G65="",G66="",G71=""),"",IFERROR(((IF(ISERROR(FIND("<",G71,1)),G71,VALUE(SUBSTITUTE(SUBSTITUTE(G71,"<",""), IF(locale_decimal=".", ",","."), IF(locale_decimal=".", ".",",")))))/G69)*1000,"Error")) ->  | H72: =IF(OR(H63="",H64="",H65="",H66="",H71=""),"",IFERROR(((IF(ISERROR(FIND("<",H71,1)),H71,VALUE(SUBSTITUTE(SUBSTITUTE(H71,"<",""), IF(locale_decimal=".", ",","."), IF(locale_decimal=".", ".",",")))))/H69)*1000,"Error")) ->  | I72: =IF(OR(I63="",I64="",I65="",I66="",I71=""),"",IFERROR(((IF(ISERROR(FIND("<",I71,1)),I71,VALUE(SUBSTITUTE(SUBSTITUTE(I71,"<",""), IF(locale_decimal=".", ",","."), IF(locale_decimal=".", ".",",")))))/I69)*1000,"Error")) ->  | J72: =IF(OR(J63="",J64="",J65="",J66="",J71="",$G$7="",$G$7="Direct Read"),"",IFERROR(((IF(ISERROR(FIND("<",J71,1)),J71,VALUE(SUBSTITUTE(SUBSTITUTE(J71,"<",""), IF(locale_decimal=".", ",","."), IF(locale_decimal=".", ".",",")))))/J69)*1000,"Error")) ->  | K72: =IF(OR(K63="",K64="",K65="",K66="",K71="",$G$7="",$G$7="Direct Read"),"",IFERROR(((IF(ISERROR(FIND("<",K71,1)),K71,VALUE(SUBSTITUTE(SUBSTITUTE(K71,"<",""), IF(locale_decimal=".", ",","."), IF(locale_decimal=".", ".",",")))))/K69)*1000,"Error")) ->  | L72: =IF(OR(L63="",L64="",L65="",L66="",L71="",$G$7="",$G$7="Direct Read"),"",IFERROR(((IF(ISERROR(FIND("<",L71,1)),L71,VALUE(SUBSTITUTE(SUBSTITUTE(L71,"<",""), IF(locale_decimal=".", ",","."), IF(locale_decimal=".", ".",",")))))/L69)*1000,"Error")) -> 
C73: OR Laboratory Result [μg/m³] (direct input)
C74: Laboratory Result [μg/m³] (transfer) | D74: =IF(AND(D72="",D73=""),"",VALUE(IF(D73<>"",SUBSTITUTE(SUBSTITUTE(D73,"<",""), IF(locale_decimal=".", ",","."), IF(locale_decimal=".", ".",",")),D72))) -> 
C76: Direct Read Results | D76: PM2.5 [μg/m³] | E76: PM10 [μg/m³] | F76: =IF(G$7="","See Step 2",IF(AND(G$7="Direct Read",G$10=""),"See Step 3",IF(AND(G$7="Direct Read",G$10="mg/m³"),"Carbon Monoxide [mg/m³]",IF(AND(G$7="Direct Read",G$10="ppm"),"Carbon Monoxide [ppm]","")))) -> See Step 2 | G76: =IF(H$7="","See Step 2",IF(AND(H$7="Direct Read",H$10=""),"See Step 3",IF(AND(H$7="Direct Read",H$10="µg/m³"),"Ozone [µg/m³]",IF(AND(H$7="Direct Read",H$10="ppb"),"Ozone [ppb]","")))) -> See Step 2 | H76: =IF(I$7="","See Step 2",IF(AND(I$7="Direct Read",I$10=""),"See Step 3",IF(AND(I$7="Direct Read",I$10="µg/m³"),"Nitrogen Dioxide [µg/m³]",IF(AND(I$7="Direct Read",I$10="ppb"),"Nitrogen Dioxide [ppb]","")))) -> See Step 2
C77: Sampling Time [min]
C78: Median Result
C80: =IF(C59<SUM(LookUpData!$E$61),C59+1,"") ->  | D80: Location Name: | H80: Date sampled: | K80: Commercial Kitchen or Industrial?
C81: Parameter \ Analyte | D81: Formaldehyde | E81: =IF($G$4="","See Step 1",$G$4) -> See Step 1 | F81: Benzene | G81: Acetaldehyde | H81: Naphthalene | I81: Toluene | J81: =IF($G$7="","See Step 2",IF($G$7="Lab","Carbon Monoxide","")) -> See Step 2 | K81: =IF($H$7="","See Step 2",IF($H$7="Lab","Ozone","")) -> See Step 2 | L81: =IF($I$7="","See Step 2",IF($I$7="Lab","Nitrogen Dioxide","")) -> See Step 2 | M81: Notes
C82: ID/Locator in Lab Report
C83: Tube Identifier
C84: Sampling Start Time (HH:MM AM/PM)
C85: Sampling End Time (HH:MM AM/PM)
C86: Start Flow [mL/min]
C87: End Flow [mL/min]
C88: Average Flow [mL/min] | D88: =IF(OR(D84="",D85="",D86="",D87=""),"",AVERAGE(D86:D87)) ->  | J88: =IF(OR(G$7="",G$7="Direct Read"),"",IF(OR(J84="",J85="",J86="",J87=""),"",AVERAGE(J86:J87))) ->  | K88: =IF(OR(H$7="",H$7="Direct Read"),"",IF(OR(K84="",K85="",K86="",K87=""),"",AVERAGE(K86:K87))) ->  | L88: =IF(OR(I$7="",I$7="Direct Read"),"",IF(OR(L84="",L85="",L86="",L87=""),"",AVERAGE(L86:L87))) -> 
C89: Time Elapsed [min] | D89: =IF(OR(D84="",D85="",D86="",D87=""),"",MOD(D85-D84,1)*60*24) ->  | J89: =IF(OR(G$7="",G$7="Direct Read"),"",IF(OR(J84="",J85="",J86="",J87=""),"",MOD(J85-J84,1)*60*24)) ->  | K89: =IF(OR(H$7="",H$7="Direct Read"),"",IF(OR(K84="",K85="",K86="",K87=""),"",MOD(K85-K84,1)*60*24)) ->  | L89: =IF(OR(I$7="",I$7="Direct Read"),"",IF(OR(L84="",L85="",L86="",L87=""),"",MOD(L85-L84,1)*60*24)) -> 
C90: Actual Volume [L] | D90: =IF(OR(D84="",D85="",D86="",D87=""),"",(D88*D89)/1000) ->  | J90: =IF(OR(G$7="",G$7="Direct Read"),"",IF(OR(J84="",J85="",J86="",J87=""),"",(J88*J89)/1000)) ->  | K90: =IF(OR(H$7="",H$7="Direct Read"),"",IF(OR(K84="",K85="",K86="",K87=""),"",(K88*K89)/1000)) ->  | L90: =IF(OR(I$7="",I$7="Direct Read"),"",IF(OR(L84="",L85="",L86="",L87=""),"",(L88*L89)/1000)) -> 
C92: Laboratory Result in mg/tube
C93: Laboratory Result [μg/m³] (calculated) | D93: =IF(OR(D84="",D85="",D86="",D87="",D92=""),"",IFERROR(((IF(ISERROR(FIND("<",D92,1)),D92,VALUE(SUBSTITUTE(SUBSTITUTE(D92,"<",""), IF(locale_decimal=".", ",","."), IF(locale_decimal=".", ".",",")))))/D90)*1000,"Error")) ->  | E93: =IF(OR(E84="",E85="",E86="",E87="",E92="", $G$4=""),"",IFERROR(((IF(ISERROR(FIND("<",E92,1)),E92,VALUE(SUBSTITUTE(SUBSTITUTE(E92,"<",""), IF(locale_decimal=".", ",","."), IF(locale_decimal=".", ".",",")))))/E90)*1000,"Error")) ->  | F93: =IF(OR(F84="",F85="",F86="",F87="",F92=""),"",IFERROR(((IF(ISERROR(FIND("<",F92,1)),F92,VALUE(SUBSTITUTE(SUBSTITUTE(F92,"<",""), IF(locale_decimal=".", ",","."), IF(locale_decimal=".", ".",",")))))/F90)*1000,"Error")) ->  | G93: =IF(OR(G84="",G85="",G86="",G87="",G92=""),"",IFERROR(((IF(ISERROR(FIND("<",G92,1)),G92,VALUE(SUBSTITUTE(SUBSTITUTE(G92,"<",""), IF(locale_decimal=".", ",","."), IF(locale_decimal=".", ".",",")))))/G90)*1000,"Error")) ->  | H93: =IF(OR(H84="",H85="",H86="",H87="",H92=""),"",IFERROR(((IF(ISERROR(FIND("<",H92,1)),H92,VALUE(SUBSTITUTE(SUBSTITUTE(H92,"<",""), IF(locale_decimal=".", ",","."), IF(locale_decimal=".", ".",",")))))/H90)*1000,"Error")) ->  | I93: =IF(OR(I84="",I85="",I86="",I87="",I92=""),"",IFERROR(((IF(ISERROR(FIND("<",I92,1)),I92,VALUE(SUBSTITUTE(SUBSTITUTE(I92,"<",""), IF(locale_decimal=".", ",","."), IF(locale_decimal=".", ".",",")))))/I90)*1000,"Error")) ->  | J93: =IF(OR(J84="",J85="",J86="",J87="",J92="",$G$7="",$G$7="Direct Read"),"",IFERROR(((IF(ISERROR(FIND("<",J92,1)),J92,VALUE(SUBSTITUTE(SUBSTITUTE(J92,"<",""), IF(locale_decimal=".", ",","."), IF(locale_decimal=".", ".",",")))))/J90)*1000,"Error")) ->  | K93: =IF(OR(K84="",K85="",K86="",K87="",K92="",$G$7="",$G$7="Direct Read"),"",IFERROR(((IF(ISERROR(FIND("<",K92,1)),K92,VALUE(SUBSTITUTE(SUBSTITUTE(K92,"<",""), IF(locale_decimal=".", ",","."), IF(locale_decimal=".", ".",",")))))/K90)*1000,"Error")) ->  | L93: =IF(OR(L84="",L85="",L86="",L87="",L92="",$G$7="",$G$7="Direct Read"),"",IFERROR(((IF(ISERROR(FIND("<",L92,1)),L92,VALUE(SUBSTITUTE(SUBSTITUTE(L92,"<",""), IF(locale_decimal=".", ",","."), IF(locale_decimal=".", ".",",")))))/L90)*1000,"Error")) -> 
C94: OR Laboratory Result [μg/m³] (direct input)
C95: Laboratory Result [μg/m³] (transfer) | D95: =IF(AND(D93="",D94=""),"",VALUE(IF(D94<>"",SUBSTITUTE(SUBSTITUTE(D94,"<",""), IF(locale_decimal=".", ",","."), IF(locale_decimal=".", ".",",")),D93))) -> 
C97: Direct Read Results | D97: PM2.5 [μg/m³] | E97: PM10 [μg/m³] | F97: =IF(G$7="","See Step 2",IF(AND(G$7="Direct Read",G$10=""),"See Step 3",IF(AND(G$7="Direct Read",G$10="mg/m³"),"Carbon Monoxide [mg/m³]",IF(AND(G$7="Direct Read",G$10="ppm"),"Carbon Monoxide [ppm]","")))) -> See Step 2 | G97: =IF(H$7="","See Step 2",IF(AND(H$7="Direct Read",H$10=""),"See Step 3",IF(AND(H$7="Direct Read",H$10="µg/m³"),"Ozone [µg/m³]",IF(AND(H$7="Direct Read",H$10="ppb"),"Ozone [ppb]","")))) -> See Step 2 | H97: =IF(I$7="","See Step 2",IF(AND(I$7="Direct Read",I$10=""),"See Step 3",IF(AND(I$7="Direct Read",I$10="µg/m³"),"Nitrogen Dioxide [µg/m³]",IF(AND(I$7="Direct Read",I$10="ppb"),"Nitrogen Dioxide [ppb]","")))) -> See Step 2
C98: Sampling Time [min]
C99: Median Result
C101: =IF(C80<SUM(LookUpData!$E$61),C80+1,"") ->  | D101: Location Name: | H101: Date sampled: | K101: Commercial Kitchen or Industrial?
C102: Parameter \ Analyte | D102: Formaldehyde | E102: =IF($G$4="","See Step 1",$G$4) -> See Step 1 | F102: Benzene | G102: Acetaldehyde | H102: Naphthalene | I102: Toluene | J102: =IF($G$7="","See Step 2",IF($G$7="Lab","Carbon Monoxide","")) -> See Step 2 | K102: =IF($H$7="","See Step 2",IF($H$7="Lab","Ozone","")) -> See Step 2 | L102: =IF($I$7="","See Step 2",IF($I$7="Lab","Nitrogen Dioxide","")) -> See Step 2 | M102: Notes
C103: ID/Locator in Lab Report
C104: Tube Identifier
C105: Sampling Start Time (HH:MM AM/PM)
C106: Sampling End Time (HH:MM AM/PM)
C107: Start Flow [mL/min]
C108: End Flow [mL/min]
C109: Average Flow [mL/min] | D109: =IF(OR(D105="",D106="",D107="",D108=""),"",AVERAGE(D107:D108)) ->  | J109: =IF(OR(G$7="",G$7="Direct Read"),"",IF(OR(J105="",J106="",J107="",J108=""),"",AVERAGE(J107:J108))) ->  | K109: =IF(OR(H$7="",H$7="Direct Read"),"",IF(OR(K105="",K106="",K107="",K108=""),"",AVERAGE(K107:K108))) ->  | L109: =IF(OR(I$7="",I$7="Direct Read"),"",IF(OR(L105="",L106="",L107="",L108=""),"",AVERAGE(L107:L108))) -> 
C110: Time Elapsed [min] | D110: =IF(OR(D105="",D106="",D107="",D108=""),"",MOD(D106-D105,1)*60*24) ->  | J110: =IF(OR(G$7="",G$7="Direct Read"),"",IF(OR(J105="",J106="",J107="",J108=""),"",MOD(J106-J105,1)*60*24)) ->  | K110: =IF(OR(H$7="",H$7="Direct Read"),"",IF(OR(K105="",K106="",K107="",K108=""),"",MOD(K106-K105,1)*60*24)) ->  | L110: =IF(OR(I$7="",I$7="Direct Read"),"",IF(OR(L105="",L106="",L107="",L108=""),"",MOD(L106-L105,1)*60*24)) -> 
C111: Actual Volume [L] | D111: =IF(OR(D105="",D106="",D107="",D108=""),"",(D109*D110)/1000) ->  | J111: =IF(OR(G$7="",G$7="Direct Read"),"",IF(OR(J105="",J106="",J107="",J108=""),"",(J109*J110)/1000)) ->  | K111: =IF(OR(H$7="",H$7="Direct Read"),"",IF(OR(K105="",K106="",K107="",K108=""),"",(K109*K110)/1000)) ->  | L111: =IF(OR(I$7="",I$7="Direct Read"),"",IF(OR(L105="",L106="",L107="",L108=""),"",(L109*L110)/1000)) -> 
C113: Laboratory Result in mg/tube
C114: Laboratory Result [μg/m³] (calculated) | D114: =IF(OR(D105="",D106="",D107="",D108="",D113=""),"",IFERROR(((IF(ISERROR(FIND("<",D113,1)),D113,VALUE(SUBSTITUTE(SUBSTITUTE(D113,"<",""), IF(locale_decimal=".", ",","."), IF(locale_decimal=".", ".",",")))))/D111)*1000,"Error")) ->  | E114: =IF(OR(E105="",E106="",E107="",E108="",E113="", $G$4=""),"",IFERROR(((IF(ISERROR(FIND("<",E113,1)),E113,VALUE(SUBSTITUTE(SUBSTITUTE(E113,"<",""), IF(locale_decimal=".", ",","."), IF(locale_decimal=".", ".",",")))))/E111)*1000,"Error")) ->  | F114: =IF(OR(F105="",F106="",F107="",F108="",F113=""),"",IFERROR(((IF(ISERROR(FIND("<",F113,1)),F113,VALUE(SUBSTITUTE(SUBSTITUTE(F113,"<",""), IF(locale_decimal=".", ",","."), IF(locale_decimal=".", ".",",")))))/F111)*1000,"Error")) ->  | G114: =IF(OR(G105="",G106="",G107="",G108="",G113=""),"",IFERROR(((IF(ISERROR(FIND("<",G113,1)),G113,VALUE(SUBSTITUTE(SUBSTITUTE(G113,"<",""), IF(locale_decimal=".", ",","."), IF(locale_decimal=".", ".",",")))))/G111)*1000,"Error")) ->  | H114: =IF(OR(H105="",H106="",H107="",H108="",H113=""),"",IFERROR(((IF(ISERROR(FIND("<",H113,1)),H113,VALUE(SUBSTITUTE(SUBSTITUTE(H113,"<",""), IF(locale_decimal=".", ",","."), IF(locale_decimal=".", ".",",")))))/H111)*1000,"Error")) ->  | I114: =IF(OR(I105="",I106="",I107="",I108="",I113=""),"",IFERROR(((IF(ISERROR(FIND("<",I113,1)),I113,VALUE(SUBSTITUTE(SUBSTITUTE(I113,"<",""), IF(locale_decimal=".", ",","."), IF(locale_decimal=".", ".",",")))))/I111)*1000,"Error")) ->  | J114: =IF(OR(J105="",J106="",J107="",J108="",J113="",$G$7="",$G$7="Direct Read"),"",IFERROR(((IF(ISERROR(FIND("<",J113,1)),J113,VALUE(SUBSTITUTE(SUBSTITUTE(J113,"<",""), IF(locale_decimal=".", ",","."), IF(locale_decimal=".", ".",",")))))/J111)*1000,"Error")) ->  | K114: =IF(OR(K105="",K106="",K107="",K108="",K113="",$G$7="",$G$7="Direct Read"),"",IFERROR(((IF(ISERROR(FIND("<",K113,1)),K113,VALUE(SUBSTITUTE(SUBSTITUTE(K113,"<",""), IF(locale_decimal=".", ",","."), IF(locale_decimal=".", ".",",")))))/K111)*1000,"Error")) ->  | L114: =IF(OR(L105="",L106="",L107="",L108="",L113="",$G$7="",$G$7="Direct Read"),"",IFERROR(((IF(ISERROR(FIND("<",L113,1)),L113,VALUE(SUBSTITUTE(SUBSTITUTE(L113,"<",""), IF(locale_decimal=".", ",","."), IF(locale_decimal=".", ".",",")))))/L111)*1000,"Error")) -> 
C115: OR Laboratory Result [μg/m³] (direct input)
C116: Laboratory Result [μg/m³] (transfer) | D116: =IF(AND(D114="",D115=""),"",VALUE(IF(D115<>"",SUBSTITUTE(SUBSTITUTE(D115,"<",""), IF(locale_decimal=".", ",","."), IF(locale_decimal=".", ".",",")),D114))) -> 
C118: Direct Read Results | D118: PM2.5 [μg/m³] | E118: PM10 [μg/m³] | F118: =IF(G$7="","See Step 2",IF(AND(G$7="Direct Read",G$10=""),"See Step 3",IF(AND(G$7="Direct Read",G$10="mg/m³"),"Carbon Monoxide [mg/m³]",IF(AND(G$7="Direct Read",G$10="ppm"),"Carbon Monoxide [ppm]","")))) -> See Step 2 | G118: =IF(H$7="","See Step 2",IF(AND(H$7="Direct Read",H$10=""),"See Step 3",IF(AND(H$7="Direct Read",H$10="µg/m³"),"Ozone [µg/m³]",IF(AND(H$7="Direct Read",H$10="ppb"),"Ozone [ppb]","")))) -> See Step 2 | H118: =IF(I$7="","See Step 2",IF(AND(I$7="Direct Read",I$10=""),"See Step 3",IF(AND(I$7="Direct Read",I$10="µg/m³"),"Nitrogen Dioxide [µg/m³]",IF(AND(I$7="Direct Read",I$10="ppb"),"Nitrogen Dioxide [ppb]","")))) -> See Step 2
C119: Sampling Time [min]
C120: Median Result
C122: =IF(C101<SUM(LookUpData!$E$61),C101+1,"") ->  | D122: Location Name: | H122: Date sampled: | K122: Commercial Kitchen or Industrial?
C123: Parameter \ Analyte | D123: Formaldehyde | E123: =IF($G$4="","See Step 1",$G$4) -> See Step 1 | F123: Benzene | G123: Acetaldehyde | H123: Naphthalene | I123: Toluene | J123: =IF($G$7="","See Step 2",IF($G$7="Lab","Carbon Monoxide","")) -> See Step 2 | K123: =IF($H$7="","See Step 2",IF($H$7="Lab","Ozone","")) -> See Step 2 | L123: =IF($I$7="","See Step 2",IF($I$7="Lab","Nitrogen Dioxide","")) -> See Step 2 | M123: Notes
C124: ID/Locator in Lab Report
C125: Tube Identifier
C126: Sampling Start Time (HH:MM AM/PM)
C127: Sampling End Time (HH:MM AM/PM)
C128: Start Flow [mL/min]
C129: End Flow [mL/min]
C130: Average Flow [mL/min] | D130: =IF(OR(D126="",D127="",D128="",D129=""),"",AVERAGE(D128:D129)) ->  | J130: =IF(OR(G$7="",G$7="Direct Read"),"",IF(OR(J126="",J127="",J128="",J129=""),"",AVERAGE(J128:J129))) ->  | K130: =IF(OR(H$7="",H$7="Direct Read"),"",IF(OR(K126="",K127="",K128="",K129=""),"",AVERAGE(K128:K129))) ->  | L130: =IF(OR(I$7="",I$7="Direct Read"),"",IF(OR(L126="",L127="",L128="",L129=""),"",AVERAGE(L128:L129))) -> 
C131: Time Elapsed [min] | D131: =IF(OR(D126="",D127="",D128="",D129=""),"",MOD(D127-D126,1)*60*24) ->  | J131: =IF(OR(G$7="",G$7="Direct Read"),"",IF(OR(J126="",J127="",J128="",J129=""),"",MOD(J127-J126,1)*60*24)) ->  | K131: =IF(OR(H$7="",H$7="Direct Read"),"",IF(OR(K126="",K127="",K128="",K129=""),"",MOD(K127-K126,1)*60*24)) ->  | L131: =IF(OR(I$7="",I$7="Direct Read"),"",IF(OR(L126="",L127="",L128="",L129=""),"",MOD(L127-L126,1)*60*24)) -> 
C132: Actual Volume [L] | D132: =IF(OR(D126="",D127="",D128="",D129=""),"",(D130*D131)/1000) ->  | J132: =IF(OR(G$7="",G$7="Direct Read"),"",IF(OR(J126="",J127="",J128="",J129=""),"",(J130*J131)/1000)) ->  | K132: =IF(OR(H$7="",H$7="Direct Read"),"",IF(OR(K126="",K127="",K128="",K129=""),"",(K130*K131)/1000)) ->  | L132: =IF(OR(I$7="",I$7="Direct Read"),"",IF(OR(L126="",L127="",L128="",L129=""),"",(L130*L131)/1000)) -> 
C134: Laboratory Result in mg/tube
C135: Laboratory Result [μg/m³] (calculated) | D135: =IF(OR(D126="",D127="",D128="",D129="",D134=""),"",IFERROR(((IF(ISERROR(FIND("<",D134,1)),D134,VALUE(SUBSTITUTE(SUBSTITUTE(D134,"<",""), IF(locale_decimal=".", ",","."), IF(locale_decimal=".", ".",",")))))/D132)*1000,"Error")) ->  | E135: =IF(OR(E126="",E127="",E128="",E129="",E134="", $G$4=""),"",IFERROR(((IF(ISERROR(FIND("<",E134,1)),E134,VALUE(SUBSTITUTE(SUBSTITUTE(E134,"<",""), IF(locale_decimal=".", ",","."), IF(locale_decimal=".", ".",",")))))/E132)*1000,"Error")) ->  | F135: =IF(OR(F126="",F127="",F128="",F129="",F134=""),"",IFERROR(((IF(ISERROR(FIND("<",F134,1)),F134,VALUE(SUBSTITUTE(SUBSTITUTE(F134,"<",""), IF(locale_decimal=".", ",","."), IF(locale_decimal=".", ".",",")))))/F132)*1000,"Error")) ->  | G135: =IF(OR(G126="",G127="",G128="",G129="",G134=""),"",IFERROR(((IF(ISERROR(FIND("<",G134,1)),G134,VALUE(SUBSTITUTE(SUBSTITUTE(G134,"<",""), IF(locale_decimal=".", ",","."), IF(locale_decimal=".", ".",",")))))/G132)*1000,"Error")) ->  | H135: =IF(OR(H126="",H127="",H128="",H129="",H134=""),"",IFERROR(((IF(ISERROR(FIND("<",H134,1)),H134,VALUE(SUBSTITUTE(SUBSTITUTE(H134,"<",""), IF(locale_decimal=".", ",","."), IF(locale_decimal=".", ".",",")))))/H132)*1000,"Error")) ->  | I135: =IF(OR(I126="",I127="",I128="",I129="",I134=""),"",IFERROR(((IF(ISERROR(FIND("<",I134,1)),I134,VALUE(SUBSTITUTE(SUBSTITUTE(I134,"<",""), IF(locale_decimal=".", ",","."), IF(locale_decimal=".", ".",",")))))/I132)*1000,"Error")) ->  | J135: =IF(OR(J126="",J127="",J128="",J129="",J134="",$G$7="",$G$7="Direct Read"),"",IFERROR(((IF(ISERROR(FIND("<",J134,1)),J134,VALUE(SUBSTITUTE(SUBSTITUTE(J134,"<",""), IF(locale_decimal=".", ",","."), IF(locale_decimal=".", ".",",")))))/J132)*1000,"Error")) ->  | K135: =IF(OR(K126="",K127="",K128="",K129="",K134="",$G$7="",$G$7="Direct Read"),"",IFERROR(((IF(ISERROR(FIND("<",K134,1)),K134,VALUE(SUBSTITUTE(SUBSTITUTE(K134,"<",""), IF(locale_decimal=".", ",","."), IF(locale_decimal=".", ".",",")))))/K132)*1000,"Error")) ->  | L135: =IF(OR(L126="",L127="",L128="",L129="",L134="",$G$7="",$G$7="Direct Read"),"",IFERROR(((IF(ISERROR(FIND("<",L134,1)),L134,VALUE(SUBSTITUTE(SUBSTITUTE(L134,"<",""), IF(locale_decimal=".", ",","."), IF(locale_decimal=".", ".",",")))))/L132)*1000,"Error")) -> 
C136: OR Laboratory Result [μg/m³] (direct input)
C137: Laboratory Result [μg/m³] (transfer) | D137: =IF(AND(D135="",D136=""),"",VALUE(IF(D136<>"",SUBSTITUTE(SUBSTITUTE(D136,"<",""), IF(locale_decimal=".", ",","."), IF(locale_decimal=".", ".",",")),D135))) -> 
C139: Direct Read Results | D139: PM2.5 [μg/m³] | E139: PM10 [μg/m³] | F139: =IF(G$7="","See Step 2",IF(AND(G$7="Direct Read",G$10=""),"See Step 3",IF(AND(G$7="Direct Read",G$10="mg/m³"),"Carbon Monoxide [mg/m³]",IF(AND(G$7="Direct Read",G$10="ppm"),"Carbon Monoxide [ppm]","")))) -> See Step 2 | G139: =IF(H$7="","See Step 2",IF(AND(H$7="Direct Read",H$10=""),"See Step 3",IF(AND(H$7="Direct Read",H$10="µg/m³"),"Ozone [µg/m³]",IF(AND(H$7="Direct Read",H$10="ppb"),"Ozone [ppb]","")))) -> See Step 2 | H139: =IF(I$7="","See Step 2",IF(AND(I$7="Direct Read",I$10=""),"See Step 3",IF(AND(I$7="Direct Read",I$10="µg/m³"),"Nitrogen Dioxide [µg/m³]",IF(AND(I$7="Direct Read",I$10="ppb"),"Nitrogen Dioxide [ppb]","")))) -> See Step 2
C140: Sampling Time [min]
C141: Median Result
C143: =IF(C122<SUM(LookUpData!$E$61),C122+1,"") ->  | D143: Location Name: | H143: Date sampled: | K143: Commercial Kitchen or Industrial?
C144: Parameter \ Analyte | D144: Formaldehyde | E144: =IF($G$4="","See Step 1",$G$4) -> See Step 1 | F144: Benzene | G144: Acetaldehyde | H144: Naphthalene | I144: Toluene | J144: =IF($G$7="","See Step 2",IF($G$7="Lab","Carbon Monoxide","")) -> See Step 2 | K144: =IF($H$7="","See Step 2",IF($H$7="Lab","Ozone","")) -> See Step 2 | L144: =IF($I$7="","See Step 2",IF($I$7="Lab","Nitrogen Dioxide","")) -> See Step 2 | M144: Notes
C145: ID/Locator in Lab Report
C146: Tube Identifier
C147: Sampling Start Time (HH:MM AM/PM)
C148: Sampling End Time (HH:MM AM/PM)
C149: Start Flow [mL/min]
C150: End Flow [mL/min]
C151: Average Flow [mL/min] | D151: =IF(OR(D147="",D148="",D149="",D150=""),"",AVERAGE(D149:D150)) ->  | J151: =IF(OR(G$7="",G$7="Direct Read"),"",IF(OR(J147="",J148="",J149="",J150=""),"",AVERAGE(J149:J150))) ->  | K151: =IF(OR(H$7="",H$7="Direct Read"),"",IF(OR(K147="",K148="",K149="",K150=""),"",AVERAGE(K149:K150))) ->  | L151: =IF(OR(I$7="",I$7="Direct Read"),"",IF(OR(L147="",L148="",L149="",L150=""),"",AVERAGE(L149:L150))) -> 
C152: Time Elapsed [min] | D152: =IF(OR(D147="",D148="",D149="",D150=""),"",MOD(D148-D147,1)*60*24) ->  | J152: =IF(OR(G$7="",G$7="Direct Read"),"",IF(OR(J147="",J148="",J149="",J150=""),"",MOD(J148-J147,1)*60*24)) ->  | K152: =IF(OR(H$7="",H$7="Direct Read"),"",IF(OR(K147="",K148="",K149="",K150=""),"",MOD(K148-K147,1)*60*24)) ->  | L152: =IF(OR(I$7="",I$7="Direct Read"),"",IF(OR(L147="",L148="",L149="",L150=""),"",MOD(L148-L147,1)*60*24)) -> 
C153: Actual Volume [L] | D153: =IF(OR(D147="",D148="",D149="",D150=""),"",(D151*D152)/1000) ->  | J153: =IF(OR(G$7="",G$7="Direct Read"),"",IF(OR(J147="",J148="",J149="",J150=""),"",(J151*J152)/1000)) ->  | K153: =IF(OR(H$7="",H$7="Direct Read"),"",IF(OR(K147="",K148="",K149="",K150=""),"",(K151*K152)/1000)) ->  | L153: =IF(OR(I$7="",I$7="Direct Read"),"",IF(OR(L147="",L148="",L149="",L150=""),"",(L151*L152)/1000)) -> 
C155: Laboratory Result in mg/tube
C156: Laboratory Result [μg/m³] (calculated) | D156: =IF(OR(D147="",D148="",D149="",D150="",D155=""),"",IFERROR(((IF(ISERROR(FIND("<",D155,1)),D155,VALUE(SUBSTITUTE(SUBSTITUTE(D155,"<",""), IF(locale_decimal=".", ",","."), IF(locale_decimal=".", ".",",")))))/D153)*1000,"Error")) ->  | E156: =IF(OR(E147="",E148="",E149="",E150="",E155="", $G$4=""),"",IFERROR(((IF(ISERROR(FIND("<",E155,1)),E155,VALUE(SUBSTITUTE(SUBSTITUTE(E155,"<",""), IF(locale_decimal=".", ",","."), IF(locale_decimal=".", ".",",")))))/E153)*1000,"Error")) ->  | F156: =IF(OR(F147="",F148="",F149="",F150="",F155=""),"",IFERROR(((IF(ISERROR(FIND("<",F155,1)),F155,VALUE(SUBSTITUTE(SUBSTITUTE(F155,"<",""), IF(locale_decimal=".", ",","."), IF(locale_decimal=".", ".",",")))))/F153)*1000,"Error")) ->  | G156: =IF(OR(G147="",G148="",G149="",G150="",G155=""),"",IFERROR(((IF(ISERROR(FIND("<",G155,1)),G155,VALUE(SUBSTITUTE(SUBSTITUTE(G155,"<",""), IF(locale_decimal=".", ",","."), IF(locale_decimal=".", ".",",")))))/G153)*1000,"Error")) ->  | H156: =IF(OR(H147="",H148="",H149="",H150="",H155=""),"",IFERROR(((IF(ISERROR(FIND("<",H155,1)),H155,VALUE(SUBSTITUTE(SUBSTITUTE(H155,"<",""), IF(locale_decimal=".", ",","."), IF(locale_decimal=".", ".",",")))))/H153)*1000,"Error")) ->  | I156: =IF(OR(I147="",I148="",I149="",I150="",I155=""),"",IFERROR(((IF(ISERROR(FIND("<",I155,1)),I155,VALUE(SUBSTITUTE(SUBSTITUTE(I155,"<",""), IF(locale_decimal=".", ",","."), IF(locale_decimal=".", ".",",")))))/I153)*1000,"Error")) ->  | J156: =IF(OR(J147="",J148="",J149="",J150="",J155="",$G$7="",$G$7="Direct Read"),"",IFERROR(((IF(ISERROR(FIND("<",J155,1)),J155,VALUE(SUBSTITUTE(SUBSTITUTE(J155,"<",""), IF(locale_decimal=".", ",","."), IF(locale_decimal=".", ".",",")))))/J153)*1000,"Error")) ->  | K156: =IF(OR(K147="",K148="",K149="",K150="",K155="",$G$7="",$G$7="Direct Read"),"",IFERROR(((IF(ISERROR(FIND("<",K155,1)),K155,VALUE(SUBSTITUTE(SUBSTITUTE(K155,"<",""), IF(locale_decimal=".", ",","."), IF(locale_decimal=".", ".",",")))))/K153)*1000,"Error")) ->  | L156: =IF(OR(L147="",L148="",L149="",L150="",L155="",$G$7="",$G$7="Direct Read"),"",IFERROR(((IF(ISERROR(FIND("<",L155,1)),L155,VALUE(SUBSTITUTE(SUBSTITUTE(L155,"<",""), IF(locale_decimal=".", ",","."), IF(locale_decimal=".", ".",",")))))/L153)*1000,"Error")) -> 
C157: OR Laboratory Result [μg/m³] (direct input)
C158: Laboratory Result [μg/m³] (transfer) | D158: =IF(AND(D156="",D157=""),"",VALUE(IF(D157<>"",SUBSTITUTE(SUBSTITUTE(D157,"<",""), IF(locale_decimal=".", ",","."), IF(locale_decimal=".", ".",",")),D156))) -> 
C160: Direct Read Results | D160: PM2.5 [μg/m³] | E160: PM10 [μg/m³] | F160: =IF(G$7="","See Step 2",IF(AND(G$7="Direct Read",G$10=""),"See Step 3",IF(AND(G$7="Direct Read",G$10="mg/m³"),"Carbon Monoxide [mg/m³]",IF(AND(G$7="Direct Read",G$10="ppm"),"Carbon Monoxide [ppm]","")))) -> See Step 2 | G160: =IF(H$7="","See Step 2",IF(AND(H$7="Direct Read",H$10=""),"See Step 3",IF(AND(H$7="Direct Read",H$10="µg/m³"),"Ozone [µg/m³]",IF(AND(H$7="Direct Read",H$10="ppb"),"Ozone [ppb]","")))) -> See Step 2 | H160: =IF(I$7="","See Step 2",IF(AND(I$7="Direct Read",I$10=""),"See Step 3",IF(AND(I$7="Direct Read",I$10="µg/m³"),"Nitrogen Dioxide [µg/m³]",IF(AND(I$7="Direct Read",I$10="ppb"),"Nitrogen Dioxide [ppb]","")))) -> See Step 2
C161: Sampling Time [min]
C162: Median Result
C164: =IF(C143<SUM(LookUpData!$E$61),C143+1,"") ->  | D164: Location Name: | H164: Date sampled: | K164: Commercial Kitchen or Industrial?
C165: Parameter \ Analyte | D165: Formaldehyde | E165: =IF($G$4="","See Step 1",$G$4) -> See Step 1 | F165: Benzene | G165: Acetaldehyde | H165: Naphthalene | I165: Toluene | J165: =IF($G$7="","See Step 2",IF($G$7="Lab","Carbon Monoxide","")) -> See Step 2 | K165: =IF($H$7="","See Step 2",IF($H$7="Lab","Ozone","")) -> See Step 2 | L165: =IF($I$7="","See Step 2",IF($I$7="Lab","Nitrogen Dioxide","")) -> See Step 2 | M165: Notes
C166: ID/Locator in Lab Report
C167: Tube Identifier
C168: Sampling Start Time (HH:MM AM/PM)
C169: Sampling End Time (HH:MM AM/PM)
C170: Start Flow [mL/min]
C171: End Flow [mL/min]
C172: Average Flow [mL/min] | D172: =IF(OR(D168="",D169="",D170="",D171=""),"",AVERAGE(D170:D171)) ->  | J172: =IF(OR(G$7="",G$7="Direct Read"),"",IF(OR(J168="",J169="",J170="",J171=""),"",AVERAGE(J170:J171))) ->  | K172: =IF(OR(H$7="",H$7="Direct Read"),"",IF(OR(K168="",K169="",K170="",K171=""),"",AVERAGE(K170:K171))) ->  | L172: =IF(OR(I$7="",I$7="Direct Read"),"",IF(OR(L168="",L169="",L170="",L171=""),"",AVERAGE(L170:L171))) -> 
C173: Time Elapsed [min] | D173: =IF(OR(D168="",D169="",D170="",D171=""),"",MOD(D169-D168,1)*60*24) ->  | J173: =IF(OR(G$7="",G$7="Direct Read"),"",IF(OR(J168="",J169="",J170="",J171=""),"",MOD(J169-J168,1)*60*24)) ->  | K173: =IF(OR(H$7="",H$7="Direct Read"),"",IF(OR(K168="",K169="",K170="",K171=""),"",MOD(K169-K168,1)*60*24)) ->  | L173: =IF(OR(I$7="",I$7="Direct Read"),"",IF(OR(L168="",L169="",L170="",L171=""),"",MOD(L169-L168,1)*60*24)) -> 
C174: Actual Volume [L] | D174: =IF(OR(D168="",D169="",D170="",D171=""),"",(D172*D173)/1000) ->  | J174: =IF(OR(G$7="",G$7="Direct Read"),"",IF(OR(J168="",J169="",J170="",J171=""),"",(J172*J173)/1000)) ->  | K174: =IF(OR(H$7="",H$7="Direct Read"),"",IF(OR(K168="",K169="",K170="",K171=""),"",(K172*K173)/1000)) ->  | L174: =IF(OR(I$7="",I$7="Direct Read"),"",IF(OR(L168="",L169="",L170="",L171=""),"",(L172*L173)/1000)) -> 
C176: Laboratory Result in mg/tube
C177: Laboratory Result [μg/m³] (calculated) | D177: =IF(OR(D168="",D169="",D170="",D171="",D176=""),"",IFERROR(((IF(ISERROR(FIND("<",D176,1)),D176,VALUE(SUBSTITUTE(SUBSTITUTE(D176,"<",""), IF(locale_decimal=".", ",","."), IF(locale_decimal=".", ".",",")))))/D174)*1000,"Error")) ->  | E177: =IF(OR(E168="",E169="",E170="",E171="",E176="", $G$4=""),"",IFERROR(((IF(ISERROR(FIND("<",E176,1)),E176,VALUE(SUBSTITUTE(SUBSTITUTE(E176,"<",""), IF(locale_decimal=".", ",","."), IF(locale_decimal=".", ".",",")))))/E174)*1000,"Error")) ->  | F177: =IF(OR(F168="",F169="",F170="",F171="",F176=""),"",IFERROR(((IF(ISERROR(FIND("<",F176,1)),F176,VALUE(SUBSTITUTE(SUBSTITUTE(F176,"<",""), IF(locale_decimal=".", ",","."), IF(locale_decimal=".", ".",",")))))/F174)*1000,"Error")) ->  | G177: =IF(OR(G168="",G169="",G170="",G171="",G176=""),"",IFERROR(((IF(ISERROR(FIND("<",G176,1)),G176,VALUE(SUBSTITUTE(SUBSTITUTE(G176,"<",""), IF(locale_decimal=".", ",","."), IF(locale_decimal=".", ".",",")))))/G174)*1000,"Error")) ->  | H177: =IF(OR(H168="",H169="",H170="",H171="",H176=""),"",IFERROR(((IF(ISERROR(FIND("<",H176,1)),H176,VALUE(SUBSTITUTE(SUBSTITUTE(H176,"<",""), IF(locale_decimal=".", ",","."), IF(locale_decimal=".", ".",",")))))/H174)*1000,"Error")) ->  | I177: =IF(OR(I168="",I169="",I170="",I171="",I176=""),"",IFERROR(((IF(ISERROR(FIND("<",I176,1)),I176,VALUE(SUBSTITUTE(SUBSTITUTE(I176,"<",""), IF(locale_decimal=".", ",","."), IF(locale_decimal=".", ".",",")))))/I174)*1000,"Error")) ->  | J177: =IF(OR(J168="",J169="",J170="",J171="",J176="",$G$7="",$G$7="Direct Read"),"",IFERROR(((IF(ISERROR(FIND("<",J176,1)),J176,VALUE(SUBSTITUTE(SUBSTITUTE(J176,"<",""), IF(locale_decimal=".", ",","."), IF(locale_decimal=".", ".",",")))))/J174)*1000,"Error")) ->  | K177: =IF(OR(K168="",K169="",K170="",K171="",K176="",$G$7="",$G$7="Direct Read"),"",IFERROR(((IF(ISERROR(FIND("<",K176,1)),K176,VALUE(SUBSTITUTE(SUBSTITUTE(K176,"<",""), IF(locale_decimal=".", ",","."), IF(locale_decimal=".", ".",",")))))/K174)*1000,"Error")) ->  | L177: =IF(OR(L168="",L169="",L170="",L171="",L176="",$G$7="",$G$7="Direct Read"),"",IFERROR(((IF(ISERROR(FIND("<",L176,1)),L176,VALUE(SUBSTITUTE(SUBSTITUTE(L176,"<",""), IF(locale_decimal=".", ",","."), IF(locale_decimal=".", ".",",")))))/L174)*1000,"Error")) -> 
C178: OR Laboratory Result [μg/m³] (direct input)
C179: Laboratory Result [μg/m³] (transfer) | D179: =IF(AND(D177="",D178=""),"",IF(D178<>"",SUBSTITUTE(SUBSTITUTE(D178,"<",""), IF(locale_decimal=".", ",","."), IF(locale_decimal=".", ".",",")),D177)) -> 
C181: Direct Read Results | D181: PM2.5 [μg/m³] | E181: PM10 [μg/m³] | F181: =IF(G$7="","See Step 2",IF(AND(G$7="Direct Read",G$10=""),"See Step 3",IF(AND(G$7="Direct Read",G$10="mg/m³"),"Carbon Monoxide [mg/m³]",IF(AND(G$7="Direct Read",G$10="ppm"),"Carbon Monoxide [ppm]","")))) -> See Step 2 | G181: =IF(H$7="","See Step 2",IF(AND(H$7="Direct Read",H$10=""),"See Step 3",IF(AND(H$7="Direct Read",H$10="µg/m³"),"Ozone [µg/m³]",IF(AND(H$7="Direct Read",H$10="ppb"),"Ozone [ppb]","")))) -> See Step 2 | H181: =IF(I$7="","See Step 2",IF(AND(I$7="Direct Read",I$10=""),"See Step 3",IF(AND(I$7="Direct Read",I$10="µg/m³"),"Nitrogen Dioxide [µg/m³]",IF(AND(I$7="Direct Read",I$10="ppb"),"Nitrogen Dioxide [ppb]","")))) -> See Step 2
C182: Sampling Time [min]
C183: Median Result
C185: =IF(C164<SUM(LookUpData!$E$61),C164+1,"") ->  | D185: Location Name: | H185: Date sampled: | K185: Commercial Kitchen or Industrial?
C186: Parameter \ Analyte | D186: Formaldehyde | E186: =IF($G$4="","See Step 1",$G$4) -> See Step 1 | F186: Benzene | G186: Acetaldehyde | H186: Naphthalene | I186: Toluene | J186: =IF($G$7="","See Step 2",IF($G$7="Lab","Carbon Monoxide","")) -> See Step 2 | K186: =IF($H$7="","See Step 2",IF($H$7="Lab","Ozone","")) -> See Step 2 | L186: =IF($I$7="","See Step 2",IF($I$7="Lab","Nitrogen Dioxide","")) -> See Step 2 | M186: Notes
C187: ID/Locator in Lab Report
C188: Tube Identifier
C189: Sampling Start Time (HH:MM AM/PM)
C190: Sampling End Time (HH:MM AM/PM)
C191: Start Flow [mL/min]
C192: End Flow [mL/min]
C193: Average Flow [mL/min] | D193: =IF(OR(D189="",D190="",D191="",D192=""),"",AVERAGE(D191:D192)) ->  | J193: =IF(OR(G$7="",G$7="Direct Read"),"",IF(OR(J189="",J190="",J191="",J192=""),"",AVERAGE(J191:J192))) ->  | K193: =IF(OR(H$7="",H$7="Direct Read"),"",IF(OR(K189="",K190="",K191="",K192=""),"",AVERAGE(K191:K192))) ->  | L193: =IF(OR(I$7="",I$7="Direct Read"),"",IF(OR(L189="",L190="",L191="",L192=""),"",AVERAGE(L191:L192))) -> 
C194: Time Elapsed [min] | D194: =IF(OR(D189="",D190="",D191="",D192=""),"",MOD(D190-D189,1)*60*24) ->  | J194: =IF(OR(G$7="",G$7="Direct Read"),"",IF(OR(J189="",J190="",J191="",J192=""),"",MOD(J190-J189,1)*60*24)) ->  | K194: =IF(OR(H$7="",H$7="Direct Read"),"",IF(OR(K189="",K190="",K191="",K192=""),"",MOD(K190-K189,1)*60*24)) ->  | L194: =IF(OR(I$7="",I$7="Direct Read"),"",IF(OR(L189="",L190="",L191="",L192=""),"",MOD(L190-L189,1)*60*24)) -> 
C195: Actual Volume [L] | D195: =IF(OR(D189="",D190="",D191="",D192=""),"",(D193*D194)/1000) ->  | J195: =IF(OR(G$7="",G$7="Direct Read"),"",IF(OR(J189="",J190="",J191="",J192=""),"",(J193*J194)/1000)) ->  | K195: =IF(OR(H$7="",H$7="Direct Read"),"",IF(OR(K189="",K190="",K191="",K192=""),"",(K193*K194)/1000)) ->  | L195: =IF(OR(I$7="",I$7="Direct Read"),"",IF(OR(L189="",L190="",L191="",L192=""),"",(L193*L194)/1000)) -> 
C197: Laboratory Result in mg/tube
C198: Laboratory Result [μg/m³] (calculated) | D198: =IF(OR(D189="",D190="",D191="",D192="",D197=""),"",IFERROR(((IF(ISERROR(FIND("<",D197,1)),D197,VALUE(SUBSTITUTE(SUBSTITUTE(D197,"<",""), IF(locale_decimal=".", ",","."), IF(locale_decimal=".", ".",",")))))/D195)*1000,"Error")) ->  | E198: =IF(OR(E189="",E190="",E191="",E192="",E197="", $G$4=""),"",IFERROR(((IF(ISERROR(FIND("<",E197,1)),E197,VALUE(SUBSTITUTE(SUBSTITUTE(E197,"<",""), IF(locale_decimal=".", ",","."), IF(locale_decimal=".", ".",",")))))/E195)*1000,"Error")) ->  | F198: =IF(OR(F189="",F190="",F191="",F192="",F197=""),"",IFERROR(((IF(ISERROR(FIND("<",F197,1)),F197,VALUE(SUBSTITUTE(SUBSTITUTE(F197,"<",""), IF(locale_decimal=".", ",","."), IF(locale_decimal=".", ".",",")))))/F195)*1000,"Error")) ->  | G198: =IF(OR(G189="",G190="",G191="",G192="",G197=""),"",IFERROR(((IF(ISERROR(FIND("<",G197,1)),G197,VALUE(SUBSTITUTE(SUBSTITUTE(G197,"<",""), IF(locale_decimal=".", ",","."), IF(locale_decimal=".", ".",",")))))/G195)*1000,"Error")) ->  | H198: =IF(OR(H189="",H190="",H191="",H192="",H197=""),"",IFERROR(((IF(ISERROR(FIND("<",H197,1)),H197,VALUE(SUBSTITUTE(SUBSTITUTE(H197,"<",""), IF(locale_decimal=".", ",","."), IF(locale_decimal=".", ".",",")))))/H195)*1000,"Error")) ->  | I198: =IF(OR(I189="",I190="",I191="",I192="",I197=""),"",IFERROR(((IF(ISERROR(FIND("<",I197,1)),I197,VALUE(SUBSTITUTE(SUBSTITUTE(I197,"<",""), IF(locale_decimal=".", ",","."), IF(locale_decimal=".", ".",",")))))/I195)*1000,"Error")) ->  | J198: =IF(OR(J189="",J190="",J191="",J192="",J197="",$G$7="",$G$7="Direct Read"),"",IFERROR(((IF(ISERROR(FIND("<",J197,1)),J197,VALUE(SUBSTITUTE(SUBSTITUTE(J197,"<",""), IF(locale_decimal=".", ",","."), IF(locale_decimal=".", ".",",")))))/J195)*1000,"Error")) ->  | K198: =IF(OR(K189="",K190="",K191="",K192="",K197="",$G$7="",$G$7="Direct Read"),"",IFERROR(((IF(ISERROR(FIND("<",K197,1)),K197,VALUE(SUBSTITUTE(SUBSTITUTE(K197,"<",""), IF(locale_decimal=".", ",","."), IF(locale_decimal=".", ".",",")))))/K195)*1000,"Error")) ->  | L198: =IF(OR(L189="",L190="",L191="",L192="",L197="",$G$7="",$G$7="Direct Read"),"",IFERROR(((IF(ISERROR(FIND("<",L197,1)),L197,VALUE(SUBSTITUTE(SUBSTITUTE(L197,"<",""), IF(locale_decimal=".", ",","."), IF(locale_decimal=".", ".",",")))))/L195)*1000,"Error")) -> 
C199: OR Laboratory Result [μg/m³] (direct input)
C200: Laboratory Result [μg/m³] (transfer) | D200: =IF(AND(D198="",D199=""),"",VALUE(IF(D199<>"",SUBSTITUTE(SUBSTITUTE(D199,"<",""), IF(locale_decimal=".", ",","."), IF(locale_decimal=".", ".",",")),D198))) -> 
C202: Direct Read Results | D202: PM2.5 [μg/m³] | E202: PM10 [μg/m³] | F202: =IF(G$7="","See Step 2",IF(AND(G$7="Direct Read",G$10=""),"See Step 3",IF(AND(G$7="Direct Read",G$10="mg/m³"),"Carbon Monoxide [mg/m³]",IF(AND(G$7="Direct Read",G$10="ppm"),"Carbon Monoxide [ppm]","")))) -> See Step 2 | G202: =IF(H$7="","See Step 2",IF(AND(H$7="Direct Read",H$10=""),"See Step 3",IF(AND(H$7="Direct Read",H$10="µg/m³"),"Ozone [µg/m³]",IF(AND(H$7="Direct Read",H$10="ppb"),"Ozone [ppb]","")))) -> See Step 2 | H202: =IF(I$7="","See Step 2",IF(AND(I$7="Direct Read",I$10=""),"See Step 3",IF(AND(I$7="Direct Read",I$10="µg/m³"),"Nitrogen Dioxide [µg/m³]",IF(AND(I$7="Direct Read",I$10="ppb"),"Nitrogen Dioxide [ppb]","")))) -> See Step 2
C203: Sampling Time [min]
C204: Median Result
C206: =IF(C185<SUM(LookUpData!$E$61),C185+1,"") ->  | D206: Location Name: | H206: Date sampled: | K206: Commercial Kitchen or Industrial?
C207: Parameter \ Analyte | D207: Formaldehyde | E207: =IF($G$4="","See Step 1",$G$4) -> See Step 1 | F207: Benzene | G207: Acetaldehyde | H207: Naphthalene | I207: Toluene | J207: =IF($G$7="","See Step 2",IF($G$7="Lab","Carbon Monoxide","")) -> See Step 2 | K207: =IF($H$7="","See Step 2",IF($H$7="Lab","Ozone","")) -> See Step 2 | L207: =IF($I$7="","See Step 2",IF($I$7="Lab","Nitrogen Dioxide","")) -> See Step 2 | M207: Notes
C208: ID/Locator in Lab Report
C209: Tube Identifier
C210: Sampling Start Time (HH:MM AM/PM)
C211: Sampling End Time (HH:MM AM/PM)
C212: Start Flow [mL/min]
C213: End Flow [mL/min]
C214: Average Flow [mL/min] | D214: =IF(OR(D210="",D211="",D212="",D213=""),"",AVERAGE(D212:D213)) ->  | J214: =IF(OR(G$7="",G$7="Direct Read"),"",IF(OR(J210="",J211="",J212="",J213=""),"",AVERAGE(J212:J213))) ->  | K214: =IF(OR(H$7="",H$7="Direct Read"),"",IF(OR(K210="",K211="",K212="",K213=""),"",AVERAGE(K212:K213))) ->  | L214: =IF(OR(I$7="",I$7="Direct Read"),"",IF(OR(L210="",L211="",L212="",L213=""),"",AVERAGE(L212:L213))) -> 
C215: Time Elapsed [min] | D215: =IF(OR(D210="",D211="",D212="",D213=""),"",MOD(D211-D210,1)*60*24) ->  | J215: =IF(OR(G$7="",G$7="Direct Read"),"",IF(OR(J210="",J211="",J212="",J213=""),"",MOD(J211-J210,1)*60*24)) ->  | K215: =IF(OR(H$7="",H$7="Direct Read"),"",IF(OR(K210="",K211="",K212="",K213=""),"",MOD(K211-K210,1)*60*24)) ->  | L215: =IF(OR(I$7="",I$7="Direct Read"),"",IF(OR(L210="",L211="",L212="",L213=""),"",MOD(L211-L210,1)*60*24)) -> 
C216: Actual Volume [L] | D216: =IF(OR(D210="",D211="",D212="",D213=""),"",(D214*D215)/1000) ->  | J216: =IF(OR(G$7="",G$7="Direct Read"),"",IF(OR(J210="",J211="",J212="",J213=""),"",(J214*J215)/1000)) ->  | K216: =IF(OR(H$7="",H$7="Direct Read"),"",IF(OR(K210="",K211="",K212="",K213=""),"",(K214*K215)/1000)) ->  | L216: =IF(OR(I$7="",I$7="Direct Read"),"",IF(OR(L210="",L211="",L212="",L213=""),"",(L214*L215)/1000)) -> 
C218: Laboratory Result in mg/tube
C219: Laboratory Result [μg/m³] (calculated) | D219: =IF(OR(D210="",D211="",D212="",D213="",D218=""),"",IFERROR(((IF(ISERROR(FIND("<",D218,1)),D218,VALUE(SUBSTITUTE(SUBSTITUTE(D218,"<",""), IF(locale_decimal=".", ",","."), IF(locale_decimal=".", ".",",")))))/D216)*1000,"Error")) ->  | E219: =IF(OR(E210="",E211="",E212="",E213="",E218="", $G$4=""),"",IFERROR(((IF(ISERROR(FIND("<",E218,1)),E218,VALUE(SUBSTITUTE(SUBSTITUTE(E218,"<",""), IF(locale_decimal=".", ",","."), IF(locale_decimal=".", ".",",")))))/E216)*1000,"Error")) ->  | F219: =IF(OR(F210="",F211="",F212="",F213="",F218=""),"",IFERROR(((IF(ISERROR(FIND("<",F218,1)),F218,VALUE(SUBSTITUTE(SUBSTITUTE(F218,"<",""), IF(locale_decimal=".", ",","."), IF(locale_decimal=".", ".",",")))))/F216)*1000,"Error")) ->  | G219: =IF(OR(G210="",G211="",G212="",G213="",G218=""),"",IFERROR(((IF(ISERROR(FIND("<",G218,1)),G218,VALUE(SUBSTITUTE(SUBSTITUTE(G218,"<",""), IF(locale_decimal=".", ",","."), IF(locale_decimal=".", ".",",")))))/G216)*1000,"Error")) ->  | H219: =IF(OR(H210="",H211="",H212="",H213="",H218=""),"",IFERROR(((IF(ISERROR(FIND("<",H218,1)),H218,VALUE(SUBSTITUTE(SUBSTITUTE(H218,"<",""), IF(locale_decimal=".", ",","."), IF(locale_decimal=".", ".",",")))))/H216)*1000,"Error")) ->  | I219: =IF(OR(I210="",I211="",I212="",I213="",I218=""),"",IFERROR(((IF(ISERROR(FIND("<",I218,1)),I218,VALUE(SUBSTITUTE(SUBSTITUTE(I218,"<",""), IF(locale_decimal=".", ",","."), IF(locale_decimal=".", ".",",")))))/I216)*1000,"Error")) ->  | J219: =IF(OR(J210="",J211="",J212="",J213="",J218="",$G$7="",$G$7="Direct Read"),"",IFERROR(((IF(ISERROR(FIND("<",J218,1)),J218,VALUE(SUBSTITUTE(SUBSTITUTE(J218,"<",""), IF(locale_decimal=".", ",","."), IF(locale_decimal=".", ".",",")))))/J216)*1000,"Error")) ->  | K219: =IF(OR(K210="",K211="",K212="",K213="",K218="",$G$7="",$G$7="Direct Read"),"",IFERROR(((IF(ISERROR(FIND("<",K218,1)),K218,VALUE(SUBSTITUTE(SUBSTITUTE(K218,"<",""), IF(locale_decimal=".", ",","."), IF(locale_decimal=".", ".",",")))))/K216)*1000,"Error")) ->  | L219: =IF(OR(L210="",L211="",L212="",L213="",L218="",$G$7="",$G$7="Direct Read"),"",IFERROR(((IF(ISERROR(FIND("<",L218,1)),L218,VALUE(SUBSTITUTE(SUBSTITUTE(L218,"<",""), IF(locale_decimal=".", ",","."), IF(locale_decimal=".", ".",",")))))/L216)*1000,"Error")) -> 
C220: OR Laboratory Result [μg/m³] (direct input)
C221: Laboratory Result [μg/m³] (transfer) | D221: =IF(AND(D219="",D220=""),"",VALUE(IF(D220<>"",SUBSTITUTE(SUBSTITUTE(D220,"<",""), IF(locale_decimal=".", ",","."), IF(locale_decimal=".", ".",",")),D219))) -> 
C223: Direct Read Results | D223: PM2.5 [μg/m³] | E223: PM10 [μg/m³] | F223: =IF(G$7="","See Step 2",IF(AND(G$7="Direct Read",G$10=""),"See Step 3",IF(AND(G$7="Direct Read",G$10="mg/m³"),"Carbon Monoxide [mg/m³]",IF(AND(G$7="Direct Read",G$10="ppm"),"Carbon Monoxide [ppm]","")))) -> See Step 2 | G223: =IF(H$7="","See Step 2",IF(AND(H$7="Direct Read",H$10=""),"See Step 3",IF(AND(H$7="Direct Read",H$10="µg/m³"),"Ozone [µg/m³]",IF(AND(H$7="Direct Read",H$10="ppb"),"Ozone [ppb]","")))) -> See Step 2 | H223: =IF(I$7="","See Step 2",IF(AND(I$7="Direct Read",I$10=""),"See Step 3",IF(AND(I$7="Direct Read",I$10="µg/m³"),"Nitrogen Dioxide [µg/m³]",IF(AND(I$7="Direct Read",I$10="ppb"),"Nitrogen Dioxide [ppb]","")))) -> See Step 2
C224: Sampling Time [min]
C225: Median Result
C227: =IF(C206<SUM(LookUpData!$E$61),C206+1,"") ->  | D227: Location Name: | H227: Date sampled: | K227: Commercial Kitchen or Industrial?
C228: Parameter \ Analyte | D228: Formaldehyde | E228: =IF($G$4="","See Step 1",$G$4) -> See Step 1 | F228: Benzene | G228: Acetaldehyde | H228: Naphthalene | I228: Toluene | J228: =IF($G$7="","See Step 2",IF($G$7="Lab","Carbon Monoxide","")) -> See Step 2 | K228: =IF($H$7="","See Step 2",IF($H$7="Lab","Ozone","")) -> See Step 2 | L228: =IF($I$7="","See Step 2",IF($I$7="Lab","Nitrogen Dioxide","")) -> See Step 2 | M228: Notes
C229: ID/Locator in Lab Report
C230: Tube Identifier
C231: Sampling Start Time (HH:MM AM/PM)
C232: Sampling End Time (HH:MM AM/PM)
C233: Start Flow [mL/min]
C234: End Flow [mL/min]
... 172 more rows

Sheet 4-Air_v2_WPR (hidden)
C1: 4. Air - WELL v2, WELL Performance Rating
C3: This sheet is used to determine compliance with air feature parts.
C4: Computations happen automatically. No input is required from user. Do not edit this sheet.
L5: =IF(OR(ProjectVersion="v2 and WPR",ProjectVersion="v2 Pilot using Skybridge to v2 and WPR"),INDEX(v2g_to_WPR[WPRName],1,1),"") -> 
F6: A01.1: Meet Thresholds for Particulate Matter | N6: A05.1: Meet Enhanced Thresholds for Particulate Matter
C7: Sample Number | D7: Location / Description | E7: Commercial Kitchen or Industrial? | F7: PM2.5 [μg/m³] | G7: Threshold (with tolerance) | H7: Outcome | I7: PM10 [μg/m³] | J7: Threshold (with tolerance) | K7: Outcome | L7: Total Outcome | N7: PM2.5 [μg/m³] | O7: Tier 1 Threshold (with tolerance) | P7: Tier 1 Outcome | Q7: Tier 2 Threshold (with tolerance) | R7: Tier 2 Outcome | S7: PM10 [μg/m³] | T7: Tier 1 Threshold (with tolerance) | U7: Tier 1 Outcome | V7: Tier 2 Threshold (with tolerance) | W7: Tier 2 Outcome | X7: Tier 1 Total Outcome | Y7: Tier 2 Total Outcome
C8: =IF(AND(ISNUMBER(LookUpData!$E$61)=TRUE,LookUpData!$E$61>0),1,"") ->  | D8: =IF(AND(C8<>"",OFFSET('4-Air Panel_v2_WPR'!$E$17,(ROW()-ROW($F$8))*Airv2relay,0)<>""),OFFSET('4-Air Panel_v2_WPR'!$E$17,(ROW()-ROW($F$8))*Airv2relay,0),"") ->  | E8: =IF(OFFSET('4-Air Panel_v2_WPR'!$L$17,(ROW()-ROW($F$8))*Airv2relay,0)="","",IF(AND(C8<>"",D8<>""),OFFSET('4-Air Panel_v2_WPR'!$L$17,(ROW()-ROW($F$8))*Airv2relay,0),"")) ->  | F8: =IF(OR($C8="",$D8="",$E8=""),"",IF(ISNUMBER(OFFSET('4-Air Panel_v2_WPR'!$D$36,(ROW()-ROW($F$8))*Airv2relay,0))=FALSE,"",OFFSET('4-Air Panel_v2_WPR'!$D$36,(ROW()-ROW($F$8))*Airv2relay,0))) ->  | G8: =IF(OR($C8="",$D8="",$E8=""),"",IF(E8="Yes",INDEX(v2gAirThresholds[Max],3,1)*INDEX(v2gAirThresholds[Percent Tolerance],3,1),INDEX(v2gAirThresholds[Max],1,1)*INDEX(v2gAirThresholds[Percent Tolerance],1,1))) ->  | H8: =IF(OR($C8="",$D8="",$E8="",F8=""),"",IF(F8<=G8,"MET","NOT MET")) ->  | I8: =IF(OR($C8="",$D8="",$E8="",$E8="Yes"),"",IF(ISNUMBER(OFFSET('4-Air Panel_v2_WPR'!$E$36,(ROW()-ROW($F$8))*Airv2relay,0))=FALSE,"",OFFSET('4-Air Panel_v2_WPR'!$E$36,(ROW()-ROW($F$8))*Airv2relay,0))) ->  | J8: =IF(OR(C8="",D8="",E8="",E8="Yes"),"",INDEX(v2gAirThresholds[Max],2,1)*INDEX(v2gAirThresholds[Percent Tolerance],2,1)) ->  | K8: =IF(E8="Yes","N/A",IF(OR($C8="",$D8="",$E8="",I8=""),"",IF(I8<=J8,"MET","NOT MET"))) ->  | L8: =IF(AND(C8<>"",D8<>"",E8="No",F8<>"",I8=""),"",IF(OR($C8="",$D8="",$E8="",F8=""),"",IF(AND(E8="Yes",H8="MET"),"MET",IF(AND(H8="MET",K8="MET"),"MET","NOT MET")))) ->  | N8: =IF(OR($C8="",$D8="",$E8=""),"",IF(ISNUMBER(OFFSET('4-Air Panel_v2_WPR'!$D$36,(ROW()-ROW($F$8))*Airv2relay,0))=FALSE,"",OFFSET('4-Air Panel_v2_WPR'!$D$36,(ROW()-ROW($F$8))*Airv2relay,0))) ->  | O8: =IF(OR($C8="",$D8="",$E8=""),"",INDEX(v2gAirThresholds[Max],4,1)*INDEX(v2gAirThresholds[Percent Tolerance],4,1)) ->  | P8: =IF(OR($C8="",$D8="",$E8="",N8=""),"",IF(N8<=O8,"MET","NOT MET")) ->  | Q8: =IF(OR($C8="",$D8="",$E8=""),"",INDEX(v2gAirThresholds[Max],6,1)*INDEX(v2gAirThresholds[Percent Tolerance],6,1)) ->  | R8: =IF(OR($C8="",$D8="",$E8="",N8=""),"",IF(N8<=Q8,"MET","NOT MET")) ->  | S8: =IF(OR($C8="",$D8="",$E8=""),"",IF(ISNUMBER(OFFSET('4-Air Panel_v2_WPR'!$E$36,(ROW()-ROW($F$8))*Airv2relay,0))=FALSE,"",OFFSET('4-Air Panel_v2_WPR'!$E$36,(ROW()-ROW($F$8))*Airv2relay,0))) ->  | T8: =IF(OR($C8="",$D8="",$E8=""),"",INDEX(v2gAirThresholds[Max],5,1)*INDEX(v2gAirThresholds[Percent Tolerance],5,1)) ->  | U8: =IF(OR($C8="",$D8="",$E8="",S8=""),"",IF(S8<=T8,"MET","NOT MET")) ->  | V8: =IF(OR($C8="",$D8="",$E8=""),"",INDEX(v2gAirThresholds[Max],7,1)*INDEX(v2gAirThresholds[Percent Tolerance],7,1)) ->  | W8: =IF(OR($C8="",$D8="",$E8="",S8=""),"",IF(S8<=V8,"MET","NOT MET")) ->  | X8: =IF(OR($C8="",$N8="",$S8=""),"",IF(AND(P8="MET",U8="MET"),"MET","NOT MET")) ->  | Y8: =IF(OR($C8="",$N8="",$S8=""),"",IF(AND(R8="MET",W8="MET"),"MET","NOT MET")) -> 
C9: =IF(LookUpData!$E$61<=C8,"",C8+1) ->  | D9: =IF(AND(C9<>"",OFFSET('4-Air Panel_v2_WPR'!$E$17,(ROW()-ROW($F$8))*Airv2relay,0)<>""),OFFSET('4-Air Panel_v2_WPR'!$E$17,(ROW()-ROW($F$8))*Airv2relay,0),"") ->  | E9: =IF(OFFSET('4-Air Panel_v2_WPR'!$L$17,(ROW()-ROW($F$8))*Airv2relay,0)="","",IF(AND(C9<>"",D9<>""),OFFSET('4-Air Panel_v2_WPR'!$L$17,(ROW()-ROW($F$8))*Airv2relay,0),"")) ->  | F9: =IF(OR($C9="",$D9="",$E9=""),"",IF(ISNUMBER(OFFSET('4-Air Panel_v2_WPR'!$D$36,(ROW()-ROW($F$8))*Airv2relay,0))=FALSE,"",OFFSET('4-Air Panel_v2_WPR'!$D$36,(ROW()-ROW($F$8))*Airv2relay,0))) ->  | G9: =IF(OR($C9="",$D9="",$E9=""),"",IF(E9="Yes",INDEX(v2gAirThresholds[Max],3,1)*INDEX(v2gAirThresholds[Percent Tolerance],3,1),INDEX(v2gAirThresholds[Max],1,1)*INDEX(v2gAirThresholds[Percent Tolerance],1,1))) ->  | H9: =IF(OR($C9="",$D9="",$E9="",F9=""),"",IF(F9<=G9,"MET","NOT MET")) ->  | I9: =IF(OR($C9="",$D9="",$E9="",$E9="Yes"),"",IF(ISNUMBER(OFFSET('4-Air Panel_v2_WPR'!$E$36,(ROW()-ROW($F$8))*Airv2relay,0))=FALSE,"",OFFSET('4-Air Panel_v2_WPR'!$E$36,(ROW()-ROW($F$8))*Airv2relay,0))) ->  | J9: =IF(OR(C9="",D9="",E9="",E9="Yes"),"",INDEX(v2gAirThresholds[Max],2,1)*INDEX(v2gAirThresholds[Percent Tolerance],2,1)) ->  | K9: =IF(E9="Yes","N/A",IF(OR($C9="",$D9="",$E9="",I9=""),"",IF(I9<=J9,"MET","NOT MET"))) ->  | N9: =IF(OR($C9="",$D9="",$E9=""),"",IF(ISNUMBER(OFFSET('4-Air Panel_v2_WPR'!$D$36,(ROW()-ROW($F$8))*Airv2relay,0))=FALSE,"",OFFSET('4-Air Panel_v2_WPR'!$D$36,(ROW()-ROW($F$8))*Airv2relay,0))) ->  | O9: =IF(OR($C9="",$D9="",$E9=""),"",INDEX(v2gAirThresholds[Max],4,1)*INDEX(v2gAirThresholds[Percent Tolerance],4,1)) ->  | P9: =IF(OR($C9="",$D9="",$E9="",N9=""),"",IF(N9<=O9,"MET","NOT MET")) ->  | Q9: =IF(OR($C9="",$D9="",$E9=""),"",INDEX(v2gAirThresholds[Max],6,1)*INDEX(v2gAirThresholds[Percent Tolerance],6,1)) ->  | R9: =IF(OR($C9="",$D9="",$E9="",N9=""),"",IF(N9<=Q9,"MET","NOT MET")) ->  | S9: =IF(OR($C9="",$D9="",$E9=""),"",IF(ISNUMBER(OFFSET('4-Air Panel_v2_WPR'!$E$36,(ROW()-ROW($F$8))*Airv2relay,0))=FALSE,"",OFFSET('4-Air Panel_v2_WPR'!$E$36,(ROW()-ROW($F$8))*Airv2relay,0))) ->  | T9: =IF(OR($C9="",$D9="",$E9=""),"",INDEX(v2gAirThresholds[Max],5,1)*INDEX(v2gAirThresholds[Percent Tolerance],5,1)) ->  | U9: =IF(OR($C9="",$D9="",$E9="",S9=""),"",IF(S9<=T9,"MET","NOT MET")) ->  | V9: =IF(OR($C9="",$D9="",$E9=""),"",INDEX(v2gAirThresholds[Max],7,1)*INDEX(v2gAirThresholds[Percent Tolerance],7,1)) ->  | W9: =IF(OR($C9="",$D9="",$E9="",S9=""),"",IF(S9<=V9,"MET","NOT MET")) ->  | X9: =IF(OR($C9="",$N9="",$S9=""),"",IF(AND(P9="MET",U9="MET"),"MET","NOT MET")) ->  | Y9: =IF(OR($C9="",$N9="",$S9=""),"",IF(AND(R9="MET",W9="MET"),"MET","NOT MET")) -> 
C10: =IF(LookUpData!$E$61<=C9,"",C9+1) ->  | D10: =IF(AND(C10<>"",OFFSET('4-Air Panel_v2_WPR'!$E$17,(ROW()-ROW($F$8))*Airv2relay,0)<>""),OFFSET('4-Air Panel_v2_WPR'!$E$17,(ROW()-ROW($F$8))*Airv2relay,0),"") ->  | E10: =IF(OFFSET('4-Air Panel_v2_WPR'!$L$17,(ROW()-ROW($F$8))*Airv2relay,0)="","",IF(AND(C10<>"",D10<>""),OFFSET('4-Air Panel_v2_WPR'!$L$17,(ROW()-ROW($F$8))*Airv2relay,0),"")) ->  | F10: =IF(OR($C10="",$D10="",$E10=""),"",IF(ISNUMBER(OFFSET('4-Air Panel_v2_WPR'!$D$36,(ROW()-ROW($F$8))*Airv2relay,0))=FALSE,"",OFFSET('4-Air Panel_v2_WPR'!$D$36,(ROW()-ROW($F$8))*Airv2relay,0))) ->  | G10: =IF(OR($C10="",$D10="",$E10=""),"",IF(E10="Yes",INDEX(v2gAirThresholds[Max],3,1)*INDEX(v2gAirThresholds[Percent Tolerance],3,1),INDEX(v2gAirThresholds[Max],1,1)*INDEX(v2gAirThresholds[Percent Tolerance],1,1))) ->  | I10: =IF(OR($C10="",$D10="",$E10="",$E10="Yes"),"",IF(ISNUMBER(OFFSET('4-Air Panel_v2_WPR'!$E$36,(ROW()-ROW($F$8))*Airv2relay,0))=FALSE,"",OFFSET('4-Air Panel_v2_WPR'!$E$36,(ROW()-ROW($F$8))*Airv2relay,0))) ->  | J10: =IF(OR(C10="",D10="",E10="",E10="Yes"),"",INDEX(v2gAirThresholds[Max],2,1)*INDEX(v2gAirThresholds[Percent Tolerance],2,1)) ->  | N10: =IF(OR($C10="",$D10="",$E10=""),"",IF(ISNUMBER(OFFSET('4-Air Panel_v2_WPR'!$D$36,(ROW()-ROW($F$8))*Airv2relay,0))=FALSE,"",OFFSET('4-Air Panel_v2_WPR'!$D$36,(ROW()-ROW($F$8))*Airv2relay,0))) ->  | O10: =IF(OR($C10="",$D10="",$E10=""),"",INDEX(v2gAirThresholds[Max],4,1)*INDEX(v2gAirThresholds[Percent Tolerance],4,1)) ->  | Q10: =IF(OR($C10="",$D10="",$E10=""),"",INDEX(v2gAirThresholds[Max],6,1)*INDEX(v2gAirThresholds[Percent Tolerance],6,1)) ->  | S10: =IF(OR($C10="",$D10="",$E10=""),"",IF(ISNUMBER(OFFSET('4-Air Panel_v2_WPR'!$E$36,(ROW()-ROW($F$8))*Airv2relay,0))=FALSE,"",OFFSET('4-Air Panel_v2_WPR'!$E$36,(ROW()-ROW($F$8))*Airv2relay,0))) ->  | T10: =IF(OR($C10="",$D10="",$E10=""),"",INDEX(v2gAirThresholds[Max],5,1)*INDEX(v2gAirThresholds[Percent Tolerance],5,1)) ->  | V10: =IF(OR($C10="",$D10="",$E10=""),"",INDEX(v2gAirThresholds[Max],7,1)*INDEX(v2gAirThresholds[Percent Tolerance],7,1)) ->  | X10: =IF(OR($C10="",$N10="",$S10=""),"",IF(AND(P10="MET",U10="MET"),"MET","NOT MET")) -> 
C11: =IF(LookUpData!$E$61<=C10,"",C10+1) ->  | D11: =IF(AND(C11<>"",OFFSET('4-Air Panel_v2_WPR'!$E$17,(ROW()-ROW($F$8))*Airv2relay,0)<>""),OFFSET('4-Air Panel_v2_WPR'!$E$17,(ROW()-ROW($F$8))*Airv2relay,0),"") ->  | E11: =IF(OFFSET('4-Air Panel_v2_WPR'!$L$17,(ROW()-ROW($F$8))*Airv2relay,0)="","",IF(AND(C11<>"",D11<>""),OFFSET('4-Air Panel_v2_WPR'!$L$17,(ROW()-ROW($F$8))*Airv2relay,0),"")) ->  | F11: =IF(OR($C11="",$D11="",$E11=""),"",IF(ISNUMBER(OFFSET('4-Air Panel_v2_WPR'!$D$36,(ROW()-ROW($F$8))*Airv2relay,0))=FALSE,"",OFFSET('4-Air Panel_v2_WPR'!$D$36,(ROW()-ROW($F$8))*Airv2relay,0))) ->  | G11: =IF(OR($C11="",$D11="",$E11=""),"",IF(E11="Yes",INDEX(v2gAirThresholds[Max],3,1)*INDEX(v2gAirThresholds[Percent Tolerance],3,1),INDEX(v2gAirThresholds[Max],1,1)*INDEX(v2gAirThresholds[Percent Tolerance],1,1))) ->  | I11: =IF(OR($C11="",$D11="",$E11="",$E11="Yes"),"",IF(ISNUMBER(OFFSET('4-Air Panel_v2_WPR'!$E$36,(ROW()-ROW($F$8))*Airv2relay,0))=FALSE,"",OFFSET('4-Air Panel_v2_WPR'!$E$36,(ROW()-ROW($F$8))*Airv2relay,0))) ->  | J11: =IF(OR(C11="",D11="",E11="",E11="Yes"),"",INDEX(v2gAirThresholds[Max],2,1)*INDEX(v2gAirThresholds[Percent Tolerance],2,1)) ->  | N11: =IF(OR($C11="",$D11="",$E11=""),"",IF(ISNUMBER(OFFSET('4-Air Panel_v2_WPR'!$D$36,(ROW()-ROW($F$8))*Airv2relay,0))=FALSE,"",OFFSET('4-Air Panel_v2_WPR'!$D$36,(ROW()-ROW($F$8))*Airv2relay,0))) ->  | O11: =IF(OR($C11="",$D11="",$E11=""),"",INDEX(v2gAirThresholds[Max],4,1)*INDEX(v2gAirThresholds[Percent Tolerance],4,1)) ->  | Q11: =IF(OR($C11="",$D11="",$E11=""),"",INDEX(v2gAirThresholds[Max],6,1)*INDEX(v2gAirThresholds[Percent Tolerance],6,1)) ->  | S11: =IF(OR($C11="",$D11="",$E11=""),"",IF(ISNUMBER(OFFSET('4-Air Panel_v2_WPR'!$E$36,(ROW()-ROW($F$8))*Airv2relay,0))=FALSE,"",OFFSET('4-Air Panel_v2_WPR'!$E$36,(ROW()-ROW($F$8))*Airv2relay,0))) ->  | T11: =IF(OR($C11="",$D11="",$E11=""),"",INDEX(v2gAirThresholds[Max],5,1)*INDEX(v2gAirThresholds[Percent Tolerance],5,1)) ->  | V11: =IF(OR($C11="",$D11="",$E11=""),"",INDEX(v2gAirThresholds[Max],7,1)*INDEX(v2gAirThresholds[Percent Tolerance],7,1)) ->  | X11: =IF(OR($C11="",$N11="",$S11=""),"",IF(AND(P11="MET",U11="MET"),"MET","NOT MET")) -> 
C12: =IF(LookUpData!$E$61<=C11,"",C11+1) ->  | D12: =IF(AND(C12<>"",OFFSET('4-Air Panel_v2_WPR'!$E$17,(ROW()-ROW($F$8))*Airv2relay,0)<>""),OFFSET('4-Air Panel_v2_WPR'!$E$17,(ROW()-ROW($F$8))*Airv2relay,0),"") ->  | E12: =IF(OFFSET('4-Air Panel_v2_WPR'!$L$17,(ROW()-ROW($F$8))*Airv2relay,0)="","",IF(AND(C12<>"",D12<>""),OFFSET('4-Air Panel_v2_WPR'!$L$17,(ROW()-ROW($F$8))*Airv2relay,0),"")) ->  | F12: =IF(OR($C12="",$D12="",$E12=""),"",IF(ISNUMBER(OFFSET('4-Air Panel_v2_WPR'!$D$36,(ROW()-ROW($F$8))*Airv2relay,0))=FALSE,"",OFFSET('4-Air Panel_v2_WPR'!$D$36,(ROW()-ROW($F$8))*Airv2relay,0))) ->  | G12: =IF(OR($C12="",$D12="",$E12=""),"",IF(E12="Yes",INDEX(v2gAirThresholds[Max],3,1)*INDEX(v2gAirThresholds[Percent Tolerance],3,1),INDEX(v2gAirThresholds[Max],1,1)*INDEX(v2gAirThresholds[Percent Tolerance],1,1))) ->  | I12: =IF(OR($C12="",$D12="",$E12="",$E12="Yes"),"",IF(ISNUMBER(OFFSET('4-Air Panel_v2_WPR'!$E$36,(ROW()-ROW($F$8))*Airv2relay,0))=FALSE,"",OFFSET('4-Air Panel_v2_WPR'!$E$36,(ROW()-ROW($F$8))*Airv2relay,0))) ->  | J12: =IF(OR(C12="",D12="",E12="",E12="Yes"),"",INDEX(v2gAirThresholds[Max],2,1)*INDEX(v2gAirThresholds[Percent Tolerance],2,1)) ->  | N12: =IF(OR($C12="",$D12="",$E12=""),"",IF(ISNUMBER(OFFSET('4-Air Panel_v2_WPR'!$D$36,(ROW()-ROW($F$8))*Airv2relay,0))=FALSE,"",OFFSET('4-Air Panel_v2_WPR'!$D$36,(ROW()-ROW($F$8))*Airv2relay,0))) ->  | O12: =IF(OR($C12="",$D12="",$E12=""),"",INDEX(v2gAirThresholds[Max],4,1)*INDEX(v2gAirThresholds[Percent Tolerance],4,1)) ->  | Q12: =IF(OR($C12="",$D12="",$E12=""),"",INDEX(v2gAirThresholds[Max],6,1)*INDEX(v2gAirThresholds[Percent Tolerance],6,1)) ->  | S12: =IF(OR($C12="",$D12="",$E12=""),"",IF(ISNUMBER(OFFSET('4-Air Panel_v2_WPR'!$E$36,(ROW()-ROW($F$8))*Airv2relay,0))=FALSE,"",OFFSET('4-Air Panel_v2_WPR'!$E$36,(ROW()-ROW($F$8))*Airv2relay,0))) ->  | T12: =IF(OR($C12="",$D12="",$E12=""),"",INDEX(v2gAirThresholds[Max],5,1)*INDEX(v2gAirThresholds[Percent Tolerance],5,1)) ->  | V12: =IF(OR($C12="",$D12="",$E12=""),"",INDEX(v2gAirThresholds[Max],7,1)*INDEX(v2gAirThresholds[Percent Tolerance],7,1)) ->  | X12: =IF(OR($C12="",$N12="",$S12=""),"",IF(AND(P12="MET",U12="MET"),"MET","NOT MET")) -> 
C13: =IF(LookUpData!$E$61<=C12,"",C12+1) ->  | D13: =IF(AND(C13<>"",OFFSET('4-Air Panel_v2_WPR'!$E$17,(ROW()-ROW($F$8))*Airv2relay,0)<>""),OFFSET('4-Air Panel_v2_WPR'!$E$17,(ROW()-ROW($F$8))*Airv2relay,0),"") ->  | E13: =IF(OFFSET('4-Air Panel_v2_WPR'!$L$17,(ROW()-ROW($F$8))*Airv2relay,0)="","",IF(AND(C13<>"",D13<>""),OFFSET('4-Air Panel_v2_WPR'!$L$17,(ROW()-ROW($F$8))*Airv2relay,0),"")) ->  | F13: =IF(OR($C13="",$D13="",$E13=""),"",IF(ISNUMBER(OFFSET('4-Air Panel_v2_WPR'!$D$36,(ROW()-ROW($F$8))*Airv2relay,0))=FALSE,"",OFFSET('4-Air Panel_v2_WPR'!$D$36,(ROW()-ROW($F$8))*Airv2relay,0))) ->  | G13: =IF(OR($C13="",$D13="",$E13=""),"",IF(E13="Yes",INDEX(v2gAirThresholds[Max],3,1)*INDEX(v2gAirThresholds[Percent Tolerance],3,1),INDEX(v2gAirThresholds[Max],1,1)*INDEX(v2gAirThresholds[Percent Tolerance],1,1))) ->  | I13: =IF(OR($C13="",$D13="",$E13="",$E13="Yes"),"",IF(ISNUMBER(OFFSET('4-Air Panel_v2_WPR'!$E$36,(ROW()-ROW($F$8))*Airv2relay,0))=FALSE,"",OFFSET('4-Air Panel_v2_WPR'!$E$36,(ROW()-ROW($F$8))*Airv2relay,0))) ->  | J13: =IF(OR(C13="",D13="",E13="",E13="Yes"),"",INDEX(v2gAirThresholds[Max],2,1)*INDEX(v2gAirThresholds[Percent Tolerance],2,1)) ->  | N13: =IF(OR($C13="",$D13="",$E13=""),"",IF(ISNUMBER(OFFSET('4-Air Panel_v2_WPR'!$D$36,(ROW()-ROW($F$8))*Airv2relay,0))=FALSE,"",OFFSET('4-Air Panel_v2_WPR'!$D$36,(ROW()-ROW($F$8))*Airv2relay,0))) ->  | O13: =IF(OR($C13="",$D13="",$E13=""),"",INDEX(v2gAirThresholds[Max],4,1)*INDEX(v2gAirThresholds[Percent Tolerance],4,1)) ->  | Q13: =IF(OR($C13="",$D13="",$E13=""),"",INDEX(v2gAirThresholds[Max],6,1)*INDEX(v2gAirThresholds[Percent Tolerance],6,1)) ->  | S13: =IF(OR($C13="",$D13="",$E13=""),"",IF(ISNUMBER(OFFSET('4-Air Panel_v2_WPR'!$E$36,(ROW()-ROW($F$8))*Airv2relay,0))=FALSE,"",OFFSET('4-Air Panel_v2_WPR'!$E$36,(ROW()-ROW($F$8))*Airv2relay,0))) ->  | T13: =IF(OR($C13="",$D13="",$E13=""),"",INDEX(v2gAirThresholds[Max],5,1)*INDEX(v2gAirThresholds[Percent Tolerance],5,1)) ->  | V13: =IF(OR($C13="",$D13="",$E13=""),"",INDEX(v2gAirThresholds[Max],7,1)*INDEX(v2gAirThresholds[Percent Tolerance],7,1)) ->  | X13: =IF(OR($C13="",$N13="",$S13=""),"",IF(AND(P13="MET",U13="MET"),"MET","NOT MET")) -> 
C14: =IF(LookUpData!$E$61<=C13,"",C13+1) ->  | D14: =IF(AND(C14<>"",OFFSET('4-Air Panel_v2_WPR'!$E$17,(ROW()-ROW($F$8))*Airv2relay,0)<>""),OFFSET('4-Air Panel_v2_WPR'!$E$17,(ROW()-ROW($F$8))*Airv2relay,0),"") ->  | E14: =IF(OFFSET('4-Air Panel_v2_WPR'!$L$17,(ROW()-ROW($F$8))*Airv2relay,0)="","",IF(AND(C14<>"",D14<>""),OFFSET('4-Air Panel_v2_WPR'!$L$17,(ROW()-ROW($F$8))*Airv2relay,0),"")) ->  | F14: =IF(OR($C14="",$D14="",$E14=""),"",IF(ISNUMBER(OFFSET('4-Air Panel_v2_WPR'!$D$36,(ROW()-ROW($F$8))*Airv2relay,0))=FALSE,"",OFFSET('4-Air Panel_v2_WPR'!$D$36,(ROW()-ROW($F$8))*Airv2relay,0))) ->  | G14: =IF(OR($C14="",$D14="",$E14=""),"",IF(E14="Yes",INDEX(v2gAirThresholds[Max],3,1)*INDEX(v2gAirThresholds[Percent Tolerance],3,1),INDEX(v2gAirThresholds[Max],1,1)*INDEX(v2gAirThresholds[Percent Tolerance],1,1))) ->  | I14: =IF(OR($C14="",$D14="",$E14="",$E14="Yes"),"",IF(ISNUMBER(OFFSET('4-Air Panel_v2_WPR'!$E$36,(ROW()-ROW($F$8))*Airv2relay,0))=FALSE,"",OFFSET('4-Air Panel_v2_WPR'!$E$36,(ROW()-ROW($F$8))*Airv2relay,0))) ->  | J14: =IF(OR(C14="",D14="",E14="",E14="Yes"),"",INDEX(v2gAirThresholds[Max],2,1)*INDEX(v2gAirThresholds[Percent Tolerance],2,1)) ->  | N14: =IF(OR($C14="",$D14="",$E14=""),"",IF(ISNUMBER(OFFSET('4-Air Panel_v2_WPR'!$D$36,(ROW()-ROW($F$8))*Airv2relay,0))=FALSE,"",OFFSET('4-Air Panel_v2_WPR'!$D$36,(ROW()-ROW($F$8))*Airv2relay,0))) ->  | O14: =IF(OR($C14="",$D14="",$E14=""),"",INDEX(v2gAirThresholds[Max],4,1)*INDEX(v2gAirThresholds[Percent Tolerance],4,1)) ->  | Q14: =IF(OR($C14="",$D14="",$E14=""),"",INDEX(v2gAirThresholds[Max],6,1)*INDEX(v2gAirThresholds[Percent Tolerance],6,1)) ->  | S14: =IF(OR($C14="",$D14="",$E14=""),"",IF(ISNUMBER(OFFSET('4-Air Panel_v2_WPR'!$E$36,(ROW()-ROW($F$8))*Airv2relay,0))=FALSE,"",OFFSET('4-Air Panel_v2_WPR'!$E$36,(ROW()-ROW($F$8))*Airv2relay,0))) ->  | T14: =IF(OR($C14="",$D14="",$E14=""),"",INDEX(v2gAirThresholds[Max],5,1)*INDEX(v2gAirThresholds[Percent Tolerance],5,1)) ->  | V14: =IF(OR($C14="",$D14="",$E14=""),"",INDEX(v2gAirThresholds[Max],7,1)*INDEX(v2gAirThresholds[Percent Tolerance],7,1)) -> 
C15: =IF(LookUpData!$E$61<=C14,"",C14+1) ->  | D15: =IF(AND(C15<>"",OFFSET('4-Air Panel_v2_WPR'!$E$17,(ROW()-ROW($F$8))*Airv2relay,0)<>""),OFFSET('4-Air Panel_v2_WPR'!$E$17,(ROW()-ROW($F$8))*Airv2relay,0),"") ->  | E15: =IF(OFFSET('4-Air Panel_v2_WPR'!$L$17,(ROW()-ROW($F$8))*Airv2relay,0)="","",IF(AND(C15<>"",D15<>""),OFFSET('4-Air Panel_v2_WPR'!$L$17,(ROW()-ROW($F$8))*Airv2relay,0),"")) ->  | F15: =IF(OR($C15="",$D15="",$E15=""),"",IF(ISNUMBER(OFFSET('4-Air Panel_v2_WPR'!$D$36,(ROW()-ROW($F$8))*Airv2relay,0))=FALSE,"",OFFSET('4-Air Panel_v2_WPR'!$D$36,(ROW()-ROW($F$8))*Airv2relay,0))) ->  | G15: =IF(OR($C15="",$D15="",$E15=""),"",IF(E15="Yes",INDEX(v2gAirThresholds[Max],3,1)*INDEX(v2gAirThresholds[Percent Tolerance],3,1),INDEX(v2gAirThresholds[Max],1,1)*INDEX(v2gAirThresholds[Percent Tolerance],1,1))) ->  | I15: =IF(OR($C15="",$D15="",$E15="",$E15="Yes"),"",IF(ISNUMBER(OFFSET('4-Air Panel_v2_WPR'!$E$36,(ROW()-ROW($F$8))*Airv2relay,0))=FALSE,"",OFFSET('4-Air Panel_v2_WPR'!$E$36,(ROW()-ROW($F$8))*Airv2relay,0))) ->  | J15: =IF(OR(C15="",D15="",E15="",E15="Yes"),"",INDEX(v2gAirThresholds[Max],2,1)*INDEX(v2gAirThresholds[Percent Tolerance],2,1)) ->  | N15: =IF(OR($C15="",$D15="",$E15=""),"",IF(ISNUMBER(OFFSET('4-Air Panel_v2_WPR'!$D$36,(ROW()-ROW($F$8))*Airv2relay,0))=FALSE,"",OFFSET('4-Air Panel_v2_WPR'!$D$36,(ROW()-ROW($F$8))*Airv2relay,0))) ->  | O15: =IF(OR($C15="",$D15="",$E15=""),"",INDEX(v2gAirThresholds[Max],4,1)*INDEX(v2gAirThresholds[Percent Tolerance],4,1)) ->  | Q15: =IF(OR($C15="",$D15="",$E15=""),"",INDEX(v2gAirThresholds[Max],6,1)*INDEX(v2gAirThresholds[Percent Tolerance],6,1)) ->  | S15: =IF(OR($C15="",$D15="",$E15=""),"",IF(ISNUMBER(OFFSET('4-Air Panel_v2_WPR'!$E$36,(ROW()-ROW($F$8))*Airv2relay,0))=FALSE,"",OFFSET('4-Air Panel_v2_WPR'!$E$36,(ROW()-ROW($F$8))*Airv2relay,0))) ->  | T15: =IF(OR($C15="",$D15="",$E15=""),"",INDEX(v2gAirThresholds[Max],5,1)*INDEX(v2gAirThresholds[Percent Tolerance],5,1)) ->  | V15: =IF(OR($C15="",$D15="",$E15=""),"",INDEX(v2gAirThresholds[Max],7,1)*INDEX(v2gAirThresholds[Percent Tolerance],7,1)) -> 
C16: =IF(LookUpData!$E$61<=C15,"",C15+1) ->  | D16: =IF(AND(C16<>"",OFFSET('4-Air Panel_v2_WPR'!$E$17,(ROW()-ROW($F$8))*Airv2relay,0)<>""),OFFSET('4-Air Panel_v2_WPR'!$E$17,(ROW()-ROW($F$8))*Airv2relay,0),"") ->  | E16: =IF(OFFSET('4-Air Panel_v2_WPR'!$L$17,(ROW()-ROW($F$8))*Airv2relay,0)="","",IF(AND(C16<>"",D16<>""),OFFSET('4-Air Panel_v2_WPR'!$L$17,(ROW()-ROW($F$8))*Airv2relay,0),"")) ->  | F16: =IF(OR($C16="",$D16="",$E16=""),"",IF(ISNUMBER(OFFSET('4-Air Panel_v2_WPR'!$D$36,(ROW()-ROW($F$8))*Airv2relay,0))=FALSE,"",OFFSET('4-Air Panel_v2_WPR'!$D$36,(ROW()-ROW($F$8))*Airv2relay,0))) ->  | G16: =IF(OR($C16="",$D16="",$E16=""),"",IF(E16="Yes",INDEX(v2gAirThresholds[Max],3,1)*INDEX(v2gAirThresholds[Percent Tolerance],3,1),INDEX(v2gAirThresholds[Max],1,1)*INDEX(v2gAirThresholds[Percent Tolerance],1,1))) ->  | I16: =IF(OR($C16="",$D16="",$E16="",$E16="Yes"),"",IF(ISNUMBER(OFFSET('4-Air Panel_v2_WPR'!$E$36,(ROW()-ROW($F$8))*Airv2relay,0))=FALSE,"",OFFSET('4-Air Panel_v2_WPR'!$E$36,(ROW()-ROW($F$8))*Airv2relay,0))) ->  | J16: =IF(OR(C16="",D16="",E16="",E16="Yes"),"",INDEX(v2gAirThresholds[Max],2,1)*INDEX(v2gAirThresholds[Percent Tolerance],2,1)) ->  | N16: =IF(OR($C16="",$D16="",$E16=""),"",IF(ISNUMBER(OFFSET('4-Air Panel_v2_WPR'!$D$36,(ROW()-ROW($F$8))*Airv2relay,0))=FALSE,"",OFFSET('4-Air Panel_v2_WPR'!$D$36,(ROW()-ROW($F$8))*Airv2relay,0))) ->  | O16: =IF(OR($C16="",$D16="",$E16=""),"",INDEX(v2gAirThresholds[Max],4,1)*INDEX(v2gAirThresholds[Percent Tolerance],4,1)) ->  | Q16: =IF(OR($C16="",$D16="",$E16=""),"",INDEX(v2gAirThresholds[Max],6,1)*INDEX(v2gAirThresholds[Percent Tolerance],6,1)) ->  | S16: =IF(OR($C16="",$D16="",$E16=""),"",IF(ISNUMBER(OFFSET('4-Air Panel_v2_WPR'!$E$36,(ROW()-ROW($F$8))*Airv2relay,0))=FALSE,"",OFFSET('4-Air Panel_v2_WPR'!$E$36,(ROW()-ROW($F$8))*Airv2relay,0))) ->  | T16: =IF(OR($C16="",$D16="",$E16=""),"",INDEX(v2gAirThresholds[Max],5,1)*INDEX(v2gAirThresholds[Percent Tolerance],5,1)) ->  | V16: =IF(OR($C16="",$D16="",$E16=""),"",INDEX(v2gAirThresholds[Max],7,1)*INDEX(v2gAirThresholds[Percent Tolerance],7,1)) -> 
C17: =IF(LookUpData!$E$61<=C16,"",C16+1) ->  | D17: =IF(AND(C17<>"",OFFSET('4-Air Panel_v2_WPR'!$E$17,(ROW()-ROW($F$8))*Airv2relay,0)<>""),OFFSET('4-Air Panel_v2_WPR'!$E$17,(ROW()-ROW($F$8))*Airv2relay,0),"") ->  | E17: =IF(OFFSET('4-Air Panel_v2_WPR'!$L$17,(ROW()-ROW($F$8))*Airv2relay,0)="","",IF(AND(C17<>"",D17<>""),OFFSET('4-Air Panel_v2_WPR'!$L$17,(ROW()-ROW($F$8))*Airv2relay,0),"")) ->  | F17: =IF(OR($C17="",$D17="",$E17=""),"",IF(ISNUMBER(OFFSET('4-Air Panel_v2_WPR'!$D$36,(ROW()-ROW($F$8))*Airv2relay,0))=FALSE,"",OFFSET('4-Air Panel_v2_WPR'!$D$36,(ROW()-ROW($F$8))*Airv2relay,0))) ->  | G17: =IF(OR($C17="",$D17="",$E17=""),"",IF(E17="Yes",INDEX(v2gAirThresholds[Max],3,1)*INDEX(v2gAirThresholds[Percent Tolerance],3,1),INDEX(v2gAirThresholds[Max],1,1)*INDEX(v2gAirThresholds[Percent Tolerance],1,1))) ->  | I17: =IF(OR($C17="",$D17="",$E17="",$E17="Yes"),"",IF(ISNUMBER(OFFSET('4-Air Panel_v2_WPR'!$E$36,(ROW()-ROW($F$8))*Airv2relay,0))=FALSE,"",OFFSET('4-Air Panel_v2_WPR'!$E$36,(ROW()-ROW($F$8))*Airv2relay,0))) ->  | J17: =IF(OR(C17="",D17="",E17="",E17="Yes"),"",INDEX(v2gAirThresholds[Max],2,1)*INDEX(v2gAirThresholds[Percent Tolerance],2,1)) ->  | N17: =IF(OR($C17="",$D17="",$E17=""),"",IF(ISNUMBER(OFFSET('4-Air Panel_v2_WPR'!$D$36,(ROW()-ROW($F$8))*Airv2relay,0))=FALSE,"",OFFSET('4-Air Panel_v2_WPR'!$D$36,(ROW()-ROW($F$8))*Airv2relay,0))) ->  | O17: =IF(OR($C17="",$D17="",$E17=""),"",INDEX(v2gAirThresholds[Max],4,1)*INDEX(v2gAirThresholds[Percent Tolerance],4,1)) ->  | Q17: =IF(OR($C17="",$D17="",$E17=""),"",INDEX(v2gAirThresholds[Max],6,1)*INDEX(v2gAirThresholds[Percent Tolerance],6,1)) ->  | S17: =IF(OR($C17="",$D17="",$E17=""),"",IF(ISNUMBER(OFFSET('4-Air Panel_v2_WPR'!$E$36,(ROW()-ROW($F$8))*Airv2relay,0))=FALSE,"",OFFSET('4-Air Panel_v2_WPR'!$E$36,(ROW()-ROW($F$8))*Airv2relay,0))) ->  | T17: =IF(OR($C17="",$D17="",$E17=""),"",INDEX(v2gAirThresholds[Max],5,1)*INDEX(v2gAirThresholds[Percent Tolerance],5,1)) ->  | V17: =IF(OR($C17="",$D17="",$E17=""),"",INDEX(v2gAirThresholds[Max],7,1)*INDEX(v2gAirThresholds[Percent Tolerance],7,1)) -> 
C18: =IF(LookUpData!$E$61<=C17,"",C17+1) ->  | D18: =IF(AND(C18<>"",OFFSET('4-Air Panel_v2_WPR'!$E$17,(ROW()-ROW($F$8))*Airv2relay,0)<>""),OFFSET('4-Air Panel_v2_WPR'!$E$17,(ROW()-ROW($F$8))*Airv2relay,0),"") ->  | E18: =IF(OFFSET('4-Air Panel_v2_WPR'!$L$17,(ROW()-ROW($F$8))*Airv2relay,0)="","",IF(AND(C18<>"",D18<>""),OFFSET('4-Air Panel_v2_WPR'!$L$17,(ROW()-ROW($F$8))*Airv2relay,0),"")) ->  | F18: =IF(OR($C18="",$D18="",$E18=""),"",IF(ISNUMBER(OFFSET('4-Air Panel_v2_WPR'!$D$36,(ROW()-ROW($F$8))*Airv2relay,0))=FALSE,"",OFFSET('4-Air Panel_v2_WPR'!$D$36,(ROW()-ROW($F$8))*Airv2relay,0))) ->  | G18: =IF(OR($C18="",$D18="",$E18=""),"",IF(E18="Yes",INDEX(v2gAirThresholds[Max],3,1)*INDEX(v2gAirThresholds[Percent Tolerance],3,1),INDEX(v2gAirThresholds[Max],1,1)*INDEX(v2gAirThresholds[Percent Tolerance],1,1))) ->  | I18: =IF(OR($C18="",$D18="",$E18="",$E18="Yes"),"",IF(ISNUMBER(OFFSET('4-Air Panel_v2_WPR'!$E$36,(ROW()-ROW($F$8))*Airv2relay,0))=FALSE,"",OFFSET('4-Air Panel_v2_WPR'!$E$36,(ROW()-ROW($F$8))*Airv2relay,0))) ->  | J18: =IF(OR(C18="",D18="",E18="",E18="Yes"),"",INDEX(v2gAirThresholds[Max],2,1)*INDEX(v2gAirThresholds[Percent Tolerance],2,1)) ->  | N18: =IF(OR($C18="",$D18="",$E18=""),"",IF(ISNUMBER(OFFSET('4-Air Panel_v2_WPR'!$D$36,(ROW()-ROW($F$8))*Airv2relay,0))=FALSE,"",OFFSET('4-Air Panel_v2_WPR'!$D$36,(ROW()-ROW($F$8))*Airv2relay,0))) ->  | O18: =IF(OR($C18="",$D18="",$E18=""),"",INDEX(v2gAirThresholds[Max],4,1)*INDEX(v2gAirThresholds[Percent Tolerance],4,1)) ->  | Q18: =IF(OR($C18="",$D18="",$E18=""),"",INDEX(v2gAirThresholds[Max],6,1)*INDEX(v2gAirThresholds[Percent Tolerance],6,1)) ->  | S18: =IF(OR($C18="",$D18="",$E18=""),"",IF(ISNUMBER(OFFSET('4-Air Panel_v2_WPR'!$E$36,(ROW()-ROW($F$8))*Airv2relay,0))=FALSE,"",OFFSET('4-Air Panel_v2_WPR'!$E$36,(ROW()-ROW($F$8))*Airv2relay,0))) ->  | T18: =IF(OR($C18="",$D18="",$E18=""),"",INDEX(v2gAirThresholds[Max],5,1)*INDEX(v2gAirThresholds[Percent Tolerance],5,1)) ->  | V18: =IF(OR($C18="",$D18="",$E18=""),"",INDEX(v2gAirThresholds[Max],7,1)*INDEX(v2gAirThresholds[Percent Tolerance],7,1)) -> 
C19: =IF(LookUpData!$E$61<=C18,"",C18+1) ->  | D19: =IF(AND(C19<>"",OFFSET('4-Air Panel_v2_WPR'!$E$17,(ROW()-ROW($F$8))*Airv2relay,0)<>""),OFFSET('4-Air Panel_v2_WPR'!$E$17,(ROW()-ROW($F$8))*Airv2relay,0),"") ->  | E19: =IF(OFFSET('4-Air Panel_v2_WPR'!$L$17,(ROW()-ROW($F$8))*Airv2relay,0)="","",IF(AND(C19<>"",D19<>""),OFFSET('4-Air Panel_v2_WPR'!$L$17,(ROW()-ROW($F$8))*Airv2relay,0),"")) ->  | F19: =IF(OR($C19="",$D19="",$E19=""),"",IF(ISNUMBER(OFFSET('4-Air Panel_v2_WPR'!$D$36,(ROW()-ROW($F$8))*Airv2relay,0))=FALSE,"",OFFSET('4-Air Panel_v2_WPR'!$D$36,(ROW()-ROW($F$8))*Airv2relay,0))) ->  | G19: =IF(OR($C19="",$D19="",$E19=""),"",IF(E19="Yes",INDEX(v2gAirThresholds[Max],3,1)*INDEX(v2gAirThresholds[Percent Tolerance],3,1),INDEX(v2gAirThresholds[Max],1,1)*INDEX(v2gAirThresholds[Percent Tolerance],1,1))) ->  | I19: =IF(OR($C19="",$D19="",$E19="",$E19="Yes"),"",IF(ISNUMBER(OFFSET('4-Air Panel_v2_WPR'!$E$36,(ROW()-ROW($F$8))*Airv2relay,0))=FALSE,"",OFFSET('4-Air Panel_v2_WPR'!$E$36,(ROW()-ROW($F$8))*Airv2relay,0))) ->  | J19: =IF(OR(C19="",D19="",E19="",E19="Yes"),"",INDEX(v2gAirThresholds[Max],2,1)*INDEX(v2gAirThresholds[Percent Tolerance],2,1)) ->  | N19: =IF(OR($C19="",$D19="",$E19=""),"",IF(ISNUMBER(OFFSET('4-Air Panel_v2_WPR'!$D$36,(ROW()-ROW($F$8))*Airv2relay,0))=FALSE,"",OFFSET('4-Air Panel_v2_WPR'!$D$36,(ROW()-ROW($F$8))*Airv2relay,0))) ->  | O19: =IF(OR($C19="",$D19="",$E19=""),"",INDEX(v2gAirThresholds[Max],4,1)*INDEX(v2gAirThresholds[Percent Tolerance],4,1)) ->  | Q19: =IF(OR($C19="",$D19="",$E19=""),"",INDEX(v2gAirThresholds[Max],6,1)*INDEX(v2gAirThresholds[Percent Tolerance],6,1)) ->  | S19: =IF(OR($C19="",$D19="",$E19=""),"",IF(ISNUMBER(OFFSET('4-Air Panel_v2_WPR'!$E$36,(ROW()-ROW($F$8))*Airv2relay,0))=FALSE,"",OFFSET('4-Air Panel_v2_WPR'!$E$36,(ROW()-ROW($F$8))*Airv2relay,0))) ->  | T19: =IF(OR($C19="",$D19="",$E19=""),"",INDEX(v2gAirThresholds[Max],5,1)*INDEX(v2gAirThresholds[Percent Tolerance],5,1)) ->  | V19: =IF(OR($C19="",$D19="",$E19=""),"",INDEX(v2gAirThresholds[Max],7,1)*INDEX(v2gAirThresholds[Percent Tolerance],7,1)) -> 
C20: =IF(LookUpData!$E$61<=C19,"",C19+1) ->  | D20: =IF(AND(C20<>"",OFFSET('4-Air Panel_v2_WPR'!$E$17,(ROW()-ROW($F$8))*Airv2relay,0)<>""),OFFSET('4-Air Panel_v2_WPR'!$E$17,(ROW()-ROW($F$8))*Airv2relay,0),"") ->  | E20: =IF(OFFSET('4-Air Panel_v2_WPR'!$L$17,(ROW()-ROW($F$8))*Airv2relay,0)="","",IF(AND(C20<>"",D20<>""),OFFSET('4-Air Panel_v2_WPR'!$L$17,(ROW()-ROW($F$8))*Airv2relay,0),"")) ->  | F20: =IF(OR($C20="",$D20="",$E20=""),"",IF(ISNUMBER(OFFSET('4-Air Panel_v2_WPR'!$D$36,(ROW()-ROW($F$8))*Airv2relay,0))=FALSE,"",OFFSET('4-Air Panel_v2_WPR'!$D$36,(ROW()-ROW($F$8))*Airv2relay,0))) ->  | G20: =IF(OR($C20="",$D20="",$E20=""),"",IF(E20="Yes",INDEX(v2gAirThresholds[Max],3,1)*INDEX(v2gAirThresholds[Percent Tolerance],3,1),INDEX(v2gAirThresholds[Max],1,1)*INDEX(v2gAirThresholds[Percent Tolerance],1,1))) ->  | I20: =IF(OR($C20="",$D20="",$E20="",$E20="Yes"),"",IF(ISNUMBER(OFFSET('4-Air Panel_v2_WPR'!$E$36,(ROW()-ROW($F$8))*Airv2relay,0))=FALSE,"",OFFSET('4-Air Panel_v2_WPR'!$E$36,(ROW()-ROW($F$8))*Airv2relay,0))) ->  | J20: =IF(OR(C20="",D20="",E20="",E20="Yes"),"",INDEX(v2gAirThresholds[Max],2,1)*INDEX(v2gAirThresholds[Percent Tolerance],2,1)) ->  | N20: =IF(OR($C20="",$D20="",$E20=""),"",IF(ISNUMBER(OFFSET('4-Air Panel_v2_WPR'!$D$36,(ROW()-ROW($F$8))*Airv2relay,0))=FALSE,"",OFFSET('4-Air Panel_v2_WPR'!$D$36,(ROW()-ROW($F$8))*Airv2relay,0))) ->  | O20: =IF(OR($C20="",$D20="",$E20=""),"",INDEX(v2gAirThresholds[Max],4,1)*INDEX(v2gAirThresholds[Percent Tolerance],4,1)) ->  | Q20: =IF(OR($C20="",$D20="",$E20=""),"",INDEX(v2gAirThresholds[Max],6,1)*INDEX(v2gAirThresholds[Percent Tolerance],6,1)) ->  | S20: =IF(OR($C20="",$D20="",$E20=""),"",IF(ISNUMBER(OFFSET('4-Air Panel_v2_WPR'!$E$36,(ROW()-ROW($F$8))*Airv2relay,0))=FALSE,"",OFFSET('4-Air Panel_v2_WPR'!$E$36,(ROW()-ROW($F$8))*Airv2relay,0))) ->  | T20: =IF(OR($C20="",$D20="",$E20=""),"",INDEX(v2gAirThresholds[Max],5,1)*INDEX(v2gAirThresholds[Percent Tolerance],5,1)) ->  | V20: =IF(OR($C20="",$D20="",$E20=""),"",INDEX(v2gAirThresholds[Max],7,1)*INDEX(v2gAirThresholds[Percent Tolerance],7,1)) -> 
C21: =IF(LookUpData!$E$61<=C20,"",C20+1) ->  | D21: =IF(AND(C21<>"",OFFSET('4-Air Panel_v2_WPR'!$E$17,(ROW()-ROW($F$8))*Airv2relay,0)<>""),OFFSET('4-Air Panel_v2_WPR'!$E$17,(ROW()-ROW($F$8))*Airv2relay,0),"") ->  | E21: =IF(OFFSET('4-Air Panel_v2_WPR'!$L$17,(ROW()-ROW($F$8))*Airv2relay,0)="","",IF(AND(C21<>"",D21<>""),OFFSET('4-Air Panel_v2_WPR'!$L$17,(ROW()-ROW($F$8))*Airv2relay,0),"")) ->  | F21: =IF(OR($C21="",$D21="",$E21=""),"",IF(ISNUMBER(OFFSET('4-Air Panel_v2_WPR'!$D$36,(ROW()-ROW($F$8))*Airv2relay,0))=FALSE,"",OFFSET('4-Air Panel_v2_WPR'!$D$36,(ROW()-ROW($F$8))*Airv2relay,0))) ->  | G21: =IF(OR($C21="",$D21="",$E21=""),"",IF(E21="Yes",INDEX(v2gAirThresholds[Max],3,1)*INDEX(v2gAirThresholds[Percent Tolerance],3,1),INDEX(v2gAirThresholds[Max],1,1)*INDEX(v2gAirThresholds[Percent Tolerance],1,1))) ->  | I21: =IF(OR($C21="",$D21="",$E21="",$E21="Yes"),"",IF(ISNUMBER(OFFSET('4-Air Panel_v2_WPR'!$E$36,(ROW()-ROW($F$8))*Airv2relay,0))=FALSE,"",OFFSET('4-Air Panel_v2_WPR'!$E$36,(ROW()-ROW($F$8))*Airv2relay,0))) ->  | J21: =IF(OR(C21="",D21="",E21="",E21="Yes"),"",INDEX(v2gAirThresholds[Max],2,1)*INDEX(v2gAirThresholds[Percent Tolerance],2,1)) ->  | N21: =IF(OR($C21="",$D21="",$E21=""),"",IF(ISNUMBER(OFFSET('4-Air Panel_v2_WPR'!$D$36,(ROW()-ROW($F$8))*Airv2relay,0))=FALSE,"",OFFSET('4-Air Panel_v2_WPR'!$D$36,(ROW()-ROW($F$8))*Airv2relay,0))) ->  | O21: =IF(OR($C21="",$D21="",$E21=""),"",INDEX(v2gAirThresholds[Max],4,1)*INDEX(v2gAirThresholds[Percent Tolerance],4,1)) ->  | Q21: =IF(OR($C21="",$D21="",$E21=""),"",INDEX(v2gAirThresholds[Max],6,1)*INDEX(v2gAirThresholds[Percent Tolerance],6,1)) ->  | S21: =IF(OR($C21="",$D21="",$E21=""),"",IF(ISNUMBER(OFFSET('4-Air Panel_v2_WPR'!$E$36,(ROW()-ROW($F$8))*Airv2relay,0))=FALSE,"",OFFSET('4-Air Panel_v2_WPR'!$E$36,(ROW()-ROW($F$8))*Airv2relay,0))) ->  | T21: =IF(OR($C21="",$D21="",$E21=""),"",INDEX(v2gAirThresholds[Max],5,1)*INDEX(v2gAirThresholds[Percent Tolerance],5,1)) ->  | V21: =IF(OR($C21="",$D21="",$E21=""),"",INDEX(v2gAirThresholds[Max],7,1)*INDEX(v2gAirThresholds[Percent Tolerance],7,1)) -> 
C22: =IF(LookUpData!$E$61<=C21,"",C21+1) ->  | D22: =IF(AND(C22<>"",OFFSET('4-Air Panel_v2_WPR'!$E$17,(ROW()-ROW($F$8))*Airv2relay,0)<>""),OFFSET('4-Air Panel_v2_WPR'!$E$17,(ROW()-ROW($F$8))*Airv2relay,0),"") ->  | E22: =IF(OFFSET('4-Air Panel_v2_WPR'!$L$17,(ROW()-ROW($F$8))*Airv2relay,0)="","",IF(AND(C22<>"",D22<>""),OFFSET('4-Air Panel_v2_WPR'!$L$17,(ROW()-ROW($F$8))*Airv2relay,0),"")) ->  | F22: =IF(OR($C22="",$D22="",$E22=""),"",IF(ISNUMBER(OFFSET('4-Air Panel_v2_WPR'!$D$36,(ROW()-ROW($F$8))*Airv2relay,0))=FALSE,"",OFFSET('4-Air Panel_v2_WPR'!$D$36,(ROW()-ROW($F$8))*Airv2relay,0))) ->  | G22: =IF(OR($C22="",$D22="",$E22=""),"",IF(E22="Yes",INDEX(v2gAirThresholds[Max],3,1)*INDEX(v2gAirThresholds[Percent Tolerance],3,1),INDEX(v2gAirThresholds[Max],1,1)*INDEX(v2gAirThresholds[Percent Tolerance],1,1))) ->  | I22: =IF(OR($C22="",$D22="",$E22="",$E22="Yes"),"",IF(ISNUMBER(OFFSET('4-Air Panel_v2_WPR'!$E$36,(ROW()-ROW($F$8))*Airv2relay,0))=FALSE,"",OFFSET('4-Air Panel_v2_WPR'!$E$36,(ROW()-ROW($F$8))*Airv2relay,0))) ->  | J22: =IF(OR(C22="",D22="",E22="",E22="Yes"),"",INDEX(v2gAirThresholds[Max],2,1)*INDEX(v2gAirThresholds[Percent Tolerance],2,1)) ->  | N22: =IF(OR($C22="",$D22="",$E22=""),"",IF(ISNUMBER(OFFSET('4-Air Panel_v2_WPR'!$D$36,(ROW()-ROW($F$8))*Airv2relay,0))=FALSE,"",OFFSET('4-Air Panel_v2_WPR'!$D$36,(ROW()-ROW($F$8))*Airv2relay,0))) ->  | O22: =IF(OR($C22="",$D22="",$E22=""),"",INDEX(v2gAirThresholds[Max],4,1)*INDEX(v2gAirThresholds[Percent Tolerance],4,1)) ->  | Q22: =IF(OR($C22="",$D22="",$E22=""),"",INDEX(v2gAirThresholds[Max],6,1)*INDEX(v2gAirThresholds[Percent Tolerance],6,1)) ->  | S22: =IF(OR($C22="",$D22="",$E22=""),"",IF(ISNUMBER(OFFSET('4-Air Panel_v2_WPR'!$E$36,(ROW()-ROW($F$8))*Airv2relay,0))=FALSE,"",OFFSET('4-Air Panel_v2_WPR'!$E$36,(ROW()-ROW($F$8))*Airv2relay,0))) ->  | T22: =IF(OR($C22="",$D22="",$E22=""),"",INDEX(v2gAirThresholds[Max],5,1)*INDEX(v2gAirThresholds[Percent Tolerance],5,1)) ->  | V22: =IF(OR($C22="",$D22="",$E22=""),"",INDEX(v2gAirThresholds[Max],7,1)*INDEX(v2gAirThresholds[Percent Tolerance],7,1)) -> 
C23: =IF(LookUpData!$E$61<=C22,"",C22+1) ->  | D23: =IF(AND(C23<>"",OFFSET('4-Air Panel_v2_WPR'!$E$17,(ROW()-ROW($F$8))*Airv2relay,0)<>""),OFFSET('4-Air Panel_v2_WPR'!$E$17,(ROW()-ROW($F$8))*Airv2relay,0),"") ->  | E23: =IF(OFFSET('4-Air Panel_v2_WPR'!$L$17,(ROW()-ROW($F$8))*Airv2relay,0)="","",IF(AND(C23<>"",D23<>""),OFFSET('4-Air Panel_v2_WPR'!$L$17,(ROW()-ROW($F$8))*Airv2relay,0),"")) ->  | F23: =IF(OR($C23="",$D23="",$E23=""),"",IF(ISNUMBER(OFFSET('4-Air Panel_v2_WPR'!$D$36,(ROW()-ROW($F$8))*Airv2relay,0))=FALSE,"",OFFSET('4-Air Panel_v2_WPR'!$D$36,(ROW()-ROW($F$8))*Airv2relay,0))) ->  | G23: =IF(OR($C23="",$D23="",$E23=""),"",IF(E23="Yes",INDEX(v2gAirThresholds[Max],3,1)*INDEX(v2gAirThresholds[Percent Tolerance],3,1),INDEX(v2gAirThresholds[Max],1,1)*INDEX(v2gAirThresholds[Percent Tolerance],1,1))) ->  | I23: =IF(OR($C23="",$D23="",$E23="",$E23="Yes"),"",IF(ISNUMBER(OFFSET('4-Air Panel_v2_WPR'!$E$36,(ROW()-ROW($F$8))*Airv2relay,0))=FALSE,"",OFFSET('4-Air Panel_v2_WPR'!$E$36,(ROW()-ROW($F$8))*Airv2relay,0))) ->  | J23: =IF(OR(C23="",D23="",E23="",E23="Yes"),"",INDEX(v2gAirThresholds[Max],2,1)*INDEX(v2gAirThresholds[Percent Tolerance],2,1)) ->  | N23: =IF(OR($C23="",$D23="",$E23=""),"",IF(ISNUMBER(OFFSET('4-Air Panel_v2_WPR'!$D$36,(ROW()-ROW($F$8))*Airv2relay,0))=FALSE,"",OFFSET('4-Air Panel_v2_WPR'!$D$36,(ROW()-ROW($F$8))*Airv2relay,0))) ->  | O23: =IF(OR($C23="",$D23="",$E23=""),"",INDEX(v2gAirThresholds[Max],4,1)*INDEX(v2gAirThresholds[Percent Tolerance],4,1)) ->  | Q23: =IF(OR($C23="",$D23="",$E23=""),"",INDEX(v2gAirThresholds[Max],6,1)*INDEX(v2gAirThresholds[Percent Tolerance],6,1)) ->  | S23: =IF(OR($C23="",$D23="",$E23=""),"",IF(ISNUMBER(OFFSET('4-Air Panel_v2_WPR'!$E$36,(ROW()-ROW($F$8))*Airv2relay,0))=FALSE,"",OFFSET('4-Air Panel_v2_WPR'!$E$36,(ROW()-ROW($F$8))*Airv2relay,0))) ->  | T23: =IF(OR($C23="",$D23="",$E23=""),"",INDEX(v2gAirThresholds[Max],5,1)*INDEX(v2gAirThresholds[Percent Tolerance],5,1)) ->  | V23: =IF(OR($C23="",$D23="",$E23=""),"",INDEX(v2gAirThresholds[Max],7,1)*INDEX(v2gAirThresholds[Percent Tolerance],7,1)) -> 
C24: =IF(LookUpData!$E$61<=C23,"",C23+1) ->  | D24: =IF(AND(C24<>"",OFFSET('4-Air Panel_v2_WPR'!$E$17,(ROW()-ROW($F$8))*Airv2relay,0)<>""),OFFSET('4-Air Panel_v2_WPR'!$E$17,(ROW()-ROW($F$8))*Airv2relay,0),"") ->  | E24: =IF(OFFSET('4-Air Panel_v2_WPR'!$L$17,(ROW()-ROW($F$8))*Airv2relay,0)="","",IF(AND(C24<>"",D24<>""),OFFSET('4-Air Panel_v2_WPR'!$L$17,(ROW()-ROW($F$8))*Airv2relay,0),"")) ->  | F24: =IF(OR($C24="",$D24="",$E24=""),"",IF(ISNUMBER(OFFSET('4-Air Panel_v2_WPR'!$D$36,(ROW()-ROW($F$8))*Airv2relay,0))=FALSE,"",OFFSET('4-Air Panel_v2_WPR'!$D$36,(ROW()-ROW($F$8))*Airv2relay,0))) ->  | G24: =IF(OR($C24="",$D24="",$E24=""),"",IF(E24="Yes",INDEX(v2gAirThresholds[Max],3,1)*INDEX(v2gAirThresholds[Percent Tolerance],3,1),INDEX(v2gAirThresholds[Max],1,1)*INDEX(v2gAirThresholds[Percent Tolerance],1,1))) ->  | I24: =IF(OR($C24="",$D24="",$E24="",$E24="Yes"),"",IF(ISNUMBER(OFFSET('4-Air Panel_v2_WPR'!$E$36,(ROW()-ROW($F$8))*Airv2relay,0))=FALSE,"",OFFSET('4-Air Panel_v2_WPR'!$E$36,(ROW()-ROW($F$8))*Airv2relay,0))) ->  | J24: =IF(OR(C24="",D24="",E24="",E24="Yes"),"",INDEX(v2gAirThresholds[Max],2,1)*INDEX(v2gAirThresholds[Percent Tolerance],2,1)) ->  | N24: =IF(OR($C24="",$D24="",$E24=""),"",IF(ISNUMBER(OFFSET('4-Air Panel_v2_WPR'!$D$36,(ROW()-ROW($F$8))*Airv2relay,0))=FALSE,"",OFFSET('4-Air Panel_v2_WPR'!$D$36,(ROW()-ROW($F$8))*Airv2relay,0))) ->  | O24: =IF(OR($C24="",$D24="",$E24=""),"",INDEX(v2gAirThresholds[Max],4,1)*INDEX(v2gAirThresholds[Percent Tolerance],4,1)) ->  | Q24: =IF(OR($C24="",$D24="",$E24=""),"",INDEX(v2gAirThresholds[Max],6,1)*INDEX(v2gAirThresholds[Percent Tolerance],6,1)) ->  | S24: =IF(OR($C24="",$D24="",$E24=""),"",IF(ISNUMBER(OFFSET('4-Air Panel_v2_WPR'!$E$36,(ROW()-ROW($F$8))*Airv2relay,0))=FALSE,"",OFFSET('4-Air Panel_v2_WPR'!$E$36,(ROW()-ROW($F$8))*Airv2relay,0))) ->  | T24: =IF(OR($C24="",$D24="",$E24=""),"",INDEX(v2gAirThresholds[Max],5,1)*INDEX(v2gAirThresholds[Percent Tolerance],5,1)) ->  | V24: =IF(OR($C24="",$D24="",$E24=""),"",INDEX(v2gAirThresholds[Max],7,1)*INDEX(v2gAirThresholds[Percent Tolerance],7,1)) -> 
C25: =IF(LookUpData!$E$61<=C24,"",C24+1) ->  | D25: =IF(AND(C25<>"",OFFSET('4-Air Panel_v2_WPR'!$E$17,(ROW()-ROW($F$8))*Airv2relay,0)<>""),OFFSET('4-Air Panel_v2_WPR'!$E$17,(ROW()-ROW($F$8))*Airv2relay,0),"") ->  | E25: =IF(OFFSET('4-Air Panel_v2_WPR'!$L$17,(ROW()-ROW($F$8))*Airv2relay,0)="","",IF(AND(C25<>"",D25<>""),OFFSET('4-Air Panel_v2_WPR'!$L$17,(ROW()-ROW($F$8))*Airv2relay,0),"")) ->  | F25: =IF(OR($C25="",$D25="",$E25=""),"",IF(ISNUMBER(OFFSET('4-Air Panel_v2_WPR'!$D$36,(ROW()-ROW($F$8))*Airv2relay,0))=FALSE,"",OFFSET('4-Air Panel_v2_WPR'!$D$36,(ROW()-ROW($F$8))*Airv2relay,0))) ->  | G25: =IF(OR($C25="",$D25="",$E25=""),"",IF(E25="Yes",INDEX(v2gAirThresholds[Max],3,1)*INDEX(v2gAirThresholds[Percent Tolerance],3,1),INDEX(v2gAirThresholds[Max],1,1)*INDEX(v2gAirThresholds[Percent Tolerance],1,1))) ->  | I25: =IF(OR($C25="",$D25="",$E25="",$E25="Yes"),"",IF(ISNUMBER(OFFSET('4-Air Panel_v2_WPR'!$E$36,(ROW()-ROW($F$8))*Airv2relay,0))=FALSE,"",OFFSET('4-Air Panel_v2_WPR'!$E$36,(ROW()-ROW($F$8))*Airv2relay,0))) ->  | J25: =IF(OR(C25="",D25="",E25="",E25="Yes"),"",INDEX(v2gAirThresholds[Max],2,1)*INDEX(v2gAirThresholds[Percent Tolerance],2,1)) ->  | N25: =IF(OR($C25="",$D25="",$E25=""),"",IF(ISNUMBER(OFFSET('4-Air Panel_v2_WPR'!$D$36,(ROW()-ROW($F$8))*Airv2relay,0))=FALSE,"",OFFSET('4-Air Panel_v2_WPR'!$D$36,(ROW()-ROW($F$8))*Airv2relay,0))) ->  | O25: =IF(OR($C25="",$D25="",$E25=""),"",INDEX(v2gAirThresholds[Max],4,1)*INDEX(v2gAirThresholds[Percent Tolerance],4,1)) ->  | Q25: =IF(OR($C25="",$D25="",$E25=""),"",INDEX(v2gAirThresholds[Max],6,1)*INDEX(v2gAirThresholds[Percent Tolerance],6,1)) ->  | S25: =IF(OR($C25="",$D25="",$E25=""),"",IF(ISNUMBER(OFFSET('4-Air Panel_v2_WPR'!$E$36,(ROW()-ROW($F$8))*Airv2relay,0))=FALSE,"",OFFSET('4-Air Panel_v2_WPR'!$E$36,(ROW()-ROW($F$8))*Airv2relay,0))) ->  | T25: =IF(OR($C25="",$D25="",$E25=""),"",INDEX(v2gAirThresholds[Max],5,1)*INDEX(v2gAirThresholds[Percent Tolerance],5,1)) ->  | V25: =IF(OR($C25="",$D25="",$E25=""),"",INDEX(v2gAirThresholds[Max],7,1)*INDEX(v2gAirThresholds[Percent Tolerance],7,1)) -> 
C26: =IF(LookUpData!$E$61<=C25,"",C25+1) ->  | D26: =IF(AND(C26<>"",OFFSET('4-Air Panel_v2_WPR'!$E$17,(ROW()-ROW($F$8))*Airv2relay,0)<>""),OFFSET('4-Air Panel_v2_WPR'!$E$17,(ROW()-ROW($F$8))*Airv2relay,0),"") ->  | E26: =IF(OFFSET('4-Air Panel_v2_WPR'!$L$17,(ROW()-ROW($F$8))*Airv2relay,0)="","",IF(AND(C26<>"",D26<>""),OFFSET('4-Air Panel_v2_WPR'!$L$17,(ROW()-ROW($F$8))*Airv2relay,0),"")) ->  | F26: =IF(OR($C26="",$D26="",$E26=""),"",IF(ISNUMBER(OFFSET('4-Air Panel_v2_WPR'!$D$36,(ROW()-ROW($F$8))*Airv2relay,0))=FALSE,"",OFFSET('4-Air Panel_v2_WPR'!$D$36,(ROW()-ROW($F$8))*Airv2relay,0))) ->  | G26: =IF(OR($C26="",$D26="",$E26=""),"",IF(E26="Yes",INDEX(v2gAirThresholds[Max],3,1)*INDEX(v2gAirThresholds[Percent Tolerance],3,1),INDEX(v2gAirThresholds[Max],1,1)*INDEX(v2gAirThresholds[Percent Tolerance],1,1))) ->  | I26: =IF(OR($C26="",$D26="",$E26="",$E26="Yes"),"",IF(ISNUMBER(OFFSET('4-Air Panel_v2_WPR'!$E$36,(ROW()-ROW($F$8))*Airv2relay,0))=FALSE,"",OFFSET('4-Air Panel_v2_WPR'!$E$36,(ROW()-ROW($F$8))*Airv2relay,0))) ->  | J26: =IF(OR(C26="",D26="",E26="",E26="Yes"),"",INDEX(v2gAirThresholds[Max],2,1)*INDEX(v2gAirThresholds[Percent Tolerance],2,1)) ->  | N26: =IF(OR($C26="",$D26="",$E26=""),"",IF(ISNUMBER(OFFSET('4-Air Panel_v2_WPR'!$D$36,(ROW()-ROW($F$8))*Airv2relay,0))=FALSE,"",OFFSET('4-Air Panel_v2_WPR'!$D$36,(ROW()-ROW($F$8))*Airv2relay,0))) ->  | O26: =IF(OR($C26="",$D26="",$E26=""),"",INDEX(v2gAirThresholds[Max],4,1)*INDEX(v2gAirThresholds[Percent Tolerance],4,1)) ->  | Q26: =IF(OR($C26="",$D26="",$E26=""),"",INDEX(v2gAirThresholds[Max],6,1)*INDEX(v2gAirThresholds[Percent Tolerance],6,1)) ->  | S26: =IF(OR($C26="",$D26="",$E26=""),"",IF(ISNUMBER(OFFSET('4-Air Panel_v2_WPR'!$E$36,(ROW()-ROW($F$8))*Airv2relay,0))=FALSE,"",OFFSET('4-Air Panel_v2_WPR'!$E$36,(ROW()-ROW($F$8))*Airv2relay,0))) ->  | T26: =IF(OR($C26="",$D26="",$E26=""),"",INDEX(v2gAirThresholds[Max],5,1)*INDEX(v2gAirThresholds[Percent Tolerance],5,1)) ->  | V26: =IF(OR($C26="",$D26="",$E26=""),"",INDEX(v2gAirThresholds[Max],7,1)*INDEX(v2gAirThresholds[Percent Tolerance],7,1)) -> 
C27: =IF(LookUpData!$E$61<=C26,"",C26+1) ->  | D27: =IF(AND(C27<>"",OFFSET('4-Air Panel_v2_WPR'!$E$17,(ROW()-ROW($F$8))*Airv2relay,0)<>""),OFFSET('4-Air Panel_v2_WPR'!$E$17,(ROW()-ROW($F$8))*Airv2relay,0),"") ->  | E27: =IF(OFFSET('4-Air Panel_v2_WPR'!$L$17,(ROW()-ROW($F$8))*Airv2relay,0)="","",IF(AND(C27<>"",D27<>""),OFFSET('4-Air Panel_v2_WPR'!$L$17,(ROW()-ROW($F$8))*Airv2relay,0),"")) ->  | F27: =IF(OR($C27="",$D27="",$E27=""),"",IF(ISNUMBER(OFFSET('4-Air Panel_v2_WPR'!$D$36,(ROW()-ROW($F$8))*Airv2relay,0))=FALSE,"",OFFSET('4-Air Panel_v2_WPR'!$D$36,(ROW()-ROW($F$8))*Airv2relay,0))) ->  | G27: =IF(OR($C27="",$D27="",$E27=""),"",IF(E27="Yes",INDEX(v2gAirThresholds[Max],3,1)*INDEX(v2gAirThresholds[Percent Tolerance],3,1),INDEX(v2gAirThresholds[Max],1,1)*INDEX(v2gAirThresholds[Percent Tolerance],1,1))) ->  | I27: =IF(OR($C27="",$D27="",$E27="",$E27="Yes"),"",IF(ISNUMBER(OFFSET('4-Air Panel_v2_WPR'!$E$36,(ROW()-ROW($F$8))*Airv2relay,0))=FALSE,"",OFFSET('4-Air Panel_v2_WPR'!$E$36,(ROW()-ROW($F$8))*Airv2relay,0))) ->  | J27: =IF(OR(C27="",D27="",E27="",E27="Yes"),"",INDEX(v2gAirThresholds[Max],2,1)*INDEX(v2gAirThresholds[Percent Tolerance],2,1)) ->  | N27: =IF(OR($C27="",$D27="",$E27=""),"",IF(ISNUMBER(OFFSET('4-Air Panel_v2_WPR'!$D$36,(ROW()-ROW($F$8))*Airv2relay,0))=FALSE,"",OFFSET('4-Air Panel_v2_WPR'!$D$36,(ROW()-ROW($F$8))*Airv2relay,0))) ->  | O27: =IF(OR($C27="",$D27="",$E27=""),"",INDEX(v2gAirThresholds[Max],4,1)*INDEX(v2gAirThresholds[Percent Tolerance],4,1)) ->  | Q27: =IF(OR($C27="",$D27="",$E27=""),"",INDEX(v2gAirThresholds[Max],6,1)*INDEX(v2gAirThresholds[Percent Tolerance],6,1)) ->  | S27: =IF(OR($C27="",$D27="",$E27=""),"",IF(ISNUMBER(OFFSET('4-Air Panel_v2_WPR'!$E$36,(ROW()-ROW($F$8))*Airv2relay,0))=FALSE,"",OFFSET('4-Air Panel_v2_WPR'!$E$36,(ROW()-ROW($F$8))*Airv2relay,0))) ->  | T27: =IF(OR($C27="",$D27="",$E27=""),"",INDEX(v2gAirThresholds[Max],5,1)*INDEX(v2gAirThresholds[Percent Tolerance],5,1)) ->  | V27: =IF(OR($C27="",$D27="",$E27=""),"",INDEX(v2gAirThresholds[Max],7,1)*INDEX(v2gAirThresholds[Percent Tolerance],7,1)) -> 
F30: A01.2: Meet Thresholds for Organic Gases | Q30: A05.2: Meet Enhanced Thresholds for Organic Gases
C31: Sample Number | D31: Location / Description | E31: Commercial Kitchen or Industrial? | F31: Benzene (CAS 71-43-2) [μg/m³] | G31: Threshold (with tolerance) | H31: Outcome | I31: Formaldehyde (CAS 50-00-0) [μg/m³] | J31: Threshold (with tolerance) | K31: Outcome | L31: Toluene (CAS 108-88-3) [μg/m³] | M31: Threshold (with tolerance) | N31: Outcome | O31: Total Outcome | Q31: Acetaldehyde [μg/m³] | R31: Threshold (with tolerance) | S31: Outcome | T31: =IF('4-Air Panel_v2_WPR'!G4="","See Step 2 on '3-Air Panel'",'4-Air Panel_v2_WPR'!G4&" [µg/m³]") -> See Step 2 on '3-Air Panel' | U31: Threshold (with tolerance) | V31: Outcome | W31: Benzene [μg/m³] | X31: Threshold (with tolerance) | Y31: Outcome | Z31: Formaldehyde [μg/m³] | AA31: Threshold (with tolerance) | AB31: Outcome | AC31: Naphthalene [μg/m³] | AD31: Threshold (with tolerance) | AE31: Outcome | AF31: Toluene [μg/m³] | AG31: Threshold (with tolerance) | AH31: Outcome | AI31: Total Outcome
C32: =IF(AND(ISNUMBER(LookUpData!$E$61)=TRUE,LookUpData!$E$61>0),1,"") ->  | D32: =IF(AND(C32<>"",OFFSET('4-Air Panel_v2_WPR'!$E$17,(ROW()-ROW($F$32))*Airv2relay,0)<>""),OFFSET('4-Air Panel_v2_WPR'!$E$17,(ROW()-ROW($F$32))*Airv2relay,0),"") ->  | E32: =IF(OFFSET('4-Air Panel_v2_WPR'!$L$17,(ROW()-ROW($F$32))*Airv2relay,0)="","",IF(AND(C32<>"",D32<>""),OFFSET('4-Air Panel_v2_WPR'!$L$17,(ROW()-ROW($F$32))*Airv2relay,0),"")) ->  | F32: =IF(OR($C32="",$D32="",$E32=""),"",IF(ISNUMBER(OFFSET('4-Air Panel_v2_WPR'!$F$32,(ROW()-ROW($F$32))*Airv2relay,0))=FALSE,"",OFFSET('4-Air Panel_v2_WPR'!$F$32,(ROW()-ROW($F$32))*Airv2relay,0))) ->  | G32: =IF(OR(C32="",D32="",E32=""),"",INDEX(v2gAirThresholds[Max],8,1)*INDEX(v2gAirThresholds[Percent Tolerance],8,1)) ->  | H32: =IF(OR($C32="",$D32="",$E32="",F32=""),"",IF(F32<=G32,"MET","NOT MET")) ->  | I32: =IF(OR($C32="",$D32="",$E32=""),"",IF(ISNUMBER(OFFSET('4-Air Panel_v2_WPR'!$D$32,(ROW()-ROW($F$32))*Airv2relay,0))=FALSE,"",OFFSET('4-Air Panel_v2_WPR'!$D$32,(ROW()-ROW($F$32))*Airv2relay,0))) ->  | J32: =IF(OR(C32="",D32="",E32=""),"",INDEX(v2gAirThresholds[Max],9,1)*INDEX(v2gAirThresholds[Percent Tolerance],9,1)) ->  | K32: =IF(OR($C32="",$D32="",$E32="",I32=""),"",IF(I32<=J32,"MET","NOT MET")) ->  | L32: =IF(OR($C32="",$D32="",$E32=""),"",IF(ISNUMBER(OFFSET('4-Air Panel_v2_WPR'!$I$32,(ROW()-ROW($F$32))*Airv2relay,0))=FALSE,"",OFFSET('4-Air Panel_v2_WPR'!$I$32,(ROW()-ROW($F$32))*Airv2relay,0))) ->  | M32: =IF(OR(C32="",D32="",E32=""),"",INDEX(v2gAirThresholds[Max],10,1)*INDEX(v2gAirThresholds[Percent Tolerance],10,1)) ->  | N32: =IF(OR($C32="",$D32="",$E32="",L32=""),"",IF(L32<=M32,"MET","NOT MET")) ->  | O32: =IF(OR($C32="",D32="",E32="",F32="",I32="",L32=""),"",IF(AND(H32="MET",K32="MET",N32="MET"),"MET","NOT MET")) ->  | Q32: =IF(OR($C32="",$D32="",$E32=""),"",IF(ISNUMBER(OFFSET('4-Air Panel_v2_WPR'!$G$32,(ROW()-ROW($F$32))*Airv2relay,0))=FALSE,"",OFFSET('4-Air Panel_v2_WPR'!$G$32,(ROW()-ROW($F$32))*Airv2relay,0))) ->  | R32: =IF(OR(C32="",D32="",E32=""),"",INDEX(v2gAirThresholds[Max],11,1)*INDEX(v2gAirThresholds[Percent Tolerance],11,1)) ->  | S32: =IF(OR($C32="",$D32="",$E32="",Q32=""),"",IF(Q32<=R32,"MET","NOT MET")) ->  | T32: =IF(OR($C32="",$D32="",$E32=""),"",IF(ISNUMBER(OFFSET('4-Air Panel_v2_WPR'!$E$32,(ROW()-ROW($F$32))*Airv2relay,0))=FALSE,"",OFFSET('4-Air Panel_v2_WPR'!$E$32,(ROW()-ROW($F$32))*Airv2relay,0))) ->  | U32: =IF(OR($C32="",$D32="",$E32="",'4-Air Panel_v2_WPR'!$G$4=""),"",IF('4-Air Panel_v2_WPR'!$G$4="Acrylonitrile",INDEX(v2gAirThresholds[Max],12,1)*INDEX(v2gAirThresholds[Percent Tolerance],12,1),INDEX(v2gAirThresholds[Max],13,1)*INDEX(v2gAirThresholds[Percent Tolerance],13,1))) ->  | V32: =IF(OR($C32="",$D32="",$E32="",T32=""),"",IF(T32<=U32,"MET","NOT MET")) ->  | W32: =IF(OR($C32="",$D32="",$E32=""),"",IF(ISNUMBER(OFFSET('4-Air Panel_v2_WPR'!$F$32,(ROW()-ROW($F$32))*Airv2relay,0))=FALSE,"",OFFSET('4-Air Panel_v2_WPR'!$F$32,(ROW()-ROW($F$32))*Airv2relay,0))) ->  | X32: =IF(OR(C32="",D32="",E32=""),"",INDEX(v2gAirThresholds[Max],14,1)*INDEX(v2gAirThresholds[Percent Tolerance],14,1)) ->  | Y32: =IF(OR($C32="",$D32="",$E32="",W32=""),"",IF(W32<=X32,"MET","NOT MET")) ->  | Z32: =IF(OR($C32="",$D32="",$E32=""),"",IF(ISNUMBER(OFFSET('4-Air Panel_v2_WPR'!$D$32,(ROW()-ROW($F$32))*Airv2relay,0))=FALSE,"",OFFSET('4-Air Panel_v2_WPR'!$D$32,(ROW()-ROW($F$32))*Airv2relay,0))) ->  | AA32: =IF(OR(C32="",D32="",E32=""),"",INDEX(v2gAirThresholds[Max],15,1)*INDEX(v2gAirThresholds[Percent Tolerance],15,1)) ->  | AB32: =IF(OR($C32="",$D32="",$E32="",Z32=""),"",IF(Z32<=AA32,"MET","NOT MET")) ->  | AC32: =IF(OR($C32="",$D32="",$E32=""),"",IF(ISNUMBER(OFFSET('4-Air Panel_v2_WPR'!$H$32,(ROW()-ROW($F$32))*Airv2relay,0))=FALSE,"",OFFSET('4-Air Panel_v2_WPR'!$H$32,(ROW()-ROW($F$32))*Airv2relay,0))) ->  | AD32: =IF(OR(C32="",D32="",E32=""),"",INDEX(v2gAirThresholds[Max],16,1)*INDEX(v2gAirThresholds[Percent Tolerance],16,1)) ->  | AE32: =IF(OR($C32="",$D32="",$E32="",AC32=""),"",IF(AC32<=AD32,"MET","NOT MET")) ->  | AF32: =IF(OR($C32="",$D32="",$E32=""),"",IF(ISNUMBER(OFFSET('4-Air Panel_v2_WPR'!$I$32,(ROW()-ROW($F$32))*Airv2relay,0))=FALSE,"",OFFSET('4-Air Panel_v2_WPR'!$I$32,(ROW()-ROW($F$32))*Airv2relay,0))) ->  | AG32: =IF(OR(C32="",D32="",E32=""),"",INDEX(v2gAirThresholds[Max],17,1)*INDEX(v2gAirThresholds[Percent Tolerance],17,1)) ->  | AH32: =IF(OR($C32="",$D32="",$E32="",AF32=""),"",IF(AF32<=AG32,"MET","NOT MET")) ->  | AI32: =IF(OR(Q32="",T32="",W32="",Z32="",AC32="",AF32=""),"",IF(AND(S32="MET",V32="MET",Y32="MET",AB32="MET",AE32="MET",AH32="MET"),"MET","NOT MET")) -> 
C33: =IF(LookUpData!$E$61<=C32,"",C32+1) ->  | D33: =IF(AND(C33<>"",OFFSET('4-Air Panel_v2_WPR'!$E$17,(ROW()-ROW($F$32))*Airv2relay,0)<>""),OFFSET('4-Air Panel_v2_WPR'!$E$17,(ROW()-ROW($F$32))*Airv2relay,0),"") ->  | E33: =IF(OFFSET('4-Air Panel_v2_WPR'!$L$17,(ROW()-ROW($F$32))*Airv2relay,0)="","",IF(AND(C33<>"",D33<>""),OFFSET('4-Air Panel_v2_WPR'!$L$17,(ROW()-ROW($F$32))*Airv2relay,0),"")) ->  | F33: =IF(OR($C33="",$D33="",$E33=""),"",IF(ISNUMBER(OFFSET('4-Air Panel_v2_WPR'!$F$32,(ROW()-ROW($F$32))*Airv2relay,0))=FALSE,"",OFFSET('4-Air Panel_v2_WPR'!$F$32,(ROW()-ROW($F$32))*Airv2relay,0))) ->  | G33: =IF(OR(C33="",D33="",E33=""),"",INDEX(v2gAirThresholds[Max],8,1)*INDEX(v2gAirThresholds[Percent Tolerance],8,1)) ->  | H33: =IF(OR($C33="",$D33="",$E33="",F33=""),"",IF(F33<=G33,"MET","NOT MET")) ->  | I33: =IF(OR($C33="",$D33="",$E33=""),"",IF(ISNUMBER(OFFSET('4-Air Panel_v2_WPR'!$D$32,(ROW()-ROW($F$32))*Airv2relay,0))=FALSE,"",OFFSET('4-Air Panel_v2_WPR'!$D$32,(ROW()-ROW($F$32))*Airv2relay,0))) ->  | J33: =IF(OR(C33="",D33="",E33=""),"",INDEX(v2gAirThresholds[Max],9,1)*INDEX(v2gAirThresholds[Percent Tolerance],9,1)) ->  | K33: =IF(OR($C33="",$D33="",$E33="",I33=""),"",IF(I33<=J33,"MET","NOT MET")) ->  | L33: =IF(OR($C33="",$D33="",$E33=""),"",IF(ISNUMBER(OFFSET('4-Air Panel_v2_WPR'!$I$32,(ROW()-ROW($F$32))*Airv2relay,0))=FALSE,"",OFFSET('4-Air Panel_v2_WPR'!$I$32,(ROW()-ROW($F$32))*Airv2relay,0))) ->  | M33: =IF(OR(C33="",D33="",E33=""),"",INDEX(v2gAirThresholds[Max],10,1)*INDEX(v2gAirThresholds[Percent Tolerance],10,1)) ->  | N33: =IF(OR($C33="",$D33="",$E33="",L33=""),"",IF(L33<=M33,"MET","NOT MET")) ->  | O33: =IF(OR($C33="",D33="",E33="",F33="",I33="",L33=""),"",IF(AND(H33="MET",K33="MET",N33="MET"),"MET","NOT MET")) ->  | Q33: =IF(OR($C33="",$D33="",$E33=""),"",IF(ISNUMBER(OFFSET('4-Air Panel_v2_WPR'!$G$32,(ROW()-ROW($F$32))*Airv2relay,0))=FALSE,"",OFFSET('4-Air Panel_v2_WPR'!$G$32,(ROW()-ROW($F$32))*Airv2relay,0))) ->  | R33: =IF(OR(C33="",D33="",E33=""),"",INDEX(v2gAirThresholds[Max],11,1)*INDEX(v2gAirThresholds[Percent Tolerance],11,1)) ->  | S33: =IF(OR($C33="",$D33="",$E33="",Q33=""),"",IF(Q33<=R33,"MET","NOT MET")) ->  | T33: =IF(OR($C33="",$D33="",$E33=""),"",IF(ISNUMBER(OFFSET('4-Air Panel_v2_WPR'!$E$32,(ROW()-ROW($F$32))*Airv2relay,0))=FALSE,"",OFFSET('4-Air Panel_v2_WPR'!$E$32,(ROW()-ROW($F$32))*Airv2relay,0))) ->  | U33: =IF(OR($C33="",$D33="",$E33="",'4-Air Panel_v2_WPR'!$G$4=""),"",IF('4-Air Panel_v2_WPR'!$G$4="Acrylonitrile",INDEX(v2gAirThresholds[Max],12,1)*INDEX(v2gAirThresholds[Percent Tolerance],12,1),INDEX(v2gAirThresholds[Max],13,1)*INDEX(v2gAirThresholds[Percent Tolerance],13,1))) ->  | V33: =IF(OR($C33="",$D33="",$E33="",T33=""),"",IF(T33<=U33,"MET","NOT MET")) ->  | W33: =IF(OR($C33="",$D33="",$E33=""),"",IF(ISNUMBER(OFFSET('4-Air Panel_v2_WPR'!$F$32,(ROW()-ROW($F$32))*Airv2relay,0))=FALSE,"",OFFSET('4-Air Panel_v2_WPR'!$F$32,(ROW()-ROW($F$32))*Airv2relay,0))) ->  | X33: =IF(OR(C33="",D33="",E33=""),"",INDEX(v2gAirThresholds[Max],14,1)*INDEX(v2gAirThresholds[Percent Tolerance],14,1)) ->  | Y33: =IF(OR($C33="",$D33="",$E33="",W33=""),"",IF(W33<=X33,"MET","NOT MET")) ->  | Z33: =IF(OR($C33="",$D33="",$E33=""),"",IF(ISNUMBER(OFFSET('4-Air Panel_v2_WPR'!$D$32,(ROW()-ROW($F$32))*Airv2relay,0))=FALSE,"",OFFSET('4-Air Panel_v2_WPR'!$D$32,(ROW()-ROW($F$32))*Airv2relay,0))) ->  | AA33: =IF(OR(C33="",D33="",E33=""),"",INDEX(v2gAirThresholds[Max],15,1)*INDEX(v2gAirThresholds[Percent Tolerance],15,1)) ->  | AB33: =IF(OR($C33="",$D33="",$E33="",Z33=""),"",IF(Z33<=AA33,"MET","NOT MET")) ->  | AC33: =IF(OR($C33="",$D33="",$E33=""),"",IF(ISNUMBER(OFFSET('4-Air Panel_v2_WPR'!$H$32,(ROW()-ROW($F$32))*Airv2relay,0))=FALSE,"",OFFSET('4-Air Panel_v2_WPR'!$H$32,(ROW()-ROW($F$32))*Airv2relay,0))) ->  | AD33: =IF(OR(C33="",D33="",E33=""),"",INDEX(v2gAirThresholds[Max],16,1)*INDEX(v2gAirThresholds[Percent Tolerance],16,1)) ->  | AE33: =IF(OR($C33="",$D33="",$E33="",AC33=""),"",IF(AC33<=AD33,"MET","NOT MET")) ->  | AF33: =IF(OR($C33="",$D33="",$E33=""),"",IF(ISNUMBER(OFFSET('4-Air Panel_v2_WPR'!$I$32,(ROW()-ROW($F$32))*Airv2relay,0))=FALSE,"",OFFSET('4-Air Panel_v2_WPR'!$I$32,(ROW()-ROW($F$32))*Airv2relay,0))) ->  | AG33: =IF(OR(C33="",D33="",E33=""),"",INDEX(v2gAirThresholds[Max],17,1)*INDEX(v2gAirThresholds[Percent Tolerance],17,1)) ->  | AH33: =IF(OR($C33="",$D33="",$E33="",AF33=""),"",IF(AF33<=AG33,"MET","NOT MET")) ->  | AI33: =IF(OR(Q33="",T33="",W33="",Z33="",AC33="",AF33=""),"",IF(AND(S33="MET",V33="MET",Y33="MET",AB33="MET",AE33="MET",AH33="MET"),"MET","NOT MET")) -> 
C34: =IF(LookUpData!$E$61<=C33,"",C33+1) ->  | D34: =IF(AND(C34<>"",OFFSET('4-Air Panel_v2_WPR'!$E$17,(ROW()-ROW($F$32))*Airv2relay,0)<>""),OFFSET('4-Air Panel_v2_WPR'!$E$17,(ROW()-ROW($F$32))*Airv2relay,0),"") ->  | E34: =IF(OFFSET('4-Air Panel_v2_WPR'!$L$17,(ROW()-ROW($F$32))*Airv2relay,0)="","",IF(AND(C34<>"",D34<>""),OFFSET('4-Air Panel_v2_WPR'!$L$17,(ROW()-ROW($F$32))*Airv2relay,0),"")) ->  | F34: =IF(OR($C34="",$D34="",$E34=""),"",IF(ISNUMBER(OFFSET('4-Air Panel_v2_WPR'!$F$32,(ROW()-ROW($F$32))*Airv2relay,0))=FALSE,"",OFFSET('4-Air Panel_v2_WPR'!$F$32,(ROW()-ROW($F$32))*Airv2relay,0))) ->  | G34: =IF(OR(C34="",D34="",E34=""),"",INDEX(v2gAirThresholds[Max],8,1)*INDEX(v2gAirThresholds[Percent Tolerance],8,1)) ->  | I34: =IF(OR($C34="",$D34="",$E34=""),"",IF(ISNUMBER(OFFSET('4-Air Panel_v2_WPR'!$D$32,(ROW()-ROW($F$32))*Airv2relay,0))=FALSE,"",OFFSET('4-Air Panel_v2_WPR'!$D$32,(ROW()-ROW($F$32))*Airv2relay,0))) ->  | J34: =IF(OR(C34="",D34="",E34=""),"",INDEX(v2gAirThresholds[Max],9,1)*INDEX(v2gAirThresholds[Percent Tolerance],9,1)) ->  | L34: =IF(OR($C34="",$D34="",$E34=""),"",IF(ISNUMBER(OFFSET('4-Air Panel_v2_WPR'!$I$32,(ROW()-ROW($F$32))*Airv2relay,0))=FALSE,"",OFFSET('4-Air Panel_v2_WPR'!$I$32,(ROW()-ROW($F$32))*Airv2relay,0))) ->  | M34: =IF(OR(C34="",D34="",E34=""),"",INDEX(v2gAirThresholds[Max],10,1)*INDEX(v2gAirThresholds[Percent Tolerance],10,1)) ->  | Q34: =IF(OR($C34="",$D34="",$E34=""),"",IF(ISNUMBER(OFFSET('4-Air Panel_v2_WPR'!$G$32,(ROW()-ROW($F$32))*Airv2relay,0))=FALSE,"",OFFSET('4-Air Panel_v2_WPR'!$G$32,(ROW()-ROW($F$32))*Airv2relay,0))) ->  | R34: =IF(OR(C34="",D34="",E34=""),"",INDEX(v2gAirThresholds[Max],11,1)*INDEX(v2gAirThresholds[Percent Tolerance],11,1)) ->  | T34: =IF(OR($C34="",$D34="",$E34=""),"",IF(ISNUMBER(OFFSET('4-Air Panel_v2_WPR'!$E$32,(ROW()-ROW($F$32))*Airv2relay,0))=FALSE,"",OFFSET('4-Air Panel_v2_WPR'!$E$32,(ROW()-ROW($F$32))*Airv2relay,0))) ->  | U34: =IF(OR($C34="",$D34="",$E34="",'4-Air Panel_v2_WPR'!$G$4=""),"",IF('4-Air Panel_v2_WPR'!$G$4="Acrylonitrile",INDEX(v2gAirThresholds[Max],12,1)*INDEX(v2gAirThresholds[Percent Tolerance],12,1),INDEX(v2gAirThresholds[Max],13,1)*INDEX(v2gAirThresholds[Percent Tolerance],13,1))) ->  | W34: =IF(OR($C34="",$D34="",$E34=""),"",IF(ISNUMBER(OFFSET('4-Air Panel_v2_WPR'!$F$32,(ROW()-ROW($F$32))*Airv2relay,0))=FALSE,"",OFFSET('4-Air Panel_v2_WPR'!$F$32,(ROW()-ROW($F$32))*Airv2relay,0))) ->  | X34: =IF(OR(C34="",D34="",E34=""),"",INDEX(v2gAirThresholds[Max],14,1)*INDEX(v2gAirThresholds[Percent Tolerance],14,1)) ->  | Z34: =IF(OR($C34="",$D34="",$E34=""),"",IF(ISNUMBER(OFFSET('4-Air Panel_v2_WPR'!$D$32,(ROW()-ROW($F$32))*Airv2relay,0))=FALSE,"",OFFSET('4-Air Panel_v2_WPR'!$D$32,(ROW()-ROW($F$32))*Airv2relay,0))) ->  | AA34: =IF(OR(C34="",D34="",E34=""),"",INDEX(v2gAirThresholds[Max],15,1)*INDEX(v2gAirThresholds[Percent Tolerance],15,1)) ->  | AC34: =IF(OR($C34="",$D34="",$E34=""),"",IF(ISNUMBER(OFFSET('4-Air Panel_v2_WPR'!$H$32,(ROW()-ROW($F$32))*Airv2relay,0))=FALSE,"",OFFSET('4-Air Panel_v2_WPR'!$H$32,(ROW()-ROW($F$32))*Airv2relay,0))) ->  | AD34: =IF(OR(C34="",D34="",E34=""),"",INDEX(v2gAirThresholds[Max],16,1)*INDEX(v2gAirThresholds[Percent Tolerance],16,1)) ->  | AF34: =IF(OR($C34="",$D34="",$E34=""),"",IF(ISNUMBER(OFFSET('4-Air Panel_v2_WPR'!$I$32,(ROW()-ROW($F$32))*Airv2relay,0))=FALSE,"",OFFSET('4-Air Panel_v2_WPR'!$I$32,(ROW()-ROW($F$32))*Airv2relay,0))) ->  | AG34: =IF(OR(C34="",D34="",E34=""),"",INDEX(v2gAirThresholds[Max],17,1)*INDEX(v2gAirThresholds[Percent Tolerance],17,1)) -> 
C35: =IF(LookUpData!$E$61<=C34,"",C34+1) ->  | D35: =IF(AND(C35<>"",OFFSET('4-Air Panel_v2_WPR'!$E$17,(ROW()-ROW($F$32))*Airv2relay,0)<>""),OFFSET('4-Air Panel_v2_WPR'!$E$17,(ROW()-ROW($F$32))*Airv2relay,0),"") ->  | E35: =IF(OFFSET('4-Air Panel_v2_WPR'!$L$17,(ROW()-ROW($F$32))*Airv2relay,0)="","",IF(AND(C35<>"",D35<>""),OFFSET('4-Air Panel_v2_WPR'!$L$17,(ROW()-ROW($F$32))*Airv2relay,0),"")) ->  | F35: =IF(OR($C35="",$D35="",$E35=""),"",IF(ISNUMBER(OFFSET('4-Air Panel_v2_WPR'!$F$32,(ROW()-ROW($F$32))*Airv2relay,0))=FALSE,"",OFFSET('4-Air Panel_v2_WPR'!$F$32,(ROW()-ROW($F$32))*Airv2relay,0))) ->  | G35: =IF(OR(C35="",D35="",E35=""),"",INDEX(v2gAirThresholds[Max],8,1)*INDEX(v2gAirThresholds[Percent Tolerance],8,1)) ->  | I35: =IF(OR($C35="",$D35="",$E35=""),"",IF(ISNUMBER(OFFSET('4-Air Panel_v2_WPR'!$D$32,(ROW()-ROW($F$32))*Airv2relay,0))=FALSE,"",OFFSET('4-Air Panel_v2_WPR'!$D$32,(ROW()-ROW($F$32))*Airv2relay,0))) ->  | J35: =IF(OR(C35="",D35="",E35=""),"",INDEX(v2gAirThresholds[Max],9,1)*INDEX(v2gAirThresholds[Percent Tolerance],9,1)) ->  | L35: =IF(OR($C35="",$D35="",$E35=""),"",IF(ISNUMBER(OFFSET('4-Air Panel_v2_WPR'!$I$32,(ROW()-ROW($F$32))*Airv2relay,0))=FALSE,"",OFFSET('4-Air Panel_v2_WPR'!$I$32,(ROW()-ROW($F$32))*Airv2relay,0))) ->  | M35: =IF(OR(C35="",D35="",E35=""),"",INDEX(v2gAirThresholds[Max],10,1)*INDEX(v2gAirThresholds[Percent Tolerance],10,1)) ->  | Q35: =IF(OR($C35="",$D35="",$E35=""),"",IF(ISNUMBER(OFFSET('4-Air Panel_v2_WPR'!$G$32,(ROW()-ROW($F$32))*Airv2relay,0))=FALSE,"",OFFSET('4-Air Panel_v2_WPR'!$G$32,(ROW()-ROW($F$32))*Airv2relay,0))) ->  | R35: =IF(OR(C35="",D35="",E35=""),"",INDEX(v2gAirThresholds[Max],11,1)*INDEX(v2gAirThresholds[Percent Tolerance],11,1)) ->  | T35: =IF(OR($C35="",$D35="",$E35=""),"",IF(ISNUMBER(OFFSET('4-Air Panel_v2_WPR'!$E$32,(ROW()-ROW($F$32))*Airv2relay,0))=FALSE,"",OFFSET('4-Air Panel_v2_WPR'!$E$32,(ROW()-ROW($F$32))*Airv2relay,0))) ->  | U35: =IF(OR($C35="",$D35="",$E35="",'4-Air Panel_v2_WPR'!$G$4=""),"",IF('4-Air Panel_v2_WPR'!$G$4="Acrylonitrile",INDEX(v2gAirThresholds[Max],12,1)*INDEX(v2gAirThresholds[Percent Tolerance],12,1),INDEX(v2gAirThresholds[Max],13,1)*INDEX(v2gAirThresholds[Percent Tolerance],13,1))) ->  | W35: =IF(OR($C35="",$D35="",$E35=""),"",IF(ISNUMBER(OFFSET('4-Air Panel_v2_WPR'!$F$32,(ROW()-ROW($F$32))*Airv2relay,0))=FALSE,"",OFFSET('4-Air Panel_v2_WPR'!$F$32,(ROW()-ROW($F$32))*Airv2relay,0))) ->  | X35: =IF(OR(C35="",D35="",E35=""),"",INDEX(v2gAirThresholds[Max],14,1)*INDEX(v2gAirThresholds[Percent Tolerance],14,1)) ->  | Z35: =IF(OR($C35="",$D35="",$E35=""),"",IF(ISNUMBER(OFFSET('4-Air Panel_v2_WPR'!$D$32,(ROW()-ROW($F$32))*Airv2relay,0))=FALSE,"",OFFSET('4-Air Panel_v2_WPR'!$D$32,(ROW()-ROW($F$32))*Airv2relay,0))) ->  | AA35: =IF(OR(C35="",D35="",E35=""),"",INDEX(v2gAirThresholds[Max],15,1)*INDEX(v2gAirThresholds[Percent Tolerance],15,1)) ->  | AC35: =IF(OR($C35="",$D35="",$E35=""),"",IF(ISNUMBER(OFFSET('4-Air Panel_v2_WPR'!$H$32,(ROW()-ROW($F$32))*Airv2relay,0))=FALSE,"",OFFSET('4-Air Panel_v2_WPR'!$H$32,(ROW()-ROW($F$32))*Airv2relay,0))) ->  | AD35: =IF(OR(C35="",D35="",E35=""),"",INDEX(v2gAirThresholds[Max],16,1)*INDEX(v2gAirThresholds[Percent Tolerance],16,1)) ->  | AF35: =IF(OR($C35="",$D35="",$E35=""),"",IF(ISNUMBER(OFFSET('4-Air Panel_v2_WPR'!$I$32,(ROW()-ROW($F$32))*Airv2relay,0))=FALSE,"",OFFSET('4-Air Panel_v2_WPR'!$I$32,(ROW()-ROW($F$32))*Airv2relay,0))) ->  | AG35: =IF(OR(C35="",D35="",E35=""),"",INDEX(v2gAirThresholds[Max],17,1)*INDEX(v2gAirThresholds[Percent Tolerance],17,1)) -> 
C36: =IF(LookUpData!$E$61<=C35,"",C35+1) ->  | D36: =IF(AND(C36<>"",OFFSET('4-Air Panel_v2_WPR'!$E$17,(ROW()-ROW($F$32))*Airv2relay,0)<>""),OFFSET('4-Air Panel_v2_WPR'!$E$17,(ROW()-ROW($F$32))*Airv2relay,0),"") ->  | E36: =IF(OFFSET('4-Air Panel_v2_WPR'!$L$17,(ROW()-ROW($F$32))*Airv2relay,0)="","",IF(AND(C36<>"",D36<>""),OFFSET('4-Air Panel_v2_WPR'!$L$17,(ROW()-ROW($F$32))*Airv2relay,0),"")) ->  | F36: =IF(OR($C36="",$D36="",$E36=""),"",IF(ISNUMBER(OFFSET('4-Air Panel_v2_WPR'!$F$32,(ROW()-ROW($F$32))*Airv2relay,0))=FALSE,"",OFFSET('4-Air Panel_v2_WPR'!$F$32,(ROW()-ROW($F$32))*Airv2relay,0))) ->  | G36: =IF(OR(C36="",D36="",E36=""),"",INDEX(v2gAirThresholds[Max],8,1)*INDEX(v2gAirThresholds[Percent Tolerance],8,1)) ->  | I36: =IF(OR($C36="",$D36="",$E36=""),"",IF(ISNUMBER(OFFSET('4-Air Panel_v2_WPR'!$D$32,(ROW()-ROW($F$32))*Airv2relay,0))=FALSE,"",OFFSET('4-Air Panel_v2_WPR'!$D$32,(ROW()-ROW($F$32))*Airv2relay,0))) ->  | J36: =IF(OR(C36="",D36="",E36=""),"",INDEX(v2gAirThresholds[Max],9,1)*INDEX(v2gAirThresholds[Percent Tolerance],9,1)) ->  | L36: =IF(OR($C36="",$D36="",$E36=""),"",IF(ISNUMBER(OFFSET('4-Air Panel_v2_WPR'!$I$32,(ROW()-ROW($F$32))*Airv2relay,0))=FALSE,"",OFFSET('4-Air Panel_v2_WPR'!$I$32,(ROW()-ROW($F$32))*Airv2relay,0))) ->  | M36: =IF(OR(C36="",D36="",E36=""),"",INDEX(v2gAirThresholds[Max],10,1)*INDEX(v2gAirThresholds[Percent Tolerance],10,1)) ->  | Q36: =IF(OR($C36="",$D36="",$E36=""),"",IF(ISNUMBER(OFFSET('4-Air Panel_v2_WPR'!$G$32,(ROW()-ROW($F$32))*Airv2relay,0))=FALSE,"",OFFSET('4-Air Panel_v2_WPR'!$G$32,(ROW()-ROW($F$32))*Airv2relay,0))) ->  | R36: =IF(OR(C36="",D36="",E36=""),"",INDEX(v2gAirThresholds[Max],11,1)*INDEX(v2gAirThresholds[Percent Tolerance],11,1)) ->  | T36: =IF(OR($C36="",$D36="",$E36=""),"",IF(ISNUMBER(OFFSET('4-Air Panel_v2_WPR'!$E$32,(ROW()-ROW($F$32))*Airv2relay,0))=FALSE,"",OFFSET('4-Air Panel_v2_WPR'!$E$32,(ROW()-ROW($F$32))*Airv2relay,0))) ->  | U36: =IF(OR($C36="",$D36="",$E36="",'4-Air Panel_v2_WPR'!$G$4=""),"",IF('4-Air Panel_v2_WPR'!$G$4="Acrylonitrile",INDEX(v2gAirThresholds[Max],12,1)*INDEX(v2gAirThresholds[Percent Tolerance],12,1),INDEX(v2gAirThresholds[Max],13,1)*INDEX(v2gAirThresholds[Percent Tolerance],13,1))) ->  | W36: =IF(OR($C36="",$D36="",$E36=""),"",IF(ISNUMBER(OFFSET('4-Air Panel_v2_WPR'!$F$32,(ROW()-ROW($F$32))*Airv2relay,0))=FALSE,"",OFFSET('4-Air Panel_v2_WPR'!$F$32,(ROW()-ROW($F$32))*Airv2relay,0))) ->  | X36: =IF(OR(C36="",D36="",E36=""),"",INDEX(v2gAirThresholds[Max],14,1)*INDEX(v2gAirThresholds[Percent Tolerance],14,1)) ->  | Z36: =IF(OR($C36="",$D36="",$E36=""),"",IF(ISNUMBER(OFFSET('4-Air Panel_v2_WPR'!$D$32,(ROW()-ROW($F$32))*Airv2relay,0))=FALSE,"",OFFSET('4-Air Panel_v2_WPR'!$D$32,(ROW()-ROW($F$32))*Airv2relay,0))) ->  | AA36: =IF(OR(C36="",D36="",E36=""),"",INDEX(v2gAirThresholds[Max],15,1)*INDEX(v2gAirThresholds[Percent Tolerance],15,1)) ->  | AC36: =IF(OR($C36="",$D36="",$E36=""),"",IF(ISNUMBER(OFFSET('4-Air Panel_v2_WPR'!$H$32,(ROW()-ROW($F$32))*Airv2relay,0))=FALSE,"",OFFSET('4-Air Panel_v2_WPR'!$H$32,(ROW()-ROW($F$32))*Airv2relay,0))) ->  | AD36: =IF(OR(C36="",D36="",E36=""),"",INDEX(v2gAirThresholds[Max],16,1)*INDEX(v2gAirThresholds[Percent Tolerance],16,1)) ->  | AF36: =IF(OR($C36="",$D36="",$E36=""),"",IF(ISNUMBER(OFFSET('4-Air Panel_v2_WPR'!$I$32,(ROW()-ROW($F$32))*Airv2relay,0))=FALSE,"",OFFSET('4-Air Panel_v2_WPR'!$I$32,(ROW()-ROW($F$32))*Airv2relay,0))) ->  | AG36: =IF(OR(C36="",D36="",E36=""),"",INDEX(v2gAirThresholds[Max],17,1)*INDEX(v2gAirThresholds[Percent Tolerance],17,1)) -> 
C37: =IF(LookUpData!$E$61<=C36,"",C36+1) ->  | D37: =IF(AND(C37<>"",OFFSET('4-Air Panel_v2_WPR'!$E$17,(ROW()-ROW($F$32))*Airv2relay,0)<>""),OFFSET('4-Air Panel_v2_WPR'!$E$17,(ROW()-ROW($F$32))*Airv2relay,0),"") ->  | E37: =IF(OFFSET('4-Air Panel_v2_WPR'!$L$17,(ROW()-ROW($F$32))*Airv2relay,0)="","",IF(AND(C37<>"",D37<>""),OFFSET('4-Air Panel_v2_WPR'!$L$17,(ROW()-ROW($F$32))*Airv2relay,0),"")) ->  | F37: =IF(OR($C37="",$D37="",$E37=""),"",IF(ISNUMBER(OFFSET('4-Air Panel_v2_WPR'!$F$32,(ROW()-ROW($F$32))*Airv2relay,0))=FALSE,"",OFFSET('4-Air Panel_v2_WPR'!$F$32,(ROW()-ROW($F$32))*Airv2relay,0))) ->  | G37: =IF(OR(C37="",D37="",E37=""),"",INDEX(v2gAirThresholds[Max],8,1)*INDEX(v2gAirThresholds[Percent Tolerance],8,1)) ->  | I37: =IF(OR($C37="",$D37="",$E37=""),"",IF(ISNUMBER(OFFSET('4-Air Panel_v2_WPR'!$D$32,(ROW()-ROW($F$32))*Airv2relay,0))=FALSE,"",OFFSET('4-Air Panel_v2_WPR'!$D$32,(ROW()-ROW($F$32))*Airv2relay,0))) ->  | J37: =IF(OR(C37="",D37="",E37=""),"",INDEX(v2gAirThresholds[Max],9,1)*INDEX(v2gAirThresholds[Percent Tolerance],9,1)) ->  | L37: =IF(OR($C37="",$D37="",$E37=""),"",IF(ISNUMBER(OFFSET('4-Air Panel_v2_WPR'!$I$32,(ROW()-ROW($F$32))*Airv2relay,0))=FALSE,"",OFFSET('4-Air Panel_v2_WPR'!$I$32,(ROW()-ROW($F$32))*Airv2relay,0))) ->  | M37: =IF(OR(C37="",D37="",E37=""),"",INDEX(v2gAirThresholds[Max],10,1)*INDEX(v2gAirThresholds[Percent Tolerance],10,1)) ->  | Q37: =IF(OR($C37="",$D37="",$E37=""),"",IF(ISNUMBER(OFFSET('4-Air Panel_v2_WPR'!$G$32,(ROW()-ROW($F$32))*Airv2relay,0))=FALSE,"",OFFSET('4-Air Panel_v2_WPR'!$G$32,(ROW()-ROW($F$32))*Airv2relay,0))) ->  | R37: =IF(OR(C37="",D37="",E37=""),"",INDEX(v2gAirThresholds[Max],11,1)*INDEX(v2gAirThresholds[Percent Tolerance],11,1)) ->  | T37: =IF(OR($C37="",$D37="",$E37=""),"",IF(ISNUMBER(OFFSET('4-Air Panel_v2_WPR'!$E$32,(ROW()-ROW($F$32))*Airv2relay,0))=FALSE,"",OFFSET('4-Air Panel_v2_WPR'!$E$32,(ROW()-ROW($F$32))*Airv2relay,0))) ->  | U37: =IF(OR($C37="",$D37="",$E37="",'4-Air Panel_v2_WPR'!$G$4=""),"",IF('4-Air Panel_v2_WPR'!$G$4="Acrylonitrile",INDEX(v2gAirThresholds[Max],12,1)*INDEX(v2gAirThresholds[Percent Tolerance],12,1),INDEX(v2gAirThresholds[Max],13,1)*INDEX(v2gAirThresholds[Percent Tolerance],13,1))) ->  | W37: =IF(OR($C37="",$D37="",$E37=""),"",IF(ISNUMBER(OFFSET('4-Air Panel_v2_WPR'!$F$32,(ROW()-ROW($F$32))*Airv2relay,0))=FALSE,"",OFFSET('4-Air Panel_v2_WPR'!$F$32,(ROW()-ROW($F$32))*Airv2relay,0))) ->  | X37: =IF(OR(C37="",D37="",E37=""),"",INDEX(v2gAirThresholds[Max],14,1)*INDEX(v2gAirThresholds[Percent Tolerance],14,1)) ->  | Z37: =IF(OR($C37="",$D37="",$E37=""),"",IF(ISNUMBER(OFFSET('4-Air Panel_v2_WPR'!$D$32,(ROW()-ROW($F$32))*Airv2relay,0))=FALSE,"",OFFSET('4-Air Panel_v2_WPR'!$D$32,(ROW()-ROW($F$32))*Airv2relay,0))) ->  | AA37: =IF(OR(C37="",D37="",E37=""),"",INDEX(v2gAirThresholds[Max],15,1)*INDEX(v2gAirThresholds[Percent Tolerance],15,1)) ->  | AC37: =IF(OR($C37="",$D37="",$E37=""),"",IF(ISNUMBER(OFFSET('4-Air Panel_v2_WPR'!$H$32,(ROW()-ROW($F$32))*Airv2relay,0))=FALSE,"",OFFSET('4-Air Panel_v2_WPR'!$H$32,(ROW()-ROW($F$32))*Airv2relay,0))) ->  | AD37: =IF(OR(C37="",D37="",E37=""),"",INDEX(v2gAirThresholds[Max],16,1)*INDEX(v2gAirThresholds[Percent Tolerance],16,1)) ->  | AF37: =IF(OR($C37="",$D37="",$E37=""),"",IF(ISNUMBER(OFFSET('4-Air Panel_v2_WPR'!$I$32,(ROW()-ROW($F$32))*Airv2relay,0))=FALSE,"",OFFSET('4-Air Panel_v2_WPR'!$I$32,(ROW()-ROW($F$32))*Airv2relay,0))) ->  | AG37: =IF(OR(C37="",D37="",E37=""),"",INDEX(v2gAirThresholds[Max],17,1)*INDEX(v2gAirThresholds[Percent Tolerance],17,1)) -> 
C38: =IF(LookUpData!$E$61<=C37,"",C37+1) ->  | D38: =IF(AND(C38<>"",OFFSET('4-Air Panel_v2_WPR'!$E$17,(ROW()-ROW($F$32))*Airv2relay,0)<>""),OFFSET('4-Air Panel_v2_WPR'!$E$17,(ROW()-ROW($F$32))*Airv2relay,0),"") ->  | E38: =IF(OFFSET('4-Air Panel_v2_WPR'!$L$17,(ROW()-ROW($F$32))*Airv2relay,0)="","",IF(AND(C38<>"",D38<>""),OFFSET('4-Air Panel_v2_WPR'!$L$17,(ROW()-ROW($F$32))*Airv2relay,0),"")) ->  | F38: =IF(OR($C38="",$D38="",$E38=""),"",IF(ISNUMBER(OFFSET('4-Air Panel_v2_WPR'!$F$32,(ROW()-ROW($F$32))*Airv2relay,0))=FALSE,"",OFFSET('4-Air Panel_v2_WPR'!$F$32,(ROW()-ROW($F$32))*Airv2relay,0))) ->  | G38: =IF(OR(C38="",D38="",E38=""),"",INDEX(v2gAirThresholds[Max],8,1)*INDEX(v2gAirThresholds[Percent Tolerance],8,1)) ->  | I38: =IF(OR($C38="",$D38="",$E38=""),"",IF(ISNUMBER(OFFSET('4-Air Panel_v2_WPR'!$D$32,(ROW()-ROW($F$32))*Airv2relay,0))=FALSE,"",OFFSET('4-Air Panel_v2_WPR'!$D$32,(ROW()-ROW($F$32))*Airv2relay,0))) ->  | J38: =IF(OR(C38="",D38="",E38=""),"",INDEX(v2gAirThresholds[Max],9,1)*INDEX(v2gAirThresholds[Percent Tolerance],9,1)) ->  | L38: =IF(OR($C38="",$D38="",$E38=""),"",IF(ISNUMBER(OFFSET('4-Air Panel_v2_WPR'!$I$32,(ROW()-ROW($F$32))*Airv2relay,0))=FALSE,"",OFFSET('4-Air Panel_v2_WPR'!$I$32,(ROW()-ROW($F$32))*Airv2relay,0))) ->  | M38: =IF(OR(C38="",D38="",E38=""),"",INDEX(v2gAirThresholds[Max],10,1)*INDEX(v2gAirThresholds[Percent Tolerance],10,1)) ->  | Q38: =IF(OR($C38="",$D38="",$E38=""),"",IF(ISNUMBER(OFFSET('4-Air Panel_v2_WPR'!$G$32,(ROW()-ROW($F$32))*Airv2relay,0))=FALSE,"",OFFSET('4-Air Panel_v2_WPR'!$G$32,(ROW()-ROW($F$32))*Airv2relay,0))) ->  | R38: =IF(OR(C38="",D38="",E38=""),"",INDEX(v2gAirThresholds[Max],11,1)*INDEX(v2gAirThresholds[Percent Tolerance],11,1)) ->  | T38: =IF(OR($C38="",$D38="",$E38=""),"",IF(ISNUMBER(OFFSET('4-Air Panel_v2_WPR'!$E$32,(ROW()-ROW($F$32))*Airv2relay,0))=FALSE,"",OFFSET('4-Air Panel_v2_WPR'!$E$32,(ROW()-ROW($F$32))*Airv2relay,0))) ->  | U38: =IF(OR($C38="",$D38="",$E38="",'4-Air Panel_v2_WPR'!$G$4=""),"",IF('4-Air Panel_v2_WPR'!$G$4="Acrylonitrile",INDEX(v2gAirThresholds[Max],12,1)*INDEX(v2gAirThresholds[Percent Tolerance],12,1),INDEX(v2gAirThresholds[Max],13,1)*INDEX(v2gAirThresholds[Percent Tolerance],13,1))) ->  | W38: =IF(OR($C38="",$D38="",$E38=""),"",IF(ISNUMBER(OFFSET('4-Air Panel_v2_WPR'!$F$32,(ROW()-ROW($F$32))*Airv2relay,0))=FALSE,"",OFFSET('4-Air Panel_v2_WPR'!$F$32,(ROW()-ROW($F$32))*Airv2relay,0))) ->  | X38: =IF(OR(C38="",D38="",E38=""),"",INDEX(v2gAirThresholds[Max],14,1)*INDEX(v2gAirThresholds[Percent Tolerance],14,1)) ->  | Z38: =IF(OR($C38="",$D38="",$E38=""),"",IF(ISNUMBER(OFFSET('4-Air Panel_v2_WPR'!$D$32,(ROW()-ROW($F$32))*Airv2relay,0))=FALSE,"",OFFSET('4-Air Panel_v2_WPR'!$D$32,(ROW()-ROW($F$32))*Airv2relay,0))) ->  | AA38: =IF(OR(C38="",D38="",E38=""),"",INDEX(v2gAirThresholds[Max],15,1)*INDEX(v2gAirThresholds[Percent Tolerance],15,1)) ->  | AC38: =IF(OR($C38="",$D38="",$E38=""),"",IF(ISNUMBER(OFFSET('4-Air Panel_v2_WPR'!$H$32,(ROW()-ROW($F$32))*Airv2relay,0))=FALSE,"",OFFSET('4-Air Panel_v2_WPR'!$H$32,(ROW()-ROW($F$32))*Airv2relay,0))) ->  | AD38: =IF(OR(C38="",D38="",E38=""),"",INDEX(v2gAirThresholds[Max],16,1)*INDEX(v2gAirThresholds[Percent Tolerance],16,1)) ->  | AF38: =IF(OR($C38="",$D38="",$E38=""),"",IF(ISNUMBER(OFFSET('4-Air Panel_v2_WPR'!$I$32,(ROW()-ROW($F$32))*Airv2relay,0))=FALSE,"",OFFSET('4-Air Panel_v2_WPR'!$I$32,(ROW()-ROW($F$32))*Airv2relay,0))) ->  | AG38: =IF(OR(C38="",D38="",E38=""),"",INDEX(v2gAirThresholds[Max],17,1)*INDEX(v2gAirThresholds[Percent Tolerance],17,1)) -> 
C39: =IF(LookUpData!$E$61<=C38,"",C38+1) ->  | D39: =IF(AND(C39<>"",OFFSET('4-Air Panel_v2_WPR'!$E$17,(ROW()-ROW($F$32))*Airv2relay,0)<>""),OFFSET('4-Air Panel_v2_WPR'!$E$17,(ROW()-ROW($F$32))*Airv2relay,0),"") ->  | E39: =IF(OFFSET('4-Air Panel_v2_WPR'!$L$17,(ROW()-ROW($F$32))*Airv2relay,0)="","",IF(AND(C39<>"",D39<>""),OFFSET('4-Air Panel_v2_WPR'!$L$17,(ROW()-ROW($F$32))*Airv2relay,0),"")) ->  | F39: =IF(OR($C39="",$D39="",$E39=""),"",IF(ISNUMBER(OFFSET('4-Air Panel_v2_WPR'!$F$32,(ROW()-ROW($F$32))*Airv2relay,0))=FALSE,"",OFFSET('4-Air Panel_v2_WPR'!$F$32,(ROW()-ROW($F$32))*Airv2relay,0))) ->  | G39: =IF(OR(C39="",D39="",E39=""),"",INDEX(v2gAirThresholds[Max],8,1)*INDEX(v2gAirThresholds[Percent Tolerance],8,1)) ->  | I39: =IF(OR($C39="",$D39="",$E39=""),"",IF(ISNUMBER(OFFSET('4-Air Panel_v2_WPR'!$D$32,(ROW()-ROW($F$32))*Airv2relay,0))=FALSE,"",OFFSET('4-Air Panel_v2_WPR'!$D$32,(ROW()-ROW($F$32))*Airv2relay,0))) ->  | J39: =IF(OR(C39="",D39="",E39=""),"",INDEX(v2gAirThresholds[Max],9,1)*INDEX(v2gAirThresholds[Percent Tolerance],9,1)) ->  | L39: =IF(OR($C39="",$D39="",$E39=""),"",IF(ISNUMBER(OFFSET('4-Air Panel_v2_WPR'!$I$32,(ROW()-ROW($F$32))*Airv2relay,0))=FALSE,"",OFFSET('4-Air Panel_v2_WPR'!$I$32,(ROW()-ROW($F$32))*Airv2relay,0))) ->  | M39: =IF(OR(C39="",D39="",E39=""),"",INDEX(v2gAirThresholds[Max],10,1)*INDEX(v2gAirThresholds[Percent Tolerance],10,1)) ->  | Q39: =IF(OR($C39="",$D39="",$E39=""),"",IF(ISNUMBER(OFFSET('4-Air Panel_v2_WPR'!$G$32,(ROW()-ROW($F$32))*Airv2relay,0))=FALSE,"",OFFSET('4-Air Panel_v2_WPR'!$G$32,(ROW()-ROW($F$32))*Airv2relay,0))) ->  | R39: =IF(OR(C39="",D39="",E39=""),"",INDEX(v2gAirThresholds[Max],11,1)*INDEX(v2gAirThresholds[Percent Tolerance],11,1)) ->  | T39: =IF(OR($C39="",$D39="",$E39=""),"",IF(ISNUMBER(OFFSET('4-Air Panel_v2_WPR'!$E$32,(ROW()-ROW($F$32))*Airv2relay,0))=FALSE,"",OFFSET('4-Air Panel_v2_WPR'!$E$32,(ROW()-ROW($F$32))*Airv2relay,0))) ->  | U39: =IF(OR($C39="",$D39="",$E39="",'4-Air Panel_v2_WPR'!$G$4=""),"",IF('4-Air Panel_v2_WPR'!$G$4="Acrylonitrile",INDEX(v2gAirThresholds[Max],12,1)*INDEX(v2gAirThresholds[Percent Tolerance],12,1),INDEX(v2gAirThresholds[Max],13,1)*INDEX(v2gAirThresholds[Percent Tolerance],13,1))) ->  | W39: =IF(OR($C39="",$D39="",$E39=""),"",IF(ISNUMBER(OFFSET('4-Air Panel_v2_WPR'!$F$32,(ROW()-ROW($F$32))*Airv2relay,0))=FALSE,"",OFFSET('4-Air Panel_v2_WPR'!$F$32,(ROW()-ROW($F$32))*Airv2relay,0))) ->  | X39: =IF(OR(C39="",D39="",E39=""),"",INDEX(v2gAirThresholds[Max],14,1)*INDEX(v2gAirThresholds[Percent Tolerance],14,1)) ->  | Z39: =IF(OR($C39="",$D39="",$E39=""),"",IF(ISNUMBER(OFFSET('4-Air Panel_v2_WPR'!$D$32,(ROW()-ROW($F$32))*Airv2relay,0))=FALSE,"",OFFSET('4-Air Panel_v2_WPR'!$D$32,(ROW()-ROW($F$32))*Airv2relay,0))) ->  | AA39: =IF(OR(C39="",D39="",E39=""),"",INDEX(v2gAirThresholds[Max],15,1)*INDEX(v2gAirThresholds[Percent Tolerance],15,1)) ->  | AC39: =IF(OR($C39="",$D39="",$E39=""),"",IF(ISNUMBER(OFFSET('4-Air Panel_v2_WPR'!$H$32,(ROW()-ROW($F$32))*Airv2relay,0))=FALSE,"",OFFSET('4-Air Panel_v2_WPR'!$H$32,(ROW()-ROW($F$32))*Airv2relay,0))) ->  | AD39: =IF(OR(C39="",D39="",E39=""),"",INDEX(v2gAirThresholds[Max],16,1)*INDEX(v2gAirThresholds[Percent Tolerance],16,1)) ->  | AF39: =IF(OR($C39="",$D39="",$E39=""),"",IF(ISNUMBER(OFFSET('4-Air Panel_v2_WPR'!$I$32,(ROW()-ROW($F$32))*Airv2relay,0))=FALSE,"",OFFSET('4-Air Panel_v2_WPR'!$I$32,(ROW()-ROW($F$32))*Airv2relay,0))) ->  | AG39: =IF(OR(C39="",D39="",E39=""),"",INDEX(v2gAirThresholds[Max],17,1)*INDEX(v2gAirThresholds[Percent Tolerance],17,1)) -> 
C40: =IF(LookUpData!$E$61<=C39,"",C39+1) ->  | D40: =IF(AND(C40<>"",OFFSET('4-Air Panel_v2_WPR'!$E$17,(ROW()-ROW($F$32))*Airv2relay,0)<>""),OFFSET('4-Air Panel_v2_WPR'!$E$17,(ROW()-ROW($F$32))*Airv2relay,0),"") ->  | E40: =IF(OFFSET('4-Air Panel_v2_WPR'!$L$17,(ROW()-ROW($F$32))*Airv2relay,0)="","",IF(AND(C40<>"",D40<>""),OFFSET('4-Air Panel_v2_WPR'!$L$17,(ROW()-ROW($F$32))*Airv2relay,0),"")) ->  | F40: =IF(OR($C40="",$D40="",$E40=""),"",IF(ISNUMBER(OFFSET('4-Air Panel_v2_WPR'!$F$32,(ROW()-ROW($F$32))*Airv2relay,0))=FALSE,"",OFFSET('4-Air Panel_v2_WPR'!$F$32,(ROW()-ROW($F$32))*Airv2relay,0))) ->  | G40: =IF(OR(C40="",D40="",E40=""),"",INDEX(v2gAirThresholds[Max],8,1)*INDEX(v2gAirThresholds[Percent Tolerance],8,1)) ->  | I40: =IF(OR($C40="",$D40="",$E40=""),"",IF(ISNUMBER(OFFSET('4-Air Panel_v2_WPR'!$D$32,(ROW()-ROW($F$32))*Airv2relay,0))=FALSE,"",OFFSET('4-Air Panel_v2_WPR'!$D$32,(ROW()-ROW($F$32))*Airv2relay,0))) ->  | J40: =IF(OR(C40="",D40="",E40=""),"",INDEX(v2gAirThresholds[Max],9,1)*INDEX(v2gAirThresholds[Percent Tolerance],9,1)) ->  | L40: =IF(OR($C40="",$D40="",$E40=""),"",IF(ISNUMBER(OFFSET('4-Air Panel_v2_WPR'!$I$32,(ROW()-ROW($F$32))*Airv2relay,0))=FALSE,"",OFFSET('4-Air Panel_v2_WPR'!$I$32,(ROW()-ROW($F$32))*Airv2relay,0))) ->  | M40: =IF(OR(C40="",D40="",E40=""),"",INDEX(v2gAirThresholds[Max],10,1)*INDEX(v2gAirThresholds[Percent Tolerance],10,1)) ->  | Q40: =IF(OR($C40="",$D40="",$E40=""),"",IF(ISNUMBER(OFFSET('4-Air Panel_v2_WPR'!$G$32,(ROW()-ROW($F$32))*Airv2relay,0))=FALSE,"",OFFSET('4-Air Panel_v2_WPR'!$G$32,(ROW()-ROW($F$32))*Airv2relay,0))) ->  | R40: =IF(OR(C40="",D40="",E40=""),"",INDEX(v2gAirThresholds[Max],11,1)*INDEX(v2gAirThresholds[Percent Tolerance],11,1)) ->  | T40: =IF(OR($C40="",$D40="",$E40=""),"",IF(ISNUMBER(OFFSET('4-Air Panel_v2_WPR'!$E$32,(ROW()-ROW($F$32))*Airv2relay,0))=FALSE,"",OFFSET('4-Air Panel_v2_WPR'!$E$32,(ROW()-ROW($F$32))*Airv2relay,0))) ->  | U40: =IF(OR($C40="",$D40="",$E40="",'4-Air Panel_v2_WPR'!$G$4=""),"",IF('4-Air Panel_v2_WPR'!$G$4="Acrylonitrile",INDEX(v2gAirThresholds[Max],12,1)*INDEX(v2gAirThresholds[Percent Tolerance],12,1),INDEX(v2gAirThresholds[Max],13,1)*INDEX(v2gAirThresholds[Percent Tolerance],13,1))) ->  | W40: =IF(OR($C40="",$D40="",$E40=""),"",IF(ISNUMBER(OFFSET('4-Air Panel_v2_WPR'!$F$32,(ROW()-ROW($F$32))*Airv2relay,0))=FALSE,"",OFFSET('4-Air Panel_v2_WPR'!$F$32,(ROW()-ROW($F$32))*Airv2relay,0))) ->  | X40: =IF(OR(C40="",D40="",E40=""),"",INDEX(v2gAirThresholds[Max],14,1)*INDEX(v2gAirThresholds[Percent Tolerance],14,1)) ->  | Z40: =IF(OR($C40="",$D40="",$E40=""),"",IF(ISNUMBER(OFFSET('4-Air Panel_v2_WPR'!$D$32,(ROW()-ROW($F$32))*Airv2relay,0))=FALSE,"",OFFSET('4-Air Panel_v2_WPR'!$D$32,(ROW()-ROW($F$32))*Airv2relay,0))) ->  | AA40: =IF(OR(C40="",D40="",E40=""),"",INDEX(v2gAirThresholds[Max],15,1)*INDEX(v2gAirThresholds[Percent Tolerance],15,1)) ->  | AC40: =IF(OR($C40="",$D40="",$E40=""),"",IF(ISNUMBER(OFFSET('4-Air Panel_v2_WPR'!$H$32,(ROW()-ROW($F$32))*Airv2relay,0))=FALSE,"",OFFSET('4-Air Panel_v2_WPR'!$H$32,(ROW()-ROW($F$32))*Airv2relay,0))) ->  | AD40: =IF(OR(C40="",D40="",E40=""),"",INDEX(v2gAirThresholds[Max],16,1)*INDEX(v2gAirThresholds[Percent Tolerance],16,1)) ->  | AF40: =IF(OR($C40="",$D40="",$E40=""),"",IF(ISNUMBER(OFFSET('4-Air Panel_v2_WPR'!$I$32,(ROW()-ROW($F$32))*Airv2relay,0))=FALSE,"",OFFSET('4-Air Panel_v2_WPR'!$I$32,(ROW()-ROW($F$32))*Airv2relay,0))) ->  | AG40: =IF(OR(C40="",D40="",E40=""),"",INDEX(v2gAirThresholds[Max],17,1)*INDEX(v2gAirThresholds[Percent Tolerance],17,1)) -> 
C41: =IF(LookUpData!$E$61<=C40,"",C40+1) ->  | D41: =IF(AND(C41<>"",OFFSET('4-Air Panel_v2_WPR'!$E$17,(ROW()-ROW($F$32))*Airv2relay,0)<>""),OFFSET('4-Air Panel_v2_WPR'!$E$17,(ROW()-ROW($F$32))*Airv2relay,0),"") ->  | E41: =IF(OFFSET('4-Air Panel_v2_WPR'!$L$17,(ROW()-ROW($F$32))*Airv2relay,0)="","",IF(AND(C41<>"",D41<>""),OFFSET('4-Air Panel_v2_WPR'!$L$17,(ROW()-ROW($F$32))*Airv2relay,0),"")) ->  | F41: =IF(OR($C41="",$D41="",$E41=""),"",IF(ISNUMBER(OFFSET('4-Air Panel_v2_WPR'!$F$32,(ROW()-ROW($F$32))*Airv2relay,0))=FALSE,"",OFFSET('4-Air Panel_v2_WPR'!$F$32,(ROW()-ROW($F$32))*Airv2relay,0))) ->  | G41: =IF(OR(C41="",D41="",E41=""),"",INDEX(v2gAirThresholds[Max],8,1)*INDEX(v2gAirThresholds[Percent Tolerance],8,1)) ->  | I41: =IF(OR($C41="",$D41="",$E41=""),"",IF(ISNUMBER(OFFSET('4-Air Panel_v2_WPR'!$D$32,(ROW()-ROW($F$32))*Airv2relay,0))=FALSE,"",OFFSET('4-Air Panel_v2_WPR'!$D$32,(ROW()-ROW($F$32))*Airv2relay,0))) ->  | J41: =IF(OR(C41="",D41="",E41=""),"",INDEX(v2gAirThresholds[Max],9,1)*INDEX(v2gAirThresholds[Percent Tolerance],9,1)) ->  | L41: =IF(OR($C41="",$D41="",$E41=""),"",IF(ISNUMBER(OFFSET('4-Air Panel_v2_WPR'!$I$32,(ROW()-ROW($F$32))*Airv2relay,0))=FALSE,"",OFFSET('4-Air Panel_v2_WPR'!$I$32,(ROW()-ROW($F$32))*Airv2relay,0))) ->  | M41: =IF(OR(C41="",D41="",E41=""),"",INDEX(v2gAirThresholds[Max],10,1)*INDEX(v2gAirThresholds[Percent Tolerance],10,1)) ->  | Q41: =IF(OR($C41="",$D41="",$E41=""),"",IF(ISNUMBER(OFFSET('4-Air Panel_v2_WPR'!$G$32,(ROW()-ROW($F$32))*Airv2relay,0))=FALSE,"",OFFSET('4-Air Panel_v2_WPR'!$G$32,(ROW()-ROW($F$32))*Airv2relay,0))) ->  | R41: =IF(OR(C41="",D41="",E41=""),"",INDEX(v2gAirThresholds[Max],11,1)*INDEX(v2gAirThresholds[Percent Tolerance],11,1)) ->  | T41: =IF(OR($C41="",$D41="",$E41=""),"",IF(ISNUMBER(OFFSET('4-Air Panel_v2_WPR'!$E$32,(ROW()-ROW($F$32))*Airv2relay,0))=FALSE,"",OFFSET('4-Air Panel_v2_WPR'!$E$32,(ROW()-ROW($F$32))*Airv2relay,0))) ->  | U41: =IF(OR($C41="",$D41="",$E41="",'4-Air Panel_v2_WPR'!$G$4=""),"",IF('4-Air Panel_v2_WPR'!$G$4="Acrylonitrile",INDEX(v2gAirThresholds[Max],12,1)*INDEX(v2gAirThresholds[Percent Tolerance],12,1),INDEX(v2gAirThresholds[Max],13,1)*INDEX(v2gAirThresholds[Percent Tolerance],13,1))) ->  | W41: =IF(OR($C41="",$D41="",$E41=""),"",IF(ISNUMBER(OFFSET('4-Air Panel_v2_WPR'!$F$32,(ROW()-ROW($F$32))*Airv2relay,0))=FALSE,"",OFFSET('4-Air Panel_v2_WPR'!$F$32,(ROW()-ROW($F$32))*Airv2relay,0))) ->  | X41: =IF(OR(C41="",D41="",E41=""),"",INDEX(v2gAirThresholds[Max],14,1)*INDEX(v2gAirThresholds[Percent Tolerance],14,1)) ->  | Z41: =IF(OR($C41="",$D41="",$E41=""),"",IF(ISNUMBER(OFFSET('4-Air Panel_v2_WPR'!$D$32,(ROW()-ROW($F$32))*Airv2relay,0))=FALSE,"",OFFSET('4-Air Panel_v2_WPR'!$D$32,(ROW()-ROW($F$32))*Airv2relay,0))) ->  | AA41: =IF(OR(C41="",D41="",E41=""),"",INDEX(v2gAirThresholds[Max],15,1)*INDEX(v2gAirThresholds[Percent Tolerance],15,1)) ->  | AC41: =IF(OR($C41="",$D41="",$E41=""),"",IF(ISNUMBER(OFFSET('4-Air Panel_v2_WPR'!$H$32,(ROW()-ROW($F$32))*Airv2relay,0))=FALSE,"",OFFSET('4-Air Panel_v2_WPR'!$H$32,(ROW()-ROW($F$32))*Airv2relay,0))) ->  | AD41: =IF(OR(C41="",D41="",E41=""),"",INDEX(v2gAirThresholds[Max],16,1)*INDEX(v2gAirThresholds[Percent Tolerance],16,1)) ->  | AF41: =IF(OR($C41="",$D41="",$E41=""),"",IF(ISNUMBER(OFFSET('4-Air Panel_v2_WPR'!$I$32,(ROW()-ROW($F$32))*Airv2relay,0))=FALSE,"",OFFSET('4-Air Panel_v2_WPR'!$I$32,(ROW()-ROW($F$32))*Airv2relay,0))) ->  | AG41: =IF(OR(C41="",D41="",E41=""),"",INDEX(v2gAirThresholds[Max],17,1)*INDEX(v2gAirThresholds[Percent Tolerance],17,1)) -> 
C42: =IF(LookUpData!$E$61<=C41,"",C41+1) ->  | D42: =IF(AND(C42<>"",OFFSET('4-Air Panel_v2_WPR'!$E$17,(ROW()-ROW($F$32))*Airv2relay,0)<>""),OFFSET('4-Air Panel_v2_WPR'!$E$17,(ROW()-ROW($F$32))*Airv2relay,0),"") ->  | E42: =IF(OFFSET('4-Air Panel_v2_WPR'!$L$17,(ROW()-ROW($F$32))*Airv2relay,0)="","",IF(AND(C42<>"",D42<>""),OFFSET('4-Air Panel_v2_WPR'!$L$17,(ROW()-ROW($F$32))*Airv2relay,0),"")) ->  | F42: =IF(OR($C42="",$D42="",$E42=""),"",IF(ISNUMBER(OFFSET('4-Air Panel_v2_WPR'!$F$32,(ROW()-ROW($F$32))*Airv2relay,0))=FALSE,"",OFFSET('4-Air Panel_v2_WPR'!$F$32,(ROW()-ROW($F$32))*Airv2relay,0))) ->  | G42: =IF(OR(C42="",D42="",E42=""),"",INDEX(v2gAirThresholds[Max],8,1)*INDEX(v2gAirThresholds[Percent Tolerance],8,1)) ->  | I42: =IF(OR($C42="",$D42="",$E42=""),"",IF(ISNUMBER(OFFSET('4-Air Panel_v2_WPR'!$D$32,(ROW()-ROW($F$32))*Airv2relay,0))=FALSE,"",OFFSET('4-Air Panel_v2_WPR'!$D$32,(ROW()-ROW($F$32))*Airv2relay,0))) ->  | J42: =IF(OR(C42="",D42="",E42=""),"",INDEX(v2gAirThresholds[Max],9,1)*INDEX(v2gAirThresholds[Percent Tolerance],9,1)) ->  | L42: =IF(OR($C42="",$D42="",$E42=""),"",IF(ISNUMBER(OFFSET('4-Air Panel_v2_WPR'!$I$32,(ROW()-ROW($F$32))*Airv2relay,0))=FALSE,"",OFFSET('4-Air Panel_v2_WPR'!$I$32,(ROW()-ROW($F$32))*Airv2relay,0))) ->  | M42: =IF(OR(C42="",D42="",E42=""),"",INDEX(v2gAirThresholds[Max],10,1)*INDEX(v2gAirThresholds[Percent Tolerance],10,1)) ->  | Q42: =IF(OR($C42="",$D42="",$E42=""),"",IF(ISNUMBER(OFFSET('4-Air Panel_v2_WPR'!$G$32,(ROW()-ROW($F$32))*Airv2relay,0))=FALSE,"",OFFSET('4-Air Panel_v2_WPR'!$G$32,(ROW()-ROW($F$32))*Airv2relay,0))) ->  | R42: =IF(OR(C42="",D42="",E42=""),"",INDEX(v2gAirThresholds[Max],11,1)*INDEX(v2gAirThresholds[Percent Tolerance],11,1)) ->  | T42: =IF(OR($C42="",$D42="",$E42=""),"",IF(ISNUMBER(OFFSET('4-Air Panel_v2_WPR'!$E$32,(ROW()-ROW($F$32))*Airv2relay,0))=FALSE,"",OFFSET('4-Air Panel_v2_WPR'!$E$32,(ROW()-ROW($F$32))*Airv2relay,0))) ->  | U42: =IF(OR($C42="",$D42="",$E42="",'4-Air Panel_v2_WPR'!$G$4=""),"",IF('4-Air Panel_v2_WPR'!$G$4="Acrylonitrile",INDEX(v2gAirThresholds[Max],12,1)*INDEX(v2gAirThresholds[Percent Tolerance],12,1),INDEX(v2gAirThresholds[Max],13,1)*INDEX(v2gAirThresholds[Percent Tolerance],13,1))) ->  | W42: =IF(OR($C42="",$D42="",$E42=""),"",IF(ISNUMBER(OFFSET('4-Air Panel_v2_WPR'!$F$32,(ROW()-ROW($F$32))*Airv2relay,0))=FALSE,"",OFFSET('4-Air Panel_v2_WPR'!$F$32,(ROW()-ROW($F$32))*Airv2relay,0))) ->  | X42: =IF(OR(C42="",D42="",E42=""),"",INDEX(v2gAirThresholds[Max],14,1)*INDEX(v2gAirThresholds[Percent Tolerance],14,1)) ->  | Z42: =IF(OR($C42="",$D42="",$E42=""),"",IF(ISNUMBER(OFFSET('4-Air Panel_v2_WPR'!$D$32,(ROW()-ROW($F$32))*Airv2relay,0))=FALSE,"",OFFSET('4-Air Panel_v2_WPR'!$D$32,(ROW()-ROW($F$32))*Airv2relay,0))) ->  | AA42: =IF(OR(C42="",D42="",E42=""),"",INDEX(v2gAirThresholds[Max],15,1)*INDEX(v2gAirThresholds[Percent Tolerance],15,1)) ->  | AC42: =IF(OR($C42="",$D42="",$E42=""),"",IF(ISNUMBER(OFFSET('4-Air Panel_v2_WPR'!$H$32,(ROW()-ROW($F$32))*Airv2relay,0))=FALSE,"",OFFSET('4-Air Panel_v2_WPR'!$H$32,(ROW()-ROW($F$32))*Airv2relay,0))) ->  | AD42: =IF(OR(C42="",D42="",E42=""),"",INDEX(v2gAirThresholds[Max],16,1)*INDEX(v2gAirThresholds[Percent Tolerance],16,1)) ->  | AF42: =IF(OR($C42="",$D42="",$E42=""),"",IF(ISNUMBER(OFFSET('4-Air Panel_v2_WPR'!$I$32,(ROW()-ROW($F$32))*Airv2relay,0))=FALSE,"",OFFSET('4-Air Panel_v2_WPR'!$I$32,(ROW()-ROW($F$32))*Airv2relay,0))) ->  | AG42: =IF(OR(C42="",D42="",E42=""),"",INDEX(v2gAirThresholds[Max],17,1)*INDEX(v2gAirThresholds[Percent Tolerance],17,1)) -> 
C43: =IF(LookUpData!$E$61<=C42,"",C42+1) ->  | D43: =IF(AND(C43<>"",OFFSET('4-Air Panel_v2_WPR'!$E$17,(ROW()-ROW($F$32))*Airv2relay,0)<>""),OFFSET('4-Air Panel_v2_WPR'!$E$17,(ROW()-ROW($F$32))*Airv2relay,0),"") ->  | E43: =IF(OFFSET('4-Air Panel_v2_WPR'!$L$17,(ROW()-ROW($F$32))*Airv2relay,0)="","",IF(AND(C43<>"",D43<>""),OFFSET('4-Air Panel_v2_WPR'!$L$17,(ROW()-ROW($F$32))*Airv2relay,0),"")) ->  | F43: =IF(OR($C43="",$D43="",$E43=""),"",IF(ISNUMBER(OFFSET('4-Air Panel_v2_WPR'!$F$32,(ROW()-ROW($F$32))*Airv2relay,0))=FALSE,"",OFFSET('4-Air Panel_v2_WPR'!$F$32,(ROW()-ROW($F$32))*Airv2relay,0))) ->  | G43: =IF(OR(C43="",D43="",E43=""),"",INDEX(v2gAirThresholds[Max],8,1)*INDEX(v2gAirThresholds[Percent Tolerance],8,1)) ->  | I43: =IF(OR($C43="",$D43="",$E43=""),"",IF(ISNUMBER(OFFSET('4-Air Panel_v2_WPR'!$D$32,(ROW()-ROW($F$32))*Airv2relay,0))=FALSE,"",OFFSET('4-Air Panel_v2_WPR'!$D$32,(ROW()-ROW($F$32))*Airv2relay,0))) ->  | J43: =IF(OR(C43="",D43="",E43=""),"",INDEX(v2gAirThresholds[Max],9,1)*INDEX(v2gAirThresholds[Percent Tolerance],9,1)) ->  | L43: =IF(OR($C43="",$D43="",$E43=""),"",IF(ISNUMBER(OFFSET('4-Air Panel_v2_WPR'!$I$32,(ROW()-ROW($F$32))*Airv2relay,0))=FALSE,"",OFFSET('4-Air Panel_v2_WPR'!$I$32,(ROW()-ROW($F$32))*Airv2relay,0))) ->  | M43: =IF(OR(C43="",D43="",E43=""),"",INDEX(v2gAirThresholds[Max],10,1)*INDEX(v2gAirThresholds[Percent Tolerance],10,1)) ->  | Q43: =IF(OR($C43="",$D43="",$E43=""),"",IF(ISNUMBER(OFFSET('4-Air Panel_v2_WPR'!$G$32,(ROW()-ROW($F$32))*Airv2relay,0))=FALSE,"",OFFSET('4-Air Panel_v2_WPR'!$G$32,(ROW()-ROW($F$32))*Airv2relay,0))) ->  | R43: =IF(OR(C43="",D43="",E43=""),"",INDEX(v2gAirThresholds[Max],11,1)*INDEX(v2gAirThresholds[Percent Tolerance],11,1)) ->  | T43: =IF(OR($C43="",$D43="",$E43=""),"",IF(ISNUMBER(OFFSET('4-Air Panel_v2_WPR'!$E$32,(ROW()-ROW($F$32))*Airv2relay,0))=FALSE,"",OFFSET('4-Air Panel_v2_WPR'!$E$32,(ROW()-ROW($F$32))*Airv2relay,0))) ->  | U43: =IF(OR($C43="",$D43="",$E43="",'4-Air Panel_v2_WPR'!$G$4=""),"",IF('4-Air Panel_v2_WPR'!$G$4="Acrylonitrile",INDEX(v2gAirThresholds[Max],12,1)*INDEX(v2gAirThresholds[Percent Tolerance],12,1),INDEX(v2gAirThresholds[Max],13,1)*INDEX(v2gAirThresholds[Percent Tolerance],13,1))) ->  | W43: =IF(OR($C43="",$D43="",$E43=""),"",IF(ISNUMBER(OFFSET('4-Air Panel_v2_WPR'!$F$32,(ROW()-ROW($F$32))*Airv2relay,0))=FALSE,"",OFFSET('4-Air Panel_v2_WPR'!$F$32,(ROW()-ROW($F$32))*Airv2relay,0))) ->  | X43: =IF(OR(C43="",D43="",E43=""),"",INDEX(v2gAirThresholds[Max],14,1)*INDEX(v2gAirThresholds[Percent Tolerance],14,1)) ->  | Z43: =IF(OR($C43="",$D43="",$E43=""),"",IF(ISNUMBER(OFFSET('4-Air Panel_v2_WPR'!$D$32,(ROW()-ROW($F$32))*Airv2relay,0))=FALSE,"",OFFSET('4-Air Panel_v2_WPR'!$D$32,(ROW()-ROW($F$32))*Airv2relay,0))) ->  | AA43: =IF(OR(C43="",D43="",E43=""),"",INDEX(v2gAirThresholds[Max],15,1)*INDEX(v2gAirThresholds[Percent Tolerance],15,1)) ->  | AC43: =IF(OR($C43="",$D43="",$E43=""),"",IF(ISNUMBER(OFFSET('4-Air Panel_v2_WPR'!$H$32,(ROW()-ROW($F$32))*Airv2relay,0))=FALSE,"",OFFSET('4-Air Panel_v2_WPR'!$H$32,(ROW()-ROW($F$32))*Airv2relay,0))) ->  | AD43: =IF(OR(C43="",D43="",E43=""),"",INDEX(v2gAirThresholds[Max],16,1)*INDEX(v2gAirThresholds[Percent Tolerance],16,1)) ->  | AF43: =IF(OR($C43="",$D43="",$E43=""),"",IF(ISNUMBER(OFFSET('4-Air Panel_v2_WPR'!$I$32,(ROW()-ROW($F$32))*Airv2relay,0))=FALSE,"",OFFSET('4-Air Panel_v2_WPR'!$I$32,(ROW()-ROW($F$32))*Airv2relay,0))) ->  | AG43: =IF(OR(C43="",D43="",E43=""),"",INDEX(v2gAirThresholds[Max],17,1)*INDEX(v2gAirThresholds[Percent Tolerance],17,1)) -> 
C44: =IF(LookUpData!$E$61<=C43,"",C43+1) ->  | D44: =IF(AND(C44<>"",OFFSET('4-Air Panel_v2_WPR'!$E$17,(ROW()-ROW($F$32))*Airv2relay,0)<>""),OFFSET('4-Air Panel_v2_WPR'!$E$17,(ROW()-ROW($F$32))*Airv2relay,0),"") ->  | E44: =IF(OFFSET('4-Air Panel_v2_WPR'!$L$17,(ROW()-ROW($F$32))*Airv2relay,0)="","",IF(AND(C44<>"",D44<>""),OFFSET('4-Air Panel_v2_WPR'!$L$17,(ROW()-ROW($F$32))*Airv2relay,0),"")) ->  | F44: =IF(OR($C44="",$D44="",$E44=""),"",IF(ISNUMBER(OFFSET('4-Air Panel_v2_WPR'!$F$32,(ROW()-ROW($F$32))*Airv2relay,0))=FALSE,"",OFFSET('4-Air Panel_v2_WPR'!$F$32,(ROW()-ROW($F$32))*Airv2relay,0))) ->  | G44: =IF(OR(C44="",D44="",E44=""),"",INDEX(v2gAirThresholds[Max],8,1)*INDEX(v2gAirThresholds[Percent Tolerance],8,1)) ->  | I44: =IF(OR($C44="",$D44="",$E44=""),"",IF(ISNUMBER(OFFSET('4-Air Panel_v2_WPR'!$D$32,(ROW()-ROW($F$32))*Airv2relay,0))=FALSE,"",OFFSET('4-Air Panel_v2_WPR'!$D$32,(ROW()-ROW($F$32))*Airv2relay,0))) ->  | J44: =IF(OR(C44="",D44="",E44=""),"",INDEX(v2gAirThresholds[Max],9,1)*INDEX(v2gAirThresholds[Percent Tolerance],9,1)) ->  | L44: =IF(OR($C44="",$D44="",$E44=""),"",IF(ISNUMBER(OFFSET('4-Air Panel_v2_WPR'!$I$32,(ROW()-ROW($F$32))*Airv2relay,0))=FALSE,"",OFFSET('4-Air Panel_v2_WPR'!$I$32,(ROW()-ROW($F$32))*Airv2relay,0))) ->  | M44: =IF(OR(C44="",D44="",E44=""),"",INDEX(v2gAirThresholds[Max],10,1)*INDEX(v2gAirThresholds[Percent Tolerance],10,1)) ->  | Q44: =IF(OR($C44="",$D44="",$E44=""),"",IF(ISNUMBER(OFFSET('4-Air Panel_v2_WPR'!$G$32,(ROW()-ROW($F$32))*Airv2relay,0))=FALSE,"",OFFSET('4-Air Panel_v2_WPR'!$G$32,(ROW()-ROW($F$32))*Airv2relay,0))) ->  | R44: =IF(OR(C44="",D44="",E44=""),"",INDEX(v2gAirThresholds[Max],11,1)*INDEX(v2gAirThresholds[Percent Tolerance],11,1)) ->  | T44: =IF(OR($C44="",$D44="",$E44=""),"",IF(ISNUMBER(OFFSET('4-Air Panel_v2_WPR'!$E$32,(ROW()-ROW($F$32))*Airv2relay,0))=FALSE,"",OFFSET('4-Air Panel_v2_WPR'!$E$32,(ROW()-ROW($F$32))*Airv2relay,0))) ->  | U44: =IF(OR($C44="",$D44="",$E44="",'4-Air Panel_v2_WPR'!$G$4=""),"",IF('4-Air Panel_v2_WPR'!$G$4="Acrylonitrile",INDEX(v2gAirThresholds[Max],12,1)*INDEX(v2gAirThresholds[Percent Tolerance],12,1),INDEX(v2gAirThresholds[Max],13,1)*INDEX(v2gAirThresholds[Percent Tolerance],13,1))) ->  | W44: =IF(OR($C44="",$D44="",$E44=""),"",IF(ISNUMBER(OFFSET('4-Air Panel_v2_WPR'!$F$32,(ROW()-ROW($F$32))*Airv2relay,0))=FALSE,"",OFFSET('4-Air Panel_v2_WPR'!$F$32,(ROW()-ROW($F$32))*Airv2relay,0))) ->  | X44: =IF(OR(C44="",D44="",E44=""),"",INDEX(v2gAirThresholds[Max],14,1)*INDEX(v2gAirThresholds[Percent Tolerance],14,1)) ->  | Z44: =IF(OR($C44="",$D44="",$E44=""),"",IF(ISNUMBER(OFFSET('4-Air Panel_v2_WPR'!$D$32,(ROW()-ROW($F$32))*Airv2relay,0))=FALSE,"",OFFSET('4-Air Panel_v2_WPR'!$D$32,(ROW()-ROW($F$32))*Airv2relay,0))) ->  | AA44: =IF(OR(C44="",D44="",E44=""),"",INDEX(v2gAirThresholds[Max],15,1)*INDEX(v2gAirThresholds[Percent Tolerance],15,1)) ->  | AC44: =IF(OR($C44="",$D44="",$E44=""),"",IF(ISNUMBER(OFFSET('4-Air Panel_v2_WPR'!$H$32,(ROW()-ROW($F$32))*Airv2relay,0))=FALSE,"",OFFSET('4-Air Panel_v2_WPR'!$H$32,(ROW()-ROW($F$32))*Airv2relay,0))) ->  | AD44: =IF(OR(C44="",D44="",E44=""),"",INDEX(v2gAirThresholds[Max],16,1)*INDEX(v2gAirThresholds[Percent Tolerance],16,1)) ->  | AF44: =IF(OR($C44="",$D44="",$E44=""),"",IF(ISNUMBER(OFFSET('4-Air Panel_v2_WPR'!$I$32,(ROW()-ROW($F$32))*Airv2relay,0))=FALSE,"",OFFSET('4-Air Panel_v2_WPR'!$I$32,(ROW()-ROW($F$32))*Airv2relay,0))) ->  | AG44: =IF(OR(C44="",D44="",E44=""),"",INDEX(v2gAirThresholds[Max],17,1)*INDEX(v2gAirThresholds[Percent Tolerance],17,1)) -> 
C45: =IF(LookUpData!$E$61<=C44,"",C44+1) ->  | D45: =IF(AND(C45<>"",OFFSET('4-Air Panel_v2_WPR'!$E$17,(ROW()-ROW($F$32))*Airv2relay,0)<>""),OFFSET('4-Air Panel_v2_WPR'!$E$17,(ROW()-ROW($F$32))*Airv2relay,0),"") ->  | E45: =IF(OFFSET('4-Air Panel_v2_WPR'!$L$17,(ROW()-ROW($F$32))*Airv2relay,0)="","",IF(AND(C45<>"",D45<>""),OFFSET('4-Air Panel_v2_WPR'!$L$17,(ROW()-ROW($F$32))*Airv2relay,0),"")) ->  | F45: =IF(OR($C45="",$D45="",$E45=""),"",IF(ISNUMBER(OFFSET('4-Air Panel_v2_WPR'!$F$32,(ROW()-ROW($F$32))*Airv2relay,0))=FALSE,"",OFFSET('4-Air Panel_v2_WPR'!$F$32,(ROW()-ROW($F$32))*Airv2relay,0))) ->  | G45: =IF(OR(C45="",D45="",E45=""),"",INDEX(v2gAirThresholds[Max],8,1)*INDEX(v2gAirThresholds[Percent Tolerance],8,1)) ->  | I45: =IF(OR($C45="",$D45="",$E45=""),"",IF(ISNUMBER(OFFSET('4-Air Panel_v2_WPR'!$D$32,(ROW()-ROW($F$32))*Airv2relay,0))=FALSE,"",OFFSET('4-Air Panel_v2_WPR'!$D$32,(ROW()-ROW($F$32))*Airv2relay,0))) ->  | J45: =IF(OR(C45="",D45="",E45=""),"",INDEX(v2gAirThresholds[Max],9,1)*INDEX(v2gAirThresholds[Percent Tolerance],9,1)) ->  | L45: =IF(OR($C45="",$D45="",$E45=""),"",IF(ISNUMBER(OFFSET('4-Air Panel_v2_WPR'!$I$32,(ROW()-ROW($F$32))*Airv2relay,0))=FALSE,"",OFFSET('4-Air Panel_v2_WPR'!$I$32,(ROW()-ROW($F$32))*Airv2relay,0))) ->  | M45: =IF(OR(C45="",D45="",E45=""),"",INDEX(v2gAirThresholds[Max],10,1)*INDEX(v2gAirThresholds[Percent Tolerance],10,1)) ->  | Q45: =IF(OR($C45="",$D45="",$E45=""),"",IF(ISNUMBER(OFFSET('4-Air Panel_v2_WPR'!$G$32,(ROW()-ROW($F$32))*Airv2relay,0))=FALSE,"",OFFSET('4-Air Panel_v2_WPR'!$G$32,(ROW()-ROW($F$32))*Airv2relay,0))) ->  | R45: =IF(OR(C45="",D45="",E45=""),"",INDEX(v2gAirThresholds[Max],11,1)*INDEX(v2gAirThresholds[Percent Tolerance],11,1)) ->  | T45: =IF(OR($C45="",$D45="",$E45=""),"",IF(ISNUMBER(OFFSET('4-Air Panel_v2_WPR'!$E$32,(ROW()-ROW($F$32))*Airv2relay,0))=FALSE,"",OFFSET('4-Air Panel_v2_WPR'!$E$32,(ROW()-ROW($F$32))*Airv2relay,0))) ->  | U45: =IF(OR($C45="",$D45="",$E45="",'4-Air Panel_v2_WPR'!$G$4=""),"",IF('4-Air Panel_v2_WPR'!$G$4="Acrylonitrile",INDEX(v2gAirThresholds[Max],12,1)*INDEX(v2gAirThresholds[Percent Tolerance],12,1),INDEX(v2gAirThresholds[Max],13,1)*INDEX(v2gAirThresholds[Percent Tolerance],13,1))) ->  | W45: =IF(OR($C45="",$D45="",$E45=""),"",IF(ISNUMBER(OFFSET('4-Air Panel_v2_WPR'!$F$32,(ROW()-ROW($F$32))*Airv2relay,0))=FALSE,"",OFFSET('4-Air Panel_v2_WPR'!$F$32,(ROW()-ROW($F$32))*Airv2relay,0))) ->  | X45: =IF(OR(C45="",D45="",E45=""),"",INDEX(v2gAirThresholds[Max],14,1)*INDEX(v2gAirThresholds[Percent Tolerance],14,1)) ->  | Z45: =IF(OR($C45="",$D45="",$E45=""),"",IF(ISNUMBER(OFFSET('4-Air Panel_v2_WPR'!$D$32,(ROW()-ROW($F$32))*Airv2relay,0))=FALSE,"",OFFSET('4-Air Panel_v2_WPR'!$D$32,(ROW()-ROW($F$32))*Airv2relay,0))) ->  | AA45: =IF(OR(C45="",D45="",E45=""),"",INDEX(v2gAirThresholds[Max],15,1)*INDEX(v2gAirThresholds[Percent Tolerance],15,1)) ->  | AC45: =IF(OR($C45="",$D45="",$E45=""),"",IF(ISNUMBER(OFFSET('4-Air Panel_v2_WPR'!$H$32,(ROW()-ROW($F$32))*Airv2relay,0))=FALSE,"",OFFSET('4-Air Panel_v2_WPR'!$H$32,(ROW()-ROW($F$32))*Airv2relay,0))) ->  | AD45: =IF(OR(C45="",D45="",E45=""),"",INDEX(v2gAirThresholds[Max],16,1)*INDEX(v2gAirThresholds[Percent Tolerance],16,1)) ->  | AF45: =IF(OR($C45="",$D45="",$E45=""),"",IF(ISNUMBER(OFFSET('4-Air Panel_v2_WPR'!$I$32,(ROW()-ROW($F$32))*Airv2relay,0))=FALSE,"",OFFSET('4-Air Panel_v2_WPR'!$I$32,(ROW()-ROW($F$32))*Airv2relay,0))) ->  | AG45: =IF(OR(C45="",D45="",E45=""),"",INDEX(v2gAirThresholds[Max],17,1)*INDEX(v2gAirThresholds[Percent Tolerance],17,1)) -> 
C46: =IF(LookUpData!$E$61<=C45,"",C45+1) ->  | D46: =IF(AND(C46<>"",OFFSET('4-Air Panel_v2_WPR'!$E$17,(ROW()-ROW($F$32))*Airv2relay,0)<>""),OFFSET('4-Air Panel_v2_WPR'!$E$17,(ROW()-ROW($F$32))*Airv2relay,0),"") ->  | E46: =IF(OFFSET('4-Air Panel_v2_WPR'!$L$17,(ROW()-ROW($F$32))*Airv2relay,0)="","",IF(AND(C46<>"",D46<>""),OFFSET('4-Air Panel_v2_WPR'!$L$17,(ROW()-ROW($F$32))*Airv2relay,0),"")) ->  | F46: =IF(OR($C46="",$D46="",$E46=""),"",IF(ISNUMBER(OFFSET('4-Air Panel_v2_WPR'!$F$32,(ROW()-ROW($F$32))*Airv2relay,0))=FALSE,"",OFFSET('4-Air Panel_v2_WPR'!$F$32,(ROW()-ROW($F$32))*Airv2relay,0))) ->  | G46: =IF(OR(C46="",D46="",E46=""),"",INDEX(v2gAirThresholds[Max],8,1)*INDEX(v2gAirThresholds[Percent Tolerance],8,1)) ->  | I46: =IF(OR($C46="",$D46="",$E46=""),"",IF(ISNUMBER(OFFSET('4-Air Panel_v2_WPR'!$D$32,(ROW()-ROW($F$32))*Airv2relay,0))=FALSE,"",OFFSET('4-Air Panel_v2_WPR'!$D$32,(ROW()-ROW($F$32))*Airv2relay,0))) ->  | J46: =IF(OR(C46="",D46="",E46=""),"",INDEX(v2gAirThresholds[Max],9,1)*INDEX(v2gAirThresholds[Percent Tolerance],9,1)) ->  | L46: =IF(OR($C46="",$D46="",$E46=""),"",IF(ISNUMBER(OFFSET('4-Air Panel_v2_WPR'!$I$32,(ROW()-ROW($F$32))*Airv2relay,0))=FALSE,"",OFFSET('4-Air Panel_v2_WPR'!$I$32,(ROW()-ROW($F$32))*Airv2relay,0))) ->  | M46: =IF(OR(C46="",D46="",E46=""),"",INDEX(v2gAirThresholds[Max],10,1)*INDEX(v2gAirThresholds[Percent Tolerance],10,1)) ->  | Q46: =IF(OR($C46="",$D46="",$E46=""),"",IF(ISNUMBER(OFFSET('4-Air Panel_v2_WPR'!$G$32,(ROW()-ROW($F$32))*Airv2relay,0))=FALSE,"",OFFSET('4-Air Panel_v2_WPR'!$G$32,(ROW()-ROW($F$32))*Airv2relay,0))) ->  | R46: =IF(OR(C46="",D46="",E46=""),"",INDEX(v2gAirThresholds[Max],11,1)*INDEX(v2gAirThresholds[Percent Tolerance],11,1)) ->  | T46: =IF(OR($C46="",$D46="",$E46=""),"",IF(ISNUMBER(OFFSET('4-Air Panel_v2_WPR'!$E$32,(ROW()-ROW($F$32))*Airv2relay,0))=FALSE,"",OFFSET('4-Air Panel_v2_WPR'!$E$32,(ROW()-ROW($F$32))*Airv2relay,0))) ->  | U46: =IF(OR($C46="",$D46="",$E46="",'4-Air Panel_v2_WPR'!$G$4=""),"",IF('4-Air Panel_v2_WPR'!$G$4="Acrylonitrile",INDEX(v2gAirThresholds[Max],12,1)*INDEX(v2gAirThresholds[Percent Tolerance],12,1),INDEX(v2gAirThresholds[Max],13,1)*INDEX(v2gAirThresholds[Percent Tolerance],13,1))) ->  | W46: =IF(OR($C46="",$D46="",$E46=""),"",IF(ISNUMBER(OFFSET('4-Air Panel_v2_WPR'!$F$32,(ROW()-ROW($F$32))*Airv2relay,0))=FALSE,"",OFFSET('4-Air Panel_v2_WPR'!$F$32,(ROW()-ROW($F$32))*Airv2relay,0))) ->  | X46: =IF(OR(C46="",D46="",E46=""),"",INDEX(v2gAirThresholds[Max],14,1)*INDEX(v2gAirThresholds[Percent Tolerance],14,1)) ->  | Z46: =IF(OR($C46="",$D46="",$E46=""),"",IF(ISNUMBER(OFFSET('4-Air Panel_v2_WPR'!$D$32,(ROW()-ROW($F$32))*Airv2relay,0))=FALSE,"",OFFSET('4-Air Panel_v2_WPR'!$D$32,(ROW()-ROW($F$32))*Airv2relay,0))) ->  | AA46: =IF(OR(C46="",D46="",E46=""),"",INDEX(v2gAirThresholds[Max],15,1)*INDEX(v2gAirThresholds[Percent Tolerance],15,1)) ->  | AC46: =IF(OR($C46="",$D46="",$E46=""),"",IF(ISNUMBER(OFFSET('4-Air Panel_v2_WPR'!$H$32,(ROW()-ROW($F$32))*Airv2relay,0))=FALSE,"",OFFSET('4-Air Panel_v2_WPR'!$H$32,(ROW()-ROW($F$32))*Airv2relay,0))) ->  | AD46: =IF(OR(C46="",D46="",E46=""),"",INDEX(v2gAirThresholds[Max],16,1)*INDEX(v2gAirThresholds[Percent Tolerance],16,1)) ->  | AF46: =IF(OR($C46="",$D46="",$E46=""),"",IF(ISNUMBER(OFFSET('4-Air Panel_v2_WPR'!$I$32,(ROW()-ROW($F$32))*Airv2relay,0))=FALSE,"",OFFSET('4-Air Panel_v2_WPR'!$I$32,(ROW()-ROW($F$32))*Airv2relay,0))) ->  | AG46: =IF(OR(C46="",D46="",E46=""),"",INDEX(v2gAirThresholds[Max],17,1)*INDEX(v2gAirThresholds[Percent Tolerance],17,1)) -> 
C47: =IF(LookUpData!$E$61<=C46,"",C46+1) ->  | D47: =IF(AND(C47<>"",OFFSET('4-Air Panel_v2_WPR'!$E$17,(ROW()-ROW($F$32))*Airv2relay,0)<>""),OFFSET('4-Air Panel_v2_WPR'!$E$17,(ROW()-ROW($F$32))*Airv2relay,0),"") ->  | E47: =IF(OFFSET('4-Air Panel_v2_WPR'!$L$17,(ROW()-ROW($F$32))*Airv2relay,0)="","",IF(AND(C47<>"",D47<>""),OFFSET('4-Air Panel_v2_WPR'!$L$17,(ROW()-ROW($F$32))*Airv2relay,0),"")) ->  | F47: =IF(OR($C47="",$D47="",$E47=""),"",IF(ISNUMBER(OFFSET('4-Air Panel_v2_WPR'!$F$32,(ROW()-ROW($F$32))*Airv2relay,0))=FALSE,"",OFFSET('4-Air Panel_v2_WPR'!$F$32,(ROW()-ROW($F$32))*Airv2relay,0))) ->  | G47: =IF(OR(C47="",D47="",E47=""),"",INDEX(v2gAirThresholds[Max],8,1)*INDEX(v2gAirThresholds[Percent Tolerance],8,1)) ->  | I47: =IF(OR($C47="",$D47="",$E47=""),"",IF(ISNUMBER(OFFSET('4-Air Panel_v2_WPR'!$D$32,(ROW()-ROW($F$32))*Airv2relay,0))=FALSE,"",OFFSET('4-Air Panel_v2_WPR'!$D$32,(ROW()-ROW($F$32))*Airv2relay,0))) ->  | J47: =IF(OR(C47="",D47="",E47=""),"",INDEX(v2gAirThresholds[Max],9,1)*INDEX(v2gAirThresholds[Percent Tolerance],9,1)) ->  | L47: =IF(OR($C47="",$D47="",$E47=""),"",IF(ISNUMBER(OFFSET('4-Air Panel_v2_WPR'!$I$32,(ROW()-ROW($F$32))*Airv2relay,0))=FALSE,"",OFFSET('4-Air Panel_v2_WPR'!$I$32,(ROW()-ROW($F$32))*Airv2relay,0))) ->  | M47: =IF(OR(C47="",D47="",E47=""),"",INDEX(v2gAirThresholds[Max],10,1)*INDEX(v2gAirThresholds[Percent Tolerance],10,1)) ->  | Q47: =IF(OR($C47="",$D47="",$E47=""),"",IF(ISNUMBER(OFFSET('4-Air Panel_v2_WPR'!$G$32,(ROW()-ROW($F$32))*Airv2relay,0))=FALSE,"",OFFSET('4-Air Panel_v2_WPR'!$G$32,(ROW()-ROW($F$32))*Airv2relay,0))) ->  | R47: =IF(OR(C47="",D47="",E47=""),"",INDEX(v2gAirThresholds[Max],11,1)*INDEX(v2gAirThresholds[Percent Tolerance],11,1)) ->  | T47: =IF(OR($C47="",$D47="",$E47=""),"",IF(ISNUMBER(OFFSET('4-Air Panel_v2_WPR'!$E$32,(ROW()-ROW($F$32))*Airv2relay,0))=FALSE,"",OFFSET('4-Air Panel_v2_WPR'!$E$32,(ROW()-ROW($F$32))*Airv2relay,0))) ->  | U47: =IF(OR($C47="",$D47="",$E47="",'4-Air Panel_v2_WPR'!$G$4=""),"",IF('4-Air Panel_v2_WPR'!$G$4="Acrylonitrile",INDEX(v2gAirThresholds[Max],12,1)*INDEX(v2gAirThresholds[Percent Tolerance],12,1),INDEX(v2gAirThresholds[Max],13,1)*INDEX(v2gAirThresholds[Percent Tolerance],13,1))) ->  | W47: =IF(OR($C47="",$D47="",$E47=""),"",IF(ISNUMBER(OFFSET('4-Air Panel_v2_WPR'!$F$32,(ROW()-ROW($F$32))*Airv2relay,0))=FALSE,"",OFFSET('4-Air Panel_v2_WPR'!$F$32,(ROW()-ROW($F$32))*Airv2relay,0))) ->  | X47: =IF(OR(C47="",D47="",E47=""),"",INDEX(v2gAirThresholds[Max],14,1)*INDEX(v2gAirThresholds[Percent Tolerance],14,1)) ->  | Z47: =IF(OR($C47="",$D47="",$E47=""),"",IF(ISNUMBER(OFFSET('4-Air Panel_v2_WPR'!$D$32,(ROW()-ROW($F$32))*Airv2relay,0))=FALSE,"",OFFSET('4-Air Panel_v2_WPR'!$D$32,(ROW()-ROW($F$32))*Airv2relay,0))) ->  | AA47: =IF(OR(C47="",D47="",E47=""),"",INDEX(v2gAirThresholds[Max],15,1)*INDEX(v2gAirThresholds[Percent Tolerance],15,1)) ->  | AC47: =IF(OR($C47="",$D47="",$E47=""),"",IF(ISNUMBER(OFFSET('4-Air Panel_v2_WPR'!$H$32,(ROW()-ROW($F$32))*Airv2relay,0))=FALSE,"",OFFSET('4-Air Panel_v2_WPR'!$H$32,(ROW()-ROW($F$32))*Airv2relay,0))) ->  | AD47: =IF(OR(C47="",D47="",E47=""),"",INDEX(v2gAirThresholds[Max],16,1)*INDEX(v2gAirThresholds[Percent Tolerance],16,1)) ->  | AF47: =IF(OR($C47="",$D47="",$E47=""),"",IF(ISNUMBER(OFFSET('4-Air Panel_v2_WPR'!$I$32,(ROW()-ROW($F$32))*Airv2relay,0))=FALSE,"",OFFSET('4-Air Panel_v2_WPR'!$I$32,(ROW()-ROW($F$32))*Airv2relay,0))) ->  | AG47: =IF(OR(C47="",D47="",E47=""),"",INDEX(v2gAirThresholds[Max],17,1)*INDEX(v2gAirThresholds[Percent Tolerance],17,1)) -> 
C48: =IF(LookUpData!$E$61<=C47,"",C47+1) ->  | D48: =IF(AND(C48<>"",OFFSET('4-Air Panel_v2_WPR'!$E$17,(ROW()-ROW($F$32))*Airv2relay,0)<>""),OFFSET('4-Air Panel_v2_WPR'!$E$17,(ROW()-ROW($F$32))*Airv2relay,0),"") ->  | E48: =IF(OFFSET('4-Air Panel_v2_WPR'!$L$17,(ROW()-ROW($F$32))*Airv2relay,0)="","",IF(AND(C48<>"",D48<>""),OFFSET('4-Air Panel_v2_WPR'!$L$17,(ROW()-ROW($F$32))*Airv2relay,0),"")) ->  | F48: =IF(OR($C48="",$D48="",$E48=""),"",IF(ISNUMBER(OFFSET('4-Air Panel_v2_WPR'!$F$32,(ROW()-ROW($F$32))*Airv2relay,0))=FALSE,"",OFFSET('4-Air Panel_v2_WPR'!$F$32,(ROW()-ROW($F$32))*Airv2relay,0))) ->  | G48: =IF(OR(C48="",D48="",E48=""),"",INDEX(v2gAirThresholds[Max],8,1)*INDEX(v2gAirThresholds[Percent Tolerance],8,1)) ->  | I48: =IF(OR($C48="",$D48="",$E48=""),"",IF(ISNUMBER(OFFSET('4-Air Panel_v2_WPR'!$D$32,(ROW()-ROW($F$32))*Airv2relay,0))=FALSE,"",OFFSET('4-Air Panel_v2_WPR'!$D$32,(ROW()-ROW($F$32))*Airv2relay,0))) ->  | J48: =IF(OR(C48="",D48="",E48=""),"",INDEX(v2gAirThresholds[Max],9,1)*INDEX(v2gAirThresholds[Percent Tolerance],9,1)) ->  | L48: =IF(OR($C48="",$D48="",$E48=""),"",IF(ISNUMBER(OFFSET('4-Air Panel_v2_WPR'!$I$32,(ROW()-ROW($F$32))*Airv2relay,0))=FALSE,"",OFFSET('4-Air Panel_v2_WPR'!$I$32,(ROW()-ROW($F$32))*Airv2relay,0))) ->  | M48: =IF(OR(C48="",D48="",E48=""),"",INDEX(v2gAirThresholds[Max],10,1)*INDEX(v2gAirThresholds[Percent Tolerance],10,1)) ->  | Q48: =IF(OR($C48="",$D48="",$E48=""),"",IF(ISNUMBER(OFFSET('4-Air Panel_v2_WPR'!$G$32,(ROW()-ROW($F$32))*Airv2relay,0))=FALSE,"",OFFSET('4-Air Panel_v2_WPR'!$G$32,(ROW()-ROW($F$32))*Airv2relay,0))) ->  | R48: =IF(OR(C48="",D48="",E48=""),"",INDEX(v2gAirThresholds[Max],11,1)*INDEX(v2gAirThresholds[Percent Tolerance],11,1)) ->  | T48: =IF(OR($C48="",$D48="",$E48=""),"",IF(ISNUMBER(OFFSET('4-Air Panel_v2_WPR'!$E$32,(ROW()-ROW($F$32))*Airv2relay,0))=FALSE,"",OFFSET('4-Air Panel_v2_WPR'!$E$32,(ROW()-ROW($F$32))*Airv2relay,0))) ->  | U48: =IF(OR($C48="",$D48="",$E48="",'4-Air Panel_v2_WPR'!$G$4=""),"",IF('4-Air Panel_v2_WPR'!$G$4="Acrylonitrile",INDEX(v2gAirThresholds[Max],12,1)*INDEX(v2gAirThresholds[Percent Tolerance],12,1),INDEX(v2gAirThresholds[Max],13,1)*INDEX(v2gAirThresholds[Percent Tolerance],13,1))) ->  | W48: =IF(OR($C48="",$D48="",$E48=""),"",IF(ISNUMBER(OFFSET('4-Air Panel_v2_WPR'!$F$32,(ROW()-ROW($F$32))*Airv2relay,0))=FALSE,"",OFFSET('4-Air Panel_v2_WPR'!$F$32,(ROW()-ROW($F$32))*Airv2relay,0))) ->  | X48: =IF(OR(C48="",D48="",E48=""),"",INDEX(v2gAirThresholds[Max],14,1)*INDEX(v2gAirThresholds[Percent Tolerance],14,1)) ->  | Z48: =IF(OR($C48="",$D48="",$E48=""),"",IF(ISNUMBER(OFFSET('4-Air Panel_v2_WPR'!$D$32,(ROW()-ROW($F$32))*Airv2relay,0))=FALSE,"",OFFSET('4-Air Panel_v2_WPR'!$D$32,(ROW()-ROW($F$32))*Airv2relay,0))) ->  | AA48: =IF(OR(C48="",D48="",E48=""),"",INDEX(v2gAirThresholds[Max],15,1)*INDEX(v2gAirThresholds[Percent Tolerance],15,1)) ->  | AC48: =IF(OR($C48="",$D48="",$E48=""),"",IF(ISNUMBER(OFFSET('4-Air Panel_v2_WPR'!$H$32,(ROW()-ROW($F$32))*Airv2relay,0))=FALSE,"",OFFSET('4-Air Panel_v2_WPR'!$H$32,(ROW()-ROW($F$32))*Airv2relay,0))) ->  | AD48: =IF(OR(C48="",D48="",E48=""),"",INDEX(v2gAirThresholds[Max],16,1)*INDEX(v2gAirThresholds[Percent Tolerance],16,1)) ->  | AF48: =IF(OR($C48="",$D48="",$E48=""),"",IF(ISNUMBER(OFFSET('4-Air Panel_v2_WPR'!$I$32,(ROW()-ROW($F$32))*Airv2relay,0))=FALSE,"",OFFSET('4-Air Panel_v2_WPR'!$I$32,(ROW()-ROW($F$32))*Airv2relay,0))) ->  | AG48: =IF(OR(C48="",D48="",E48=""),"",INDEX(v2gAirThresholds[Max],17,1)*INDEX(v2gAirThresholds[Percent Tolerance],17,1)) -> 
C49: =IF(LookUpData!$E$61<=C48,"",C48+1) ->  | D49: =IF(AND(C49<>"",OFFSET('4-Air Panel_v2_WPR'!$E$17,(ROW()-ROW($F$32))*Airv2relay,0)<>""),OFFSET('4-Air Panel_v2_WPR'!$E$17,(ROW()-ROW($F$32))*Airv2relay,0),"") ->  | E49: =IF(OFFSET('4-Air Panel_v2_WPR'!$L$17,(ROW()-ROW($F$32))*Airv2relay,0)="","",IF(AND(C49<>"",D49<>""),OFFSET('4-Air Panel_v2_WPR'!$L$17,(ROW()-ROW($F$32))*Airv2relay,0),"")) ->  | F49: =IF(OR($C49="",$D49="",$E49=""),"",IF(ISNUMBER(OFFSET('4-Air Panel_v2_WPR'!$F$32,(ROW()-ROW($F$32))*Airv2relay,0))=FALSE,"",OFFSET('4-Air Panel_v2_WPR'!$F$32,(ROW()-ROW($F$32))*Airv2relay,0))) ->  | G49: =IF(OR(C49="",D49="",E49=""),"",INDEX(v2gAirThresholds[Max],8,1)*INDEX(v2gAirThresholds[Percent Tolerance],8,1)) ->  | I49: =IF(OR($C49="",$D49="",$E49=""),"",IF(ISNUMBER(OFFSET('4-Air Panel_v2_WPR'!$D$32,(ROW()-ROW($F$32))*Airv2relay,0))=FALSE,"",OFFSET('4-Air Panel_v2_WPR'!$D$32,(ROW()-ROW($F$32))*Airv2relay,0))) ->  | J49: =IF(OR(C49="",D49="",E49=""),"",INDEX(v2gAirThresholds[Max],9,1)*INDEX(v2gAirThresholds[Percent Tolerance],9,1)) ->  | L49: =IF(OR($C49="",$D49="",$E49=""),"",IF(ISNUMBER(OFFSET('4-Air Panel_v2_WPR'!$I$32,(ROW()-ROW($F$32))*Airv2relay,0))=FALSE,"",OFFSET('4-Air Panel_v2_WPR'!$I$32,(ROW()-ROW($F$32))*Airv2relay,0))) ->  | M49: =IF(OR(C49="",D49="",E49=""),"",INDEX(v2gAirThresholds[Max],10,1)*INDEX(v2gAirThresholds[Percent Tolerance],10,1)) ->  | Q49: =IF(OR($C49="",$D49="",$E49=""),"",IF(ISNUMBER(OFFSET('4-Air Panel_v2_WPR'!$G$32,(ROW()-ROW($F$32))*Airv2relay,0))=FALSE,"",OFFSET('4-Air Panel_v2_WPR'!$G$32,(ROW()-ROW($F$32))*Airv2relay,0))) ->  | R49: =IF(OR(C49="",D49="",E49=""),"",INDEX(v2gAirThresholds[Max],11,1)*INDEX(v2gAirThresholds[Percent Tolerance],11,1)) ->  | T49: =IF(OR($C49="",$D49="",$E49=""),"",IF(ISNUMBER(OFFSET('4-Air Panel_v2_WPR'!$E$32,(ROW()-ROW($F$32))*Airv2relay,0))=FALSE,"",OFFSET('4-Air Panel_v2_WPR'!$E$32,(ROW()-ROW($F$32))*Airv2relay,0))) ->  | U49: =IF(OR($C49="",$D49="",$E49="",'4-Air Panel_v2_WPR'!$G$4=""),"",IF('4-Air Panel_v2_WPR'!$G$4="Acrylonitrile",INDEX(v2gAirThresholds[Max],12,1)*INDEX(v2gAirThresholds[Percent Tolerance],12,1),INDEX(v2gAirThresholds[Max],13,1)*INDEX(v2gAirThresholds[Percent Tolerance],13,1))) ->  | W49: =IF(OR($C49="",$D49="",$E49=""),"",IF(ISNUMBER(OFFSET('4-Air Panel_v2_WPR'!$F$32,(ROW()-ROW($F$32))*Airv2relay,0))=FALSE,"",OFFSET('4-Air Panel_v2_WPR'!$F$32,(ROW()-ROW($F$32))*Airv2relay,0))) ->  | X49: =IF(OR(C49="",D49="",E49=""),"",INDEX(v2gAirThresholds[Max],14,1)*INDEX(v2gAirThresholds[Percent Tolerance],14,1)) ->  | Z49: =IF(OR($C49="",$D49="",$E49=""),"",IF(ISNUMBER(OFFSET('4-Air Panel_v2_WPR'!$D$32,(ROW()-ROW($F$32))*Airv2relay,0))=FALSE,"",OFFSET('4-Air Panel_v2_WPR'!$D$32,(ROW()-ROW($F$32))*Airv2relay,0))) ->  | AA49: =IF(OR(C49="",D49="",E49=""),"",INDEX(v2gAirThresholds[Max],15,1)*INDEX(v2gAirThresholds[Percent Tolerance],15,1)) ->  | AC49: =IF(OR($C49="",$D49="",$E49=""),"",IF(ISNUMBER(OFFSET('4-Air Panel_v2_WPR'!$H$32,(ROW()-ROW($F$32))*Airv2relay,0))=FALSE,"",OFFSET('4-Air Panel_v2_WPR'!$H$32,(ROW()-ROW($F$32))*Airv2relay,0))) ->  | AD49: =IF(OR(C49="",D49="",E49=""),"",INDEX(v2gAirThresholds[Max],16,1)*INDEX(v2gAirThresholds[Percent Tolerance],16,1)) ->  | AF49: =IF(OR($C49="",$D49="",$E49=""),"",IF(ISNUMBER(OFFSET('4-Air Panel_v2_WPR'!$I$32,(ROW()-ROW($F$32))*Airv2relay,0))=FALSE,"",OFFSET('4-Air Panel_v2_WPR'!$I$32,(ROW()-ROW($F$32))*Airv2relay,0))) ->  | AG49: =IF(OR(C49="",D49="",E49=""),"",INDEX(v2gAirThresholds[Max],17,1)*INDEX(v2gAirThresholds[Percent Tolerance],17,1)) -> 
C50: =IF(LookUpData!$E$61<=C49,"",C49+1) ->  | D50: =IF(AND(C50<>"",OFFSET('4-Air Panel_v2_WPR'!$E$17,(ROW()-ROW($F$32))*Airv2relay,0)<>""),OFFSET('4-Air Panel_v2_WPR'!$E$17,(ROW()-ROW($F$32))*Airv2relay,0),"") ->  | E50: =IF(OFFSET('4-Air Panel_v2_WPR'!$L$17,(ROW()-ROW($F$32))*Airv2relay,0)="","",IF(AND(C50<>"",D50<>""),OFFSET('4-Air Panel_v2_WPR'!$L$17,(ROW()-ROW($F$32))*Airv2relay,0),"")) ->  | F50: =IF(OR($C50="",$D50="",$E50=""),"",IF(ISNUMBER(OFFSET('4-Air Panel_v2_WPR'!$F$32,(ROW()-ROW($F$32))*Airv2relay,0))=FALSE,"",OFFSET('4-Air Panel_v2_WPR'!$F$32,(ROW()-ROW($F$32))*Airv2relay,0))) ->  | G50: =IF(OR(C50="",D50="",E50=""),"",INDEX(v2gAirThresholds[Max],8,1)*INDEX(v2gAirThresholds[Percent Tolerance],8,1)) ->  | I50: =IF(OR($C50="",$D50="",$E50=""),"",IF(ISNUMBER(OFFSET('4-Air Panel_v2_WPR'!$D$32,(ROW()-ROW($F$32))*Airv2relay,0))=FALSE,"",OFFSET('4-Air Panel_v2_WPR'!$D$32,(ROW()-ROW($F$32))*Airv2relay,0))) ->  | J50: =IF(OR(C50="",D50="",E50=""),"",INDEX(v2gAirThresholds[Max],9,1)*INDEX(v2gAirThresholds[Percent Tolerance],9,1)) ->  | L50: =IF(OR($C50="",$D50="",$E50=""),"",IF(ISNUMBER(OFFSET('4-Air Panel_v2_WPR'!$I$32,(ROW()-ROW($F$32))*Airv2relay,0))=FALSE,"",OFFSET('4-Air Panel_v2_WPR'!$I$32,(ROW()-ROW($F$32))*Airv2relay,0))) ->  | M50: =IF(OR(C50="",D50="",E50=""),"",INDEX(v2gAirThresholds[Max],10,1)*INDEX(v2gAirThresholds[Percent Tolerance],10,1)) ->  | Q50: =IF(OR($C50="",$D50="",$E50=""),"",IF(ISNUMBER(OFFSET('4-Air Panel_v2_WPR'!$G$32,(ROW()-ROW($F$32))*Airv2relay,0))=FALSE,"",OFFSET('4-Air Panel_v2_WPR'!$G$32,(ROW()-ROW($F$32))*Airv2relay,0))) ->  | R50: =IF(OR(C50="",D50="",E50=""),"",INDEX(v2gAirThresholds[Max],11,1)*INDEX(v2gAirThresholds[Percent Tolerance],11,1)) ->  | T50: =IF(OR($C50="",$D50="",$E50=""),"",IF(ISNUMBER(OFFSET('4-Air Panel_v2_WPR'!$E$32,(ROW()-ROW($F$32))*Airv2relay,0))=FALSE,"",OFFSET('4-Air Panel_v2_WPR'!$E$32,(ROW()-ROW($F$32))*Airv2relay,0))) ->  | U50: =IF(OR($C50="",$D50="",$E50="",'4-Air Panel_v2_WPR'!$G$4=""),"",IF('4-Air Panel_v2_WPR'!$G$4="Acrylonitrile",INDEX(v2gAirThresholds[Max],12,1)*INDEX(v2gAirThresholds[Percent Tolerance],12,1),INDEX(v2gAirThresholds[Max],13,1)*INDEX(v2gAirThresholds[Percent Tolerance],13,1))) ->  | W50: =IF(OR($C50="",$D50="",$E50=""),"",IF(ISNUMBER(OFFSET('4-Air Panel_v2_WPR'!$F$32,(ROW()-ROW($F$32))*Airv2relay,0))=FALSE,"",OFFSET('4-Air Panel_v2_WPR'!$F$32,(ROW()-ROW($F$32))*Airv2relay,0))) ->  | X50: =IF(OR(C50="",D50="",E50=""),"",INDEX(v2gAirThresholds[Max],14,1)*INDEX(v2gAirThresholds[Percent Tolerance],14,1)) ->  | Z50: =IF(OR($C50="",$D50="",$E50=""),"",IF(ISNUMBER(OFFSET('4-Air Panel_v2_WPR'!$D$32,(ROW()-ROW($F$32))*Airv2relay,0))=FALSE,"",OFFSET('4-Air Panel_v2_WPR'!$D$32,(ROW()-ROW($F$32))*Airv2relay,0))) ->  | AA50: =IF(OR(C50="",D50="",E50=""),"",INDEX(v2gAirThresholds[Max],15,1)*INDEX(v2gAirThresholds[Percent Tolerance],15,1)) ->  | AC50: =IF(OR($C50="",$D50="",$E50=""),"",IF(ISNUMBER(OFFSET('4-Air Panel_v2_WPR'!$H$32,(ROW()-ROW($F$32))*Airv2relay,0))=FALSE,"",OFFSET('4-Air Panel_v2_WPR'!$H$32,(ROW()-ROW($F$32))*Airv2relay,0))) ->  | AD50: =IF(OR(C50="",D50="",E50=""),"",INDEX(v2gAirThresholds[Max],16,1)*INDEX(v2gAirThresholds[Percent Tolerance],16,1)) ->  | AF50: =IF(OR($C50="",$D50="",$E50=""),"",IF(ISNUMBER(OFFSET('4-Air Panel_v2_WPR'!$I$32,(ROW()-ROW($F$32))*Airv2relay,0))=FALSE,"",OFFSET('4-Air Panel_v2_WPR'!$I$32,(ROW()-ROW($F$32))*Airv2relay,0))) ->  | AG50: =IF(OR(C50="",D50="",E50=""),"",INDEX(v2gAirThresholds[Max],17,1)*INDEX(v2gAirThresholds[Percent Tolerance],17,1)) -> 
C51: =IF(LookUpData!$E$61<=C50,"",C50+1) ->  | D51: =IF(AND(C51<>"",OFFSET('4-Air Panel_v2_WPR'!$E$17,(ROW()-ROW($F$32))*Airv2relay,0)<>""),OFFSET('4-Air Panel_v2_WPR'!$E$17,(ROW()-ROW($F$32))*Airv2relay,0),"") ->  | E51: =IF(OFFSET('4-Air Panel_v2_WPR'!$L$17,(ROW()-ROW($F$32))*Airv2relay,0)="","",IF(AND(C51<>"",D51<>""),OFFSET('4-Air Panel_v2_WPR'!$L$17,(ROW()-ROW($F$32))*Airv2relay,0),"")) ->  | F51: =IF(OR($C51="",$D51="",$E51=""),"",IF(ISNUMBER(OFFSET('4-Air Panel_v2_WPR'!$F$32,(ROW()-ROW($F$32))*Airv2relay,0))=FALSE,"",OFFSET('4-Air Panel_v2_WPR'!$F$32,(ROW()-ROW($F$32))*Airv2relay,0))) ->  | G51: =IF(OR(C51="",D51="",E51=""),"",INDEX(v2gAirThresholds[Max],8,1)*INDEX(v2gAirThresholds[Percent Tolerance],8,1)) ->  | I51: =IF(OR($C51="",$D51="",$E51=""),"",IF(ISNUMBER(OFFSET('4-Air Panel_v2_WPR'!$D$32,(ROW()-ROW($F$32))*Airv2relay,0))=FALSE,"",OFFSET('4-Air Panel_v2_WPR'!$D$32,(ROW()-ROW($F$32))*Airv2relay,0))) ->  | J51: =IF(OR(C51="",D51="",E51=""),"",INDEX(v2gAirThresholds[Max],9,1)*INDEX(v2gAirThresholds[Percent Tolerance],9,1)) ->  | L51: =IF(OR($C51="",$D51="",$E51=""),"",IF(ISNUMBER(OFFSET('4-Air Panel_v2_WPR'!$I$32,(ROW()-ROW($F$32))*Airv2relay,0))=FALSE,"",OFFSET('4-Air Panel_v2_WPR'!$I$32,(ROW()-ROW($F$32))*Airv2relay,0))) ->  | M51: =IF(OR(C51="",D51="",E51=""),"",INDEX(v2gAirThresholds[Max],10,1)*INDEX(v2gAirThresholds[Percent Tolerance],10,1)) ->  | Q51: =IF(OR($C51="",$D51="",$E51=""),"",IF(ISNUMBER(OFFSET('4-Air Panel_v2_WPR'!$G$32,(ROW()-ROW($F$32))*Airv2relay,0))=FALSE,"",OFFSET('4-Air Panel_v2_WPR'!$G$32,(ROW()-ROW($F$32))*Airv2relay,0))) ->  | R51: =IF(OR(C51="",D51="",E51=""),"",INDEX(v2gAirThresholds[Max],11,1)*INDEX(v2gAirThresholds[Percent Tolerance],11,1)) ->  | T51: =IF(OR($C51="",$D51="",$E51=""),"",IF(ISNUMBER(OFFSET('4-Air Panel_v2_WPR'!$E$32,(ROW()-ROW($F$32))*Airv2relay,0))=FALSE,"",OFFSET('4-Air Panel_v2_WPR'!$E$32,(ROW()-ROW($F$32))*Airv2relay,0))) ->  | U51: =IF(OR($C51="",$D51="",$E51="",'4-Air Panel_v2_WPR'!$G$4=""),"",IF('4-Air Panel_v2_WPR'!$G$4="Acrylonitrile",INDEX(v2gAirThresholds[Max],12,1)*INDEX(v2gAirThresholds[Percent Tolerance],12,1),INDEX(v2gAirThresholds[Max],13,1)*INDEX(v2gAirThresholds[Percent Tolerance],13,1))) ->  | W51: =IF(OR($C51="",$D51="",$E51=""),"",IF(ISNUMBER(OFFSET('4-Air Panel_v2_WPR'!$F$32,(ROW()-ROW($F$32))*Airv2relay,0))=FALSE,"",OFFSET('4-Air Panel_v2_WPR'!$F$32,(ROW()-ROW($F$32))*Airv2relay,0))) ->  | X51: =IF(OR(C51="",D51="",E51=""),"",INDEX(v2gAirThresholds[Max],14,1)*INDEX(v2gAirThresholds[Percent Tolerance],14,1)) ->  | Z51: =IF(OR($C51="",$D51="",$E51=""),"",IF(ISNUMBER(OFFSET('4-Air Panel_v2_WPR'!$D$32,(ROW()-ROW($F$32))*Airv2relay,0))=FALSE,"",OFFSET('4-Air Panel_v2_WPR'!$D$32,(ROW()-ROW($F$32))*Airv2relay,0))) ->  | AA51: =IF(OR(C51="",D51="",E51=""),"",INDEX(v2gAirThresholds[Max],15,1)*INDEX(v2gAirThresholds[Percent Tolerance],15,1)) ->  | AC51: =IF(OR($C51="",$D51="",$E51=""),"",IF(ISNUMBER(OFFSET('4-Air Panel_v2_WPR'!$H$32,(ROW()-ROW($F$32))*Airv2relay,0))=FALSE,"",OFFSET('4-Air Panel_v2_WPR'!$H$32,(ROW()-ROW($F$32))*Airv2relay,0))) ->  | AD51: =IF(OR(C51="",D51="",E51=""),"",INDEX(v2gAirThresholds[Max],16,1)*INDEX(v2gAirThresholds[Percent Tolerance],16,1)) ->  | AF51: =IF(OR($C51="",$D51="",$E51=""),"",IF(ISNUMBER(OFFSET('4-Air Panel_v2_WPR'!$I$32,(ROW()-ROW($F$32))*Airv2relay,0))=FALSE,"",OFFSET('4-Air Panel_v2_WPR'!$I$32,(ROW()-ROW($F$32))*Airv2relay,0))) ->  | AG51: =IF(OR(C51="",D51="",E51=""),"",INDEX(v2gAirThresholds[Max],17,1)*INDEX(v2gAirThresholds[Percent Tolerance],17,1)) -> 
F54: A01.3: Meet Thresholds for Inorganic Gases | N54: A05.3: Meet Enhanced Thresholds for Inorganic Gases
C55: Sample Number | D55: Location / Description | E55: Commercial Kitchen or Industrial? | F55: =IF('4-Air Panel_v2_WPR'!$G$7="","Carbon Monoxide []",IF('4-Air Panel_v2_WPR'!$G$7="Lab","Carbon Monoxide [mg/m³]",IF(AND('4-Air Panel_v2_WPR'!$G$7="Direct Read",'4-Air Panel_v2_WPR'!$G$10="mg/m³"),"Carbon Monoxide [mg/m³]",IF(AND('4-Air Panel_v2_WPR'!$G$7="Direct Read",'4-Air Panel_v2_WPR'!$G$10="ppm"),"Carbon Monoxide [ppm]","Carbon Monoxide []")))) -> Carbon Monoxide [] | G55: Threshold (with tolerance) | H55: Outcome | I55: =IF('4-Air Panel_v2_WPR'!$H$7="","Ozone []",IF('4-Air Panel_v2_WPR'!$H$7="Lab","Ozone [µg/m³]",IF(AND('4-Air Panel_v2_WPR'!$H$7="Direct Read",'4-Air Panel_v2_WPR'!$H$10="µg/m³"),"Ozone [µg/m³]",IF(AND('4-Air Panel_v2_WPR'!$H$7="Direct Read",'4-Air Panel_v2_WPR'!$H$10="ppb"),"Ozone [ppb]","Ozone []")))) -> Ozone [] | J55: Threshold (with tolerance) | K55: Outcome | L55: Total Outcome | N55: =IF('4-Air Panel_v2_WPR'!$G$7="","Carbon Monoxide []",IF('4-Air Panel_v2_WPR'!$G$7="Lab","Carbon Monoxide [mg/m³]",IF(AND('4-Air Panel_v2_WPR'!$G$7="Direct Read",'4-Air Panel_v2_WPR'!$G$10="mg/m³"),"Carbon Monoxide [mg/m³]",IF(AND('4-Air Panel_v2_WPR'!$G$7="Direct Read",'4-Air Panel_v2_WPR'!$G$10="ppm"),"Carbon Monoxide [ppm]","Carbon Monoxide []")))) -> Carbon Monoxide [] | O55: Threshold (with tolerance) | P55: Outcome | Q55: =IF('4-Air Panel_v2_WPR'!$I$7="","Nitrogen Dioxide []",IF('4-Air Panel_v2_WPR'!$I$7="Lab","Nitrogen Dioxide [µg/m³]",IF(AND('4-Air Panel_v2_WPR'!$I$7="Direct Read",'4-Air Panel_v2_WPR'!$I$10="µg/m³"),"Nitrogen Dioxide [µg/m³]",IF(AND('4-Air Panel_v2_WPR'!$I$7="Direct Read",'4-Air Panel_v2_WPR'!$I$10="ppb"),"Nitrogen Dioxide [ppb]","Nitrogen Dioxide []")))) -> Nitrogen Dioxide [] | R55: Threshold (with tolerance) | S55: Outcome | T55: Total Outcome
